Workbook

Sheet Оглавление
R1: RUR | S1: 1
R2: USD | S2: =I21 -> 0
R3: EUR | S3: =E23 -> 100.24
B21: Ваш персональный менеджер | D21: Иванов Василий | E21: EUR ЦБ
B22: Адрес электронной почты | D22: @afinara.ru
B23: Контактный телефон | E23: 100.24
B25: № | C25: Группы товаров: | D25: Персональная Скидка, % | E25: Сумма со скидкой с НДС
B26: 1 | C26: ПВХ трубы IPS | D26: 0 | E26: ='ПВХ IPS'!J2 -> 0
B27: 2 | C27: ПВХ трубы прозрачные IPS | D27: 0 | E27: ='ПВХ IPS'!J3 -> 0
B28: 3 | C28: ПВХ запорная арматура IPS | D28: 0 | E28: ='ПВХ IPS'!J4 -> 0
B29: 4 | C29: ПВХ фитинги PIMTAS | D29: 0 | E29: ='ПВХ PIMTAS'!J2 -> 0
B30: 5 | C30: ПВХ запорная арматура FIP | D30: 0 | E30: ='ПВХ FIP'!J2 -> 0
B31: 6 | C31: ХПВХ трубы IPS | D31: 0 | E31: ='ХПВХ IPS'!J2 -> 0
B32: 7 | C32: ХПВХ фитинги IPS | D32: 0 | E32: ='ХПВХ IPS'!J3 -> 0
B33: 8 | C33: ХПВХ запорная арматура IPS | D33: 0 | E33: ='ХПВХ IPS'!J4 -> 0
B34: 9 | C34: ХПВХ запорная арматура FIP | D34: 0 | E34: ='ХПВХ FIP'!J2 -> 0
B35: 10 | C35: ПП (PP-H) трубы IPS | D35: 0 | E35: ='ПП (PP-H) IPS'!J2 -> 0
B36: 11 | C36: ПП (PP-H) фитинги IPS | D36: 0 | E36: ='ПП (PP-H) IPS'!J3 -> 0
B37: 12 | C37: ПП (PP-H) запорная арматура IPS | D37: 0 | E37: ='ПП (PP-H) IPS'!J4 -> 0
B38: 13 | C38: ПП (PP-H) запорная арматура FIP | D38: 0 | E38: ='ПП (PP-H) FIP'!J2 -> 0
B39: 14 | C39: ПВДФ трубы, фитинги и запорная арматура IPS | D39: 0 | E39: ='ПВДФ IPS'!J2 -> 0
B40: 15 | C40: ПВДФ запорная арматура FIP | D40: 0 | E40: ='ПВДФ FIP'!J2 -> 0
B41: 16 | C41: Ротаметры | D41: 0 | E41: =Ротаметры!K2 -> 0
B42: 17 | C42: Муфты Straub | D42: 0 | E42: ='Муфты STRAUB'!I2 -> 0
B43: 18 | C43: Аксессуары, клей | D43: 0 | E43: ='Аксессуары, клей'!$I$2 -> 0
D45: ИТОГО | E45: Сумма со скидкой с НДС
E46: =SUM(E26:E43) -> 0

Sheet ПВХ IPS
J1: =COUNT(K10:K425) -> 0 | K1: Товаров в заказе
J2: =SUM(M10:M60) -> 0 | K2: Сумма заказа со скидкой с НДС (Трубы)
J3: =SUM(M61:M72) -> 0 | K3: Сумма заказа со скидкой с НДС (Трубы прозрачные)
J4: =SUM(M73:M424) -> 0 | K4: Сумма заказа со скидкой с НДС (Арматура)
J5: =SUM(M10:M425) -> 0 | K5: Сумма заказа со скидкой с НДС
A9: Фото | B9: Артикул | C9: Наименование | D9: PN | E9: Категория | F9: Валюта продажи | G9: Цена ПРОДАЖИ с НДС | H9: Цена с НДС со скидкой | I9: Цена EUR | J9: Ед. измерения | K9: Заказ (метры/штуки) | L9: Сумма рубли | M9: Сумма со скидкой
B10: IPIPEV16016 | C10: Труба ПВХ напорная клеевая с раструбом PN16 16x1.5x3 м IPS | D10: 16 | E10: Трубы | F10: RUB | G10: =IFERROR(I10*Оглавление!$E$23,"по запросу") -> по запросу | H10: =IFERROR(G10*(1-Оглавление!$D$26),"по запросу") -> по запросу | I10: - | J10: м | L10: =IFERROR(K10*G10,"0 ₽") -> 0 ₽ | M10: =IFERROR(K10*H10,"0 ₽") -> 0 ₽
B11: IPIPEV16020 | C11: Труба ПВХ напорная клеевая с раструбом PN16 20x1.5x3 м IPS | D11: 16 | E11: Трубы | F11: RUB | G11: 153 | H11: =IFERROR(G11*(1-Оглавление!$D$26),"") -> 153 | I11: - | J11: м | L11: 0 | M11: 0
B12: IPIPEV16025 | C12: Труба ПВХ напорная клеевая с раструбом PN16 25x1.9x3 м IPS | D12: 16 | E12: Трубы | F12: RUB | G12: 207 | H12: =IFERROR(G12*(1-Оглавление!$D$26),"") -> 207 | I12: - | J12: м | L12: 0 | M12: 0
B13: IPIPEV16032 | C13: Труба ПВХ напорная клеевая с раструбом PN16 32x2.4x3 м IPS | D13: 16 | E13: Трубы | F13: RUB | G13: 319 | H13: =IFERROR(G13*(1-Оглавление!$D$26),"") -> 319 | I13: - | J13: м | L13: 0 | M13: 0
B14: IPIPEV16040 | C14: Труба ПВХ напорная клеевая с раструбом PN16 40x3.0x3 м IPS | D14: 16 | E14: Трубы | F14: RUB | G14: 450 | H14: =IFERROR(G14*(1-Оглавление!$D$26),"") -> 450 | I14: - | J14: м | L14: 0 | M14: 0
B15: IPIPEV16050 | C15: Труба ПВХ напорная клеевая с раструбом PN16 50x3.7x3 м IPS | D15: 16 | E15: Трубы | F15: RUB | G15: 677 | H15: =IFERROR(G15*(1-Оглавление!$D$26),"") -> 677 | I15: - | J15: м | L15: 0 | M15: 0
B16: IPIPEV16063 | C16: Труба ПВХ напорная клеевая с раструбом PN16 63x4.7x3 м IPS | D16: 16 | E16: Трубы | F16: RUB | G16: 1105 | H16: =IFERROR(G16*(1-Оглавление!$D$26),"") -> 1105 | I16: - | J16: м | L16: 0 | M16: 0
B17: IPIPEV16075 | C17: Труба ПВХ напорная клеевая с раструбом PN16 75x5.6x3 м IPS | D17: 16 | E17: Трубы | F17: RUB | G17: 1509 | H17: =IFERROR(G17*(1-Оглавление!$D$26),"") -> 1509 | I17: - | J17: м | L17: 0 | M17: 0
B18: IPIPEV16090 | C18: Труба ПВХ напорная клеевая с раструбом PN16 90x6.7x3 м IPS | D18: 16 | E18: Трубы | F18: RUB | G18: 2647 | H18: =IFERROR(G18*(1-Оглавление!$D$26),"") -> 2647 | I18: - | J18: м | L18: 0 | M18: 0
B19: IPIPEV16110 | C19: Труба ПВХ напорная клеевая с раструбом PN16 110x6.6x3 м IPS | D19: 16 | E19: Трубы | F19: RUB | G19: 3245 | H19: =IFERROR(G19*(1-Оглавление!$D$26),"") -> 3245 | I19: - | J19: м | L19: 0 | M19: 0
B20: IPIPEV16125 | C20: Труба ПВХ напорная клеевая с раструбом PN16 125x7.4x3 м IPS | D20: 16 | E20: Трубы | F20: RUB | G20: 6544 | H20: =IFERROR(G20*(1-Оглавление!$D$26),"") -> 6544 | I20: - | J20: м | L20: 0 | M20: 0
B21: IPIPEV16140 | C21: Труба ПВХ напорная клеевая с раструбом PN16 140x8.3x3 м IPS | D21: 16 | E21: Трубы | F21: RUB | G21: 8304 | H21: =IFERROR(G21*(1-Оглавление!$D$26),"") -> 8304 | I21: - | J21: м | L21: 0 | M21: 0
B22: IPIPEV16160 | C22: Труба ПВХ напорная клеевая с раструбом PN16 160x9.5x3 м IPS | D22: 16 | E22: Трубы | F22: RUB | G22: 6648 | H22: =IFERROR(G22*(1-Оглавление!$D$26),"") -> 6648 | I22: - | J22: м | L22: 0 | M22: 0
B23: IPIPEV16225 | C23: Труба ПВХ напорная клеевая с раструбом PN16 225x13.4x3 м IPS | D23: 16 | E23: Трубы | F23: RUB | G23: 14088 | H23: =IFERROR(G23*(1-Оглавление!$D$26),"") -> 14088 | I23: - | J23: м | L23: 0 | M23: 0
B24: IPIPEV16280 | C24: Труба ПВХ напорная клеевая с раструбом PN16 280x16.6x3 м IPS | D24: 16 | E24: Трубы | F24: RUB | G24: 35611 | H24: =IFERROR(G24*(1-Оглавление!$D$26),"") -> 35611 | I24: - | J24: м | L24: 0 | M24: 0
B25: AQV311053R | C25: Труба ПВХ напорная клеевая с раструбом PN12,5 110x5.3x3 м IPS | D25: 12.5 | E25: Трубы | F25: RUB | G25: 2581 | H25: =IFERROR(G25*(1-Оглавление!$D$26),"") -> 2581 | I25: - | J25: м | L25: =IFERROR(K25*G25,"0 ₽") -> 0 | M25: =IFERROR(K25*H25,"0 ₽") -> 0
B26: AQV316077R | C26: Труба ПВХ напорная клеевая с раструбом PN12,5 160x7.7x3 м IPS | D26: 12.5 | E26: Трубы | F26: RUB | G26: 4605 | H26: =IFERROR(G26*(1-Оглавление!$D$26),"") -> 4605 | I26: - | J26: м | L26: =IFERROR(K26*G26,"0 ₽") -> 0 | M26: =IFERROR(K26*H26,"0 ₽") -> 0
B27: AQV322510R | C27: Труба ПВХ напорная клеевая с раструбом PN12,5 225x10.8x3 м IPS | D27: 12.5 | E27: Трубы | F27: RUB | G27: по запросу | H27: по запросу | I27: - | J27: м | L27: =IFERROR(K27*G27,"0 ₽") -> 0 ₽ | M27: =IFERROR(K27*H27,"0 ₽") -> 0 ₽
B28: AQV302515R | C28: Труба ПВХ напорная клеевая с раструбом PN10 25x1.5x3 м IPS | D28: 10 | E28: Трубы | F28: RUB | G28: =IFERROR(I28*Оглавление!$E$23,"по запросу") -> по запросу | H28: =IFERROR(G28*(1-Оглавление!$D$26),"по запросу") -> по запросу | I28: - | J28: м | L28: =IFERROR(K28*G28,"0 ₽") -> 0 ₽ | M28: =IFERROR(K28*H28,"0 ₽") -> 0 ₽
B29: IPIPEV10032 | C29: Труба ПВХ напорная клеевая с раструбом PN10 32x1.6x3 м IPS | D29: 10 | E29: Трубы | F29: RUB | G29: 234 | H29: =IFERROR(G29*(1-Оглавление!$D$26),"") -> 234 | I29: - | J29: м | L29: 0 | M29: 0
B30: IPIPEV10040 | C30: Труба ПВХ напорная клеевая с раструбом PN10 40x1.9x3 м IPS | D30: 10 | E30: Трубы | F30: RUB | G30: 304 | H30: =IFERROR(G30*(1-Оглавление!$D$26),"") -> 304 | I30: - | J30: м | L30: 0 | M30: 0
B31: IPIPEV10050 | C31: Труба ПВХ напорная клеевая с раструбом PN10 50x2.4x3 м IPS | D31: 10 | E31: Трубы | F31: RUB | G31: 437 | H31: =IFERROR(G31*(1-Оглавление!$D$26),"") -> 437 | I31: - | J31: м | L31: 0 | M31: 0
B32: IPIPEV10063 | C32: Труба ПВХ напорная клеевая с раструбом PN10 63x3.0x3 м IPS | D32: 10 | E32: Трубы | F32: RUB | G32: 709 | H32: =IFERROR(G32*(1-Оглавление!$D$26),"") -> 709 | I32: - | J32: м | L32: 0 | M32: 0
B33: IPIPEV10075 | C33: Труба ПВХ напорная клеевая с раструбом PN10 75x3.6x3 м IPS | D33: 10 | E33: Трубы | F33: RUB | G33: 1054 | H33: =IFERROR(G33*(1-Оглавление!$D$26),"") -> 1054 | I33: - | J33: м | L33: 0 | M33: 0
B34: IPIPEV10090 | C34: Труба ПВХ напорная клеевая с раструбом PN10 90x4.3x3 м IPS | D34: 10 | E34: Трубы | F34: RUB | G34: 1429 | H34: =IFERROR(G34*(1-Оглавление!$D$26),"") -> 1429 | I34: - | J34: м | L34: 0 | M34: 0
B35: IPIPEV10110 | C35: Труба ПВХ напорная клеевая с раструбом PN10 110x4.2x3 м IPS | D35: 10 | E35: Трубы | F35: RUB | G35: 1674 | H35: =IFERROR(G35*(1-Оглавление!$D$26),"") -> 1674 | I35: - | J35: м | L35: 0 | M35: 0
B36: IPIPEV10125 | C36: Труба ПВХ напорная клеевая с раструбом PN10 125x4.8x3 м IPS | D36: 10 | E36: Трубы | F36: RUB | G36: 2303 | H36: =IFERROR(G36*(1-Оглавление!$D$26),"") -> 2303 | I36: - | J36: м | L36: 0 | M36: 0
B37: IPIPEV10140 | C37: Труба ПВХ напорная клеевая с раструбом PN10 140x5.4x3 м IPS | D37: 10 | E37: Трубы | F37: RUB | G37: 3395 | H37: =IFERROR(G37*(1-Оглавление!$D$26),"") -> 3395 | I37: - | J37: м | L37: 0 | M37: 0
B38: IPIPEV10160 | C38: Труба ПВХ напорная клеевая с раструбом PN10 160x6.2x3 м IPS | D38: 10 | E38: Трубы | F38: RUB | G38: 3664 | H38: =IFERROR(G38*(1-Оглавление!$D$26),"") -> 3664 | I38: - | J38: м | L38: 0 | M38: 0
B39: IPIPEV10200 | C39: Труба ПВХ напорная клеевая с раструбом PN10 200x7.7x3 м IPS | D39: 10 | E39: Трубы | F39: RUB | G39: 5822 | H39: =IFERROR(G39*(1-Оглавление!$D$26),"") -> 5822 | I39: - | J39: м | L39: 0 | M39: 0
B40: IPIPEV10225 | C40: Труба ПВХ напорная клеевая с раструбом PN10 225x8.6x3 м IPS | D40: 10 | E40: Трубы | F40: RUB | G40: 8823 | H40: =IFERROR(G40*(1-Оглавление!$D$26),"") -> 8823 | I40: - | J40: м | L40: 0 | M40: 0
B41: IPIPEV10250 | C41: Труба ПВХ напорная клеевая с раструбом PN10 250x9.6x3 м IPS | D41: 10 | E41: Трубы | F41: RUB | G41: 9955 | H41: =IFERROR(G41*(1-Оглавление!$D$26),"") -> 9955 | I41: - | J41: м | L41: 0 | M41: 0
B42: IPIPEV10280 | C42: Труба ПВХ напорная клеевая с раструбом PN10 280x10.7x3 м IPS | D42: 10 | E42: Трубы | F42: RUB | G42: 18230 | H42: =IFERROR(G42*(1-Оглавление!$D$26),"") -> 18230 | I42: - | J42: м | L42: 0 | M42: 0
B43: IPIPEV10315 | C43: Труба ПВХ напорная клеевая с раструбом PN10 315x12.1x3 м IPS | D43: 10 | E43: Трубы | F43: RUB | G43: 16938 | H43: =IFERROR(G43*(1-Оглавление!$D$26),"") -> 16938 | I43: - | J43: м | L43: 0 | M43: 0
B44: AQV335513R | C44: Труба ПВХ напорная клеевая с раструбом PN10 355x13.6x3 м IPS | D44: 10 | E44: Трубы | F44: RUB | G44: по запросу | H44: по запросу | I44: - | J44: м | L44: 0 ₽ | M44: 0 ₽
B45: AQV340015R | C45: Труба ПВХ напорная клеевая с раструбом PN10 400x15.3x3 м IPS | D45: 10 | E45: Трубы | F45: RUB | G45: по запросу | H45: по запросу | I45: - | J45: м | L45: 0 ₽ | M45: 0 ₽
B46: AQV305016R | C46: Труба ПВХ напорная клеевая с раструбом PN6 50x1.6x3 м IPS | D46: 6 | E46: Трубы | F46: RUB | G46: 350 | H46: =IFERROR(G46*(1-Оглавление!$D$26),"") -> 350 | I46: - | J46: м | L46: =IFERROR(K46*G46,"0 ₽") -> 0 | M46: =IFERROR(K46*H46,"0 ₽") -> 0
B47: AQV306320R | C47: Труба ПВХ напорная клеевая с раструбом PN6 63x2.0x3 м IPS | D47: 6 | E47: Трубы | F47: RUB | G47: 515 | H47: =IFERROR(G47*(1-Оглавление!$D$26),"") -> 515 | I47: - | J47: м | L47: 0 | M47: 0
B48: AQV307523R | C48: Труба ПВХ напорная клеевая с раструбом PN6 75x2.3x3 м IPS | D48: 6 | E48: Трубы | F48: RUB | G48: 860 | H48: =IFERROR(G48*(1-Оглавление!$D$26),"") -> 860 | I48: - | J48: м | L48: 0 | M48: 0
B49: AQV309028R | C49: Труба ПВХ напорная клеевая с раструбом PN6 90x2.8x3 м IPS | D49: 6 | E49: Трубы | F49: RUB | G49: 1108 | H49: =IFERROR(G49*(1-Оглавление!$D$26),"") -> 1108 | I49: - | J49: м | L49: 0 | M49: 0
B50: AQV311027R | C50: Труба ПВХ напорная клеевая с раструбом PN6 110x2.7x3 м IPS | D50: 6 | E50: Трубы | F50: RUB | G50: 1269 | H50: =IFERROR(G50*(1-Оглавление!$D$26),"") -> 1269 | I50: - | J50: м | L50: 0 | M50: 0
B51: AQV312539R | C51: Труба ПВХ напорная клеевая с раструбом PN6 125x3.9x3 м IPS | D51: 6 | E51: Трубы | F51: RUB | G51: 1811 | H51: =IFERROR(G51*(1-Оглавление!$D$26),"") -> 1811 | I51: - | J51: м | L51: 0 | M51: 0
B52: AQV314035R | C52: Труба ПВХ напорная клеевая с раструбом PN6 140x3.5x3 м IPS | D52: 6 | E52: Трубы | F52: RUB | G52: =IFERROR(I52*Оглавление!$E$23,"по запросу") -> по запросу | H52: =IFERROR(G52*(1-Оглавление!$D$26),"по запросу") -> по запросу | I52: - | J52: м | L52: 0 ₽ | M52: 0 ₽
B53: AQV316040R | C53: Труба ПВХ напорная клеевая с раструбом PN6 160x4.0x3 м IPS | D53: 6 | E53: Трубы | F53: RUB | G53: 2690 | H53: =IFERROR(G53*(1-Оглавление!$D$26),"") -> 2690 | I53: - | J53: м | L53: 0 | M53: 0
B54: AQV320049R | C54: Труба ПВХ напорная клеевая с раструбом PN6 200x4.9x3 м IPS | D54: 6 | E54: Трубы | F54: RUB | G54: 4279 | H54: =IFERROR(G54*(1-Оглавление!$D$26),"") -> 4279 | I54: - | J54: м | L54: 0 | M54: 0
B55: AQV322555R | C55: Труба ПВХ напорная клеевая с раструбом PN6 225x5.5x3 м IPS | D55: 6 | E55: Трубы | F55: RUB | G55: 5780 | H55: =IFERROR(G55*(1-Оглавление!$D$26),"") -> 5780 | I55: - | J55: м | L55: 0 | M55: 0
B56: AQV325062R | C56: Труба ПВХ напорная клеевая с раструбом PN6 250x6.2x3 м IPS | D56: 6 | E56: Трубы | F56: RUB | G56: 8436 | H56: =IFERROR(G56*(1-Оглавление!$D$26),"") -> 8436 | I56: - | J56: м | L56: 0 | M56: 0
B57: AQV328069R | C57: Труба ПВХ напорная клеевая с раструбом PN6 280x6.9x3 м IPS | D57: 6 | E57: Трубы | F57: RUB | G57: 10319 | H57: =IFERROR(G57*(1-Оглавление!$D$26),"") -> 10319 | I57: - | J57: м | L57: 0 | M57: 0
B58: AQV331577R | C58: Труба ПВХ напорная клеевая с раструбом PN6 315x7.7x3 м IPS | D58: 6 | E58: Трубы | F58: RUB | G58: 11256 | H58: =IFERROR(G58*(1-Оглавление!$D$26),"") -> 11256 | I58: - | J58: м | L58: 0 | M58: 0
B59: AQV335587R | C59: Труба ПВХ напорная клеевая с раструбом PN6 355x8.7x3 м IPS | D59: 6 | E59: Трубы | F59: RUB | G59: 19335.9698 | H59: =IFERROR(G59*(1-Оглавление!$D$26),"") -> 19335.9698 | I59: - | J59: м | L59: 0 | M59: 0
B60: AQV340098R | C60: Труба ПВХ напорная клеевая с раструбом PN6 400x9.8x3 м IPS | D60: 6 | E60: Трубы | F60: RUB | G60: 21852 | H60: =IFERROR(G60*(1-Оглавление!$D$26),"") -> 21852 | I60: - | J60: м | L60: 0 | M60: 0
B61: IPIPET00110 | C61: Труба ПВХ напорная клеевая прозрачная PN6 110x5.0x3 м IPS | D61: 6 | E61: Трубы | F61: RUB | G61: =I61*Оглавление!$E$23 -> 6595.792 | H61: =IFERROR(G61*(1-Оглавление!$D$27),"") -> 6595.792 | I61: 65.8 | J61: м | L61: 0 | M61: 0
B62: IPIPET00140 | C62: Труба ПВХ напорная клеевая прозрачная PN6 140x5.0x3 м IPS | D62: 6 | E62: Трубы | F62: RUB | G62: =IFERROR(I62*Оглавление!$E$23,"по запросу") -> по запросу | H62: =IFERROR(G62*(1-Оглавление!$D$27),"по запросу") -> по запросу | I62: по запросу | J62: м | L62: 0 ₽ | M62: 0 ₽
B63: IPIPET00160 | C63: Труба ПВХ напорная клеевая прозрачная PN6 160x5.5x3 м IPS | D63: 6 | E63: Трубы | F63: RUB | G63: =I63*Оглавление!$E$23 -> 12772.91493 | H63: =IFERROR(G63*(1-Оглавление!$D$27),"") -> 12772.91493 | I63: 127.4233333 | J63: м | L63: 0 | M63: 0
B64: IPIPET00225 | C64: Труба ПВХ напорная клеевая прозрачная PN6 225x7.5x3 м IPS | D64: 6 | E64: Трубы | F64: RUB | G64: =IFERROR(I64*Оглавление!$E$23,"по запросу") -> по запросу | H64: =IFERROR(G64*(1-Оглавление!$D$27),"по запросу") -> по запросу | I64: по запросу | J64: м | L64: 0 ₽ | M64: 0 ₽
B65: IPIPET10020 | C65: Труба ПВХ напорная клеевая прозрачная PN10 20x2.5x3 м IPS | D65: 10 | E65: Трубы | F65: RUB | G65: =I65*Оглавление!$E$23 -> 488.8370667 | H65: =IFERROR(G65*(1-Оглавление!$D$27),"") -> 488.8370667 | I65: 4.876666667 | J65: м | L65: 0 | M65: 0
B66: IPIPET10025 | C66: Труба ПВХ напорная клеевая прозрачная PN10 25x2.5x3 м IPS | D66: 10 | E66: Трубы | F66: RUB | G66: =I66*Оглавление!$E$23 -> 701.68 | H66: =IFERROR(G66*(1-Оглавление!$D$27),"") -> 701.68 | I66: 7 | J66: м | L66: 0 | M66: 0
B67: IPIPET10032 | C67: Труба ПВХ напорная клеевая прозрачная PN10 32x3.0x3 м IPS | D67: 10 | E67: Трубы | F67: RUB | G67: =I67*Оглавление!$E$23 -> 982.352 | H67: =IFERROR(G67*(1-Оглавление!$D$27),"") -> 982.352 | I67: 9.8 | J67: м | L67: 0 | M67: 0
B68: IPIPET10040 | C68: Труба ПВХ напорная клеевая прозрачная PN10 40x3.2x3 м IPS | D68: 10 | E68: Трубы | F68: RUB | G68: =I68*Оглавление!$E$23 -> 1244.312533 | H68: =IFERROR(G68*(1-Оглавление!$D$27),"") -> 1244.312533 | I68: 12.41333333 | J68: м | L68: 0 | M68: 0
B69: IPIPET10050 | C69: Труба ПВХ напорная клеевая прозрачная PN10 50x3.5x3 м IPS | D69: 10 | E69: Трубы | F69: RUB | G69: =I69*Оглавление!$E$23 -> 1590.8088 | H69: =IFERROR(G69*(1-Оглавление!$D$27),"") -> 1590.8088 | I69: 15.87 | J69: м | L69: 0 | M69: 0
B70: IPIPET10063 | C70: Труба ПВХ напорная клеевая прозрачная PN10 63x4.0x3 м IPS | D70: 10 | E70: Трубы | F70: RUB | G70: =I70*Оглавление!$E$23 -> 2270.101867 | H70: =IFERROR(G70*(1-Оглавление!$D$27),"") -> 2270.101867 | I70: 22.64666667 | J70: м | L70: 0 | M70: 0
B71: IPIPET10075 | C71: Труба ПВХ напорная клеевая прозрачная PN10 75x4.0x3 м IPS | D71: 10 | E71: Трубы | F71: RUB | G71: =I71*Оглавление!$E$23 -> 3543.484 | H71: =IFERROR(G71*(1-Оглавление!$D$27),"") -> 3543.484 | I71: 35.35 | J71: м | L71: 0 | M71: 0
B72: IPIPET10090 | C72: Труба ПВХ напорная клеевая прозрачная PN10 90x4.3x3 м IPS | D72: 10 | E72: Трубы | F72: RUB | G72: =I72*Оглавление!$E$23 -> 4631.088 | H72: =IFERROR(G72*(1-Оглавление!$D$27),"") -> 4631.088 | I72: 46.2 | J72: м | L72: 0 | M72: 0
B73: IVEEIV020E | C73: Кран шаровой ПВХ муфтовый общего применения EPDM 20 IPS | D73: 16 | E73: Арматура | F73: RUB | G73: =IFERROR(I73*Оглавление!$E$23,"по запросу") -> 447.5811844 | H73: =IFERROR(G73*(1-Оглавление!$D$28),"по запросу") -> 447.5811844 | I73: 4.465095615 | J73: шт | L73: 0 | M73: 0
B74: IVEEIV025E | C74: Кран шаровой ПВХ муфтовый общего применения EPDM 25 IPS | D74: 16 | E74: Арматура | F74: RUB | G74: =IFERROR(I74*Оглавление!$E$23,"по запросу") -> 593.0450694 | H74: =IFERROR(G74*(1-Оглавление!$D$28),"по запросу") -> 593.0450694 | I74: 5.91625169 | J74: шт | L74: 0 | M74: 0
B75: IVEEIV032E | C75: Кран шаровой ПВХ муфтовый общего применения EPDM 32 IPS | D75: 16 | E75: Арматура | F75: RUB | G75: =IFERROR(I75*Оглавление!$E$23,"по запросу") -> 883.9728393 | H75: =IFERROR(G75*(1-Оглавление!$D$28),"по запросу") -> 883.9728393 | I75: 8.818563839 | J75: шт | L75: =IFERROR(K75*G75,"0 ₽") -> 0 | M75: =IFERROR(K75*H75,"0 ₽") -> 0
B76: IVEEIV040E | C76: Кран шаровой ПВХ муфтовый общего применения EPDM 40 IPS | D76: 16 | E76: Арматура | F76: RUB | G76: =IFERROR(I76*Оглавление!$E$23,"по запросу") -> 1331.554024 | H76: =IFERROR(G76*(1-Оглавление!$D$28),"по запросу") -> 1331.554024 | I76: 13.28365945 | J76: шт | L76: 0 | M76: 0
B77: IVEEIV050E | C77: Кран шаровой ПВХ муфтовый общего применения EPDM 50 IPS | D77: 16 | E77: Арматура | F77: RUB | G77: =IFERROR(I77*Оглавление!$E$23,"по запросу") -> 2014.11533 | H77: =IFERROR(G77*(1-Оглавление!$D$28),"по запросу") -> 2014.11533 | I77: 20.09293027 | J77: шт | L77: 0 | M77: 0
B78: IVEEIV063E | C78: Кран шаровой ПВХ муфтовый общего применения EPDM 63 IPS | D78: 16 | E78: Арматура | F78: RUB | G78: =IFERROR(I78*Оглавление!$E$23,"по запросу") -> 2573.591811 | H78: =IFERROR(G78*(1-Оглавление!$D$28),"по запросу") -> 2573.591811 | I78: 25.67429979 | J78: шт | L78: 0 | M78: 0
B79: IVEEIV075E | C79: Кран шаровой ПВХ муфтовый общего применения EPDM 75 IPS | D79: 10 | E79: Арматура | F79: RUB | G79: =IFERROR(I79*Оглавление!$E$23,"по запросу") -> 5538.817157 | H79: =IFERROR(G79*(1-Оглавление!$D$28),"по запросу") -> 5538.817157 | I79: 55.25555823 | J79: шт | L79: 0 | M79: 0
B80: IVEEIV090E | C80: Кран шаровой ПВХ муфтовый общего применения EPDM 90 IPS | D80: 10 | E80: Арматура | F80: RUB | G80: =IFERROR(I80*Оглавление!$E$23,"по запросу") -> 9175.414281 | H80: =IFERROR(G80*(1-Оглавление!$D$28),"по запросу") -> 9175.414281 | I80: 91.53446011 | J80: шт | L80: 0 | M80: 0
B81: IVEEIV110E | C81: Кран шаровой ПВХ муфтовый общего применения EPDM 110 IPS | D81: 10 | E81: Арматура | F81: RUB | G81: =IFERROR(I81*Оглавление!$E$23,"по запросу") -> 17735.40443 | H81: =IFERROR(G81*(1-Оглавление!$D$28),"по запросу") -> 17735.40443 | I81: 176.9294137 | J81: шт | L81: 0 | M81: 0
B82: IVKDIV020E | C82: Кран шаровой ПВХ муфтовый промышленный EPDM 20 IPS | D82: 16 | E82: Арматура | F82: RUB | G82: =IFERROR(I82*Оглавление!$E$23,"по запросу") -> 3165.5792 | H82: =IFERROR(G82*(1-Оглавление!$D$28),"по запросу") -> 3165.5792 | I82: 31.58 | J82: шт | L82: 0 | M82: 0
B83: IVKDIV025E | C83: Кран шаровой ПВХ муфтовый промышленный EPDM 25 IPS | D83: 16 | E83: Арматура | F83: RUB | G83: =IFERROR(I83*Оглавление!$E$23,"по запросу") -> 4078.7656 | H83: =IFERROR(G83*(1-Оглавление!$D$28),"по запросу") -> 4078.7656 | I83: 40.69 | J83: шт | L83: 0 | M83: 0
B84: IVKDIV032E | C84: Кран шаровой ПВХ муфтовый промышленный EPDM 32 IPS | D84: 16 | E84: Арматура | F84: RUB | G84: =IFERROR(I84*Оглавление!$E$23,"по запросу") -> 4310.32 | H84: =IFERROR(G84*(1-Оглавление!$D$28),"по запросу") -> 4310.32 | I84: 43 | J84: шт | L84: 0 | M84: 0
B85: IVKDIV040E | C85: Кран шаровой ПВХ муфтовый промышленный EPDM 40 IPS | D85: 16 | E85: Арматура | F85: RUB | G85: =IFERROR(I85*Оглавление!$E$23,"по запросу") -> 6030.4384 | H85: =IFERROR(G85*(1-Оглавление!$D$28),"по запросу") -> 6030.4384 | I85: 60.16 | J85: шт | L85: 0 | M85: 0
B86: IVKDIV050E | C86: Кран шаровой ПВХ муфтовый промышленный EPDM 50 IPS | D86: 16 | E86: Арматура | F86: RUB | G86: =IFERROR(I86*Оглавление!$E$23,"по запросу") -> 7089.9752 | H86: =IFERROR(G86*(1-Оглавление!$D$28),"по запросу") -> 7089.9752 | I86: 70.73 | J86: шт | L86: 0 | M86: 0
B87: IVKDIV063E | C87: Кран шаровой ПВХ муфтовый промышленный EPDM 63 IPS | D87: 16 | E87: Арматура | F87: RUB | G87: =IFERROR(I87*Оглавление!$E$23,"по запросу") -> 8769.9976 | H87: =IFERROR(G87*(1-Оглавление!$D$28),"по запросу") -> 8769.9976 | I87: 87.49 | J87: шт | L87: 0 | M87: 0
B88: IVKDIV075E | C88: Кран шаровой ПВХ муфтовый промышленный EPDM 75 IPS | D88: 10 | E88: Арматура | F88: RUB | G88: =IFERROR(I88*Оглавление!$E$23,"по запросу") -> 22533.952 | H88: =IFERROR(G88*(1-Оглавление!$D$28),"по запросу") -> 22533.952 | I88: 224.8 | J88: шт | L88: 0 | M88: 0
B89: IVKDIV090E | C89: Кран шаровой ПВХ муфтовый промышленный EPDM 90 IPS | D89: 10 | E89: Арматура | F89: RUB | G89: =IFERROR(I89*Оглавление!$E$23,"по запросу") -> 23884.1848 | H89: =IFERROR(G89*(1-Оглавление!$D$28),"по запросу") -> 23884.1848 | I89: 238.27 | J89: шт | L89: 0 | M89: 0
B90: IVKDIV110E | C90: Кран шаровой ПВХ муфтовый промышленный EPDM 110 IPS | D90: 10 | E90: Арматура | F90: RUB | G90: =IFERROR(I90*Оглавление!$E$23,"по запросу") -> 39810.316 | H90: =IFERROR(G90*(1-Оглавление!$D$28),"по запросу") -> 39810.316 | I90: 397.15 | J90: шт | L90: 0 | M90: 0
B91: IVKDIV020F | C91: Кран шаровой ПВХ муфтовый промышленный FKM 20 IPS | D91: 16 | E91: Арматура | F91: RUB | G91: =IFERROR(I91*Оглавление!$E$23,"по запросу") -> 4290.272 | H91: =IFERROR(G91*(1-Оглавление!$D$28),"по запросу") -> 4290.272 | I91: 42.8 | J91: шт | L91: 0 | M91: 0
B92: IVKDIV025F | C92: Кран шаровой ПВХ муфтовый промышленный FKM 25 IPS | D92: 16 | E92: Арматура | F92: RUB | G92: =IFERROR(I92*Оглавление!$E$23,"по запросу") -> 4880.6856 | H92: =IFERROR(G92*(1-Оглавление!$D$28),"по запросу") -> 4880.6856 | I92: 48.69 | J92: шт | L92: 0 | M92: 0
B93: IVKDIV032F | C93: Кран шаровой ПВХ муфтовый промышленный FKM 32 IPS | D93: 16 | E93: Арматура | F93: RUB | G93: =IFERROR(I93*Оглавление!$E$23,"по запросу") -> 6360.228 | H93: =IFERROR(G93*(1-Оглавление!$D$28),"по запросу") -> 6360.228 | I93: 63.45 | J93: шт | L93: 0 | M93: 0
B94: IVKDIV040F | C94: Кран шаровой ПВХ муфтовый промышленный FKM 40 IPS | D94: 16 | E94: Арматура | F94: RUB | G94: =IFERROR(I94*Оглавление!$E$23,"по запросу") -> 7122.052 | H94: =IFERROR(G94*(1-Оглавление!$D$28),"по запросу") -> 7122.052 | I94: 71.05 | J94: шт | L94: 0 | M94: 0
B95: IVKDIV050F | C95: Кран шаровой ПВХ муфтовый промышленный FKM 50 IPS | D95: 16 | E95: Арматура | F95: RUB | G95: =IFERROR(I95*Оглавление!$E$23,"по запросу") -> 8988.5208 | H95: =IFERROR(G95*(1-Оглавление!$D$28),"по запросу") -> 8988.5208 | I95: 89.67 | J95: шт | L95: 0 | M95: 0
B96: IVKDIV063F | C96: Кран шаровой ПВХ муфтовый промышленный FKM 63 IPS | D96: 16 | E96: Арматура | F96: RUB | G96: =IFERROR(I96*Оглавление!$E$23,"по запросу") -> 12767.5688 | H96: =IFERROR(G96*(1-Оглавление!$D$28),"по запросу") -> 12767.5688 | I96: 127.37 | J96: шт | L96: 0 | M96: 0
B97: IVKDIV075F | C97: Кран шаровой ПВХ муфтовый промышленный FKM 75 IPS | D97: 10 | E97: Арматура | F97: RUB | G97: =IFERROR(I97*Оглавление!$E$23,"по запросу") -> 27134.41703 | H97: =IFERROR(G97*(1-Оглавление!$D$28),"по запросу") -> 27134.41703 | I97: 270.6945035 | J97: шт | L97: 0 | M97: 0
B98: IVKDIV090F | C98: Кран шаровой ПВХ муфтовый промышленный FKM 90 IPS | D98: 10 | E98: Арматура | F98: RUB | G98: =IFERROR(I98*Оглавление!$E$23,"по запросу") -> 26109.53364 | H98: =IFERROR(G98*(1-Оглавление!$D$28),"по запросу") -> 26109.53364 | I98: 260.4702079 | J98: шт | L98: 0 | M98: 0
B99: IVKDIV110F | C99: Кран шаровой ПВХ муфтовый промышленный FKM 110 IPS | D99: 10 | E99: Арматура | F99: RUB | G99: =IFERROR(I99*Оглавление!$E$23,"по запросу") -> 40944.42571 | H99: =IFERROR(G99*(1-Оглавление!$D$28),"по запросу") -> 40944.42571 | I99: 408.4639436 | J99: шт | L99: 0 | M99: 0
B100: IVKDOV020E | C100: Кран шаровой ПВХ фланцевый промышленный EPDM 20 IPS | D100: 16 | E100: Арматура | F100: RUB | G100: =IFERROR(I100*Оглавление!$E$23,"по запросу") -> 5365.522259 | H100: =IFERROR(G100*(1-Оглавление!$D$28),"по запросу") -> 5365.522259 | I100: 53.52675837 | J100: шт | L100: 0 | M100: 0
B101: IVKDOV025E | C101: Кран шаровой ПВХ фланцевый промышленный EPDM 25 IPS | D101: 16 | E101: Арматура | F101: RUB | G101: =IFERROR(I101*Оглавление!$E$23,"по запросу") -> 7013.080572 | H101: =IFERROR(G101*(1-Оглавление!$D$28),"по запросу") -> 7013.080572 | I101: 69.96289477 | J101: шт | L101: 0 | M101: 0
B102: IVKDOV032E | C102: Кран шаровой ПВХ фланцевый промышленный EPDM 32 IPS | D102: 16 | E102: Арматура | F102: RUB | G102: =IFERROR(I102*Оглавление!$E$23,"по запросу") -> 7356.275631 | H102: =IFERROR(G102*(1-Оглавление!$D$28),"по запросу") -> 7356.275631 | I102: 73.3866284 | J102: шт | L102: 0 | M102: 0
B103: IVKDOV040E | C103: Кран шаровой ПВХ фланцевый промышленный EPDM 40 IPS | D103: 16 | E103: Арматура | F103: RUB | G103: =IFERROR(I103*Оглавление!$E$23,"по запросу") -> 10157.445 | H103: =IFERROR(G103*(1-Оглавление!$D$28),"по запросу") -> 10157.445 | I103: 101.3312549 | J103: шт | L103: 0 | M103: 0
B104: IVKDOV050E | C104: Кран шаровой ПВХ фланцевый промышленный EPDM 50 IPS | D104: 16 | E104: Арматура | F104: RUB | G104: =IFERROR(I104*Оглавление!$E$23,"по запросу") -> 11160.30668 | H104: =IFERROR(G104*(1-Оглавление!$D$28),"по запросу") -> 11160.30668 | I104: 111.3358607 | J104: шт | L104: 0 | M104: 0
B105: IVKDOV063E | C105: Кран шаровой ПВХ фланцевый промышленный EPDM 63 IPS | D105: 16 | E105: Арматура | F105: RUB | G105: =IFERROR(I105*Оглавление!$E$23,"по запросу") -> 13127.2485 | H105: =IFERROR(G105*(1-Оглавление!$D$28),"по запросу") -> 13127.2485 | I105: 130.9581853 | J105: шт | L105: 0 | M105: 0
B106: IVKDOV075E | C106: Кран шаровой ПВХ фланцевый промышленный EPDM 75 IPS | D106: 10 | E106: Арматура | F106: RUB | G106: =IFERROR(I106*Оглавление!$E$23,"по запросу") -> 31132.21913 | H106: =IFERROR(G106*(1-Оглавление!$D$28),"по запросу") -> 31132.21913 | I106: 310.5768069 | J106: шт | L106: 0 | M106: 0
B107: IVKDOV090E | C107: Кран шаровой ПВХ фланцевый промышленный EPDM 90 IPS | D107: 10 | E107: Арматура | F107: RUB | G107: =IFERROR(I107*Оглавление!$E$23,"по запросу") -> 29753.95286 | H107: =IFERROR(G107*(1-Оглавление!$D$28),"по запросу") -> 29753.95286 | I107: 296.8271435 | J107: шт | L107: 0 | M107: 0
B108: IVKDOV110E | C108: Кран шаровой ПВХ фланцевый промышленный EPDM 110 IPS | D108: 10 | E108: Арматура | F108: RUB | G108: =IFERROR(I108*Оглавление!$E$23,"по запросу") -> 46723.80668 | H108: =IFERROR(G108*(1-Оглавление!$D$28),"по запросу") -> 46723.80668 | I108: 466.1193803 | J108: шт | L108: 0 | M108: 0
B109: IVKDOV020F | C109: Кран шаровой ПВХ фланцевый промышленный EPDM 20 IPS | D109: 16 | E109: Арматура | F109: RUB | G109: =IFERROR(I109*Оглавление!$E$23,"по запросу") -> 7492.915157 | H109: =IFERROR(G109*(1-Оглавление!$D$28),"по запросу") -> 7492.915157 | I109: 74.74975217 | J109: шт | L109: 0 | M109: 0
B110: IVKDOV025F | C110: Кран шаровой ПВХ фланцевый промышленный EPDM 25 IPS | D110: 16 | E110: Арматура | F110: RUB | G110: =IFERROR(I110*Оглавление!$E$23,"по запросу") -> 8612.975685 | H110: =IFERROR(G110*(1-Оглавление!$D$28),"по запросу") -> 8612.975685 | I110: 85.92354036 | J110: шт | L110: 0 | M110: 0
B111: IVKDOV032F | C111: Кран шаровой ПВХ фланцевый промышленный EPDM 32 IPS | D111: 16 | E111: Арматура | F111: RUB | G111: =IFERROR(I111*Оглавление!$E$23,"по запросу") -> 11060.95149 | H111: =IFERROR(G111*(1-Оглавление!$D$28),"по запросу") -> 11060.95149 | I111: 110.3446877 | J111: шт | L111: 0 | M111: 0
B112: IVKDOV040F | C112: Кран шаровой ПВХ фланцевый промышленный EPDM 40 IPS | D112: 16 | E112: Арматура | F112: RUB | G112: =IFERROR(I112*Оглавление!$E$23,"по запросу") -> 12579.93965 | H112: =IFERROR(G112*(1-Оглавление!$D$28),"по запросу") -> 12579.93965 | I112: 125.4982008 | J112: шт | L112: 0 | M112: 0
B113: IVKDOV050F | C113: Кран шаровой ПВХ фланцевый промышленный EPDM 50 IPS | D113: 16 | E113: Арматура | F113: RUB | G113: =IFERROR(I113*Оглавление!$E$23,"по запросу") -> 14841.12953 | H113: =IFERROR(G113*(1-Оглавление!$D$28),"по запросу") -> 14841.12953 | I113: 148.055961 | J113: шт | L113: 0 | M113: 0
B114: IVKDOV063F | C114: Кран шаровой ПВХ фланцевый промышленный EPDM 63 IPS | D114: 16 | E114: Арматура | F114: RUB | G114: =IFERROR(I114*Оглавление!$E$23,"по запросу") -> 20180.20665 | H114: =IFERROR(G114*(1-Оглавление!$D$28),"по запросу") -> 20180.20665 | I114: 201.3189012 | J114: шт | L114: 0 | M114: 0
B115: IVKDOV075F | C115: Кран шаровой ПВХ фланцевый промышленный EPDM 75 IPS | D115: 10 | E115: Арматура | F115: RUB | G115: =IFERROR(I115*Оглавление!$E$23,"по запросу") -> 40619.78996 | H115: =IFERROR(G115*(1-Оглавление!$D$28),"по запросу") -> 40619.78996 | I115: 405.2253587 | J115: шт | L115: 0 | M115: 0
B116: IVKDOV090F | C116: Кран шаровой ПВХ фланцевый промышленный EPDM 90 IPS | D116: 10 | E116: Арматура | F116: RUB | G116: =IFERROR(I116*Оглавление!$E$23,"по запросу") -> 36506.89428 | H116: =IFERROR(G116*(1-Оглавление!$D$28),"по запросу") -> 36506.89428 | I116: 364.1948751 | J116: шт | L116: 0 | M116: 0
B117: IVKDOV110F | C117: Кран шаровой ПВХ фланцевый промышленный EPDM 110 IPS | D117: 10 | E117: Арматура | F117: RUB | G117: =IFERROR(I117*Оглавление!$E$23,"по запросу") -> 54766.01126 | H117: =IFERROR(G117*(1-Оглавление!$D$28),"по запросу") -> 54766.01126 | I117: 546.3488753 | J117: шт | L117: 0 | M117: 0
B118: IFEOVLM063E | C118: Затвор дисковый ПВХ с рукояткой общего применения 63 (DN50) EPDM IPS | D118: 10 | E118: Арматура | F118: RUB | G118: =IFERROR(I118*Оглавление!$E$23,"по запросу") -> 4469.59819 | H118: =IFERROR(G118*(1-Оглавление!$D$28),"по запросу") -> 4469.59819 | I118: 44.58896837 | J118: шт | L118: 0 | M118: 0
B119: IFEOVLM075E | C119: Затвор дисковый ПВХ с рукояткой общего применения 75 (DN65) EPDM IPS | D119: 10 | E119: Арматура | F119: RUB | G119: =IFERROR(I119*Оглавление!$E$23,"по запросу") -> 4870.638853 | H119: =IFERROR(G119*(1-Оглавление!$D$28),"по запросу") -> 4870.638853 | I119: 48.58977307 | J119: шт | L119: 0 | M119: 0
B120: IFEOVLM090E | C120: Затвор дисковый ПВХ с рукояткой общего применения 90 (DN80) EPDM IPS | D120: 10 | E120: Арматура | F120: RUB | G120: =IFERROR(I120*Оглавление!$E$23,"по запросу") -> 6143.942958 | H120: =IFERROR(G120*(1-Оглавление!$D$28),"по запросу") -> 6143.942958 | I120: 61.29232799 | J120: шт | L120: 0 | M120: 0
B121: IFEOVLM110E | C121: Затвор дисковый ПВХ с рукояткой общего применения 110 (DN100) EPDM IPS | D121: 10 | E121: Арматура | F121: RUB | G121: =IFERROR(I121*Оглавление!$E$23,"по запросу") -> 7649.850648 | H121: =IFERROR(G121*(1-Оглавление!$D$28),"по запросу") -> 7649.850648 | I121: 76.31534964 | J121: шт | L121: 0 | M121: 0
B122: IFEOVLM140E | C122: Затвор дисковый ПВХ с рукояткой общего применения 140 (DN125) EPDM IPS | D122: 10 | E122: Арматура | F122: RUB | G122: =IFERROR(I122*Оглавление!$E$23,"по запросу") -> 12532.52072 | H122: =IFERROR(G122*(1-Оглавление!$D$28),"по запросу") -> 12532.52072 | I122: 125.0251468 | J122: шт | L122: 0 | M122: 0
B123: IFEOVLM160E | C123: Затвор дисковый ПВХ с рукояткой общего применения 160 (DN150) EPDM IPS | D123: 10 | E123: Арматура | F123: RUB | G123: =IFERROR(I123*Оглавление!$E$23,"по запросу") -> 14938.7647 | H123: =IFERROR(G123*(1-Оглавление!$D$28),"по запросу") -> 14938.7647 | I123: 149.029975 | J123: шт | L123: 0 | M123: 0
B124: IFEOVLM225E | C124: Затвор дисковый ПВХ с рукояткой общего применения 225 (DN200) EPDM IPS | D124: 10 | E124: Арматура | F124: RUB | G124: =IFERROR(I124*Оглавление!$E$23,"по запросу") -> 21555.93564 | H124: =IFERROR(G124*(1-Оглавление!$D$28),"по запросу") -> 21555.93564 | I124: 215.0432526 | J124: шт | L124: 0 | M124: 0
B125: IFKOVLM063E | C125: Затвор дисковый ПВХ с рукояткой промышленный 63 (DN50) EPDM IPS | D125: 10 | E125: Арматура | F125: RUB | G125: =IFERROR(I125*Оглавление!$E$23,"по запросу") -> 13805.5655 | H125: =IFERROR(G125*(1-Оглавление!$D$28),"по запросу") -> 13805.5655 | I125: 137.7251148 | J125: шт | L125: =IFERROR(K125*G125,"0 ₽") -> 0 | M125: =IFERROR(K125*H125,"0 ₽") -> 0
B126: IFKOVLM075E | C126: Затвор дисковый ПВХ с рукояткой промышленный 75 (DN65) EPDM IPS | D126: 10 | E126: Арматура | F126: RUB | G126: =IFERROR(I126*Оглавление!$E$23,"по запросу") -> 14657.68522 | H126: =IFERROR(G126*(1-Оглавление!$D$28),"по запросу") -> 14657.68522 | I126: 146.22591 | J126: шт | L126: 0 | M126: 0
B127: IFKOVLM090E | C127: Затвор дисковый ПВХ с рукояткой промышленный 90 (DN80) EPDM IPS | D127: 10 | E127: Арматура | F127: RUB | G127: =IFERROR(I127*Оглавление!$E$23,"по запросу") -> 15975.71212 | H127: =IFERROR(G127*(1-Оглавление!$D$28),"по запросу") -> 15975.71212 | I127: 159.3746221 | J127: шт | L127: 0 | M127: 0
B128: IFKOVLM110E | C128: Затвор дисковый ПВХ с рукояткой промышленный 110 (DN100) EPDM IPS | D128: 10 | E128: Арматура | F128: RUB | G128: =IFERROR(I128*Оглавление!$E$23,"по запросу") -> 19230.93205 | H128: =IFERROR(G128*(1-Оглавление!$D$28),"по запросу") -> 19230.93205 | I128: 191.8488832 | J128: шт | L128: 0 | M128: 0
B129: IFKOVLM140E | C129: Затвор дисковый ПВХ с рукояткой промышленный 140 (DN125) EPDM IPS | D129: 10 | E129: Арматура | F129: RUB | G129: =IFERROR(I129*Оглавление!$E$23,"по запросу") -> 28745.24718 | H129: =IFERROR(G129*(1-Оглавление!$D$28),"по запросу") -> 28745.24718 | I129: 286.7642376 | J129: шт | L129: 0 | M129: 0
B130: IFKOVLM160E | C130: Затвор дисковый ПВХ с рукояткой промышленный 160 (DN150) EPDM IPS | D130: 10 | E130: Арматура | F130: RUB | G130: =IFERROR(I130*Оглавление!$E$23,"по запросу") -> 33931.52978 | H130: =IFERROR(G130*(1-Оглавление!$D$28),"по запросу") -> 33931.52978 | I130: 338.5028908 | J130: шт | L130: 0 | M130: 0
B131: IFKOVLM225E | C131: Затвор дисковый ПВХ с рукояткой промышленный 225 (DN200) EPDM IPS | D131: 10 | E131: Арматура | F131: RUB | G131: =IFERROR(I131*Оглавление!$E$23,"по запросу") -> 48858.95074 | H131: =IFERROR(G131*(1-Оглавление!$D$28),"по запросу") -> 48858.95074 | I131: 487.4197001 | J131: шт | L131: 0 | M131: 0
B132: IFKOVLM063F | C132: Затвор дисковый ПВХ с рукояткой промышленный 63 (DN50) FKM IPS | D132: 10 | E132: Арматура | F132: RUB | G132: =IFERROR(I132*Оглавление!$E$23,"по запросу") -> 23863.84268 | H132: =IFERROR(G132*(1-Оглавление!$D$28),"по запросу") -> 23863.84268 | I132: 238.0670659 | J132: шт | L132: 0 | M132: 0
B133: IFKOVLM075F | C133: Затвор дисковый ПВХ с рукояткой промышленный 75 (DN65) FKM IPS | D133: 10 | E133: Арматура | F133: RUB | G133: =IFERROR(I133*Оглавление!$E$23,"по запросу") -> 24705.87328 | H133: =IFERROR(G133*(1-Оглавление!$D$28),"по запросу") -> 24705.87328 | I133: 246.4672115 | J133: шт | L133: 0 | M133: 0
B134: IFKOVLM090F | C134: Затвор дисковый ПВХ с рукояткой промышленный 90 (DN80) FKM IPS | D134: 10 | E134: Арматура | F134: RUB | G134: =IFERROR(I134*Оглавление!$E$23,"по запросу") -> 29369.44625 | H134: =IFERROR(G134*(1-Оглавление!$D$28),"по запросу") -> 29369.44625 | I134: 292.9912834 | J134: шт | L134: 0 | M134: 0
B135: IFKOVLM110F | C135: Затвор дисковый ПВХ с рукояткой промышленный 110 (DN100) FKM IPS | D135: 10 | E135: Арматура | F135: RUB | G135: =IFERROR(I135*Оглавление!$E$23,"по запросу") -> 37743.63902 | H135: =IFERROR(G135*(1-Оглавление!$D$28),"по запросу") -> 37743.63902 | I135: 376.5327117 | J135: шт | L135: 0 | M135: 0
B136: IFKOVLM140F | C136: Затвор дисковый ПВХ с рукояткой промышленный 140 (DN125) FKM IPS | D136: 10 | E136: Арматура | F136: RUB | G136: =IFERROR(I136*Оглавление!$E$23,"по запросу") -> 57312.42919 | H136: =IFERROR(G136*(1-Оглавление!$D$28),"по запросу") -> 57312.42919 | I136: 571.7520869 | J136: шт | L136: 0 | M136: 0
B137: IFKOVLM160F | C137: Затвор дисковый ПВХ с рукояткой промышленный 160 (DN150) FKM IPS | D137: 10 | E137: Арматура | F137: RUB | G137: =IFERROR(I137*Оглавление!$E$23,"по запросу") -> 81870.84141 | H137: =IFERROR(G137*(1-Оглавление!$D$28),"по запросу") -> 81870.84141 | I137: 816.7482184 | J137: шт | L137: 0 | M137: 0
B138: IFKOVLM225F | C138: Затвор дисковый ПВХ с рукояткой промышленный 225 (DN200) FKM IPS | D138: 10 | E138: Арматура | F138: RUB | G138: =IFERROR(I138*Оглавление!$E$23,"по запросу") -> 111218.8063 | H138: =IFERROR(G138*(1-Оглавление!$D$28),"по запросу") -> 111218.8063 | I138: 1109.525202 | J138: шт | L138: 0 | M138: 0
B139: IFKOVRM225E | C139: Затвор дисковый ПВХ с редуктором промышленный 225 (DN200) EPDM IPS | D139: 10 | E139: Арматура | F139: RUB | G139: =IFERROR(I139*Оглавление!$E$23,"по запросу") -> 77518.3729 | H139: =IFERROR(G139*(1-Оглавление!$D$28),"по запросу") -> 77518.3729 | I139: 773.3277425 | J139: шт | L139: 0 | M139: 0
B140: IFKOVRM280E | C140: Затвор дисковый ПВХ с редуктором промышленный 280 (DN250) EPDM IPS | D140: 10 | E140: Арматура | F140: RUB | G140: =IFERROR(I140*Оглавление!$E$23,"по запросу") -> 118267.9728 | H140: =IFERROR(G140*(1-Оглавление!$D$28),"по запросу") -> 118267.9728 | I140: 1179.848093 | J140: шт | L140: 0 | M140: 0
B141: IFKOVRM315E | C141: Затвор дисковый ПВХ с редуктором промышленный 315 (DN300) EPDM IPS | D141: 10 | E141: Арматура | F141: RUB | G141: =IFERROR(I141*Оглавление!$E$23,"по запросу") -> 173792.1629 | H141: =IFERROR(G141*(1-Оглавление!$D$28),"по запросу") -> 173792.1629 | I141: 1733.760604 | J141: шт | L141: 0 | M141: 0
B142: IFKOVRM225F | C142: Затвор дисковый ПВХ с редуктором промышленный 225 (DN200) FKM IPS | D142: 10 | E142: Арматура | F142: RUB | G142: =IFERROR(I142*Оглавление!$E$23,"по запросу") -> 139105.6922 | H142: =IFERROR(G142*(1-Оглавление!$D$28),"по запросу") -> 139105.6922 | I142: 1387.726379 | J142: шт | L142: 0 | M142: 0
B143: IFKOVRM280F | C143: Затвор дисковый ПВХ с редуктором промышленный 280 (DN250) FKM IPS | D143: 10 | E143: Арматура | F143: RUB | G143: =IFERROR(I143*Оглавление!$E$23,"по запросу") -> 211233.1246 | H143: =IFERROR(G143*(1-Оглавление!$D$28),"по запросу") -> 211233.1246 | I143: 2107.273789 | J143: шт | L143: 0 | M143: 0
B144: IFKOVRM315F | C144: Затвор дисковый ПВХ с редуктором промышленный 315 (DN300) FKM IPS | D144: 10 | E144: Арматура | F144: RUB | G144: =IFERROR(I144*Оглавление!$E$23,"по запросу") -> 312331.6976 | H144: =IFERROR(G144*(1-Оглавление!$D$28),"по запросу") -> 312331.6976 | I144: 3115.838962 | J144: шт | L144: 0 | M144: 0
B145: IFKOVRM814E | C145: Затвор дисковый ПВХ с редуктором промышленный 14" (DN350) EPDM IPS | E145: Арматура | F145: RUB | G145: =IFERROR(I145*Оглавление!$E$23,"по запросу") -> 148006.024 | H145: =IFERROR(G145*(1-Оглавление!$D$28),"по запросу") -> 148006.024 | I145: 1476.5166 | J145: шт | L145: 0 | M145: 0
B146: IFKOVRM816E | C146: Затвор дисковый ПВХ с редуктором промышленный 16" (DN400) EPDM IPS | E146: Арматура | F146: RUB | G146: =IFERROR(I146*Оглавление!$E$23,"по запросу") -> 240098.6611 | H146: =IFERROR(G146*(1-Оглавление!$D$28),"по запросу") -> 240098.6611 | I146: 2395.23804 | J146: шт | L146: 0 | M146: 0
B147: IFKOVRM818E | C147: Затвор дисковый ПВХ с редуктором промышленный 18" (DN450) EPDM IPS | E147: Арматура | F147: RUB | G147: =IFERROR(I147*Оглавление!$E$23,"по запросу") -> 363523.5677 | H147: =IFERROR(G147*(1-Оглавление!$D$28),"по запросу") -> 363523.5677 | I147: 3626.532 | J147: шт | L147: 0 | M147: 0
B148: IFKOVRM820E | C148: Затвор дисковый ПВХ с редуктором промышленный 20" (DN500) EPDM IPS | E148: Арматура | F148: RUB | G148: =IFERROR(I148*Оглавление!$E$23,"по запросу") -> 377025.8716 | H148: =IFERROR(G148*(1-Оглавление!$D$28),"по запросу") -> 377025.8716 | I148: 3761.23176 | J148: шт | L148: 0 | M148: 0
B149: IFKOVRM824E | C149: Затвор дисковый ПВХ с редуктором промышленный 24" (DN600) EPDM IPS | E149: Арматура | F149: RUB | G149: =IFERROR(I149*Оглавление!$E$23,"по запросу") -> 614008.6165 | H149: =IFERROR(G149*(1-Оглавление!$D$28),"по запросу") -> 614008.6165 | I149: 6125.38524 | J149: шт | L149: 0 | M149: 0
B150: IFKOVRM828E | C150: Затвор дисковый ПВХ с редуктором промышленный 28" (DN700) EPDM IPS | E150: Арматура | F150: RUB | G150: =IFERROR(I150*Оглавление!$E$23,"по запросу") -> по запросу | H150: =IFERROR(G150*(1-Оглавление!$D$28),"по запросу") -> по запросу | I150: по запросу | J150: шт | L150: 0 ₽ | M150: 0 ₽
B151: IFKOVRM832E | C151: Затвор дисковый ПВХ с редуктором промышленный 32" (DN800) EPDM IPS | E151: Арматура | F151: RUB | G151: =IFERROR(I151*Оглавление!$E$23,"по запросу") -> по запросу | H151: =IFERROR(G151*(1-Оглавление!$D$28),"по запросу") -> по запросу | I151: по запросу | J151: шт | L151: 0 ₽ | M151: 0 ₽
B152: IFKOVRM840E | C152: Затвор дисковый ПВХ с редуктором промышленный 40" (DN1000) EPDM IPS | E152: Арматура | F152: RUB | G152: =IFERROR(I152*Оглавление!$E$23,"по запросу") -> по запросу | H152: =IFERROR(G152*(1-Оглавление!$D$28),"по запросу") -> по запросу | I152: по запросу | J152: шт | L152: 0 ₽ | M152: 0 ₽
B153: IFKOVRM814F | C153: Затвор дисковый ПВХ с редуктором промышленный 14" (DN350) FKM IPS | E153: Арматура | F153: RUB | G153: =IFERROR(I153*Оглавление!$E$23,"по запросу") -> 278528.2954 | H153: =IFERROR(G153*(1-Оглавление!$D$28),"по запросу") -> 278528.2954 | I153: 2778.61428 | J153: шт | L153: 0 | M153: 0
B154: IFKOVRM816F | C154: Затвор дисковый ПВХ с редуктором промышленный 16" (DN400) FKM IPS | E154: Арматура | F154: RUB | G154: =IFERROR(I154*Оглавление!$E$23,"по запросу") -> 409829.5459 | H154: =IFERROR(G154*(1-Оглавление!$D$28),"по запросу") -> 409829.5459 | I154: 4088.4831 | J154: шт | L154: 0 | M154: 0
B155: IFKOVRM818F | C155: Затвор дисковый ПВХ с редуктором промышленный 18" (DN450) FKM IPS | E155: Арматура | F155: RUB | G155: =IFERROR(I155*Оглавление!$E$23,"по запросу") -> 546497.0967 | H155: =IFERROR(G155*(1-Оглавление!$D$28),"по запросу") -> 546497.0967 | I155: 5451.88644 | J155: шт | L155: 0 | M155: 0
B156: IFKOVRM820F | C156: Затвор дисковый ПВХ с редуктором промышленный 20" (DN500) FKM IPS | E156: Арматура | F156: RUB | G156: =IFERROR(I156*Оглавление!$E$23,"по запросу") -> 582676.3471 | H156: =IFERROR(G156*(1-Оглавление!$D$28),"по запросу") -> 582676.3471 | I156: 5812.81272 | J156: шт | L156: 0 | M156: 0
B157: IFKOVRM824F | C157: Затвор дисковый ПВХ с редуктором промышленный 24" (DN600) FKM IPS | E157: Арматура | F157: RUB | G157: =IFERROR(I157*Оглавление!$E$23,"по запросу") -> 910366.8773 | H157: =IFERROR(G157*(1-Оглавление!$D$28),"по запросу") -> 910366.8773 | I157: 9081.87228 | J157: шт | L157: 0 | M157: 0
B158: IFKOVRM828F | C158: Затвор дисковый ПВХ с редуктором промышленный 28" (DN700) FKM IPS | E158: Арматура | F158: RUB | G158: =IFERROR(I158*Оглавление!$E$23,"по запросу") -> по запросу | H158: =IFERROR(G158*(1-Оглавление!$D$28),"по запросу") -> по запросу | I158: по запросу | J158: шт | L158: 0 ₽ | M158: 0 ₽
B159: IFKOVRM832F | C159: Затвор дисковый ПВХ с редуктором промышленный 32" (DN800) FKM IPS | E159: Арматура | F159: RUB | G159: =IFERROR(I159*Оглавление!$E$23,"по запросу") -> по запросу | H159: =IFERROR(G159*(1-Оглавление!$D$28),"по запросу") -> по запросу | I159: по запросу | J159: шт | L159: 0 ₽ | M159: 0 ₽
B160: IFKOVRM840F | C160: Затвор дисковый ПВХ с редуктором промышленный 40" (DN1000) FKM IPS | E160: Арматура | F160: RUB | G160: =IFERROR(I160*Оглавление!$E$23,"по запросу") -> по запросу | H160: =IFERROR(G160*(1-Оглавление!$D$28),"по запросу") -> по запросу | I160: по запросу | J160: шт | L160: 0 ₽ | M160: 0 ₽
B161: ISXEIV020E | C161: Обратный клапан ПВХ шаровой с муфтовыми окончаниям EPDM 20 IPS | D161: 16 | E161: Арматура | F161: RUB | G161: =IFERROR(I161*Оглавление!$E$23,"по запросу") -> 1701.0728 | H161: =IFERROR(G161*(1-Оглавление!$D$28),"по запросу") -> 1701.0728 | I161: 16.97 | J161: шт | L161: 0 | M161: 0
B162: ISXEIV025E | C162: Обратный клапан ПВХ шаровой с муфтовыми окончаниям EPDM 25 IPS | D162: 16 | E162: Арматура | F162: RUB | G162: =IFERROR(I162*Оглавление!$E$23,"по запросу") -> 1772.2432 | H162: =IFERROR(G162*(1-Оглавление!$D$28),"по запросу") -> 1772.2432 | I162: 17.68 | J162: шт | L162: 0 | M162: 0
B163: ISXEIV032E | C163: Обратный клапан ПВХ шаровой с муфтовыми окончаниям EPDM 32 IPS | D163: 16 | E163: Арматура | F163: RUB | G163: =IFERROR(I163*Оглавление!$E$23,"по запросу") -> 1912.5792 | H163: =IFERROR(G163*(1-Оглавление!$D$28),"по запросу") -> 1912.5792 | I163: 19.08 | J163: шт | L163: 0 | M163: 0
B164: ISXEIV040E | C164: Обратный клапан ПВХ шаровой с муфтовыми окончаниям EPDM 40 IPS | D164: 16 | E164: Арматура | F164: RUB | G164: =IFERROR(I164*Оглавление!$E$23,"по запросу") -> 2347.6208 | H164: =IFERROR(G164*(1-Оглавление!$D$28),"по запросу") -> 2347.6208 | I164: 23.42 | J164: шт | L164: 0 | M164: 0
B165: ISXEIV050E | C165: Обратный клапан ПВХ шаровой с муфтовыми окончаниям EPDM 50 IPS | D165: 16 | E165: Арматура | F165: RUB | G165: =IFERROR(I165*Оглавление!$E$23,"по запросу") -> 3267.824 | H165: =IFERROR(G165*(1-Оглавление!$D$28),"по запросу") -> 3267.824 | I165: 32.6 | J165: шт | L165: 0 | M165: 0
B166: ISXEIV063E | C166: Обратный клапан ПВХ шаровой с муфтовыми окончаниям EPDM 63 IPS | D166: 16 | E166: Арматура | F166: RUB | G166: =IFERROR(I166*Оглавление!$E$23,"по запросу") -> 4818.5368 | H166: =IFERROR(G166*(1-Оглавление!$D$28),"по запросу") -> 4818.5368 | I166: 48.07 | J166: шт | L166: 0 | M166: 0
B167: ISXEIV020F | C167: Обратный клапан ПВХ шаровой с муфтовыми окончаниям FKM 20 IPS | D167: 16 | E167: Арматура | F167: RUB | G167: =IFERROR(I167*Оглавление!$E$23,"по запросу") -> 2473.700789 | H167: =IFERROR(G167*(1-Оглавление!$D$28),"по запросу") -> 2473.700789 | I167: 24.67778121 | J167: шт | L167: 0 | M167: 0
B168: ISXEIV025F | C168: Обратный клапан ПВХ шаровой с муфтовыми окончаниям FKM 25 IPS | D168: 16 | E168: Арматура | F168: RUB | G168: =IFERROR(I168*Оглавление!$E$23,"по запросу") -> 2644.153399 | H168: =IFERROR(G168*(1-Оглавление!$D$28),"по запросу") -> 2644.153399 | I168: 26.37822624 | J168: шт | L168: 0 | M168: 0
B169: ISXEIV032F | C169: Обратный клапан ПВХ шаровой с муфтовыми окончаниям FKM 32 IPS | D169: 16 | E169: Арматура | F169: RUB | G169: =IFERROR(I169*Оглавление!$E$23,"по запросу") -> 2898.864093 | H169: =IFERROR(G169*(1-Оглавление!$D$28),"по запросу") -> 2898.864093 | I169: 28.91923476 | J169: шт | L169: 0 | M169: 0
B170: ISXEIV040F | C170: Обратный клапан ПВХ шаровой с муфтовыми окончаниям FKM 40 IPS | D170: 16 | E170: Арматура | F170: RUB | G170: =IFERROR(I170*Оглавление!$E$23,"по запросу") -> 4974.185494 | H170: =IFERROR(G170*(1-Оглавление!$D$28),"по запросу") -> 4974.185494 | I170: 49.62276031 | J170: шт | L170: 0 | M170: 0
B171: ISXEIV050F | C171: Обратный клапан ПВХ шаровой с муфтовыми окончаниям FKM 50 IPS | D171: 16 | E171: Арматура | F171: RUB | G171: =IFERROR(I171*Оглавление!$E$23,"по запросу") -> 6759.088145 | H171: =IFERROR(G171*(1-Оглавление!$D$28),"по запросу") -> 6759.088145 | I171: 67.42905173 | J171: шт | L171: 0 | M171: 0
B172: ISXEIV063F | C172: Обратный клапан ПВХ шаровой с муфтовыми окончаниям FKM 63 IPS | D172: 16 | E172: Арматура | F172: RUB | G172: =IFERROR(I172*Оглавление!$E$23,"по запросу") -> 9574.022021 | H172: =IFERROR(G172*(1-Оглавление!$D$28),"по запросу") -> 9574.022021 | I172: 95.51099382 | J172: шт | L172: 0 | M172: 0
B173: ISRIV020E | C173: Обратный клапан ПВХ с гайкой с одной стороны и муфтовым окончанием EPDM 20 IPS | D173: 16 | E173: Арматура | F173: RUB | G173: =IFERROR(I173*Оглавление!$E$23,"по запросу") -> 637.1702609 | H173: =IFERROR(G173*(1-Оглавление!$D$28),"по запросу") -> 637.1702609 | I173: 6.356447136 | J173: шт | L173: 0 | M173: 0
B174: ISRIV025E | C174: Обратный клапан ПВХ с гайкой с одной стороны и муфтовым окончанием EPDM 25 IPS | D174: 16 | E174: Арматура | F174: RUB | G174: =IFERROR(I174*Оглавление!$E$23,"по запросу") -> 815.8161285 | H174: =IFERROR(G174*(1-Оглавление!$D$28),"по запросу") -> 815.8161285 | I174: 8.138628576 | J174: шт | L174: 0 | M174: 0
B175: ISRIV032E | C175: Обратный клапан ПВХ с гайкой с одной стороны и муфтовым окончанием EPDM 32 IPS | D175: 16 | E175: Арматура | F175: RUB | G175: =IFERROR(I175*Оглавление!$E$23,"по запросу") -> 994.461996 | H175: =IFERROR(G175*(1-Оглавление!$D$28),"по запросу") -> 994.461996 | I175: 9.920810016 | J175: шт | L175: 0 | M175: 0
B176: ISRIV040E | C176: Обратный клапан ПВХ с гайкой с одной стороны и муфтовым окончанием EPDM 40 IPS | D176: 16 | E176: Арматура | F176: RUB | G176: =IFERROR(I176*Оглавление!$E$23,"по запросу") -> 1494.670425 | H176: =IFERROR(G176*(1-Оглавление!$D$28),"по запросу") -> 1494.670425 | I176: 14.91091805 | J176: шт | L176: 0 | M176: 0
B177: ISRIV050E | C177: Обратный клапан ПВХ с гайкой с одной стороны и муфтовым окончанием EPDM 50 IPS | D177: 16 | E177: Арматура | F177: RUB | G177: =IFERROR(I177*Оглавление!$E$23,"по запросу") -> 1744.77464 | H177: =IFERROR(G177*(1-Оглавление!$D$28),"по запросу") -> 1744.77464 | I177: 17.40597206 | J177: шт | L177: 0 | M177: 0
B178: ISRIV063E | C178: Обратный клапан ПВХ с гайкой с одной стороны и муфтовым окончанием EPDM 63 IPS | D178: 16 | E178: Арматура | F178: RUB | G178: =IFERROR(I178*Оглавление!$E$23,"по запросу") -> 2447.448385 | H178: =IFERROR(G178*(1-Оглавление!$D$28),"по запросу") -> 2447.448385 | I178: 24.41588573 | J178: шт | L178: 0 | M178: 0
B179: ISRIV075E | C179: Обратный клапан ПВХ с гайкой с одной стороны и муфтовым окончанием EPDM 75 IPS | D179: 10 | E179: Арматура | F179: RUB | G179: =IFERROR(I179*Оглавление!$E$23,"по запросу") -> 6056.09491 | H179: =IFERROR(G179*(1-Оглавление!$D$28),"по запросу") -> 6056.09491 | I179: 60.41595082 | J179: шт | L179: 0 | M179: 0
B180: ISRIV090E | C180: Обратный клапан ПВХ с гайкой с одной стороны и муфтовым окончанием EPDM 90 IPS | D180: 10 | E180: Арматура | F180: RUB | G180: =IFERROR(I180*Оглавление!$E$23,"по запросу") -> 7020.782595 | H180: =IFERROR(G180*(1-Оглавление!$D$28),"по запросу") -> 7020.782595 | I180: 70.03973059 | J180: шт | L180: 0 | M180: 0
B181: ISRIV020F | C181: Обратный клапан ПВХ с гайкой с одной стороны и муфтовым окончанием FKM 20 IPS | D181: 16 | E181: Арматура | F181: RUB | G181: =IFERROR(I181*Оглавление!$E$23,"по запросу") -> 1532.825285 | H181: =IFERROR(G181*(1-Оглавление!$D$28),"по запросу") -> 1532.825285 | I181: 15.29155313 | J181: шт | L181: 0 | M181: 0
B182: ISRIV025F | C182: Обратный клапан ПВХ с гайкой с одной стороны и муфтовым окончанием FKM 25 IPS | D182: 16 | E182: Арматура | F182: RUB | G182: =IFERROR(I182*Оглавление!$E$23,"по запросу") -> 2058.661012 | H182: =IFERROR(G182*(1-Оглавление!$D$28),"по запросу") -> 2058.661012 | I182: 20.53732055 | J182: шт | L182: 0 | M182: 0
B183: ISRIV032F | C183: Обратный клапан ПВХ с гайкой с одной стороны и муфтовым окончанием FKM 32 IPS | D183: 16 | E183: Арматура | F183: RUB | G183: =IFERROR(I183*Оглавление!$E$23,"по запросу") -> 2664.648169 | H183: =IFERROR(G183*(1-Оглавление!$D$28),"по запросу") -> 2664.648169 | I183: 26.58268325 | J183: шт | L183: =IFERROR(K183*G183,"0 ₽") -> 0 | M183: =IFERROR(K183*H183,"0 ₽") -> 0
B184: ISRIV040F | C184: Обратный клапан ПВХ с гайкой с одной стороны и муфтовым окончанием FKM 40 IPS | D184: 16 | E184: Арматура | F184: RUB | G184: =IFERROR(I184*Оглавление!$E$23,"по запросу") -> 4493.592496 | H184: =IFERROR(G184*(1-Оглавление!$D$28),"по запросу") -> 4493.592496 | I184: 44.82833695 | J184: шт | L184: 0 | M184: 0
B185: ISRIV050F | C185: Обратный клапан ПВХ с гайкой с одной стороны и муфтовым окончанием FKM 50 IPS | D185: 16 | E185: Арматура | F185: RUB | G185: =IFERROR(I185*Оглавление!$E$23,"по запросу") -> 5732.830959 | H185: =IFERROR(G185*(1-Оглавление!$D$28),"по запросу") -> 5732.830959 | I185: 57.19105107 | J185: шт | L185: 0 | M185: 0
B186: ISRIV063F | C186: Обратный клапан ПВХ с гайкой с одной стороны и муфтовым окончанием FKM 63 IPS | D186: 16 | E186: Арматура | F186: RUB | G186: =IFERROR(I186*Оглавление!$E$23,"по запросу") -> 7856.817438 | H186: =IFERROR(G186*(1-Оглавление!$D$28),"по запросу") -> 7856.817438 | I186: 78.38006223 | J186: шт | L186: 0 | M186: 0
B187: ISRIV075F | C187: Обратный клапан ПВХ с гайкой с одной стороны и муфтовым окончанием FKM 75 IPS | D187: 10 | E187: Арматура | F187: RUB | G187: =IFERROR(I187*Оглавление!$E$23,"по запросу") -> 14205.83804 | H187: =IFERROR(G187*(1-Оглавление!$D$28),"по запросу") -> 14205.83804 | I187: 141.7182566 | J187: шт | L187: 0 | M187: 0
B188: ISRIV090F | C188: Обратный клапан ПВХ с гайкой с одной стороны и муфтовым окончанием FKM 90 IPS | D188: 10 | E188: Арматура | F188: RUB | G188: =IFERROR(I188*Оглавление!$E$23,"по запросу") -> 17958.24442 | H188: =IFERROR(G188*(1-Оглавление!$D$28),"по запросу") -> 17958.24442 | I188: 179.1524782 | J188: шт | L188: 0 | M188: 0
B189: IVZIV032E | C189: Донный клапан ПВХ EPDM 20 IPS | D189: 10 | E189: Арматура | F189: RUB | G189: =IFERROR(I189*Оглавление!$E$23,"по запросу") -> 1369.618318 | H189: =IFERROR(G189*(1-Оглавление!$D$28),"по запросу") -> 1369.618318 | I189: 13.66339104 | J189: шт | L189: 0 | M189: 0
B190: IVZIV040E | C190: Донный клапан ПВХ EPDM 25 IPS | D190: 10 | E190: Арматура | F190: RUB | G190: =IFERROR(I190*Оглавление!$E$23,"по запросу") -> 1536.354461 | H190: =IFERROR(G190*(1-Оглавление!$D$28),"по запросу") -> 1536.354461 | I190: 15.32676038 | J190: шт | L190: 0 | M190: 0
B191: IVZIV050E | C191: Донный клапан ПВХ EPDM 32 IPS | D191: 10 | E191: Арматура | F191: RUB | G191: =IFERROR(I191*Оглавление!$E$23,"по запросу") -> 1798.3684 | H191: =IFERROR(G191*(1-Оглавление!$D$28),"по запросу") -> 1798.3684 | I191: 17.9406265 | J191: шт | L191: 0 | M191: 0
B192: IVZIV063E | C192: Донный клапан ПВХ EPDM 40 IPS | D192: 10 | E192: Арматура | F192: RUB | G192: =IFERROR(I192*Оглавление!$E$23,"по запросу") -> 2518.906732 | H192: =IFERROR(G192*(1-Оглавление!$D$28),"по запросу") -> 2518.906732 | I192: 25.1287583 | J192: шт | L192: 0 | M192: 0
B193: IVZIV075E | C193: Донный клапан ПВХ EPDM 50 IPS | D193: 10 | E193: Арматура | F193: RUB | G193: =IFERROR(I193*Оглавление!$E$23,"по запросу") -> 6234.740777 | H193: =IFERROR(G193*(1-Оглавление!$D$28),"по запросу") -> 6234.740777 | I193: 62.19813226 | J193: шт | L193: 0 | M193: 0
B194: IVZIV090E | C194: Донный клапан ПВХ EPDM 63 IPS | D194: 10 | E194: Арматура | F194: RUB | G194: =IFERROR(I194*Оглавление!$E$23,"по запросу") -> 7235.157636 | H194: =IFERROR(G194*(1-Оглавление!$D$28),"по запросу") -> 7235.157636 | I194: 72.17834832 | J194: шт | L194: 0 | M194: 0
B195: IVZIV032F | C195: Донный клапан ПВХ FKM 20 IPS | D195: 10 | E195: Арматура | F195: RUB | G195: =IFERROR(I195*Оглавление!$E$23,"по запросу") -> 3604.483063 | H195: =IFERROR(G195*(1-Оглавление!$D$28),"по запросу") -> 3604.483063 | I195: 35.95853015 | J195: шт | L195: 0 | M195: 0
B196: IVZIV040F | C196: Донный клапан ПВХ FKM 25 IPS | D196: 10 | E196: Арматура | F196: RUB | G196: =IFERROR(I196*Оглавление!$E$23,"по запросу") -> 4519.063294 | H196: =IFERROR(G196*(1-Оглавление!$D$28),"по запросу") -> 4519.063294 | I196: 45.08243509 | J196: шт | L196: 0 | M196: 0
B197: IVZIV050F | C197: Донный клапан ПВХ FKM 32 IPS | D197: 10 | E197: Арматура | F197: RUB | G197: =IFERROR(I197*Оглавление!$E$23,"по запросу") -> 5773.038583 | H197: =IFERROR(G197*(1-Оглавление!$D$28),"по запросу") -> 5773.038583 | I197: 57.59216463 | J197: шт | L197: 0 | M197: 0
B198: IVZIV063F | C198: Донный клапан ПВХ FKM 40 IPS | D198: 10 | E198: Арматура | F198: RUB | G198: =IFERROR(I198*Оглавление!$E$23,"по запросу") -> 7935.033072 | H198: =IFERROR(G198*(1-Оглавление!$D$28),"по запросу") -> 7935.033072 | I198: 79.16034589 | J198: шт | L198: 0 | M198: 0
B199: IVZIV075F | C199: Донный клапан ПВХ FKM 50 IPS | D199: 10 | E199: Арматура | F199: RUB | G199: =IFERROR(I199*Оглавление!$E$23,"по запросу") -> 14373.6881 | H199: =IFERROR(G199*(1-Оглавление!$D$28),"по запросу") -> 14373.6881 | I199: 143.3927384 | J199: шт | L199: 0 | M199: 0
B200: IVZIV090F | C200: Донный клапан ПВХ FKM 63 IPS | D200: 10 | E200: Арматура | F200: RUB | G200: =IFERROR(I200*Оглавление!$E$23,"по запросу") -> 18183.86093 | H200: =IFERROR(G200*(1-Оглавление!$D$28),"по запросу") -> 18183.86093 | I200: 181.4032415 | J200: шт | L200: 0 | M200: 0
B201: IRVUIT020E | C201: Фильтр сетчатый ПВХ муфтовый прозрачный 20 (DN15) EPDM IPS | D201: 10 | E201: Арматура | F201: RUB | G201: =IFERROR(I201*Оглавление!$E$23,"по запросу") -> 1851.711707 | H201: =IFERROR(G201*(1-Оглавление!$D$28),"по запросу") -> 1851.711707 | I201: 18.4727824 | J201: шт | L201: 0 | M201: 0
B202: IRVUIT040E | C202: Фильтр сетчатый ПВХ муфтовый прозрачный 25 (DN20) EPDM IPS | D202: 10 | E202: Арматура | F202: RUB | G202: =IFERROR(I202*Оглавление!$E$23,"по запросу") -> 2296.122517 | H202: =IFERROR(G202*(1-Оглавление!$D$28),"по запросу") -> 2296.122517 | I202: 22.90625017 | J202: шт | L202: 0 | M202: 0
B203: IRVUIT025E | C203: Фильтр сетчатый ПВХ муфтовый прозрачный 32 (DN25) EPDM IPS | D203: 10 | E203: Арматура | F203: RUB | G203: =IFERROR(I203*Оглавление!$E$23,"по запросу") -> 2962.738732 | H203: =IFERROR(G203*(1-Оглавление!$D$28),"по запросу") -> 2962.738732 | I203: 29.55645183 | J203: шт | L203: 0 | M203: 0
... 102 more rows

Sheet ПВХ PIMTAS
J1: =COUNT(K10:K790) -> 0 | K1: Товаров в заказе
J2: =SUM(M10:M790) -> 0 | K2: Сумма заказа со скидкой с НДС
A9: Фото | B9: Код | C9: Наименование | D9: PN | E9: Категория | F9: Валюта продажи | G9: Цена ПРОДАЖИ с НДС | H9: Цена с НДС со скидкой | I9: Цена EUR | J9: Ед. измерения | K9: Заказ (метры/штуки) | L9: Сумма рубли | M9: Сумма со скидкой
B10: 500000202 | C10: Отвод ПВХ 90° клеевой 20 PIMTAS | D10: 16 | E10: Фитинги | F10: RUB | G10: =IFERROR(I10*Оглавление!$E$23,"по запросу") -> 59.1416 | H10: =IFERROR(G10*(1-Оглавление!$D$29),"по запросу") -> 59.1416 | I10: 0.59 | J10: шт | L10: =IFERROR(K10*G10,"0 ₽") -> 0 | M10: =IFERROR(K10*H10,"0 ₽") -> 0
B11: 500000252 | C11: Отвод ПВХ 90° клеевой 25 PIMTAS | D11: 16 | E11: Фитинги | F11: RUB | G11: =IFERROR(I11*Оглавление!$E$23,"по запросу") -> 72.1728 | H11: =IFERROR(G11*(1-Оглавление!$D$29),"по запросу") -> 72.1728 | I11: 0.72 | J11: шт | L11: =IFERROR(K11*G11,"0 ₽") -> 0 | M11: 0
B12: 500000322 | C12: Отвод ПВХ 90° клеевой 32 PIMTAS | D12: 16 | E12: Фитинги | F12: RUB | G12: =IFERROR(I12*Оглавление!$E$23,"по запросу") -> 108.2592 | H12: =IFERROR(G12*(1-Оглавление!$D$29),"по запросу") -> 108.2592 | I12: 1.08 | J12: шт | L12: 0 | M12: 0
B13: 500000402 | C13: Отвод ПВХ 90° клеевой 40 PIMTAS | D13: 16 | E13: Фитинги | F13: RUB | G13: =IFERROR(I13*Оглавление!$E$23,"по запросу") -> 209.5016 | H13: =IFERROR(G13*(1-Оглавление!$D$29),"по запросу") -> 209.5016 | I13: 2.09 | J13: шт | L13: 0 | M13: 0
B14: 500000502 | C14: Отвод ПВХ 90° клеевой 50 PIMTAS | D14: 16 | E14: Фитинги | F14: RUB | G14: =IFERROR(I14*Оглавление!$E$23,"по запросу") -> 212.5088 | H14: =IFERROR(G14*(1-Оглавление!$D$29),"по запросу") -> 212.5088 | I14: 2.12 | J14: шт | L14: 0 | M14: 0
B15: 500000632 | C15: Отвод ПВХ 90° клеевой 63 PIMTAS | D15: 16 | E15: Фитинги | F15: RUB | G15: =IFERROR(I15*Оглавление!$E$23,"по запросу") -> 266.6384 | H15: =IFERROR(G15*(1-Оглавление!$D$29),"по запросу") -> 266.6384 | I15: 2.66 | J15: шт | L15: 0 | M15: 0
B16: 500000752 | C16: Отвод ПВХ 90° клеевой 75 PIMTAS | D16: 16 | E16: Фитинги | F16: RUB | G16: =IFERROR(I16*Оглавление!$E$23,"по запросу") -> 509.2192 | H16: =IFERROR(G16*(1-Оглавление!$D$29),"по запросу") -> 509.2192 | I16: 5.08 | J16: шт | L16: 0 | M16: 0
B17: 500000902 | C17: Отвод ПВХ 90° клеевой 90 PIMTAS | D17: 16 | E17: Фитинги | F17: RUB | G17: =IFERROR(I17*Оглавление!$E$23,"по запросу") -> 706.692 | H17: =IFERROR(G17*(1-Оглавление!$D$29),"по запросу") -> 706.692 | I17: 7.05 | J17: шт | L17: 0 | M17: 0
B18: 500001102 | C18: Отвод ПВХ 90° клеевой 110 PIMTAS | D18: 16 | E18: Фитинги | F18: RUB | G18: =IFERROR(I18*Оглавление!$E$23,"по запросу") -> 1194.8608 | H18: =IFERROR(G18*(1-Оглавление!$D$29),"по запросу") -> 1194.8608 | I18: 11.92 | J18: шт | L18: 0 | M18: 0
B19: 500001252 | C19: Отвод ПВХ 90° клеевой 125 PIMTAS | D19: 16 | E19: Фитинги | F19: RUB | G19: =IFERROR(I19*Оглавление!$E$23,"по запросу") -> 1865.4664 | H19: =IFERROR(G19*(1-Оглавление!$D$29),"по запросу") -> 1865.4664 | I19: 18.61 | J19: шт | L19: 0 | M19: 0
B20: 500001402 | C20: Отвод ПВХ 90° клеевой 140 PIMTAS | D20: 16 | E20: Фитинги | F20: RUB | G20: =IFERROR(I20*Оглавление!$E$23,"по запросу") -> 2760.6096 | H20: =IFERROR(G20*(1-Оглавление!$D$29),"по запросу") -> 2760.6096 | I20: 27.54 | J20: шт | L20: 0 | M20: 0
B21: 500001602 | C21: Отвод ПВХ 90° клеевой 160 PIMTAS | D21: 16 | E21: Фитинги | F21: RUB | G21: =IFERROR(I21*Оглавление!$E$23,"по запросу") -> 3572.5536 | H21: =IFERROR(G21*(1-Оглавление!$D$29),"по запросу") -> 3572.5536 | I21: 35.64 | J21: шт | L21: 0 | M21: 0
B22: 500002002 | C22: Отвод ПВХ 90° клеевой 200 PIMTAS | D22: 16 | E22: Фитинги | F22: RUB | G22: =IFERROR(I22*Оглавление!$E$23,"по запросу") -> 8694.8176 | H22: =IFERROR(G22*(1-Оглавление!$D$29),"по запросу") -> 8694.8176 | I22: 86.74 | J22: шт | L22: 0 | M22: 0
B23: 500002252 | C23: Отвод ПВХ 90° клеевой 225 PIMTAS | D23: 10 | E23: Фитинги | F23: RUB | G23: =IFERROR(I23*Оглавление!$E$23,"по запросу") -> 12663.3192 | H23: =IFERROR(G23*(1-Оглавление!$D$29),"по запросу") -> 12663.3192 | I23: 126.33 | J23: шт | L23: 0 | M23: 0
B24: 500002504 | C24: Отвод ПВХ 90° клеевой 250 PIMTAS | D24: 10 | E24: Фитинги | F24: RUB | G24: =IFERROR(I24*Оглавление!$E$23,"по запросу") -> 31871.308 | H24: =IFERROR(G24*(1-Оглавление!$D$29),"по запросу") -> 31871.308 | I24: 317.95 | J24: шт | L24: 0 | M24: 0
B25: 500002804 | C25: Отвод ПВХ 90° клеевой 280 PIMTAS | D25: 10 | E25: Фитинги | F25: RUB | G25: =IFERROR(I25*Оглавление!$E$23,"по запросу") -> 49798.2296 | H25: =IFERROR(G25*(1-Оглавление!$D$29),"по запросу") -> 49798.2296 | I25: 496.79 | J25: шт | L25: 0 | M25: 0
B26: 500003154 | C26: Отвод ПВХ 90° клеевой 315 PIMTAS | D26: 10 | E26: Фитинги | F26: RUB | G26: =IFERROR(I26*Оглавление!$E$23,"по запросу") -> 56343.9016 | H26: =IFERROR(G26*(1-Оглавление!$D$29),"по запросу") -> 56343.9016 | I26: 562.09 | J26: шт | L26: 0 | M26: 0
B27: 500003554 | C27: Отвод ПВХ 90° клеевой 355 PIMTAS | D27: 10 | E27: Фитинги | F27: RUB | G27: =IFERROR(I27*Оглавление!$E$23,"по запросу") -> по запросу | H27: =IFERROR(G27*(1-Оглавление!$D$29),"по запросу") -> по запросу | I27: по запросу | J27: шт | L27: 0 ₽ | M27: 0 ₽
B28: 500004004 | C28: Отвод ПВХ 90° клеевой 400 PIMTAS | D28: 10 | E28: Фитинги | F28: RUB | G28: =IFERROR(I28*Оглавление!$E$23,"по запросу") -> по запросу | H28: =IFERROR(G28*(1-Оглавление!$D$29),"по запросу") -> по запросу | I28: по запросу | J28: шт | L28: 0 ₽ | M28: 0 ₽
B29: 500100202 | C29: Отвод ПВХ 90° клеевой переход на ВР 20x1/2" PIMTAS | D29: 16 | E29: Фитинги | F29: RUB | G29: =IFERROR(I29*Оглавление!$E$23,"по запросу") -> 77.1848 | H29: =IFERROR(G29*(1-Оглавление!$D$29),"по запросу") -> 77.1848 | I29: 0.77 | J29: шт | L29: 0 | M29: 0
B30: 500100252 | C30: Отвод ПВХ 90° клеевой переход на ВР 25x3/4" PIMTAS | D30: 16 | E30: Фитинги | F30: RUB | G30: =IFERROR(I30*Оглавление!$E$23,"по запросу") -> 93.2232 | H30: =IFERROR(G30*(1-Оглавление!$D$29),"по запросу") -> 93.2232 | I30: 0.93 | J30: шт | L30: 0 | M30: 0
B31: 500100322 | C31: Отвод ПВХ 90° клеевой переход на ВР 32x1" PIMTAS | D31: 16 | E31: Фитинги | F31: RUB | G31: =IFERROR(I31*Оглавление!$E$23,"по запросу") -> 142.3408 | H31: =IFERROR(G31*(1-Оглавление!$D$29),"по запросу") -> 142.3408 | I31: 1.42 | J31: шт | L31: 0 | M31: 0
B32: 500100402 | C32: Отвод ПВХ 90° клеевой переход на ВР 40x1 1/4" PIMTAS | D32: 16 | E32: Фитинги | F32: RUB | G32: =IFERROR(I32*Оглавление!$E$23,"по запросу") -> 271.6504 | H32: =IFERROR(G32*(1-Оглавление!$D$29),"по запросу") -> 271.6504 | I32: 2.71 | J32: шт | L32: 0 | M32: 0
B33: 500100502 | C33: Отвод ПВХ 90° клеевой переход на ВР 50x1 1/2" PIMTAS | D33: 16 | E33: Фитинги | F33: RUB | G33: =IFERROR(I33*Оглавление!$E$23,"по запросу") -> 276.6624 | H33: =IFERROR(G33*(1-Оглавление!$D$29),"по запросу") -> 276.6624 | I33: 2.76 | J33: шт | L33: 0 | M33: 0
B34: 500100632 | C34: Отвод ПВХ 90° клеевой переход на ВР 63x2" PIMTAS | D34: 16 | E34: Фитинги | F34: RUB | G34: =IFERROR(I34*Оглавление!$E$23,"по запросу") -> 346.8304 | H34: =IFERROR(G34*(1-Оглавление!$D$29),"по запросу") -> 346.8304 | I34: 3.46 | J34: шт | L34: 0 | M34: 0
B35: 500100752 | C35: Отвод ПВХ 90° клеевой переход на ВР 75x2 1/2" PIMTAS | D35: 16 | E35: Фитинги | F35: RUB | G35: =IFERROR(I35*Оглавление!$E$23,"по запросу") -> 662.5864 | H35: =IFERROR(G35*(1-Оглавление!$D$29),"по запросу") -> 662.5864 | I35: 6.61 | J35: шт | L35: 0 | M35: 0
B36: 500100902 | C36: Отвод ПВХ 90° клеевой переход на ВР 90x3" PIMTAS | D36: 16 | E36: Фитинги | F36: RUB | G36: =IFERROR(I36*Оглавление!$E$23,"по запросу") -> 918.1984 | H36: =IFERROR(G36*(1-Оглавление!$D$29),"по запросу") -> 918.1984 | I36: 9.16 | J36: шт | L36: 0 | M36: 0
B37: 500101102 | C37: Отвод ПВХ 90° клеевой переход на ВР 110x4" PIMTAS | D37: 16 | E37: Фитинги | F37: RUB | G37: =IFERROR(I37*Оглавление!$E$23,"по запросу") -> 1554.7224 | H37: =IFERROR(G37*(1-Оглавление!$D$29),"по запросу") -> 1554.7224 | I37: 15.51 | J37: шт | L37: 0 | M37: 0
B38: 501000500502 | C38: Изгиб ПВХ 90° клеевой с раструбами большого радиуса 50 PIMTAS | D38: 16 | E38: Фитинги | F38: RUB | G38: =IFERROR(I38*Оглавление!$E$23,"по запросу") -> 1800.3104 | H38: =IFERROR(G38*(1-Оглавление!$D$29),"по запросу") -> 1800.3104 | I38: 17.96 | J38: шт | L38: 0 | M38: 0
B39: 501000630632 | C39: Изгиб ПВХ 90° клеевой с раструбами большого радиуса 63 PIMTAS | D39: 16 | E39: Фитинги | F39: RUB | G39: =IFERROR(I39*Оглавление!$E$23,"по запросу") -> 2255.4 | H39: =IFERROR(G39*(1-Оглавление!$D$29),"по запросу") -> 2255.4 | I39: 22.5 | J39: шт | L39: 0 | M39: 0
B40: 501000750752 | C40: Изгиб ПВХ 90° клеевой с раструбами большого радиуса 75 PIMTAS | D40: 16 | E40: Фитинги | F40: RUB | G40: =IFERROR(I40*Оглавление!$E$23,"по запросу") -> 4359.4376 | H40: =IFERROR(G40*(1-Оглавление!$D$29),"по запросу") -> 4359.4376 | I40: 43.49 | J40: шт | L40: 0 | M40: 0
B41: 501000900902 | C41: Изгиб ПВХ 90° клеевой с раструбами большого радиуса 90 PIMTAS | D41: 16 | E41: Фитинги | F41: RUB | G41: =IFERROR(I41*Оглавление!$E$23,"по запросу") -> 6384.2856 | H41: =IFERROR(G41*(1-Оглавление!$D$29),"по запросу") -> 6384.2856 | I41: 63.69 | J41: шт | L41: 0 | M41: 0
B42: 501001101102 | C42: Изгиб ПВХ 90° клеевой с раструбами большого радиуса 110 PIMTAS | D42: 16 | E42: Фитинги | F42: RUB | G42: =IFERROR(I42*Оглавление!$E$23,"по запросу") -> 10159.324 | H42: =IFERROR(G42*(1-Оглавление!$D$29),"по запросу") -> 10159.324 | I42: 101.35 | J42: шт | L42: 0 | M42: 0
B43: 502000202 | C43: Отвод ПВХ 45° клеевой 20 PIMTAS | D43: 16 | E43: Фитинги | F43: RUB | G43: =IFERROR(I43*Оглавление!$E$23,"по запросу") -> 59.1416 | H43: =IFERROR(G43*(1-Оглавление!$D$29),"по запросу") -> 59.1416 | I43: 0.59 | J43: шт | L43: 0 | M43: 0
B44: 502000252 | C44: Отвод ПВХ 45° клеевой 25 PIMTAS | D44: 16 | E44: Фитинги | F44: RUB | G44: =IFERROR(I44*Оглавление!$E$23,"по запросу") -> 70.168 | H44: =IFERROR(G44*(1-Оглавление!$D$29),"по запросу") -> 70.168 | I44: 0.7 | J44: шт | L44: 0 | M44: 0
B45: 502000322 | C45: Отвод ПВХ 45° клеевой 32 PIMTAS | D45: 16 | E45: Фитинги | F45: RUB | G45: =IFERROR(I45*Оглавление!$E$23,"по запросу") -> 106.2544 | H45: =IFERROR(G45*(1-Оглавление!$D$29),"по запросу") -> 106.2544 | I45: 1.06 | J45: шт | L45: 0 | M45: 0
B46: 502000402 | C46: Отвод ПВХ 45° клеевой 40 PIMTAS | D46: 16 | E46: Фитинги | F46: RUB | G46: =IFERROR(I46*Оглавление!$E$23,"по запросу") -> 196.4704 | H46: =IFERROR(G46*(1-Оглавление!$D$29),"по запросу") -> 196.4704 | I46: 1.96 | J46: шт | L46: 0 | M46: 0
B47: 502000502 | C47: Отвод ПВХ 45° клеевой 50 PIMTAS | D47: 16 | E47: Фитинги | F47: RUB | G47: =IFERROR(I47*Оглавление!$E$23,"по запросу") -> 204.4896 | H47: =IFERROR(G47*(1-Оглавление!$D$29),"по запросу") -> 204.4896 | I47: 2.04 | J47: шт | L47: 0 | M47: 0
B48: 502000632 | C48: Отвод ПВХ 45° клеевой 63 PIMTAS | D48: 16 | E48: Фитинги | F48: RUB | G48: =IFERROR(I48*Оглавление!$E$23,"по запросу") -> 240.576 | H48: =IFERROR(G48*(1-Оглавление!$D$29),"по запросу") -> 240.576 | I48: 2.4 | J48: шт | L48: 0 | M48: 0
B49: 502000752 | C49: Отвод ПВХ 45° клеевой 75 PIMTAS | D49: 16 | E49: Фитинги | F49: RUB | G49: =IFERROR(I49*Оглавление!$E$23,"по запросу") -> 486.164 | H49: =IFERROR(G49*(1-Оглавление!$D$29),"по запросу") -> 486.164 | I49: 4.85 | J49: шт | L49: 0 | M49: 0
B50: 502000902 | C50: Отвод ПВХ 45° клеевой 90 PIMTAS | D50: 16 | E50: Фитинги | F50: RUB | G50: =IFERROR(I50*Оглавление!$E$23,"по запросу") -> 657.5744 | H50: =IFERROR(G50*(1-Оглавление!$D$29),"по запросу") -> 657.5744 | I50: 6.56 | J50: шт | L50: 0 | M50: 0
B51: 502001102 | C51: Отвод ПВХ 45° клеевой 110 PIMTAS | D51: 16 | E51: Фитинги | F51: RUB | G51: =IFERROR(I51*Оглавление!$E$23,"по запросу") -> 1153.7624 | H51: =IFERROR(G51*(1-Оглавление!$D$29),"по запросу") -> 1153.7624 | I51: 11.51 | J51: шт | L51: 0 | M51: 0
B52: 502001252 | C52: Отвод ПВХ 45° клеевой 125 PIMTAS | D52: 16 | E52: Фитинги | F52: RUB | G52: =IFERROR(I52*Оглавление!$E$23,"по запросу") -> 1780.2624 | H52: =IFERROR(G52*(1-Оглавление!$D$29),"по запросу") -> 1780.2624 | I52: 17.76 | J52: шт | L52: 0 | M52: 0
B53: 502001402 | C53: Отвод ПВХ 45° клеевой 140 PIMTAS | D53: 16 | E53: Фитинги | F53: RUB | G53: =IFERROR(I53*Оглавление!$E$23,"по запросу") -> 2548.1008 | H53: =IFERROR(G53*(1-Оглавление!$D$29),"по запросу") -> 2548.1008 | I53: 25.42 | J53: шт | L53: 0 | M53: 0
B54: 502001602 | C54: Отвод ПВХ 45° клеевой 160 PIMTAS | D54: 16 | E54: Фитинги | F54: RUB | G54: =IFERROR(I54*Оглавление!$E$23,"по запросу") -> 3557.5176 | H54: =IFERROR(G54*(1-Оглавление!$D$29),"по запросу") -> 3557.5176 | I54: 35.49 | J54: шт | L54: 0 | M54: 0
B55: 502002002 | C55: Отвод ПВХ 45° клеевой 200 PIMTAS | D55: 10 | E55: Фитинги | F55: RUB | G55: =IFERROR(I55*Оглавление!$E$23,"по запросу") -> 7626.2592 | H55: =IFERROR(G55*(1-Оглавление!$D$29),"по запросу") -> 7626.2592 | I55: 76.08 | J55: шт | L55: 0 | M55: 0
B56: 502002252 | C56: Отвод ПВХ 45° клеевой 225 PIMTAS | D56: 10 | E56: Фитинги | F56: RUB | G56: =IFERROR(I56*Оглавление!$E$23,"по запросу") -> 12520.9784 | H56: =IFERROR(G56*(1-Оглавление!$D$29),"по запросу") -> 12520.9784 | I56: 124.91 | J56: шт | L56: 0 | M56: 0
B57: 502002504 | C57: Отвод ПВХ 45° клеевой 250 PIMTAS | D57: 10 | E57: Фитинги | F57: RUB | G57: =IFERROR(I57*Оглавление!$E$23,"по запросу") -> 27318.4072 | H57: =IFERROR(G57*(1-Оглавление!$D$29),"по запросу") -> 27318.4072 | I57: 272.53 | J57: шт | L57: 0 | M57: 0
B58: 502002805 | C58: Отвод ПВХ 45° клеевой 280 PIMTAS | D58: 10 | E58: Фитинги | F58: RUB | G58: =IFERROR(I58*Оглавление!$E$23,"по запросу") -> 45530.0104 | H58: =IFERROR(G58*(1-Оглавление!$D$29),"по запросу") -> 45530.0104 | I58: 454.21 | J58: шт | L58: 0 | M58: 0
B59: 502003154 | C59: Отвод ПВХ 45° клеевой 315 PIMTAS | D59: 10 | E59: Фитинги | F59: RUB | G59: =IFERROR(I59*Оглавление!$E$23,"по запросу") -> 48660.5056 | H59: =IFERROR(G59*(1-Оглавление!$D$29),"по запросу") -> 48660.5056 | I59: 485.44 | J59: шт | L59: 0 | M59: 0
B60: 502003555 | C60: Отвод ПВХ 45° клеевой 355 PIMTAS | D60: 10 | E60: Фитинги | F60: RUB | G60: =IFERROR(I60*Оглавление!$E$23,"по запросу") -> по запросу | H60: =IFERROR(G60*(1-Оглавление!$D$29),"по запросу") -> по запросу | I60: по запросу | J60: шт | L60: 0 ₽ | M60: 0 ₽
B61: 502004004 | C61: Отвод ПВХ 45° клеевой 400 PIMTAS | D61: 10 | E61: Фитинги | F61: RUB | G61: =IFERROR(I61*Оглавление!$E$23,"по запросу") -> по запросу | H61: =IFERROR(G61*(1-Оглавление!$D$29),"по запросу") -> по запросу | I61: по запросу | J61: шт | L61: 0 ₽ | M61: 0 ₽
B62: 504000202 | C62: Тройник ПВХ 90° клеевой 20 PIMTAS | D62: 16 | E62: Фитинги | F62: RUB | G62: =IFERROR(I62*Оглавление!$E$23,"по запросу") -> 72.1728 | H62: =IFERROR(G62*(1-Оглавление!$D$29),"по запросу") -> 72.1728 | I62: 0.72 | J62: шт | L62: 0 | M62: 0
B63: 504000252 | C63: Тройник ПВХ 90° клеевой 25 PIMTAS | D63: 16 | E63: Фитинги | F63: RUB | G63: =IFERROR(I63*Оглавление!$E$23,"по запросу") -> 83.1992 | H63: =IFERROR(G63*(1-Оглавление!$D$29),"по запросу") -> 83.1992 | I63: 0.83 | J63: шт | L63: 0 | M63: 0
B64: 504000322 | C64: Тройник ПВХ 90° клеевой 32 PIMTAS | D64: 16 | E64: Фитинги | F64: RUB | G64: =IFERROR(I64*Оглавление!$E$23,"по запросу") -> 168.4032 | H64: =IFERROR(G64*(1-Оглавление!$D$29),"по запросу") -> 168.4032 | I64: 1.68 | J64: шт | L64: 0 | M64: 0
B65: 504000402 | C65: Тройник ПВХ 90° клеевой 40 PIMTAS | D65: 16 | E65: Фитинги | F65: RUB | G65: =IFERROR(I65*Оглавление!$E$23,"по запросу") -> 235.564 | H65: =IFERROR(G65*(1-Оглавление!$D$29),"по запросу") -> 235.564 | I65: 2.35 | J65: шт | L65: 0 | M65: 0
B66: 504000502 | C66: Тройник ПВХ 90° клеевой 50 PIMTAS | D66: 16 | E66: Фитинги | F66: RUB | G66: =IFERROR(I66*Оглавление!$E$23,"по запросу") -> 240.576 | H66: =IFERROR(G66*(1-Оглавление!$D$29),"по запросу") -> 240.576 | I66: 2.4 | J66: шт | L66: 0 | M66: 0
B67: 504000632 | C67: Тройник ПВХ 90° клеевой 63 PIMTAS | D67: 16 | E67: Фитинги | F67: RUB | G67: =IFERROR(I67*Оглавление!$E$23,"по запросу") -> 338.8112 | H67: =IFERROR(G67*(1-Оглавление!$D$29),"по запросу") -> 338.8112 | I67: 3.38 | J67: шт | L67: 0 | M67: 0
B68: 504000752 | C68: Тройник ПВХ 90° клеевой 75 PIMTAS | D68: 16 | E68: Фитинги | F68: RUB | G68: =IFERROR(I68*Оглавление!$E$23,"по запросу") -> 597.4304 | H68: =IFERROR(G68*(1-Оглавление!$D$29),"по запросу") -> 597.4304 | I68: 5.96 | J68: шт | L68: 0 | M68: 0
B69: 504000902 | C69: Тройник ПВХ 90° клеевой 90 PIMTAS | D69: 16 | E69: Фитинги | F69: RUB | G69: =IFERROR(I69*Оглавление!$E$23,"по запросу") -> 923.2104 | H69: =IFERROR(G69*(1-Оглавление!$D$29),"по запросу") -> 923.2104 | I69: 9.21 | J69: шт | L69: 0 | M69: 0
B70: 504001102 | C70: Тройник ПВХ 90° клеевой 110 PIMTAS | D70: 16 | E70: Фитинги | F70: RUB | G70: =IFERROR(I70*Оглавление!$E$23,"по запросу") -> 1453.48 | H70: =IFERROR(G70*(1-Оглавление!$D$29),"по запросу") -> 1453.48 | I70: 14.5 | J70: шт | L70: 0 | M70: 0
B71: 504001252 | C71: Тройник ПВХ 90° клеевой 125 PIMTAS | D71: 16 | E71: Фитинги | F71: RUB | G71: =IFERROR(I71*Оглавление!$E$23,"по запросу") -> 2292.4888 | H71: =IFERROR(G71*(1-Оглавление!$D$29),"по запросу") -> 2292.4888 | I71: 22.87 | J71: шт | L71: 0 | M71: 0
B72: 504001402 | C72: Тройник ПВХ 90° клеевой 140 PIMTAS | D72: 16 | E72: Фитинги | F72: RUB | G72: =IFERROR(I72*Оглавление!$E$23,"по запросу") -> 3698.856 | H72: =IFERROR(G72*(1-Оглавление!$D$29),"по запросу") -> 3698.856 | I72: 36.9 | J72: шт | L72: 0 | M72: 0
B73: 504001602 | C73: Тройник ПВХ 90° клеевой 160 PIMTAS | D73: 16 | E73: Фитинги | F73: RUB | G73: =IFERROR(I73*Оглавление!$E$23,"по запросу") -> 5093.1944 | H73: =IFERROR(G73*(1-Оглавление!$D$29),"по запросу") -> 5093.1944 | I73: 50.81 | J73: шт | L73: 0 | M73: 0
B74: 504002002 | C74: Тройник ПВХ 90° клеевой 200 PIMTAS | D74: 16 | E74: Фитинги | F74: RUB | G74: =IFERROR(I74*Оглавление!$E$23,"по запросу") -> 9105.8016 | H74: =IFERROR(G74*(1-Оглавление!$D$29),"по запросу") -> 9105.8016 | I74: 90.84 | J74: шт | L74: =IFERROR(K74*G74,"0 ₽") -> 0 | M74: =IFERROR(K74*H74,"0 ₽") -> 0
B75: 504002252 | C75: Тройник ПВХ 90° клеевой 225 PIMTAS | D75: 10 | E75: Фитинги | F75: RUB | G75: =IFERROR(I75*Оглавление!$E$23,"по запросу") -> 17073.8792 | H75: =IFERROR(G75*(1-Оглавление!$D$29),"по запросу") -> 17073.8792 | I75: 170.33 | J75: шт | L75: 0 | M75: 0
B76: 504002504 | C76: Тройник ПВХ 90° клеевой 250 PIMTAS | D76: 10 | E76: Фитинги | F76: RUB | G76: =IFERROR(I76*Оглавление!$E$23,"по запросу") -> 35285.4824 | H76: =IFERROR(G76*(1-Оглавление!$D$29),"по запросу") -> 35285.4824 | I76: 352.01 | J76: шт | L76: 0 | M76: 0
B77: 504002804 | C77: Тройник ПВХ 90° клеевой 280 PIMTAS | D77: 10 | E77: Фитинги | F77: RUB | G77: =IFERROR(I77*Оглавление!$E$23,"по запросу") -> 54067.4512 | H77: =IFERROR(G77*(1-Оглавление!$D$29),"по запросу") -> 54067.4512 | I77: 539.38 | J77: шт | L77: 0 | M77: 0
B78: 504003154 | C78: Тройник ПВХ 90° клеевой 315 PIMTAS | D78: 10 | E78: Фитинги | F78: RUB | G78: =IFERROR(I78*Оглавление!$E$23,"по запросу") -> 62746.2304 | H78: =IFERROR(G78*(1-Оглавление!$D$29),"по запросу") -> 62746.2304 | I78: 625.96 | J78: шт | L78: 0 | M78: 0
B79: 504003554 | C79: Тройник ПВХ 90° клеевой 355 PIMTAS | D79: 10 | E79: Фитинги | F79: RUB | G79: =IFERROR(I79*Оглавление!$E$23,"по запросу") -> по запросу | H79: =IFERROR(G79*(1-Оглавление!$D$29),"по запросу") -> по запросу | I79: по запросу | J79: шт | L79: 0 ₽ | M79: 0 ₽
B80: 504004004 | C80: Тройник ПВХ 90° клеевой 400 PIMTAS | D80: 10 | E80: Фитинги | F80: RUB | G80: =IFERROR(I80*Оглавление!$E$23,"по запросу") -> по запросу | H80: =IFERROR(G80*(1-Оглавление!$D$29),"по запросу") -> по запросу | I80: по запросу | J80: шт | L80: 0 ₽ | M80: 0 ₽
B81: 504100202 | C81: Тройник ПВХ 90° клеевой переход на ВР 20x1/2" PIMTAS | D81: 16 | E81: Фитинги | F81: RUB | G81: =IFERROR(I81*Оглавление!$E$23,"по запросу") -> 93.2232 | H81: =IFERROR(G81*(1-Оглавление!$D$29),"по запросу") -> 93.2232 | I81: 0.93 | J81: шт | L81: 0 | M81: 0
B82: 504100252 | C82: Тройник ПВХ 90° клеевой переход на ВР 25x3/4" PIMTAS | D82: 16 | E82: Фитинги | F82: RUB | G82: =IFERROR(I82*Оглавление!$E$23,"по запросу") -> 108.2592 | H82: =IFERROR(G82*(1-Оглавление!$D$29),"по запросу") -> 108.2592 | I82: 1.08 | J82: шт | L82: 0 | M82: 0
B83: 504100322 | C83: Тройник ПВХ 90° клеевой переход на ВР 32x1" PIMTAS | D83: 16 | E83: Фитинги | F83: RUB | G83: =IFERROR(I83*Оглавление!$E$23,"по запросу") -> 219.5256 | H83: =IFERROR(G83*(1-Оглавление!$D$29),"по запросу") -> 219.5256 | I83: 2.19 | J83: шт | L83: 0 | M83: 0
B84: 504100402 | C84: Тройник ПВХ 90° клеевой переход на ВР 40x1 1/4" PIMTAS | D84: 16 | E84: Фитинги | F84: RUB | G84: =IFERROR(I84*Оглавление!$E$23,"по запросу") -> 305.732 | H84: =IFERROR(G84*(1-Оглавление!$D$29),"по запросу") -> 305.732 | I84: 3.05 | J84: шт | L84: 0 | M84: 0
B85: 504100502 | C85: Тройник ПВХ 90° клеевой переход на ВР 50x1 1/2" PIMTAS | D85: 16 | E85: Фитинги | F85: RUB | G85: =IFERROR(I85*Оглавление!$E$23,"по запросу") -> 312.7488 | H85: =IFERROR(G85*(1-Оглавление!$D$29),"по запросу") -> 312.7488 | I85: 3.12 | J85: шт | L85: 0 | M85: 0
B86: 504100632 | C86: Тройник ПВХ 90° клеевой переход на ВР 63x2" PIMTAS | D86: 16 | E86: Фитинги | F86: RUB | G86: =IFERROR(I86*Оглавление!$E$23,"по запросу") -> 440.0536 | H86: =IFERROR(G86*(1-Оглавление!$D$29),"по запросу") -> 440.0536 | I86: 4.39 | J86: шт | L86: 0 | M86: 0
B87: 504100752 | C87: Тройник ПВХ 90° клеевой переход на ВР 75x2 1/2" PIMTAS | D87: 16 | E87: Фитинги | F87: RUB | G87: =IFERROR(I87*Оглавление!$E$23,"по запросу") -> 775.8576 | H87: =IFERROR(G87*(1-Оглавление!$D$29),"по запросу") -> 775.8576 | I87: 7.74 | J87: шт | L87: 0 | M87: 0
B88: 504100902 | C88: Тройник ПВХ 90° клеевой переход на ВР 90x3" PIMTAS | D88: 16 | E88: Фитинги | F88: RUB | G88: =IFERROR(I88*Оглавление!$E$23,"по запросу") -> 1199.8728 | H88: =IFERROR(G88*(1-Оглавление!$D$29),"по запросу") -> 1199.8728 | I88: 11.97 | J88: шт | L88: 0 | M88: 0
B89: 504101102 | C89: Тройник ПВХ 90° клеевой переход на ВР 110x4" PIMTAS | D89: 16 | E89: Фитинги | F89: RUB | G89: =IFERROR(I89*Оглавление!$E$23,"по запросу") -> 1891.5288 | H89: =IFERROR(G89*(1-Оглавление!$D$29),"по запросу") -> 1891.5288 | I89: 18.87 | J89: шт | L89: 0 | M89: 0
B90: 508000320202 | C90: Тройник переходной ПВХ 90° клеевой 32x20 PIMTAS | D90: 16 | E90: Фитинги | F90: RUB | G90: =IFERROR(I90*Оглавление!$E$23,"по запросу") -> 214.5136 | H90: =IFERROR(G90*(1-Оглавление!$D$29),"по запросу") -> 214.5136 | I90: 2.14 | J90: шт | L90: 0 | M90: 0
B91: 508000320252 | C91: Тройник переходной ПВХ 90° клеевой 32x25 PIMTAS | D91: 16 | E91: Фитинги | F91: RUB | G91: =IFERROR(I91*Оглавление!$E$23,"по запросу") -> 196.4704 | H91: =IFERROR(G91*(1-Оглавление!$D$29),"по запросу") -> 196.4704 | I91: 1.96 | J91: шт | L91: 0 | M91: 0
B92: 508000320502 | C92: Тройник переходной ПВХ 90° клеевой 32x50 PIMTAS | D92: 16 | E92: Фитинги | F92: RUB | G92: =IFERROR(I92*Оглавление!$E$23,"по запросу") -> 489.1712 | H92: =IFERROR(G92*(1-Оглавление!$D$29),"по запросу") -> 489.1712 | I92: 4.88 | J92: шт | L92: 0 | M92: 0
B93: 508000400202 | C93: Тройник переходной ПВХ 90° клеевой 40x20 PIMTAS | D93: 16 | E93: Фитинги | F93: RUB | G93: =IFERROR(I93*Оглавление!$E$23,"по запросу") -> 323.7752 | H93: =IFERROR(G93*(1-Оглавление!$D$29),"по запросу") -> 323.7752 | I93: 3.23 | J93: шт | L93: 0 | M93: 0
B94: 508000400252 | C94: Тройник переходной ПВХ 90° клеевой 40x25 PIMTAS | D94: 16 | E94: Фитинги | F94: RUB | G94: =IFERROR(I94*Оглавление!$E$23,"по запросу") -> 305.732 | H94: =IFERROR(G94*(1-Оглавление!$D$29),"по запросу") -> 305.732 | I94: 3.05 | J94: шт | L94: 0 | M94: 0
B95: 508000400322 | C95: Тройник переходной ПВХ 90° клеевой 40x32 PIMTAS | D95: 16 | E95: Фитинги | F95: RUB | G95: =IFERROR(I95*Оглавление!$E$23,"по запросу") -> 274.6576 | H95: =IFERROR(G95*(1-Оглавление!$D$29),"по запросу") -> 274.6576 | I95: 2.74 | J95: шт | L95: 0 | M95: 0
B96: 508000500202 | C96: Тройник переходной ПВХ 90° клеевой 50x20 PIMTAS | D96: 16 | E96: Фитинги | F96: RUB | G96: =IFERROR(I96*Оглавление!$E$23,"по запросу") -> 374.8976 | H96: =IFERROR(G96*(1-Оглавление!$D$29),"по запросу") -> 374.8976 | I96: 3.74 | J96: шт | L96: 0 | M96: 0
B97: 508000500322 | C97: Тройник переходной ПВХ 90° клеевой 50x32 PIMTAS | D97: 16 | E97: Фитинги | F97: RUB | G97: =IFERROR(I97*Оглавление!$E$23,"по запросу") -> 325.78 | H97: =IFERROR(G97*(1-Оглавление!$D$29),"по запросу") -> 325.78 | I97: 3.25 | J97: шт | L97: 0 | M97: 0
B98: 508000500402 | C98: Тройник переходной ПВХ 90° клеевой 50x40 PIMTAS | D98: 16 | E98: Фитинги | F98: RUB | G98: =IFERROR(I98*Оглавление!$E$23,"по запросу") -> 320.768 | H98: =IFERROR(G98*(1-Оглавление!$D$29),"по запросу") -> 320.768 | I98: 3.2 | J98: шт | L98: 0 | M98: 0
B99: 508000630252 | C99: Тройник переходной ПВХ 90° клеевой 63x25 PIMTAS | D99: 16 | E99: Фитинги | F99: RUB | G99: =IFERROR(I99*Оглавление!$E$23,"по запросу") -> 641.536 | H99: =IFERROR(G99*(1-Оглавление!$D$29),"по запросу") -> 641.536 | I99: 6.4 | J99: шт | L99: 0 | M99: 0
B100: 508000630322 | C100: Тройник переходной ПВХ 90° клеевой 63x32 PIMTAS | D100: 16 | E100: Фитинги | F100: RUB | G100: =IFERROR(I100*Оглавление!$E$23,"по запросу") -> 649.5552 | H100: =IFERROR(G100*(1-Оглавление!$D$29),"по запросу") -> 649.5552 | I100: 6.48 | J100: шт | L100: 0 | M100: 0
B101: 508000630402 | C101: Тройник переходной ПВХ 90° клеевой 63x40 PIMTAS | D101: 16 | E101: Фитинги | F101: RUB | G101: =IFERROR(I101*Оглавление!$E$23,"по запросу") -> 610.4616 | H101: =IFERROR(G101*(1-Оглавление!$D$29),"по запросу") -> 610.4616 | I101: 6.09 | J101: шт | L101: 0 | M101: 0
B102: 508000630502 | C102: Тройник переходной ПВХ 90° клеевой 63x50 PIMTAS | D102: 16 | E102: Фитинги | F102: RUB | G102: =IFERROR(I102*Оглавление!$E$23,"по запросу") -> 597.4304 | H102: =IFERROR(G102*(1-Оглавление!$D$29),"по запросу") -> 597.4304 | I102: 5.96 | J102: шт | L102: 0 | M102: 0
B103: 508000750322 | C103: Тройник переходной ПВХ 90° клеевой 75x32 PIMTAS | D103: 16 | E103: Фитинги | F103: RUB | G103: =IFERROR(I103*Оглавление!$E$23,"по запросу") -> 814.9512 | H103: =IFERROR(G103*(1-Оглавление!$D$29),"по запросу") -> 814.9512 | I103: 8.13 | J103: шт | L103: 0 | M103: 0
B104: 508000750402 | C104: Тройник переходной ПВХ 90° клеевой 75x40 PIMTAS | D104: 16 | E104: Фитинги | F104: RUB | G104: =IFERROR(I104*Оглавление!$E$23,"по запросу") -> 814.9512 | H104: =IFERROR(G104*(1-Оглавление!$D$29),"по запросу") -> 814.9512 | I104: 8.13 | J104: шт | L104: 0 | M104: 0
B105: 508000750502 | C105: Тройник переходной ПВХ 90° клеевой 75x50 PIMTAS | D105: 16 | E105: Фитинги | F105: RUB | G105: =IFERROR(I105*Оглавление!$E$23,"по запросу") -> 827.9824 | H105: =IFERROR(G105*(1-Оглавление!$D$29),"по запросу") -> 827.9824 | I105: 8.26 | J105: шт | L105: 0 | M105: 0
B106: 508000750632 | C106: Тройник переходной ПВХ 90° клеевой 75x63 PIMTAS | D106: 16 | E106: Фитинги | F106: RUB | G106: =IFERROR(I106*Оглавление!$E$23,"по запросу") -> 843.0184 | H106: =IFERROR(G106*(1-Оглавление!$D$29),"по запросу") -> 843.0184 | I106: 8.41 | J106: шт | L106: 0 | M106: 0
B107: 508000900322 | C107: Тройник переходной ПВХ 90° клеевой 90x32 PIMTAS | D107: 16 | E107: Фитинги | F107: RUB | G107: =IFERROR(I107*Оглавление!$E$23,"по запросу") -> 1153.7624 | H107: =IFERROR(G107*(1-Оглавление!$D$29),"по запросу") -> 1153.7624 | I107: 11.51 | J107: шт | L107: 0 | M107: 0
B108: 508000900402 | C108: Тройник переходной ПВХ 90° клеевой 90x63 PIMTAS | D108: 16 | E108: Фитинги | F108: RUB | G108: =IFERROR(I108*Оглавление!$E$23,"по запросу") -> 1153.7624 | H108: =IFERROR(G108*(1-Оглавление!$D$29),"по запросу") -> 1153.7624 | I108: 11.51 | J108: шт | L108: 0 | M108: 0
B109: 508000900502 | C109: Тройник переходной ПВХ 90° клеевой 90x50 PIMTAS | D109: 16 | E109: Фитинги | F109: RUB | G109: =IFERROR(I109*Оглавление!$E$23,"по запросу") -> 1168.7984 | H109: =IFERROR(G109*(1-Оглавление!$D$29),"по запросу") -> 1168.7984 | I109: 11.66 | J109: шт | L109: 0 | M109: 0
B110: 508000900632 | C110: Тройник переходной ПВХ 90° клеевой 90x63 PIMTAS | D110: 16 | E110: Фитинги | F110: RUB | G110: =IFERROR(I110*Оглавление!$E$23,"по запросу") -> 1181.8296 | H110: =IFERROR(G110*(1-Оглавление!$D$29),"по запросу") -> 1181.8296 | I110: 11.79 | J110: шт | L110: 0 | M110: 0
B111: 508000900752 | C111: Тройник переходной ПВХ 90° клеевой 90x75 PIMTAS | D111: 16 | E111: Фитинги | F111: RUB | G111: =IFERROR(I111*Оглавление!$E$23,"по запросу") -> 1223.9304 | H111: =IFERROR(G111*(1-Оглавление!$D$29),"по запросу") -> 1223.9304 | I111: 12.21 | J111: шт | L111: 0 | M111: 0
B112: 508001100322 | C112: Тройник переходной ПВХ 90° клеевой 110x32 PIMTAS | D112: 16 | E112: Фитинги | F112: RUB | G112: =IFERROR(I112*Оглавление!$E$23,"по запросу") -> 1679.02 | H112: =IFERROR(G112*(1-Оглавление!$D$29),"по запросу") -> 1679.02 | I112: 16.75 | J112: шт | L112: 0 | M112: 0
B113: 508001100402 | C113: Тройник переходной ПВХ 90° клеевой 110x40 PIMTAS | D113: 16 | E113: Фитинги | F113: RUB | G113: =IFERROR(I113*Оглавление!$E$23,"по запросу") -> 1679.02 | H113: =IFERROR(G113*(1-Оглавление!$D$29),"по запросу") -> 1679.02 | I113: 16.75 | J113: шт | L113: 0 | M113: 0
B114: 508001100502 | C114: Тройник переходной ПВХ 90° клеевой 110x50 PIMTAS | D114: 16 | E114: Фитинги | F114: RUB | G114: =IFERROR(I114*Оглавление!$E$23,"по запросу") -> 1694.056 | H114: =IFERROR(G114*(1-Оглавление!$D$29),"по запросу") -> 1694.056 | I114: 16.9 | J114: шт | L114: 0 | M114: 0
B115: 508001100632 | C115: Тройник переходной ПВХ 90° клеевой 110x63 PIMTAS | D115: 16 | E115: Фитинги | F115: RUB | G115: =IFERROR(I115*Оглавление!$E$23,"по запросу") -> 1707.0872 | H115: =IFERROR(G115*(1-Оглавление!$D$29),"по запросу") -> 1707.0872 | I115: 17.03 | J115: шт | L115: 0 | M115: 0
B116: 508001100752 | C116: Тройник переходной ПВХ 90° клеевой 110x75 PIMTAS | D116: 16 | E116: Фитинги | F116: RUB | G116: =IFERROR(I116*Оглавление!$E$23,"по запросу") -> 1764.224 | H116: =IFERROR(G116*(1-Оглавление!$D$29),"по запросу") -> 1764.224 | I116: 17.6 | J116: шт | L116: 0 | M116: 0
B117: 508001100902 | C117: Тройник переходной ПВХ 90° клеевой 110x90 PIMTAS | D117: 16 | E117: Фитинги | F117: RUB | G117: =IFERROR(I117*Оглавление!$E$23,"по запросу") -> 1849.428 | H117: =IFERROR(G117*(1-Оглавление!$D$29),"по запросу") -> 1849.428 | I117: 18.45 | J117: шт | L117: 0 | M117: 0
B118: 508001250632 | C118: Тройник переходной ПВХ 90° клеевой 125x63 PIMTAS | D118: 16 | E118: Фитинги | F118: RUB | G118: =IFERROR(I118*Оглавление!$E$23,"по запросу") -> 3675.8008 | H118: =IFERROR(G118*(1-Оглавление!$D$29),"по запросу") -> 3675.8008 | I118: 36.67 | J118: шт | L118: 0 | M118: 0
B119: 508001250752 | C119: Тройник переходной ПВХ 90° клеевой 125x75 PIMTAS | D119: 16 | E119: Фитинги | F119: RUB | G119: =IFERROR(I119*Оглавление!$E$23,"по запросу") -> 3631.6952 | H119: =IFERROR(G119*(1-Оглавление!$D$29),"по запросу") -> 3631.6952 | I119: 36.23 | J119: шт | L119: 0 | M119: 0
B120: 508001250902 | C120: Тройник переходной ПВХ 90° клеевой 125x90 PIMTAS | D120: 16 | E120: Фитинги | F120: RUB | G120: =IFERROR(I120*Оглавление!$E$23,"по запросу") -> 3448.256 | H120: =IFERROR(G120*(1-Оглавление!$D$29),"по запросу") -> 3448.256 | I120: 34.4 | J120: шт | L120: 0 | M120: 0
B121: 508001251102 | C121: Тройник переходной ПВХ 90° клеевой 125x110 PIMTAS | D121: 16 | E121: Фитинги | F121: RUB | G121: =IFERROR(I121*Оглавление!$E$23,"по запросу") -> 3060.3272 | H121: =IFERROR(G121*(1-Оглавление!$D$29),"по запросу") -> 3060.3272 | I121: 30.53 | J121: шт | L121: 0 | M121: 0
B122: 508001400632 | C122: Тройник переходной ПВХ 90° клеевой 140x63 PIMTAS | D122: 16 | E122: Фитинги | F122: RUB | G122: =IFERROR(I122*Оглавление!$E$23,"по запросу") -> 5148.3264 | H122: =IFERROR(G122*(1-Оглавление!$D$29),"по запросу") -> 5148.3264 | I122: 51.36 | J122: шт | L122: 0 | M122: 0
B123: 508001400752 | C123: Тройник переходной ПВХ 90° клеевой 140x75 PIMTAS | D123: 16 | E123: Фитинги | F123: RUB | G123: =IFERROR(I123*Оглавление!$E$23,"по запросу") -> 5114.2448 | H123: =IFERROR(G123*(1-Оглавление!$D$29),"по запросу") -> 5114.2448 | I123: 51.02 | J123: шт | L123: 0 | M123: 0
B124: 508001400902 | C124: Тройник переходной ПВХ 90° клеевой 140x90 PIMTAS | D124: 16 | E124: Фитинги | F124: RUB | G124: =IFERROR(I124*Оглавление!$E$23,"по запросу") -> 5039.0648 | H124: =IFERROR(G124*(1-Оглавление!$D$29),"по запросу") -> 5039.0648 | I124: 50.27 | J124: шт | L124: 0 | M124: 0
B125: 508001401102 | C125: Тройник переходной ПВХ 90° клеевой 140x110 PIMTAS | D125: 16 | E125: Фитинги | F125: RUB | G125: =IFERROR(I125*Оглавление!$E$23,"по запросу") -> 4610.0376 | H125: =IFERROR(G125*(1-Оглавление!$D$29),"по запросу") -> 4610.0376 | I125: 45.99 | J125: шт | L125: 0 | M125: 0
B126: 508001600632 | C126: Тройник переходной ПВХ 90° клеевой 160x63 PIMTAS | D126: 16 | E126: Фитинги | F126: RUB | G126: =IFERROR(I126*Оглавление!$E$23,"по запросу") -> 6228.9136 | H126: =IFERROR(G126*(1-Оглавление!$D$29),"по запросу") -> 6228.9136 | I126: 62.14 | J126: шт | L126: 0 | M126: 0
B127: 508001600752 | C127: Тройник переходной ПВХ 90° клеевой 160x75 PIMTAS | D127: 16 | E127: Фитинги | F127: RUB | G127: =IFERROR(I127*Оглавление!$E$23,"по запросу") -> 5872.0592 | H127: =IFERROR(G127*(1-Оглавление!$D$29),"по запросу") -> 5872.0592 | I127: 58.58 | J127: шт | L127: 0 | M127: 0
B128: 508001600902 | C128: Тройник переходной ПВХ 90° клеевой 160x90 PIMTAS | D128: 16 | E128: Фитинги | F128: RUB | G128: =IFERROR(I128*Оглавление!$E$23,"по запросу") -> 5691.6272 | H128: =IFERROR(G128*(1-Оглавление!$D$29),"по запросу") -> 5691.6272 | I128: 56.78 | J128: шт | L128: 0 | M128: 0
B129: 508001601102 | C129: Тройник переходной ПВХ 90° клеевой 160x110 PIMTAS | D129: 16 | E129: Фитинги | F129: RUB | G129: =IFERROR(I129*Оглавление!$E$23,"по запросу") -> 5406.9456 | H129: =IFERROR(G129*(1-Оглавление!$D$29),"по запросу") -> 5406.9456 | I129: 53.94 | J129: шт | L129: 0 | M129: 0
B130: 508001601252 | C130: Тройник переходной ПВХ 90° клеевой 160x125 PIMTAS | D130: 16 | E130: Фитинги | F130: RUB | G130: =IFERROR(I130*Оглавление!$E$23,"по запросу") -> 6195.8344 | H130: =IFERROR(G130*(1-Оглавление!$D$29),"по запросу") -> 6195.8344 | I130: 61.81 | J130: шт | L130: 0 | M130: 0
B131: 508002000752 | C131: Тройник переходной ПВХ 90° клеевой 200x75 PIMTAS | D131: 16 | E131: Фитинги | F131: RUB | G131: =IFERROR(I131*Оглавление!$E$23,"по запросу") -> 9894.6904 | H131: =IFERROR(G131*(1-Оглавление!$D$29),"по запросу") -> 9894.6904 | I131: 98.71 | J131: шт | L131: 0 | M131: 0
B132: 508002000902 | C132: Тройник переходной ПВХ 90° клеевой 200x90 PIMTAS | D132: 16 | E132: Фитинги | F132: RUB | G132: =IFERROR(I132*Оглавление!$E$23,"по запросу") -> 9820.5128 | H132: =IFERROR(G132*(1-Оглавление!$D$29),"по запросу") -> 9820.5128 | I132: 97.97 | J132: шт | L132: 0 | M132: 0
B133: 508002001102 | C133: Тройник переходной ПВХ 90° клеевой 200x110 PIMTAS | D133: 16 | E133: Фитинги | F133: RUB | G133: =IFERROR(I133*Оглавление!$E$23,"по запросу") -> 9390.4832 | H133: =IFERROR(G133*(1-Оглавление!$D$29),"по запросу") -> 9390.4832 | I133: 93.68 | J133: шт | L133: 0 | M133: 0
B134: 508002001252 | C134: Тройник переходной ПВХ 90° клеевой 200x125 PIMTAS | D134: 16 | E134: Фитинги | F134: RUB | G134: =IFERROR(I134*Оглавление!$E$23,"по запросу") -> 10350.7824 | H134: =IFERROR(G134*(1-Оглавление!$D$29),"по запросу") -> 10350.7824 | I134: 103.26 | J134: шт | L134: 0 | M134: 0
B135: 508002001402 | C135: Тройник переходной ПВХ 90° клеевой 200x140 PIMTAS | D135: 16 | E135: Фитинги | F135: RUB | G135: =IFERROR(I135*Оглавление!$E$23,"по запросу") -> 9874.6424 | H135: =IFERROR(G135*(1-Оглавление!$D$29),"по запросу") -> 9874.6424 | I135: 98.51 | J135: шт | L135: 0 | M135: 0
B136: 508002001602 | C136: Тройник переходной ПВХ 90° клеевой 200x160 PIMTAS | D136: 16 | E136: Фитинги | F136: RUB | G136: =IFERROR(I136*Оглавление!$E$23,"по запросу") -> 9248.1424 | H136: =IFERROR(G136*(1-Оглавление!$D$29),"по запросу") -> 9248.1424 | I136: 92.26 | J136: шт | L136: 0 | M136: 0
B137: 508002251102 | C137: Тройник переходной ПВХ 90° клеевой 225x110 PIMTAS | D137: 16 | E137: Фитинги | F137: RUB | G137: =IFERROR(I137*Оглавление!$E$23,"по запросу") -> 15537.2 | H137: =IFERROR(G137*(1-Оглавление!$D$29),"по запросу") -> 15537.2 | I137: 155 | J137: шт | L137: 0 | M137: 0
B138: 508002251252 | C138: Тройник переходной ПВХ 90° клеевой 225x125 PIMTAS | D138: 16 | E138: Фитинги | F138: RUB | G138: =IFERROR(I138*Оглавление!$E$23,"по запросу") -> 16856.3584 | H138: =IFERROR(G138*(1-Оглавление!$D$29),"по запросу") -> 16856.3584 | I138: 168.16 | J138: шт | L138: =IFERROR(K138*G138,"0 ₽") -> 0 | M138: =IFERROR(K138*H138,"0 ₽") -> 0
B139: 508002251402 | C139: Тройник переходной ПВХ 90° клеевой 225x140 PIMTAS | D139: 16 | E139: Фитинги | F139: RUB | G139: =IFERROR(I139*Оглавление!$E$23,"по запросу") -> 16383.2256 | H139: =IFERROR(G139*(1-Оглавление!$D$29),"по запросу") -> 16383.2256 | I139: 163.44 | J139: шт | L139: 0 | M139: 0
B140: 508002251602 | C140: Тройник переходной ПВХ 90° клеевой 225x160 PIMTAS | D140: 16 | E140: Фитинги | F140: RUB | G140: =IFERROR(I140*Оглавление!$E$23,"по запросу") -> 15756.7256 | H140: =IFERROR(G140*(1-Оглавление!$D$29),"по запросу") -> 15756.7256 | I140: 157.19 | J140: шт | L140: 0 | M140: 0
B141: 508002252002 | C141: Тройник переходной ПВХ 90° клеевой 225x200 PIMTAS | D141: 10 | E141: Фитинги | F141: RUB | G141: =IFERROR(I141*Оглавление!$E$23,"по запросу") -> 19207.9888 | H141: =IFERROR(G141*(1-Оглавление!$D$29),"по запросу") -> 19207.9888 | I141: 191.62 | J141: шт | L141: 0 | M141: 0
B142: 508002501102 | C142: Тройник переходной ПВХ 90° клеевой 250x110 PIMTAS | D142: 10 | E142: Фитинги | F142: RUB | G142: =IFERROR(I142*Оглавление!$E$23,"по запросу") -> 28647.5896 | H142: =IFERROR(G142*(1-Оглавление!$D$29),"по запросу") -> 28647.5896 | I142: 285.79 | J142: шт | L142: 0 | M142: 0
B143: 508002501402 | C143: Тройник переходной ПВХ 90° клеевой 250x140 PIMTAS | D143: 10 | E143: Фитинги | F143: RUB | G143: =IFERROR(I143*Оглавление!$E$23,"по запросу") -> 29964.7432 | H143: =IFERROR(G143*(1-Оглавление!$D$29),"по запросу") -> 29964.7432 | I143: 298.93 | J143: шт | L143: 0 | M143: 0
B144: 508002501602 | C144: Тройник переходной ПВХ 90° клеевой 250x160 PIMTAS | D144: 10 | E144: Фитинги | F144: RUB | G144: =IFERROR(I144*Оглавление!$E$23,"по запросу") -> 28940.2904 | H144: =IFERROR(G144*(1-Оглавление!$D$29),"по запросу") -> 28940.2904 | I144: 288.71 | J144: шт | L144: 0 | M144: 0
B145: 508002502002 | C145: Тройник переходной ПВХ 90° клеевой 250x200 PIMTAS | D145: 10 | E145: Фитинги | F145: RUB | G145: =IFERROR(I145*Оглавление!$E$23,"по запросу") -> 34728.148 | H145: =IFERROR(G145*(1-Оглавление!$D$29),"по запросу") -> 34728.148 | I145: 346.45 | J145: шт | L145: 0 | M145: 0
B146: 508002502252 | C146: Тройник переходной ПВХ 90° клеевой 250x225 PIMTAS | D146: 10 | E146: Фитинги | F146: RUB | G146: =IFERROR(I146*Оглавление!$E$23,"по запросу") -> 40394.7152 | H146: =IFERROR(G146*(1-Оглавление!$D$29),"по запросу") -> 40394.7152 | I146: 402.98 | J146: шт | L146: 0 | M146: 0
B147: 508002801102 | C147: Тройник переходной ПВХ 90° клеевой 280x110 PIMTAS | D147: 10 | E147: Фитинги | F147: RUB | G147: =IFERROR(I147*Оглавление!$E$23,"по запросу") -> по запросу | H147: =IFERROR(G147*(1-Оглавление!$D$29),"по запросу") -> по запросу | I147: по запросу | J147: шт | L147: 0 ₽ | M147: 0 ₽
B148: 508002801405 | C148: Тройник переходной ПВХ 90° клеевой 280x140 PIMTAS | D148: 10 | E148: Фитинги | F148: RUB | G148: =IFERROR(I148*Оглавление!$E$23,"по запросу") -> 68067.972 | H148: =IFERROR(G148*(1-Оглавление!$D$29),"по запросу") -> 68067.972 | I148: 679.05 | J148: шт | L148: 0 | M148: 0
B149: 508002801605 | C149: Тройник переходной ПВХ 90° клеевой 280x160 PIMTAS | D149: 10 | E149: Фитинги | F149: RUB | G149: =IFERROR(I149*Оглавление!$E$23,"по запросу") -> 67441.472 | H149: =IFERROR(G149*(1-Оглавление!$D$29),"по запросу") -> 67441.472 | I149: 672.8 | J149: шт | L149: 0 | M149: 0
B150: 508002802002 | C150: Тройник переходной ПВХ 90° клеевой 280x200 PIMTAS | D150: 10 | E150: Фитинги | F150: RUB | G150: =IFERROR(I150*Оглавление!$E$23,"по запросу") -> по запросу | H150: =IFERROR(G150*(1-Оглавление!$D$29),"по запросу") -> по запросу | I150: по запросу | J150: шт | L150: 0 ₽ | M150: 0 ₽
B151: 508002802252 | C151: Тройник переходной ПВХ 90° клеевой 280x225 PIMTAS | D151: 10 | E151: Фитинги | F151: RUB | G151: =IFERROR(I151*Оглавление!$E$23,"по запросу") -> по запросу | H151: =IFERROR(G151*(1-Оглавление!$D$29),"по запросу") -> по запросу | I151: по запросу | J151: шт | L151: 0 ₽ | M151: 0 ₽
B152: 508002802502 | C152: Тройник переходной ПВХ 90° клеевой 280x250 PIMTAS | D152: 10 | E152: Фитинги | F152: RUB | G152: =IFERROR(I152*Оглавление!$E$23,"по запросу") -> по запросу | H152: =IFERROR(G152*(1-Оглавление!$D$29),"по запросу") -> по запросу | I152: по запросу | J152: шт | L152: 0 ₽ | M152: 0 ₽
B153: 508003151102 | C153: Тройник переходной ПВХ 90° клеевой 315x110 PIMTAS | D153: 10 | E153: Фитинги | F153: RUB | G153: =IFERROR(I153*Оглавление!$E$23,"по запросу") -> по запросу | H153: =IFERROR(G153*(1-Оглавление!$D$29),"по запросу") -> по запросу | I153: по запросу | J153: шт | L153: 0 ₽ | M153: 0 ₽
B154: 508003151602 | C154: Тройник переходной ПВХ 90° клеевой 315x160 PIMTAS | D154: 10 | E154: Фитинги | F154: RUB | G154: =IFERROR(I154*Оглавление!$E$23,"по запросу") -> 57758.288 | H154: =IFERROR(G154*(1-Оглавление!$D$29),"по запросу") -> 57758.288 | I154: 576.2 | J154: шт | L154: 0 | M154: 0
B155: 508003152252 | C155: Тройник переходной ПВХ 90° клеевой 315x225 PIMTAS | D155: 10 | E155: Фитинги | F155: RUB | G155: =IFERROR(I155*Оглавление!$E$23,"по запросу") -> 66383.94 | H155: =IFERROR(G155*(1-Оглавление!$D$29),"по запросу") -> 66383.94 | I155: 662.25 | J155: шт | L155: 0 | M155: 0
B156: 508003152502 | C156: Тройник переходной ПВХ 90° клеевой 315x250 PIMTAS | D156: 10 | E156: Фитинги | F156: RUB | G156: =IFERROR(I156*Оглавление!$E$23,"по запросу") -> 92559.6112 | H156: =IFERROR(G156*(1-Оглавление!$D$29),"по запросу") -> 92559.6112 | I156: 923.38 | J156: шт | L156: 0 | M156: 0
B157: 508003152802 | C157: Тройник переходной ПВХ 90° клеевой 315x280 PIMTAS | D157: 10 | E157: Фитинги | F157: RUB | G157: =IFERROR(I157*Оглавление!$E$23,"по запросу") -> 85828.4952 | H157: =IFERROR(G157*(1-Оглавление!$D$29),"по запросу") -> 85828.4952 | I157: 856.23 | J157: шт | L157: 0 | M157: 0
B158: 508003552805 | C158: Тройник переходной ПВХ 90° клеевой 355x280 PIMTAS | D158: 10 | E158: Фитинги | F158: RUB | G158: =IFERROR(I158*Оглавление!$E$23,"по запросу") -> по запросу | H158: =IFERROR(G158*(1-Оглавление!$D$29),"по запросу") -> по запросу | I158: по запросу | J158: шт | L158: 0 ₽ | M158: 0 ₽
B159: 508003553155 | C159: Тройник переходной ПВХ 90° клеевой 355x315 PIMTAS | D159: 10 | E159: Фитинги | F159: RUB | G159: =IFERROR(I159*Оглавление!$E$23,"по запросу") -> по запросу | H159: =IFERROR(G159*(1-Оглавление!$D$29),"по запросу") -> по запросу | I159: по запросу | J159: шт | L159: 0 ₽ | M159: 0 ₽
B160: 508004002805 | C160: Тройник переходной ПВХ 90° клеевой 400x280 PIMTAS | D160: 10 | E160: Фитинги | F160: RUB | G160: =IFERROR(I160*Оглавление!$E$23,"по запросу") -> по запросу | H160: =IFERROR(G160*(1-Оглавление!$D$29),"по запросу") -> по запросу | I160: по запросу | J160: шт | L160: 0 ₽ | M160: 0 ₽
B161: 508004003155 | C161: Тройник переходной ПВХ 90° клеевой 400x315 PIMTAS | D161: 10 | E161: Фитинги | F161: RUB | G161: =IFERROR(I161*Оглавление!$E$23,"по запросу") -> по запросу | H161: =IFERROR(G161*(1-Оглавление!$D$29),"по запросу") -> по запросу | I161: по запросу | J161: шт | L161: 0 ₽ | M161: 0 ₽
B162: 508004003555 | C162: Тройник переходной ПВХ 90° клеевой 400x355 PIMTAS | D162: 10 | E162: Фитинги | F162: RUB | G162: =IFERROR(I162*Оглавление!$E$23,"по запросу") -> по запросу | H162: =IFERROR(G162*(1-Оглавление!$D$29),"по запросу") -> по запросу | I162: по запросу | J162: шт | L162: 0 ₽ | M162: 0 ₽
B163: 507000204 | C163: Тройник ПВХ 45° клеевой 20 PIMTAS | D163: 16 | E163: Фитинги | F163: RUB | G163: =IFERROR(I163*Оглавление!$E$23,"по запросу") -> 214.5136 | H163: =IFERROR(G163*(1-Оглавление!$D$29),"по запросу") -> 214.5136 | I163: 2.14 | J163: шт | L163: 0 | M163: 0
B164: 507000254 | C164: Тройник ПВХ 45° клеевой 25 PIMTAS | D164: 16 | E164: Фитинги | F164: RUB | G164: =IFERROR(I164*Оглавление!$E$23,"по запросу") -> 229.5496 | H164: =IFERROR(G164*(1-Оглавление!$D$29),"по запросу") -> 229.5496 | I164: 2.29 | J164: шт | L164: 0 | M164: 0
B165: 507000324 | C165: Тройник ПВХ 45° клеевой 32 PIMTAS | D165: 16 | E165: Фитинги | F165: RUB | G165: =IFERROR(I165*Оглавление!$E$23,"по запросу") -> 284.6816 | H165: =IFERROR(G165*(1-Оглавление!$D$29),"по запросу") -> 284.6816 | I165: 2.84 | J165: шт | L165: 0 | M165: 0
B166: 507000404 | C166: Тройник ПВХ 45° клеевой 40 PIMTAS | D166: 16 | E166: Фитинги | F166: RUB | G166: =IFERROR(I166*Оглавление!$E$23,"по запросу") -> 323.7752 | H166: =IFERROR(G166*(1-Оглавление!$D$29),"по запросу") -> 323.7752 | I166: 3.23 | J166: шт | L166: 0 | M166: 0
B167: 507000504 | C167: Тройник ПВХ 45° клеевой 50 PIMTAS | D167: 16 | E167: Фитинги | F167: RUB | G167: =IFERROR(I167*Оглавление!$E$23,"по запросу") -> 382.9168 | H167: =IFERROR(G167*(1-Оглавление!$D$29),"по запросу") -> 382.9168 | I167: 3.82 | J167: шт | L167: 0 | M167: 0
B168: 507000634 | C168: Тройник ПВХ 45° клеевой 63 PIMTAS | D168: 16 | E168: Фитинги | F168: RUB | G168: =IFERROR(I168*Оглавление!$E$23,"по запросу") -> 512.2264 | H168: =IFERROR(G168*(1-Оглавление!$D$29),"по запросу") -> 512.2264 | I168: 5.11 | J168: шт | L168: 0 | M168: 0
B169: 507000754 | C169: Тройник ПВХ 45° клеевой 75 PIMTAS | D169: 16 | E169: Фитинги | F169: RUB | G169: =IFERROR(I169*Оглавление!$E$23,"по запросу") -> 931.2296 | H169: =IFERROR(G169*(1-Оглавление!$D$29),"по запросу") -> 931.2296 | I169: 9.29 | J169: шт | L169: 0 | M169: 0
B170: 507000904 | C170: Тройник ПВХ 45° клеевой 90 PIMTAS | D170: 16 | E170: Фитинги | F170: RUB | G170: =IFERROR(I170*Оглавление!$E$23,"по запросу") -> 1397.3456 | H170: =IFERROR(G170*(1-Оглавление!$D$29),"по запросу") -> 1397.3456 | I170: 13.94 | J170: шт | L170: 0 | M170: 0
B171: 507001104 | C171: Тройник ПВХ 45° клеевой 110 PIMTAS | D171: 16 | E171: Фитинги | F171: RUB | G171: =IFERROR(I171*Оглавление!$E$23,"по запросу") -> 2224.3256 | H171: =IFERROR(G171*(1-Оглавление!$D$29),"по запросу") -> 2224.3256 | I171: 22.19 | J171: шт | L171: 0 | M171: 0
B172: 506000322 | C172: Крестовина ПВХ 90° клеевая 32 PIMTAS | D172: 16 | E172: Фитинги | F172: RUB | G172: =IFERROR(I172*Оглавление!$E$23,"по запросу") -> 646.548 | H172: =IFERROR(G172*(1-Оглавление!$D$29),"по запросу") -> 646.548 | I172: 6.45 | J172: шт | L172: 0 | M172: 0
B173: 506000402 | C173: Крестовина ПВХ 90° клеевая 40 PIMTAS | D173: 16 | E173: Фитинги | F173: RUB | G173: =IFERROR(I173*Оглавление!$E$23,"по запросу") -> 773.8528 | H173: =IFERROR(G173*(1-Оглавление!$D$29),"по запросу") -> 773.8528 | I173: 7.72 | J173: шт | L173: 0 | M173: 0
B174: 506000502 | C174: Крестовина ПВХ 90° клеевая 50 PIMTAS | D174: 16 | E174: Фитинги | F174: RUB | G174: =IFERROR(I174*Оглавление!$E$23,"по запросу") -> 898.1504 | H174: =IFERROR(G174*(1-Оглавление!$D$29),"по запросу") -> 898.1504 | I174: 8.96 | J174: шт | L174: 0 | M174: 0
B175: 506000632 | C175: Крестовина ПВХ 90° клеевая 63 PIMTAS | D175: 16 | E175: Фитинги | F175: RUB | G175: =IFERROR(I175*Оглавление!$E$23,"по запросу") -> 1495.5808 | H175: =IFERROR(G175*(1-Оглавление!$D$29),"по запросу") -> 1495.5808 | I175: 14.92 | J175: шт | L175: 0 | M175: 0
B176: 506000752 | C176: Крестовина ПВХ 90° клеевая 75 PIMTAS | D176: 16 | E176: Фитинги | F176: RUB | G176: =IFERROR(I176*Оглавление!$E$23,"по запросу") -> 1767.2312 | H176: =IFERROR(G176*(1-Оглавление!$D$29),"по запросу") -> 1767.2312 | I176: 17.63 | J176: шт | L176: 0 | M176: 0
B177: 506000902 | C177: Крестовина ПВХ 90° клеевая 90 PIMTAS | D177: 16 | E177: Фитинги | F177: RUB | G177: =IFERROR(I177*Оглавление!$E$23,"по запросу") -> 2227.3328 | H177: =IFERROR(G177*(1-Оглавление!$D$29),"по запросу") -> 2227.3328 | I177: 22.22 | J177: шт | L177: 0 | M177: 0
B178: 506001102 | C178: Крестовина ПВХ 90° клеевая 110 PIMTAS | D178: 16 | E178: Фитинги | F178: RUB | G178: =IFERROR(I178*Оглавление!$E$23,"по запросу") -> 4346.4064 | H178: =IFERROR(G178*(1-Оглавление!$D$29),"по запросу") -> 4346.4064 | I178: 43.36 | J178: шт | L178: 0 | M178: 0
B179: 506001252 | C179: Крестовина ПВХ 90° клеевая 125 PIMTAS | D179: 16 | E179: Фитинги | F179: RUB | G179: =IFERROR(I179*Оглавление!$E$23,"по запросу") -> 8717.8728 | H179: =IFERROR(G179*(1-Оглавление!$D$29),"по запросу") -> 8717.8728 | I179: 86.97 | J179: шт | L179: 0 | M179: 0
B180: 506001405 | C180: Крестовина ПВХ 90° клеевая 140 PIMTAS | D180: 16 | E180: Фитинги | F180: RUB | G180: =IFERROR(I180*Оглавление!$E$23,"по запросу") -> 11524.5928 | H180: =IFERROR(G180*(1-Оглавление!$D$29),"по запросу") -> 11524.5928 | I180: 114.97 | J180: шт | L180: 0 | M180: 0
B181: 506001605 | C181: Крестовина ПВХ 90° клеевая 160 PIMTAS | D181: 16 | E181: Фитинги | F181: RUB | G181: =IFERROR(I181*Оглавление!$E$23,"по запросу") -> 14825.496 | H181: =IFERROR(G181*(1-Оглавление!$D$29),"по запросу") -> 14825.496 | I181: 147.9 | J181: шт | L181: 0 | M181: 0
B182: 506002005 | C182: Крестовина ПВХ 90° клеевая 200 PIMTAS | D182: 16 | E182: Фитинги | F182: RUB | G182: =IFERROR(I182*Оглавление!$E$23,"по запросу") -> 32724.3504 | H182: =IFERROR(G182*(1-Оглавление!$D$29),"по запросу") -> 32724.3504 | I182: 326.46 | J182: шт | L182: 0 | M182: 0
B183: 506002255 | C183: Крестовина ПВХ 90° клеевая 225 PIMTAS | D183: 16 | E183: Фитинги | F183: RUB | G183: =IFERROR(I183*Оглавление!$E$23,"по запросу") -> 37221.1168 | H183: =IFERROR(G183*(1-Оглавление!$D$29),"по запросу") -> 37221.1168 | I183: 371.32 | J183: шт | L183: 0 | M183: 0
B184: 506002505 | C184: Крестовина ПВХ 90° клеевая 250 PIMTAS | D184: 16 | E184: Фитинги | F184: RUB | G184: =IFERROR(I184*Оглавление!$E$23,"по запросу") -> 59815.2128 | H184: =IFERROR(G184*(1-Оглавление!$D$29),"по запросу") -> 59815.2128 | I184: 596.72 | J184: шт | L184: 0 | M184: 0
B185: 506002805 | C185: Крестовина ПВХ 90° клеевая 280 PIMTAS | D185: 16 | E185: Фитинги | F185: RUB | G185: =IFERROR(I185*Оглавление!$E$23,"по запросу") -> 82556.6616 | H185: =IFERROR(G185*(1-Оглавление!$D$29),"по запросу") -> 82556.6616 | I185: 823.59 | J185: шт | L185: 0 | M185: 0
B186: 506003155 | C186: Крестовина ПВХ 90° клеевая 315 PIMTAS | D186: 16 | E186: Фитинги | F186: RUB | G186: =IFERROR(I186*Оглавление!$E$23,"по запросу") -> 99669.6344 | H186: =IFERROR(G186*(1-Оглавление!$D$29),"по запросу") -> 99669.6344 | I186: 994.31 | J186: шт | L186: 0 | M186: 0
B187: 506003555 | C187: Крестовина ПВХ 90° клеевая 355 PIMTAS | D187: 16 | E187: Фитинги | F187: RUB | G187: =IFERROR(I187*Оглавление!$E$23,"по запросу") -> по запросу | H187: =IFERROR(G187*(1-Оглавление!$D$29),"по запросу") -> по запросу | I187: по запросу | J187: шт | L187: 0 ₽ | M187: 0 ₽
B188: 506004005 | C188: Крестовина ПВХ 90° клеевая 400 PIMTAS | D188: 16 | E188: Фитинги | F188: RUB | G188: =IFERROR(I188*Оглавление!$E$23,"по запросу") -> по запросу | H188: =IFERROR(G188*(1-Оглавление!$D$29),"по запросу") -> по запросу | I188: по запросу | J188: шт | L188: 0 ₽ | M188: 0 ₽
B189: 511000162 | C189: Муфта ПВХ клеевая 16 PIMTAS | D189: 16 | E189: Фитинги | F189: RUB | G189: =IFERROR(I189*Оглавление!$E$23,"по запросу") -> 70.168 | H189: =IFERROR(G189*(1-Оглавление!$D$29),"по запросу") -> 70.168 | I189: 0.7 | J189: шт | L189: 0 | M189: 0
B190: 511000202 | C190: Муфта ПВХ клеевая 20 PIMTAS | D190: 16 | E190: Фитинги | F190: RUB | G190: =IFERROR(I190*Оглавление!$E$23,"по запросу") -> 44.1056 | H190: =IFERROR(G190*(1-Оглавление!$D$29),"по запросу") -> 44.1056 | I190: 0.44 | J190: шт | L190: 0 | M190: 0
B191: 511000252 | C191: Муфта ПВХ клеевая 25 PIMTAS | D191: 16 | E191: Фитинги | F191: RUB | G191: =IFERROR(I191*Оглавление!$E$23,"по запросу") -> 54.1296 | H191: =IFERROR(G191*(1-Оглавление!$D$29),"по запросу") -> 54.1296 | I191: 0.54 | J191: шт | L191: 0 | M191: 0
B192: 511000322 | C192: Муфта ПВХ клеевая 32 PIMTAS | D192: 16 | E192: Фитинги | F192: RUB | G192: =IFERROR(I192*Оглавление!$E$23,"по запросу") -> 62.1488 | H192: =IFERROR(G192*(1-Оглавление!$D$29),"по запросу") -> 62.1488 | I192: 0.62 | J192: шт | L192: 0 | M192: 0
B193: 511000402 | C193: Муфта ПВХ клеевая 40 PIMTAS | D193: 16 | E193: Фитинги | F193: RUB | G193: =IFERROR(I193*Оглавление!$E$23,"по запросу") -> 103.2472 | H193: =IFERROR(G193*(1-Оглавление!$D$29),"по запросу") -> 103.2472 | I193: 1.03 | J193: шт | L193: 0 | M193: 0
B194: 511000502 | C194: Муфта ПВХ клеевая 50 PIMTAS | D194: 16 | E194: Фитинги | F194: RUB | G194: =IFERROR(I194*Оглавление!$E$23,"по запросу") -> 106.2544 | H194: =IFERROR(G194*(1-Оглавление!$D$29),"по запросу") -> 106.2544 | I194: 1.06 | J194: шт | L194: 0 | M194: 0
B195: 511000632 | C195: Муфта ПВХ клеевая 63 PIMTAS | D195: 16 | E195: Фитинги | F195: RUB | G195: =IFERROR(I195*Оглавление!$E$23,"по запросу") -> 165.396 | H195: =IFERROR(G195*(1-Оглавление!$D$29),"по запросу") -> 165.396 | I195: 1.65 | J195: шт | L195: 0 | M195: 0
B196: 511000752 | C196: Муфта ПВХ клеевая 75 PIMTAS | D196: 16 | E196: Фитинги | F196: RUB | G196: =IFERROR(I196*Оглавление!$E$23,"по запросу") -> 335.804 | H196: =IFERROR(G196*(1-Оглавление!$D$29),"по запросу") -> 335.804 | I196: 3.35 | J196: шт | L196: 0 | M196: 0
B197: 511000902 | C197: Муфта ПВХ клеевая 90 PIMTAS | D197: 16 | E197: Фитинги | F197: RUB | G197: =IFERROR(I197*Оглавление!$E$23,"по запросу") -> 424.0152 | H197: =IFERROR(G197*(1-Оглавление!$D$29),"по запросу") -> 424.0152 | I197: 4.23 | J197: шт | L197: 0 | M197: 0
B198: 511001102 | C198: Муфта ПВХ клеевая 110 PIMTAS | D198: 16 | E198: Фитинги | F198: RUB | G198: =IFERROR(I198*Оглавление!$E$23,"по запросу") -> 716.716 | H198: =IFERROR(G198*(1-Оглавление!$D$29),"по запросу") -> 716.716 | I198: 7.15 | J198: шт | L198: 0 | M198: 0
B199: 511001252 | C199: Муфта ПВХ клеевая 125 PIMTAS | D199: 16 | E199: Фитинги | F199: RUB | G199: =IFERROR(I199*Оглавление!$E$23,"по запросу") -> 931.2296 | H199: =IFERROR(G199*(1-Оглавление!$D$29),"по запросу") -> 931.2296 | I199: 9.29 | J199: шт | L199: 0 | M199: 0
B200: 511001402 | C200: Муфта ПВХ клеевая 140 PIMTAS | D200: 16 | E200: Фитинги | F200: RUB | G200: =IFERROR(I200*Оглавление!$E$23,"по запросу") -> 1099.6328 | H200: =IFERROR(G200*(1-Оглавление!$D$29),"по запросу") -> 1099.6328 | I200: 10.97 | J200: шт | L200: 0 | M200: 0
B201: 511001602 | C201: Муфта ПВХ клеевая 160 PIMTAS | D201: 16 | E201: Фитинги | F201: RUB | G201: =IFERROR(I201*Оглавление!$E$23,"по запросу") -> 1644.9384 | H201: =IFERROR(G201*(1-Оглавление!$D$29),"по запросу") -> 1644.9384 | I201: 16.41 | J201: шт | L201: 0 | M201: 0
B202: 511002002 | C202: Муфта ПВХ клеевая 200 PIMTAS | D202: 16 | E202: Фитинги | F202: RUB | G202: =IFERROR(I202*Оглавление!$E$23,"по запросу") -> 3698.856 | H202: =IFERROR(G202*(1-Оглавление!$D$29),"по запросу") -> 3698.856 | I202: 36.9 | J202: шт | L202: =IFERROR(K202*G202,"0 ₽") -> 0 | M202: =IFERROR(K202*H202,"0 ₽") -> 0
B203: 511002252 | C203: Муфта ПВХ клеевая 225 PIMTAS | D203: 16 | E203: Фитинги | F203: RUB | G203: =IFERROR(I203*Оглавление!$E$23,"по запросу") -> 5934.208 | H203: =IFERROR(G203*(1-Оглавление!$D$29),"по запросу") -> 5934.208 | I203: 59.2 | J203: шт | L203: 0 | M203: 0
B204: 511002504 | C204: Муфта ПВХ клеевая 250 PIMTAS | D204: 10 | E204: Фитинги | F204: RUB | G204: =IFERROR(I204*Оглавление!$E$23,"по запросу") -> 10130.2544 | H204: =IFERROR(G204*(1-Оглавление!$D$29),"по запросу") -> 10130.2544 | I204: 101.06 | J204: шт | L204: 0 | M204: 0
B205: 511002805 | C205: Муфта ПВХ клеевая 280 PIMTAS | D205: 10 | E205: Фитинги | F205: RUB | G205: =IFERROR(I205*Оглавление!$E$23,"по запросу") -> по запросу | H205: =IFERROR(G205*(1-Оглавление!$D$29),"по запросу") -> по запросу | I205: по запросу | J205: шт | L205: 0 ₽ | M205: 0 ₽
B206: 511003155 | C206: Муфта ПВХ клеевая 315 PIMTAS | D206: 10 | E206: Фитинги | F206: RUB | G206: =IFERROR(I206*Оглавление!$E$23,"по запросу") -> по запросу | H206: =IFERROR(G206*(1-Оглавление!$D$29),"по запросу") -> по запросу | I206: по запросу | J206: шт | L206: 0 ₽ | M206: 0 ₽
... 584 more rows

Sheet ПВХ FIP
J1: =COUNT(K10:K339) -> 0 | K1: Товаров в заказе
J2: =SUM(M10:M339) -> 0 | K2: Сумма заказа со скидкой с НДС
A9: Фото | B9: Код | C9: Наименование | D9: PN | E9: Категория | F9: Валюта продажи | G9: Цена ПРОДАЖИ с НДС | H9: Цена с НДС со скидкой | I9: Цена EUR | J9: Ед. измерения | K9: Заказ (метры/штуки) | L9: Сумма рубли | M9: Сумма со скидкой
B10: VEEIV016E | C10: Кран шаровой ПВХ муфтовый общего применения EPDM 16 FIP | D10: 16 | E10: Арматура | F10: RUB | G10: =IFERROR(I10*Оглавление!$E$23,"по запросу") -> 2269.4336 | H10: =IFERROR(G10*(1-Оглавление!$D$30),"по запросу") -> 2269.4336 | I10: 22.64 | J10: шт | L10: =IFERROR(K10*G10,"0 ₽") -> 0 | M10: =IFERROR(K10*H10,"0 ₽") -> 0
B11: VEEIV020E | C11: Кран шаровой ПВХ муфтовый общего применения EPDM 20 FIP | D11: 16 | E11: Арматура | F11: RUB | G11: =IFERROR(I11*Оглавление!$E$23,"по запросу") -> 2289.4816 | H11: =IFERROR(G11*(1-Оглавление!$D$30),"по запросу") -> 2289.4816 | I11: 22.84 | J11: шт | L11: =IFERROR(K11*G11,"0 ₽") -> 0 | M11: =IFERROR(K11*H11,"0 ₽") -> 0
B12: VEEIV025E | C12: Кран шаровой ПВХ муфтовый общего применения EPDM 25 FIP | D12: 16 | E12: Арматура | F12: RUB | G12: =IFERROR(I12*Оглавление!$E$23,"по запросу") -> 2700.4656 | H12: =IFERROR(G12*(1-Оглавление!$D$30),"по запросу") -> 2700.4656 | I12: 26.94 | J12: шт | L12: 0 | M12: 0
B13: VEEIV032E | C13: Кран шаровой ПВХ муфтовый общего применения EPDM 32 FIP | D13: 16 | E13: Арматура | F13: RUB | G13: =IFERROR(I13*Оглавление!$E$23,"по запросу") -> 3189.6368 | H13: =IFERROR(G13*(1-Оглавление!$D$30),"по запросу") -> 3189.6368 | I13: 31.82 | J13: шт | L13: 0 | M13: 0
B14: VEEIV040E | C14: Кран шаровой ПВХ муфтовый общего применения EPDM 40 FIP | D14: 16 | E14: Арматура | F14: RUB | G14: =IFERROR(I14*Оглавление!$E$23,"по запросу") -> 4139.912 | H14: =IFERROR(G14*(1-Оглавление!$D$30),"по запросу") -> 4139.912 | I14: 41.3 | J14: шт | L14: 0 | M14: 0
B15: VEEIV050E | C15: Кран шаровой ПВХ муфтовый общего применения EPDM 50 FIP | D15: 16 | E15: Арматура | F15: RUB | G15: =IFERROR(I15*Оглавление!$E$23,"по запросу") -> 4789.4672 | H15: =IFERROR(G15*(1-Оглавление!$D$30),"по запросу") -> 4789.4672 | I15: 47.78 | J15: шт | L15: 0 | M15: 0
B16: VEEIV063E | C16: Кран шаровой ПВХ муфтовый общего применения EPDM 63 FIP | D16: 16 | E16: Арматура | F16: RUB | G16: =IFERROR(I16*Оглавление!$E$23,"по запросу") -> 6754.1712 | H16: =IFERROR(G16*(1-Оглавление!$D$30),"по запросу") -> 6754.1712 | I16: 67.38 | J16: шт | L16: 0 | M16: 0
B17: VEEIV075E | C17: Кран шаровой ПВХ муфтовый общего применения EPDM 75 FIP | D17: 16 | E17: Арматура | F17: RUB | G17: =IFERROR(I17*Оглавление!$E$23,"по запросу") -> 15861.9776 | H17: =IFERROR(G17*(1-Оглавление!$D$30),"по запросу") -> 15861.9776 | I17: 158.24 | J17: шт | L17: 0 | M17: 0
B18: VEEIV090E | C18: Кран шаровой ПВХ муфтовый общего применения EPDM 90 FIP | D18: 16 | E18: Арматура | F18: RUB | G18: =IFERROR(I18*Оглавление!$E$23,"по запросу") -> 20108.144 | H18: =IFERROR(G18*(1-Оглавление!$D$30),"по запросу") -> 20108.144 | I18: 200.6 | J18: шт | L18: 0 | M18: 0
B19: VEEIV110E | C19: Кран шаровой ПВХ муфтовый общего применения EPDM 110 FIP | D19: 16 | E19: Арматура | F19: RUB | G19: =IFERROR(I19*Оглавление!$E$23,"по запросу") -> 32604.0624 | H19: =IFERROR(G19*(1-Оглавление!$D$30),"по запросу") -> 32604.0624 | I19: 325.26 | J19: шт | L19: 0 | M19: 0
B20: VEEFV038E | C20: Кран шаровой ПВХ резьбовой общего применения EPDM FIP | D20: 16 | E20: Арматура | F20: RUB | G20: =IFERROR(I20*Оглавление!$E$23,"по запросу") -> 2493.9712 | H20: =IFERROR(G20*(1-Оглавление!$D$30),"по запросу") -> 2493.9712 | I20: 24.88 | J20: шт | L20: 0 | M20: 0
B21: VEEFV012E | C21: Кран шаровой ПВХ резьбовой общего применения EPDM FIP | D21: 16 | E21: Арматура | F21: RUB | G21: =IFERROR(I21*Оглавление!$E$23,"по запросу") -> 2514.0192 | H21: =IFERROR(G21*(1-Оглавление!$D$30),"по запросу") -> 2514.0192 | I21: 25.08 | J21: шт | L21: 0 | M21: 0
B22: VEEFV034E | C22: Кран шаровой ПВХ резьбовой общего применения EPDM FIP | D22: 16 | E22: Арматура | F22: RUB | G22: =IFERROR(I22*Оглавление!$E$23,"по запросу") -> 2971.1136 | H22: =IFERROR(G22*(1-Оглавление!$D$30),"по запросу") -> 2971.1136 | I22: 29.64 | J22: шт | L22: 0 | M22: 0
B23: VEEFV100E | C23: Кран шаровой ПВХ резьбовой общего применения EPDM FIP | D23: 16 | E23: Арматура | F23: RUB | G23: =IFERROR(I23*Оглавление!$E$23,"по запросу") -> 3502.3856 | H23: =IFERROR(G23*(1-Оглавление!$D$30),"по запросу") -> 3502.3856 | I23: 34.94 | J23: шт | L23: 0 | M23: 0
B24: VEEFV114E | C24: Кран шаровой ПВХ резьбовой общего применения EPDM FIP | D24: 16 | E24: Арматура | F24: RUB | G24: =IFERROR(I24*Оглавление!$E$23,"по запросу") -> 4554.9056 | H24: =IFERROR(G24*(1-Оглавление!$D$30),"по запросу") -> 4554.9056 | I24: 45.44 | J24: шт | L24: 0 | M24: 0
B25: VEEFV112E | C25: Кран шаровой ПВХ резьбовой общего применения EPDM FIP | D25: 16 | E25: Арматура | F25: RUB | G25: =IFERROR(I25*Оглавление!$E$23,"по запросу") -> 5272.624 | H25: =IFERROR(G25*(1-Оглавление!$D$30),"по запросу") -> 5272.624 | I25: 52.6 | J25: шт | L25: 0 | M25: 0
B26: VEEFV200E | C26: Кран шаровой ПВХ резьбовой общего применения EPDM FIP | D26: 16 | E26: Арматура | F26: RUB | G26: =IFERROR(I26*Оглавление!$E$23,"по запросу") -> 7423.7744 | H26: =IFERROR(G26*(1-Оглавление!$D$30),"по запросу") -> 7423.7744 | I26: 74.06 | J26: шт | L26: 0 | M26: 0
B27: VEEFV212E | C27: Кран шаровой ПВХ резьбовой общего применения EPDM FIP | D27: 16 | E27: Арматура | F27: RUB | G27: =IFERROR(I27*Оглавление!$E$23,"по запросу") -> 17435.7456 | H27: =IFERROR(G27*(1-Оглавление!$D$30),"по запросу") -> 17435.7456 | I27: 173.94 | J27: шт | L27: 0 | M27: 0
B28: VEEFV300E | C28: Кран шаровой ПВХ резьбовой общего применения EPDM FIP | D28: 16 | E28: Арматура | F28: RUB | G28: =IFERROR(I28*Оглавление!$E$23,"по запросу") -> 22165.0688 | H28: =IFERROR(G28*(1-Оглавление!$D$30),"по запросу") -> 22165.0688 | I28: 221.12 | J28: шт | L28: 0 | M28: 0
B29: VEEFV400E | C29: Кран шаровой ПВХ резьбовой общего применения EPDM FIP | D29: 16 | E29: Арматура | F29: RUB | G29: =IFERROR(I29*Оглавление!$E$23,"по запросу") -> 35885.92 | H29: =IFERROR(G29*(1-Оглавление!$D$30),"по запросу") -> 35885.92 | I29: 358 | J29: шт | L29: 0 | M29: 0
B30: VKDIV016E | C30: Кран шаровой ПВХ муфтовый промышленный EPDM 16 FIP | D30: 16 | E30: Арматура | F30: RUB | G30: =IFERROR(I30*Оглавление!$E$23,"по запросу") -> 5703.656 | H30: =IFERROR(G30*(1-Оглавление!$D$30),"по запросу") -> 5703.656 | I30: 56.9 | J30: шт | L30: 0 | M30: 0
B31: VKDIV020E | C31: Кран шаровой ПВХ муфтовый промышленный EPDM 20 FIP | D31: 16 | E31: Арматура | F31: RUB | G31: =IFERROR(I31*Оглавление!$E$23,"по запросу") -> 5936.2128 | H31: =IFERROR(G31*(1-Оглавление!$D$30),"по запросу") -> 5936.2128 | I31: 59.22 | J31: шт | L31: 0 | M31: 0
B32: VKDIV025E | C32: Кран шаровой ПВХ муфтовый промышленный EPDM 25 FIP | D32: 16 | E32: Арматура | F32: RUB | G32: =IFERROR(I32*Оглавление!$E$23,"по запросу") -> 7022.8144 | H32: =IFERROR(G32*(1-Оглавление!$D$30),"по запросу") -> 7022.8144 | I32: 70.06 | J32: шт | L32: 0 | M32: 0
B33: VKDIV032E | C33: Кран шаровой ПВХ муфтовый промышленный EPDM 32 FIP | D33: 16 | E33: Арматура | F33: RUB | G33: =IFERROR(I33*Оглавление!$E$23,"по запросу") -> 8742.9328 | H33: =IFERROR(G33*(1-Оглавление!$D$30),"по запросу") -> 8742.9328 | I33: 87.22 | J33: шт | L33: 0 | M33: 0
B34: VKDIV040E | C34: Кран шаровой ПВХ муфтовый промышленный EPDM 40 FIP | D34: 16 | E34: Арматура | F34: RUB | G34: =IFERROR(I34*Оглавление!$E$23,"по запросу") -> 10888.0688 | H34: =IFERROR(G34*(1-Оглавление!$D$30),"по запросу") -> 10888.0688 | I34: 108.62 | J34: шт | L34: 0 | M34: 0
B35: VKDIV050E | C35: Кран шаровой ПВХ муфтовый промышленный EPDM 50 FIP | D35: 16 | E35: Арматура | F35: RUB | G35: =IFERROR(I35*Оглавление!$E$23,"по запросу") -> 14033.6 | H35: =IFERROR(G35*(1-Оглавление!$D$30),"по запросу") -> 14033.6 | I35: 140 | J35: шт | L35: 0 | M35: 0
B36: VKDIV063E | C36: Кран шаровой ПВХ муфтовый промышленный EPDM 63 FIP | D36: 16 | E36: Арматура | F36: RUB | G36: =IFERROR(I36*Оглавление!$E$23,"по запросу") -> 17467.8224 | H36: =IFERROR(G36*(1-Оглавление!$D$30),"по запросу") -> 17467.8224 | I36: 174.26 | J36: шт | L36: 0 | M36: 0
B37: VKDIV075E | C37: Кран шаровой ПВХ муфтовый промышленный EPDM 75 FIP | D37: 16 | E37: Арматура | F37: RUB | G37: =IFERROR(I37*Оглавление!$E$23,"по запросу") -> 67353.2608 | H37: =IFERROR(G37*(1-Оглавление!$D$30),"по запросу") -> 67353.2608 | I37: 671.92 | J37: шт | L37: 0 | M37: 0
B38: VKDIV090E | C38: Кран шаровой ПВХ муфтовый промышленный EPDM 90 FIP | D38: 16 | E38: Арматура | F38: RUB | G38: =IFERROR(I38*Оглавление!$E$23,"по запросу") -> 85809.4496 | H38: =IFERROR(G38*(1-Оглавление!$D$30),"по запросу") -> 85809.4496 | I38: 856.04 | J38: шт | L38: 0 | M38: 0
B39: VKDIV110E | C39: Кран шаровой ПВХ муфтовый промышленный EPDM 110 FIP | D39: 16 | E39: Арматура | F39: RUB | G39: =IFERROR(I39*Оглавление!$E$23,"по запросу") -> 96489.0192 | H39: =IFERROR(G39*(1-Оглавление!$D$30),"по запросу") -> 96489.0192 | I39: 962.58 | J39: шт | L39: 0 | M39: 0
B40: VKDIV016F | C40: Кран шаровой ПВХ муфтовый промышленный FKM 16 FIP | D40: 16 | E40: Арматура | F40: RUB | G40: =IFERROR(I40*Оглавление!$E$23,"по запросу") -> 6916.56 | H40: =IFERROR(G40*(1-Оглавление!$D$30),"по запросу") -> 6916.56 | I40: 69 | J40: шт | L40: 0 | M40: 0
B41: VKDIV020F | C41: Кран шаровой ПВХ муфтовый промышленный FKM 20 FIP | D41: 16 | E41: Арматура | F41: RUB | G41: =IFERROR(I41*Оглавление!$E$23,"по запросу") -> 7096.992 | H41: =IFERROR(G41*(1-Оглавление!$D$30),"по запросу") -> 7096.992 | I41: 70.8 | J41: шт | L41: 0 | M41: 0
B42: VKDIV025F | C42: Кран шаровой ПВХ муфтовый промышленный FKM 25 FIP | D42: 16 | E42: Арматура | F42: RUB | G42: =IFERROR(I42*Оглавление!$E$23,"по запросу") -> 8510.376 | H42: =IFERROR(G42*(1-Оглавление!$D$30),"по запросу") -> 8510.376 | I42: 84.9 | J42: шт | L42: 0 | M42: 0
B43: VKDIV032F | C43: Кран шаровой ПВХ муфтовый промышленный FKM 32 FIP | D43: 16 | E43: Арматура | F43: RUB | G43: =IFERROR(I43*Оглавление!$E$23,"по запросу") -> 10569.3056 | H43: =IFERROR(G43*(1-Оглавление!$D$30),"по запросу") -> 10569.3056 | I43: 105.44 | J43: шт | L43: 0 | M43: 0
B44: VKDIV040F | C44: Кран шаровой ПВХ муфтовый промышленный FKM 40 FIP | D44: 16 | E44: Арматура | F44: RUB | G44: =IFERROR(I44*Оглавление!$E$23,"по запросу") -> 12878.8352 | H44: =IFERROR(G44*(1-Оглавление!$D$30),"по запросу") -> 12878.8352 | I44: 128.48 | J44: шт | L44: 0 | M44: 0
B45: VKDIV050F | C45: Кран шаровой ПВХ муфтовый промышленный FKM 50 FIP | D45: 16 | E45: Арматура | F45: RUB | G45: =IFERROR(I45*Оглавление!$E$23,"по запросу") -> 16517.5472 | H45: =IFERROR(G45*(1-Оглавление!$D$30),"по запросу") -> 16517.5472 | I45: 164.78 | J45: шт | L45: 0 | M45: 0
B46: VKDIV063F | C46: Кран шаровой ПВХ муфтовый промышленный FKM 63 FIP | D46: 16 | E46: Арматура | F46: RUB | G46: =IFERROR(I46*Оглавление!$E$23,"по запросу") -> 22377.5776 | H46: =IFERROR(G46*(1-Оглавление!$D$30),"по запросу") -> 22377.5776 | I46: 223.24 | J46: шт | L46: 0 | M46: 0
B47: VKDIV075F | C47: Кран шаровой ПВХ муфтовый промышленный FKM 75 FIP | D47: 16 | E47: Арматура | F47: RUB | G47: =IFERROR(I47*Оглавление!$E$23,"по запросу") -> 80623.032 | H47: =IFERROR(G47*(1-Оглавление!$D$30),"по запросу") -> 80623.032 | I47: 804.3 | J47: шт | L47: 0 | M47: 0
B48: VKDIV090F | C48: Кран шаровой ПВХ муфтовый промышленный FKM 90 FIP | D48: 16 | E48: Арматура | F48: RUB | G48: =IFERROR(I48*Оглавление!$E$23,"по запросу") -> 101994.2 | H48: =IFERROR(G48*(1-Оглавление!$D$30),"по запросу") -> 101994.2 | I48: 1017.5 | J48: шт | L48: 0 | M48: 0
B49: VKDIV110F | C49: Кран шаровой ПВХ муфтовый промышленный FKM 110 FIP | D49: 16 | E49: Арматура | F49: RUB | G49: =IFERROR(I49*Оглавление!$E$23,"по запросу") -> 118830.5104 | H49: =IFERROR(G49*(1-Оглавление!$D$30),"по запросу") -> 118830.5104 | I49: 1185.46 | J49: шт | L49: 0 | M49: 0
B50: VKDFV038E | C50: Кран шаровой ПВХ резьбовой промышленный EPDM 3/8" (DN10) FIP | D50: 16 | E50: Арматура | F50: RUB | G50: =IFERROR(I50*Оглавление!$E$23,"по запросу") -> 6148.7216 | H50: =IFERROR(G50*(1-Оглавление!$D$30),"по запросу") -> 6148.7216 | I50: 61.34 | J50: шт | L50: 0 | M50: 0
B51: VKDFV012E | C51: Кран шаровой ПВХ резьбовой промышленный EPDM 1/2" (DN15) FIP | D51: 16 | E51: Арматура | F51: RUB | G51: =IFERROR(I51*Оглавление!$E$23,"по запросу") -> 6441.4224 | H51: =IFERROR(G51*(1-Оглавление!$D$30),"по запросу") -> 6441.4224 | I51: 64.26 | J51: шт | L51: 0 | M51: 0
B52: VKDFV034E | C52: Кран шаровой ПВХ резьбовой промышленный EPDM 3/4" (DN20) FIP | D52: 16 | E52: Арматура | F52: RUB | G52: =IFERROR(I52*Оглавление!$E$23,"по запросу") -> 7712.4656 | H52: =IFERROR(G52*(1-Оглавление!$D$30),"по запросу") -> 7712.4656 | I52: 76.94 | J52: шт | L52: 0 | M52: 0
B53: VKDFV100E | C53: Кран шаровой ПВХ резьбовой промышленный EPDM 1" (DN25) FIP | D53: 16 | E53: Арматура | F53: RUB | G53: =IFERROR(I53*Оглавление!$E$23,"по запросу") -> 9462.656 | H53: =IFERROR(G53*(1-Оглавление!$D$30),"по запросу") -> 9462.656 | I53: 94.4 | J53: шт | L53: 0 | M53: 0
B54: VKDFV114E | C54: Кран шаровой ПВХ резьбовой промышленный EPDM 1 1/4" (DN32) FIP | D54: 16 | E54: Арматура | F54: RUB | G54: =IFERROR(I54*Оглавление!$E$23,"по запросу") -> 12020.7808 | H54: =IFERROR(G54*(1-Оглавление!$D$30),"по запросу") -> 12020.7808 | I54: 119.92 | J54: шт | L54: 0 | M54: 0
B55: VKDFV112E | C55: Кран шаровой ПВХ резьбовой промышленный EPDM 1 1/2" (DN40) FIP | D55: 16 | E55: Арматура | F55: RUB | G55: =IFERROR(I55*Оглавление!$E$23,"по запросу") -> 15755.7232 | H55: =IFERROR(G55*(1-Оглавление!$D$30),"по запросу") -> 15755.7232 | I55: 157.18 | J55: шт | L55: 0 | M55: 0
B56: VKDFV200E | C56: Кран шаровой ПВХ резьбовой промышленный EPDM 2" (DN50) FIP | D56: 16 | E56: Арматура | F56: RUB | G56: =IFERROR(I56*Оглавление!$E$23,"по запросу") -> 19849.5248 | H56: =IFERROR(G56*(1-Оглавление!$D$30),"по запросу") -> 19849.5248 | I56: 198.02 | J56: шт | L56: 0 | M56: 0
B57: VKDFV038F | C57: Кран шаровой ПВХ резьбовой промышленный FKM 3/8" (DN10) FIP | D57: 16 | E57: Арматура | F57: RUB | G57: =IFERROR(I57*Оглавление!$E$23,"по запросу") -> 7435.8032 | H57: =IFERROR(G57*(1-Оглавление!$D$30),"по запросу") -> 7435.8032 | I57: 74.18 | J57: шт | L57: 0 | M57: 0
B58: VKDFV012F | C58: Кран шаровой ПВХ резьбовой промышленный FKM 1/2" (DN15) FIP | D58: 16 | E58: Арматура | F58: RUB | G58: =IFERROR(I58*Оглавление!$E$23,"по запросу") -> 7712.4656 | H58: =IFERROR(G58*(1-Оглавление!$D$30),"по запросу") -> 7712.4656 | I58: 76.94 | J58: шт | L58: 0 | M58: 0
B59: VKDFV034F | C59: Кран шаровой ПВХ резьбовой промышленный FKM 3/4" (DN20) FIP | D59: 16 | E59: Арматура | F59: RUB | G59: =IFERROR(I59*Оглавление!$E$23,"по запросу") -> 8945.4176 | H59: =IFERROR(G59*(1-Оглавление!$D$30),"по запросу") -> 8945.4176 | I59: 89.24 | J59: шт | L59: 0 | M59: 0
B60: VKDFV100F | C60: Кран шаровой ПВХ резьбовой промышленный FKM 1" (DN25) FIP | D60: 16 | E60: Арматура | F60: RUB | G60: =IFERROR(I60*Оглавление!$E$23,"по запросу") -> 11920.5408 | H60: =IFERROR(G60*(1-Оглавление!$D$30),"по запросу") -> 11920.5408 | I60: 118.92 | J60: шт | L60: 0 | M60: 0
B61: VKDFV114F | C61: Кран шаровой ПВХ резьбовой промышленный FKM 1 1/4" (DN32) FIP | D61: 16 | E61: Арматура | F61: RUB | G61: =IFERROR(I61*Оглавление!$E$23,"по запросу") -> 14053.648 | H61: =IFERROR(G61*(1-Оглавление!$D$30),"по запросу") -> 14053.648 | I61: 140.2 | J61: шт | L61: 0 | M61: 0
B62: VKDFV112F | C62: Кран шаровой ПВХ резьбовой промышленный FKM 1 1/2" (DN40) FIP | D62: 16 | E62: Арматура | F62: RUB | G62: =IFERROR(I62*Оглавление!$E$23,"по запросу") -> 18317.8576 | H62: =IFERROR(G62*(1-Оглавление!$D$30),"по запросу") -> 18317.8576 | I62: 182.74 | J62: шт | L62: 0 | M62: 0
B63: VKDFV200F | C63: Кран шаровой ПВХ резьбовой промышленный FKM 2" (DN50) FIP | D63: 16 | E63: Арматура | F63: RUB | G63: =IFERROR(I63*Оглавление!$E$23,"по запросу") -> 24929.688 | H63: =IFERROR(G63*(1-Оглавление!$D$30),"по запросу") -> 24929.688 | I63: 248.7 | J63: шт | L63: 0 | M63: 0
B64: VKDOV020E | C64: Кран шаровой ПВХ фланцевый промышленный EPDM 20 FIP | D64: 16 | E64: Арматура | F64: RUB | G64: =IFERROR(I64*Оглавление!$E$23,"по запросу") -> 10831.9344 | H64: =IFERROR(G64*(1-Оглавление!$D$30),"по запросу") -> 10831.9344 | I64: 108.06 | J64: шт | L64: 0 | M64: 0
B65: VKDOV025E | C65: Кран шаровой ПВХ фланцевый промышленный EPDM 25 FIP | D65: 16 | E65: Арматура | F65: RUB | G65: =IFERROR(I65*Оглавление!$E$23,"по запросу") -> 12546.0384 | H65: =IFERROR(G65*(1-Оглавление!$D$30),"по запросу") -> 12546.0384 | I65: 125.16 | J65: шт | L65: 0 | M65: 0
B66: VKDOV032E | C66: Кран шаровой ПВХ фланцевый промышленный EPDM 32 FIP | D66: 16 | E66: Арматура | F66: RUB | G66: =IFERROR(I66*Оглавление!$E$23,"по запросу") -> 14709.2176 | H66: =IFERROR(G66*(1-Оглавление!$D$30),"по запросу") -> 14709.2176 | I66: 146.74 | J66: шт | L66: 0 | M66: 0
B67: VKDOV040E | C67: Кран шаровой ПВХ фланцевый промышленный EPDM 40 FIP | D67: 16 | E67: Арматура | F67: RUB | G67: =IFERROR(I67*Оглавление!$E$23,"по запросу") -> 18869.1776 | H67: =IFERROR(G67*(1-Оглавление!$D$30),"по запросу") -> 18869.1776 | I67: 188.24 | J67: шт | L67: 0 | M67: 0
B68: VKDOV050E | C68: Кран шаровой ПВХ фланцевый промышленный EPDM 50 FIP | D68: 16 | E68: Арматура | F68: RUB | G68: =IFERROR(I68*Оглавление!$E$23,"по запросу") -> 22820.6384 | H68: =IFERROR(G68*(1-Оглавление!$D$30),"по запросу") -> 22820.6384 | I68: 227.66 | J68: шт | L68: 0 | M68: 0
B69: VKDOV063E | C69: Кран шаровой ПВХ фланцевый промышленный EPDM 63 FIP | D69: 16 | E69: Арматура | F69: RUB | G69: =IFERROR(I69*Оглавление!$E$23,"по запросу") -> 29213.9456 | H69: =IFERROR(G69*(1-Оглавление!$D$30),"по запросу") -> 29213.9456 | I69: 291.44 | J69: шт | L69: 0 | M69: 0
B70: VKDOV075E | C70: Кран шаровой ПВХ фланцевый промышленный EPDM 75 FIP | D70: 16 | E70: Арматура | F70: RUB | G70: =IFERROR(I70*Оглавление!$E$23,"по запросу") -> 85043.616 | H70: =IFERROR(G70*(1-Оглавление!$D$30),"по запросу") -> 85043.616 | I70: 848.4 | J70: шт | L70: 0 | M70: 0
B71: VKDOV090E | C71: Кран шаровой ПВХ фланцевый промышленный EPDM 90 FIP | D71: 16 | E71: Арматура | F71: RUB | G71: =IFERROR(I71*Оглавление!$E$23,"по запросу") -> 108341.3968 | H71: =IFERROR(G71*(1-Оглавление!$D$30),"по запросу") -> 108341.3968 | I71: 1080.82 | J71: шт | L71: 0 | M71: 0
B72: VKDOV110E | C72: Кран шаровой ПВХ фланцевый промышленный EPDM 110 FIP | D72: 16 | E72: Арматура | F72: RUB | G72: =IFERROR(I72*Оглавление!$E$23,"по запросу") -> 123333.2912 | H72: =IFERROR(G72*(1-Оглавление!$D$30),"по запросу") -> 123333.2912 | I72: 1230.38 | J72: шт | L72: 0 | M72: 0
B73: VKDOV020F | C73: Кран шаровой ПВХ фланцевый промышленный FKM 20 FIP | D73: 16 | E73: Арматура | F73: RUB | G73: =IFERROR(I73*Оглавление!$E$23,"по запросу") -> 12283.4096 | H73: =IFERROR(G73*(1-Оглавление!$D$30),"по запросу") -> 12283.4096 | I73: 122.54 | J73: шт | L73: 0 | M73: 0
B74: VKDOV025F | C74: Кран шаровой ПВХ фланцевый промышленный FKM 25 FIP | D74: 16 | E74: Арматура | F74: RUB | G74: =IFERROR(I74*Оглавление!$E$23,"по запросу") -> 14410.5024 | H74: =IFERROR(G74*(1-Оглавление!$D$30),"по запросу") -> 14410.5024 | I74: 143.76 | J74: шт | L74: 0 | M74: 0
B75: VKDOV032F | C75: Кран шаровой ПВХ фланцевый промышленный FKM 32 FIP | D75: 16 | E75: Арматура | F75: RUB | G75: =IFERROR(I75*Оглавление!$E$23,"по запросу") -> 16904.4736 | H75: =IFERROR(G75*(1-Оглавление!$D$30),"по запросу") -> 16904.4736 | I75: 168.64 | J75: шт | L75: =IFERROR(K75*G75,"0 ₽") -> 0 | M75: =IFERROR(K75*H75,"0 ₽") -> 0
B76: VKDOV040F | C76: Кран шаровой ПВХ фланцевый промышленный FKM 40 FIP | D76: 16 | E76: Арматура | F76: RUB | G76: =IFERROR(I76*Оглавление!$E$23,"по запросу") -> 21246.8704 | H76: =IFERROR(G76*(1-Оглавление!$D$30),"по запросу") -> 21246.8704 | I76: 211.96 | J76: шт | L76: 0 | M76: 0
B77: VKDOV050F | C77: Кран шаровой ПВХ фланцевый промышленный FKM 50 FIP | D77: 16 | E77: Арматура | F77: RUB | G77: =IFERROR(I77*Оглавление!$E$23,"по запросу") -> 25679.4832 | H77: =IFERROR(G77*(1-Оглавление!$D$30),"по запросу") -> 25679.4832 | I77: 256.18 | J77: шт | L77: 0 | M77: 0
B78: VKDOV063F | C78: Кран шаровой ПВХ фланцевый промышленный FKM 63 FIP | D78: 16 | E78: Арматура | F78: RUB | G78: =IFERROR(I78*Оглавление!$E$23,"по запросу") -> 34861.4672 | H78: =IFERROR(G78*(1-Оглавление!$D$30),"по запросу") -> 34861.4672 | I78: 347.78 | J78: шт | L78: 0 | M78: 0
B79: VKDOV075F | C79: Кран шаровой ПВХ фланцевый промышленный FKM 75 FIP | D79: 16 | E79: Арматура | F79: RUB | G79: =IFERROR(I79*Оглавление!$E$23,"по запросу") -> 98317.3968 | H79: =IFERROR(G79*(1-Оглавление!$D$30),"по запросу") -> 98317.3968 | I79: 980.82 | J79: шт | L79: 0 | M79: 0
B80: VKDOV090F | C80: Кран шаровой ПВХ фланцевый промышленный FKM 90 FIP | D80: 16 | E80: Арматура | F80: RUB | G80: =IFERROR(I80*Оглавление!$E$23,"по запросу") -> 124534.1664 | H80: =IFERROR(G80*(1-Оглавление!$D$30),"по запросу") -> 124534.1664 | I80: 1242.36 | J80: шт | L80: 0 | M80: 0
B81: VKDOV110F | C81: Кран шаровой ПВХ фланцевый промышленный FKM 110 FIP | D81: 16 | E81: Арматура | F81: RUB | G81: =IFERROR(I81*Оглавление!$E$23,"по запросу") -> 145678.792 | H81: =IFERROR(G81*(1-Оглавление!$D$30),"по запросу") -> 145678.792 | I81: 1453.3 | J81: шт | L81: 0 | M81: 0
B82: TKDIV016E | C82: Кран трехходовой ПВХ T-шар муфтовый EPDM 16 FIP | D82: 16 | E82: Арматура | F82: RUB | G82: =IFERROR(I82*Оглавление!$E$23,"по запросу") -> 9993.928 | H82: =IFERROR(G82*(1-Оглавление!$D$30),"по запросу") -> 9993.928 | I82: 99.7 | J82: шт | L82: 0 | M82: 0
B83: TKDIV020E | C83: Кран трехходовой ПВХ T-шар муфтовый EPDM 20 FIP | D83: 16 | E83: Арматура | F83: RUB | G83: =IFERROR(I83*Оглавление!$E$23,"по запросу") -> 10200.4224 | H83: =IFERROR(G83*(1-Оглавление!$D$30),"по запросу") -> 10200.4224 | I83: 101.76 | J83: шт | L83: 0 | M83: 0
B84: TKDIV025E | C84: Кран трехходовой ПВХ T-шар муфтовый EPDM 25 FIP | D84: 16 | E84: Арматура | F84: RUB | G84: =IFERROR(I84*Оглавление!$E$23,"по запросу") -> 11806.2672 | H84: =IFERROR(G84*(1-Оглавление!$D$30),"по запросу") -> 11806.2672 | I84: 117.78 | J84: шт | L84: 0 | M84: 0
B85: TKDIV032E | C85: Кран трехходовой ПВХ T-шар муфтовый EPDM 32 FIP | D85: 16 | E85: Арматура | F85: RUB | G85: =IFERROR(I85*Оглавление!$E$23,"по запросу") -> 14635.04 | H85: =IFERROR(G85*(1-Оглавление!$D$30),"по запросу") -> 14635.04 | I85: 146 | J85: шт | L85: 0 | M85: 0
B86: TKDIV040E | C86: Кран трехходовой ПВХ T-шар муфтовый EPDM 40 FIP | D86: 16 | E86: Арматура | F86: RUB | G86: =IFERROR(I86*Оглавление!$E$23,"по запросу") -> 17654.2688 | H86: =IFERROR(G86*(1-Оглавление!$D$30),"по запросу") -> 17654.2688 | I86: 176.12 | J86: шт | L86: 0 | M86: 0
B87: TKDIV050E | C87: Кран трехходовой ПВХ T-шар муфтовый EPDM 50 FIP | D87: 16 | E87: Арматура | F87: RUB | G87: =IFERROR(I87*Оглавление!$E$23,"по запросу") -> 21333.0768 | H87: =IFERROR(G87*(1-Оглавление!$D$30),"по запросу") -> 21333.0768 | I87: 212.82 | J87: шт | L87: 0 | M87: 0
B88: TKDIV063E | C88: Кран трехходовой ПВХ T-шар муфтовый EPDM 63 FIP | D88: 16 | E88: Арматура | F88: RUB | G88: =IFERROR(I88*Оглавление!$E$23,"по запросу") -> 26912.4352 | H88: =IFERROR(G88*(1-Оглавление!$D$30),"по запросу") -> 26912.4352 | I88: 268.48 | J88: шт | L88: 0 | M88: 0
B89: TKDIV016F | C89: Кран трехходовой ПВХ T-шар муфтовый FKM 16 FIP | D89: 16 | E89: Арматура | F89: RUB | G89: =IFERROR(I89*Оглавление!$E$23,"по запросу") -> 11295.0432 | H89: =IFERROR(G89*(1-Оглавление!$D$30),"по запросу") -> 11295.0432 | I89: 112.68 | J89: шт | L89: 0 | M89: 0
B90: TKDIV020F | C90: Кран трехходовой ПВХ T-шар муфтовый FKM 20 FIP | D90: 16 | E90: Арматура | F90: RUB | G90: =IFERROR(I90*Оглавление!$E$23,"по запросу") -> 11533.6144 | H90: =IFERROR(G90*(1-Оглавление!$D$30),"по запросу") -> 11533.6144 | I90: 115.06 | J90: шт | L90: 0 | M90: 0
B91: TKDIV025F | C91: Кран трехходовой ПВХ T-шар муфтовый FKM 25 FIP | D91: 16 | E91: Арматура | F91: RUB | G91: =IFERROR(I91*Оглавление!$E$23,"по запросу") -> 13576.5056 | H91: =IFERROR(G91*(1-Оглавление!$D$30),"по запросу") -> 13576.5056 | I91: 135.44 | J91: шт | L91: 0 | M91: 0
B92: TKDIV032F | C92: Кран трехходовой ПВХ T-шар муфтовый FKM 32 FIP | D92: 16 | E92: Арматура | F92: RUB | G92: =IFERROR(I92*Оглавление!$E$23,"по запросу") -> 16830.296 | H92: =IFERROR(G92*(1-Оглавление!$D$30),"по запросу") -> 16830.296 | I92: 167.9 | J92: шт | L92: 0 | M92: 0
B93: TKDIV040F | C93: Кран трехходовой ПВХ T-шар муфтовый FKM 40 FIP | D93: 16 | E93: Арматура | F93: RUB | G93: =IFERROR(I93*Оглавление!$E$23,"по запросу") -> 20837.8912 | H93: =IFERROR(G93*(1-Оглавление!$D$30),"по запросу") -> 20837.8912 | I93: 207.88 | J93: шт | L93: 0 | M93: 0
B94: TKDIV050F | C94: Кран трехходовой ПВХ T-шар муфтовый FKM 50 FIP | D94: 16 | E94: Арматура | F94: RUB | G94: =IFERROR(I94*Оглавление!$E$23,"по запросу") -> 26667.8496 | H94: =IFERROR(G94*(1-Оглавление!$D$30),"по запросу") -> 26667.8496 | I94: 266.04 | J94: шт | L94: 0 | M94: 0
B95: TKDIV063F | C95: Кран трехходовой ПВХ T-шар муфтовый FKM 63 FIP | D95: 16 | E95: Арматура | F95: RUB | G95: =IFERROR(I95*Оглавление!$E$23,"по запросу") -> 33648.5632 | H95: =IFERROR(G95*(1-Оглавление!$D$30),"по запросу") -> 33648.5632 | I95: 335.68 | J95: шт | L95: 0 | M95: 0
B96: TKDFV038E | C96: Кран трехходовой ПВХ T-шар резьбовой EPDM 3/8" FIP | D96: 16 | E96: Арматура | F96: RUB | G96: =IFERROR(I96*Оглавление!$E$23,"по запросу") -> 10994.3232 | H96: =IFERROR(G96*(1-Оглавление!$D$30),"по запросу") -> 10994.3232 | I96: 109.68 | J96: шт | L96: 0 | M96: 0
B97: TKDFV012E | C97: Кран трехходовой ПВХ T-шар резьбовой EPDM 1/2" FIP | D97: 16 | E97: Арматура | F97: RUB | G97: =IFERROR(I97*Оглавление!$E$23,"по запросу") -> 11220.8656 | H97: =IFERROR(G97*(1-Оглавление!$D$30),"по запросу") -> 11220.8656 | I97: 111.94 | J97: шт | L97: 0 | M97: 0
B98: TKDFV034E | C98: Кран трехходовой ПВХ T-шар резьбовой EPDM 3/4" FIP | D98: 16 | E98: Арматура | F98: RUB | G98: =IFERROR(I98*Оглавление!$E$23,"по запросу") -> 12991.104 | H98: =IFERROR(G98*(1-Оглавление!$D$30),"по запросу") -> 12991.104 | I98: 129.6 | J98: шт | L98: 0 | M98: 0
B99: TKDFV100E | C99: Кран трехходовой ПВХ T-шар резьбовой EPDM 1" FIP | D99: 16 | E99: Арматура | F99: RUB | G99: =IFERROR(I99*Оглавление!$E$23,"по запросу") -> 16104.5584 | H99: =IFERROR(G99*(1-Оглавление!$D$30),"по запросу") -> 16104.5584 | I99: 160.66 | J99: шт | L99: 0 | M99: 0
B100: TKDFV114E | C100: Кран трехходовой ПВХ T-шар резьбовой EPDM 1 1/4" FIP | D100: 16 | E100: Арматура | F100: RUB | G100: =IFERROR(I100*Оглавление!$E$23,"по запросу") -> 19424.5072 | H100: =IFERROR(G100*(1-Оглавление!$D$30),"по запросу") -> 19424.5072 | I100: 193.78 | J100: шт | L100: 0 | M100: 0
B101: TKDFV112E | C101: Кран трехходовой ПВХ T-шар резьбовой EPDM 1 1/2" FIP | D101: 16 | E101: Арматура | F101: RUB | G101: =IFERROR(I101*Оглавление!$E$23,"по запросу") -> 23466.184 | H101: =IFERROR(G101*(1-Оглавление!$D$30),"по запросу") -> 23466.184 | I101: 234.1 | J101: шт | L101: 0 | M101: 0
B102: TKDFV200E | C102: Кран трехходовой ПВХ T-шар резьбовой EPDM 2" FIP | D102: 16 | E102: Арматура | F102: RUB | G102: =IFERROR(I102*Оглавление!$E$23,"по запросу") -> 29606.8864 | H102: =IFERROR(G102*(1-Оглавление!$D$30),"по запросу") -> 29606.8864 | I102: 295.36 | J102: шт | L102: 0 | M102: 0
B103: TKDFV038F | C103: Кран трехходовой ПВХ T-шар резьбовой FKM 3/8" FIP | D103: 16 | E103: Арматура | F103: RUB | G103: =IFERROR(I103*Оглавление!$E$23,"по запросу") -> 12295.4384 | H103: =IFERROR(G103*(1-Оглавление!$D$30),"по запросу") -> 12295.4384 | I103: 122.66 | J103: шт | L103: 0 | M103: 0
B104: TKDFV012F | C104: Кран трехходовой ПВХ T-шар резьбовой FKM 1/2" FIP | D104: 16 | E104: Арматура | F104: RUB | G104: =IFERROR(I104*Оглавление!$E$23,"по запросу") -> 12546.0384 | H104: =IFERROR(G104*(1-Оглавление!$D$30),"по запросу") -> 12546.0384 | I104: 125.16 | J104: шт | L104: 0 | M104: 0
B105: TKDFV034F | C105: Кран трехходовой ПВХ T-шар резьбовой FKM 3/4" FIP | D105: 16 | E105: Арматура | F105: RUB | G105: =IFERROR(I105*Оглавление!$E$23,"по запросу") -> 14761.3424 | H105: =IFERROR(G105*(1-Оглавление!$D$30),"по запросу") -> 14761.3424 | I105: 147.26 | J105: шт | L105: 0 | M105: 0
B106: TKDFV100F | C106: Кран трехходовой ПВХ T-шар резьбовой FKM 1" FIP | D106: 16 | E106: Арматура | F106: RUB | G106: =IFERROR(I106*Оглавление!$E$23,"по запросу") -> 18291.7952 | H106: =IFERROR(G106*(1-Оглавление!$D$30),"по запросу") -> 18291.7952 | I106: 182.48 | J106: шт | L106: 0 | M106: 0
B107: TKDFV114F | C107: Кран трехходовой ПВХ T-шар резьбовой FKM 1 1/4" FIP | D107: 16 | E107: Арматура | F107: RUB | G107: =IFERROR(I107*Оглавление!$E$23,"по запросу") -> 22602.1152 | H107: =IFERROR(G107*(1-Оглавление!$D$30),"по запросу") -> 22602.1152 | I107: 225.48 | J107: шт | L107: 0 | M107: 0
B108: TKDFV112F | C108: Кран трехходовой ПВХ T-шар резьбовой FKM 1 1/2" FIP | D108: 16 | E108: Арматура | F108: RUB | G108: =IFERROR(I108*Оглавление!$E$23,"по запросу") -> 28800.9568 | H108: =IFERROR(G108*(1-Оглавление!$D$30),"по запросу") -> 28800.9568 | I108: 287.32 | J108: шт | L108: 0 | M108: 0
B109: TKDFV200F | C109: Кран трехходовой ПВХ T-шар резьбовой FKM 2" FIP | D109: 16 | E109: Арматура | F109: RUB | G109: =IFERROR(I109*Оглавление!$E$23,"по запросу") -> 36343.0144 | H109: =IFERROR(G109*(1-Оглавление!$D$30),"по запросу") -> 36343.0144 | I109: 362.56 | J109: шт | L109: 0 | M109: 0
B110: FEOVLM050E | C110: Затвор дисковый ПВХ с рукояткой общего применения 50 (DN40) EPDM FIP | D110: 16 | E110: Арматура | F110: RUB | G110: =IFERROR(I110*Оглавление!$E$23,"по запросу") -> 11746.1232 | H110: =IFERROR(G110*(1-Оглавление!$D$30),"по запросу") -> 11746.1232 | I110: 117.18 | J110: шт | L110: 0 | M110: 0
B111: FEOVLM063E | C111: Затвор дисковый ПВХ с рукояткой общего применения 63 (DN50) EPDM FIP | D111: 16 | E111: Арматура | F111: RUB | G111: =IFERROR(I111*Оглавление!$E$23,"по запросу") -> 12395.6784 | H111: =IFERROR(G111*(1-Оглавление!$D$30),"по запросу") -> 12395.6784 | I111: 123.66 | J111: шт | L111: 0 | M111: 0
B112: FEOVLM075E | C112: Затвор дисковый ПВХ с рукояткой общего применения 75 (DN65) EPDM FIP | D112: 10 | E112: Арматура | F112: RUB | G112: =IFERROR(I112*Оглавление!$E$23,"по запросу") -> 12752.5328 | H112: =IFERROR(G112*(1-Оглавление!$D$30),"по запросу") -> 12752.5328 | I112: 127.22 | J112: шт | L112: 0 | M112: 0
B113: FEOVLM090E | C113: Затвор дисковый ПВХ с рукояткой общего применения 90 (DN80) EPDM FIP | D113: 10 | E113: Арматура | F113: RUB | G113: =IFERROR(I113*Оглавление!$E$23,"по запросу") -> 14635.04 | H113: =IFERROR(G113*(1-Оглавление!$D$30),"по запросу") -> 14635.04 | I113: 146 | J113: шт | L113: 0 | M113: 0
B114: FEOVLM110E | C114: Затвор дисковый ПВХ с рукояткой общего применения 110 (DN100) EPDM FIP | D114: 10 | E114: Арматура | F114: RUB | G114: =IFERROR(I114*Оглавление!$E$23,"по запросу") -> 16311.0528 | H114: =IFERROR(G114*(1-Оглавление!$D$30),"по запросу") -> 16311.0528 | I114: 162.72 | J114: шт | L114: 0 | M114: 0
B115: FEOVLM140E | C115: Затвор дисковый ПВХ с рукояткой общего применения 140 (DN125) EPDM FIP | D115: 10 | E115: Арматура | F115: RUB | G115: =IFERROR(I115*Оглавление!$E$23,"по запросу") -> 18500.2944 | H115: =IFERROR(G115*(1-Оглавление!$D$30),"по запросу") -> 18500.2944 | I115: 184.56 | J115: шт | L115: 0 | M115: 0
B116: FEOVLM160E | C116: Затвор дисковый ПВХ с рукояткой общего применения 160 (DN150) EPDM FIP | D116: 10 | E116: Арматура | F116: RUB | G116: =IFERROR(I116*Оглавление!$E$23,"по запросу") -> 22676.2928 | H116: =IFERROR(G116*(1-Оглавление!$D$30),"по запросу") -> 22676.2928 | I116: 226.22 | J116: шт | L116: 0 | M116: 0
B117: FEOVLM225E | C117: Затвор дисковый ПВХ с рукояткой общего применения 225 (DN200) EPDM FIP | D117: 10 | E117: Арматура | F117: RUB | G117: =IFERROR(I117*Оглавление!$E$23,"по запросу") -> 39931.6064 | H117: =IFERROR(G117*(1-Оглавление!$D$30),"по запросу") -> 39931.6064 | I117: 398.36 | J117: шт | L117: 0 | M117: 0
B118: FEOVLM050F | C118: Затвор дисковый ПВХ с рукояткой общего применения 50 (DN40) FKM FIP | D118: 16 | E118: Арматура | F118: RUB | G118: =IFERROR(I118*Оглавление!$E$23,"по запросу") -> 20577.2672 | H118: =IFERROR(G118*(1-Оглавление!$D$30),"по запросу") -> 20577.2672 | I118: 205.28 | J118: шт | L118: 0 | M118: 0
B119: FEOVLM063F | C119: Затвор дисковый ПВХ с рукояткой общего применения 63 (DN50) FKM FIP | D119: 16 | E119: Арматура | F119: RUB | G119: =IFERROR(I119*Оглавление!$E$23,"по запросу") -> 21695.9456 | H119: =IFERROR(G119*(1-Оглавление!$D$30),"по запросу") -> 21695.9456 | I119: 216.44 | J119: шт | L119: 0 | M119: 0
B120: FEOVLM075F | C120: Затвор дисковый ПВХ с рукояткой общего применения 75 (DN65) FKM FIP | D120: 10 | E120: Арматура | F120: RUB | G120: =IFERROR(I120*Оглавление!$E$23,"по запросу") -> 22371.5632 | H120: =IFERROR(G120*(1-Оглавление!$D$30),"по запросу") -> 22371.5632 | I120: 223.18 | J120: шт | L120: 0 | M120: 0
B121: FEOVLM090F | C121: Затвор дисковый ПВХ с рукояткой общего применения 90 (DN80) FKM FIP | D121: 10 | E121: Арматура | F121: RUB | G121: =IFERROR(I121*Оглавление!$E$23,"по запросу") -> 26762.0752 | H121: =IFERROR(G121*(1-Оглавление!$D$30),"по запросу") -> 26762.0752 | I121: 266.98 | J121: шт | L121: 0 | M121: 0
B122: FEOVLM110F | C122: Затвор дисковый ПВХ с рукояткой общего применения 110 (DN100) FKM FIP | D122: 10 | E122: Арматура | F122: RUB | G122: =IFERROR(I122*Оглавление!$E$23,"по запросу") -> 33233.5696 | H122: =IFERROR(G122*(1-Оглавление!$D$30),"по запросу") -> 33233.5696 | I122: 331.54 | J122: шт | L122: 0 | M122: 0
B123: FEOVLM140F | C123: Затвор дисковый ПВХ с рукояткой общего применения 140 (DN125) FKM FIP | D123: 10 | E123: Арматура | F123: RUB | G123: =IFERROR(I123*Оглавление!$E$23,"по запросу") -> 43480.1024 | H123: =IFERROR(G123*(1-Оглавление!$D$30),"по запросу") -> 43480.1024 | I123: 433.76 | J123: шт | L123: 0 | M123: 0
B124: FEOVLM160F | C124: Затвор дисковый ПВХ с рукояткой общего применения 160 (DN150) FKM FIP | D124: 10 | E124: Арматура | F124: RUB | G124: =IFERROR(I124*Оглавление!$E$23,"по запросу") -> 62818.4032 | H124: =IFERROR(G124*(1-Оглавление!$D$30),"по запросу") -> 62818.4032 | I124: 626.68 | J124: шт | L124: 0 | M124: 0
B125: FEOVLM225F | C125: Затвор дисковый ПВХ с рукояткой общего применения 225 (DN200) FKM FIP | D125: 10 | E125: Арматура | F125: RUB | G125: =IFERROR(I125*Оглавление!$E$23,"по запросу") -> 84708.8144 | H125: =IFERROR(G125*(1-Оглавление!$D$30),"по запросу") -> 84708.8144 | I125: 845.06 | J125: шт | L125: 0 | M125: 0
B126: FKOVLM050E | C126: Затвор дисковый ПВХ с рукояткой промышленный 50 (DN40) EPDM FIP | D126: 16 | E126: Арматура | F126: RUB | G126: =IFERROR(I126*Оглавление!$E$23,"по запросу") -> 25053.9856 | H126: =IFERROR(G126*(1-Оглавление!$D$30),"по запросу") -> 25053.9856 | I126: 249.94 | J126: шт | L126: 0 | M126: 0
B127: FKOVLM063E | C127: Затвор дисковый ПВХ с рукояткой промышленный 63 (DN50) EPDM FIP | D127: 16 | E127: Арматура | F127: RUB | G127: =IFERROR(I127*Оглавление!$E$23,"по запросу") -> 26529.5184 | H127: =IFERROR(G127*(1-Оглавление!$D$30),"по запросу") -> 26529.5184 | I127: 264.66 | J127: шт | L127: 0 | M127: 0
B128: FKOVLM075E | C128: Затвор дисковый ПВХ с рукояткой промышленный 75 (DN65) EPDM FIP | D128: 10 | E128: Арматура | F128: RUB | G128: =IFERROR(I128*Оглавление!$E$23,"по запросу") -> 29476.5744 | H128: =IFERROR(G128*(1-Оглавление!$D$30),"по запросу") -> 29476.5744 | I128: 294.06 | J128: шт | L128: 0 | M128: 0
B129: FKOVLM090E | C129: Затвор дисковый ПВХ с рукояткой промышленный 90 (DN80) EPDM FIP | D129: 10 | E129: Арматура | F129: RUB | G129: =IFERROR(I129*Оглавление!$E$23,"по запросу") -> 30932.0592 | H129: =IFERROR(G129*(1-Оглавление!$D$30),"по запросу") -> 30932.0592 | I129: 308.58 | J129: шт | L129: 0 | M129: 0
B130: FKOVLM110E | C130: Затвор дисковый ПВХ с рукояткой промышленный 110 (DN100) EPDM FIP | D130: 10 | E130: Арматура | F130: RUB | G130: =IFERROR(I130*Оглавление!$E$23,"по запросу") -> 33654.5776 | H130: =IFERROR(G130*(1-Оглавление!$D$30),"по запросу") -> 33654.5776 | I130: 335.74 | J130: шт | L130: 0 | M130: 0
B131: FKOVLM140E | C131: Затвор дисковый ПВХ с рукояткой промышленный 140 (DN125) EPDM FIP | D131: 10 | E131: Арматура | F131: RUB | G131: =IFERROR(I131*Оглавление!$E$23,"по запросу") -> 44731.0976 | H131: =IFERROR(G131*(1-Оглавление!$D$30),"по запросу") -> 44731.0976 | I131: 446.24 | J131: шт | L131: 0 | M131: 0
B132: FKOVLM160E | C132: Затвор дисковый ПВХ с рукояткой промышленный 160 (DN150) EPDM FIP | D132: 10 | E132: Арматура | F132: RUB | G132: =IFERROR(I132*Оглавление!$E$23,"по запросу") -> 48287.6128 | H132: =IFERROR(G132*(1-Оглавление!$D$30),"по запросу") -> 48287.6128 | I132: 481.72 | J132: шт | L132: 0 | M132: 0
B133: FKOVLM225E | C133: Затвор дисковый ПВХ с рукояткой промышленный 225 (DN200) EPDM FIP | D133: 10 | E133: Арматура | F133: RUB | G133: =IFERROR(I133*Оглавление!$E$23,"по запросу") -> 62499.64 | H133: =IFERROR(G133*(1-Оглавление!$D$30),"по запросу") -> 62499.64 | I133: 623.5 | J133: шт | L133: 0 | M133: 0
B134: FKOVLM050F | C134: Затвор дисковый ПВХ с рукояткой промышленный 50 (DN40) FKM FIP | D134: 16 | E134: Арматура | F134: RUB | G134: =IFERROR(I134*Оглавление!$E$23,"по запросу") -> 37050.7088 | H134: =IFERROR(G134*(1-Оглавление!$D$30),"по запросу") -> 37050.7088 | I134: 369.62 | J134: шт | L134: 0 | M134: 0
B135: FKOVLM063F | C135: Затвор дисковый ПВХ с рукояткой промышленный 63 (DN50) FKM FIP | D135: 16 | E135: Арматура | F135: RUB | G135: =IFERROR(I135*Оглавление!$E$23,"по запросу") -> 39227.9216 | H135: =IFERROR(G135*(1-Оглавление!$D$30),"по запросу") -> 39227.9216 | I135: 391.34 | J135: шт | L135: 0 | M135: 0
B136: FKOVLM075F | C136: Затвор дисковый ПВХ с рукояткой промышленный 75 (DN65) FKM FIP | D136: 10 | E136: Арматура | F136: RUB | G136: =IFERROR(I136*Оглавление!$E$23,"по запросу") -> 43586.3568 | H136: =IFERROR(G136*(1-Оглавление!$D$30),"по запросу") -> 43586.3568 | I136: 434.82 | J136: шт | L136: 0 | M136: 0
B137: FKOVLM090F | C137: Затвор дисковый ПВХ с рукояткой промышленный 90 (DN80) FKM FIP | D137: 10 | E137: Арматура | F137: RUB | G137: =IFERROR(I137*Оглавление!$E$23,"по запросу") -> 45675.3584 | H137: =IFERROR(G137*(1-Оглавление!$D$30),"по запросу") -> 45675.3584 | I137: 455.66 | J137: шт | L137: 0 | M137: 0
B138: FKOVLM110F | C138: Затвор дисковый ПВХ с рукояткой промышленный 110 (DN100) FKM FIP | D138: 10 | E138: Арматура | F138: RUB | G138: =IFERROR(I138*Оглавление!$E$23,"по запросу") -> 49440.3728 | H138: =IFERROR(G138*(1-Оглавление!$D$30),"по запросу") -> 49440.3728 | I138: 493.22 | J138: шт | L138: 0 | M138: 0
B139: FKOVLM140F | C139: Затвор дисковый ПВХ с рукояткой промышленный 140 (DN125) FKM FIP | D139: 10 | E139: Арматура | F139: RUB | G139: =IFERROR(I139*Оглавление!$E$23,"по запросу") -> 66156.3952 | H139: =IFERROR(G139*(1-Оглавление!$D$30),"по запросу") -> 66156.3952 | I139: 659.98 | J139: шт | L139: =IFERROR(K139*G139,"0 ₽") -> 0 | M139: =IFERROR(K139*H139,"0 ₽") -> 0
B140: FKOVLM160F | C140: Затвор дисковый ПВХ с рукояткой промышленный 160 (DN150) FKM FIP | D140: 10 | E140: Арматура | F140: RUB | G140: =IFERROR(I140*Оглавление!$E$23,"по запросу") -> 69191.6624 | H140: =IFERROR(G140*(1-Оглавление!$D$30),"по запросу") -> 69191.6624 | I140: 690.26 | J140: шт | L140: 0 | M140: 0
B141: FKOVLM225F | C141: Затвор дисковый ПВХ с рукояткой промышленный 225 (DN200) FKM FIP | D141: 10 | E141: Арматура | F141: RUB | G141: =IFERROR(I141*Оглавление!$E$23,"по запросу") -> 89778.9536 | H141: =IFERROR(G141*(1-Оглавление!$D$30),"по запросу") -> 89778.9536 | I141: 895.64 | J141: шт | L141: 0 | M141: 0
B142: FKOVRM050E | C142: Затвор дисковый ПВХ с редуктором промышленный 50 (DN40) EPDM FIP | D142: 16 | E142: Арматура | F142: RUB | G142: =IFERROR(I142*Оглавление!$E$23,"по запросу") -> 67729.23987 | H142: =IFERROR(G142*(1-Оглавление!$D$30),"по запросу") -> 67729.23987 | I142: 675.6707888 | J142: шт | L142: 0 | M142: 0
B143: FKOVRM063E | C143: Затвор дисковый ПВХ с редуктором промышленный 63 (DN50) EPDM FIP | D143: 16 | E143: Арматура | F143: RUB | G143: =IFERROR(I143*Оглавление!$E$23,"по запросу") -> 68978.30274 | H143: =IFERROR(G143*(1-Оглавление!$D$30),"по запросу") -> 68978.30274 | I143: 688.1315118 | J143: шт | L143: 0 | M143: 0
B144: FKOVRM075E | C144: Затвор дисковый ПВХ с редуктором промышленный 75 (DN65) EPDM FIP | D144: 10 | E144: Арматура | F144: RUB | G144: =IFERROR(I144*Оглавление!$E$23,"по запросу") -> 71493.1728 | H144: =IFERROR(G144*(1-Оглавление!$D$30),"по запросу") -> 71493.1728 | I144: 713.22 | J144: шт | L144: 0 | M144: 0
B145: FKOVRM090E | C145: Затвор дисковый ПВХ с редуктором промышленный 90 (DN80) EPDM FIP | D145: 10 | E145: Арматура | F145: RUB | G145: =IFERROR(I145*Оглавление!$E$23,"по запросу") -> 73056.9168 | H145: =IFERROR(G145*(1-Оглавление!$D$30),"по запросу") -> 73056.9168 | I145: 728.82 | J145: шт | L145: 0 | M145: 0
B146: FKOVRM110E | C146: Затвор дисковый ПВХ с редуктором промышленный 110 (DN100) EPDM FIP | D146: 10 | E146: Арматура | F146: RUB | G146: =IFERROR(I146*Оглавление!$E$23,"по запросу") -> 75669.1712 | H146: =IFERROR(G146*(1-Оглавление!$D$30),"по запросу") -> 75669.1712 | I146: 754.88 | J146: шт | L146: 0 | M146: 0
B147: FKOVRM140E | C147: Затвор дисковый ПВХ с редуктором промышленный 140 (DN125) EPDM FIP | D147: 10 | E147: Арматура | F147: RUB | G147: =IFERROR(I147*Оглавление!$E$23,"по запросу") -> 86751.7056 | H147: =IFERROR(G147*(1-Оглавление!$D$30),"по запросу") -> 86751.7056 | I147: 865.44 | J147: шт | L147: 0 | M147: 0
B148: FKOVRM160E | C148: Затвор дисковый ПВХ с редуктором промышленный 160 (DN150) EPDM FIP | D148: 10 | E148: Арматура | F148: RUB | G148: =IFERROR(I148*Оглавление!$E$23,"по запросу") -> 90306.216 | H148: =IFERROR(G148*(1-Оглавление!$D$30),"по запросу") -> 90306.216 | I148: 900.9 | J148: шт | L148: 0 | M148: 0
B149: FKOVRM225E | C149: Затвор дисковый ПВХ с редуктором промышленный 225 (DN200) EPDM FIP | D149: 10 | E149: Арматура | F149: RUB | G149: =IFERROR(I149*Оглавление!$E$23,"по запросу") -> 114027.0096 | H149: =IFERROR(G149*(1-Оглавление!$D$30),"по запросу") -> 114027.0096 | I149: 1137.54 | J149: шт | L149: 0 | M149: 0
B150: FKOVRM280E | C150: Затвор дисковый ПВХ с редуктором промышленный 280 (DN250) EPDM FIP | D150: 10 | E150: Арматура | F150: RUB | G150: =IFERROR(I150*Оглавление!$E$23,"по запросу") -> 230080.872 | H150: =IFERROR(G150*(1-Оглавление!$D$30),"по запросу") -> 230080.872 | I150: 2295.3 | J150: шт | L150: 0 | M150: 0
B151: FKOVRM315E | C151: Затвор дисковый ПВХ с редуктором промышленный 315 (DN300) EPDM FIP | D151: 8 | E151: Арматура | F151: RUB | G151: =IFERROR(I151*Оглавление!$E$23,"по запросу") -> 247903.544 | H151: =IFERROR(G151*(1-Оглавление!$D$30),"по запросу") -> 247903.544 | I151: 2473.1 | J151: шт | L151: 0 | M151: 0
B152: FKOVRM355E | C152: Затвор дисковый ПВХ с редуктором промышленный 355 (DN350) EPDM FIP | D152: 7 | E152: Арматура | F152: RUB | G152: =IFERROR(I152*Оглавление!$E$23,"по запросу") -> 718488.5326 | H152: =IFERROR(G152*(1-Оглавление!$D$30),"по запросу") -> 718488.5326 | I152: 7167.682887 | J152: шт | L152: 0 | M152: 0
B153: FKOVRM400E | C153: Затвор дисковый ПВХ с редуктором промышленный 400 (DN400) EPDM FIP | D153: 6 | E153: Арматура | F153: RUB | G153: =IFERROR(I153*Оглавление!$E$23,"по запросу") -> 799101.2512 | H153: =IFERROR(G153*(1-Оглавление!$D$30),"по запросу") -> 799101.2512 | I153: 7971.88 | J153: шт | L153: 0 | M153: 0
B154: FKOVRM050F | C154: Затвор дисковый ПВХ с редуктором промышленный 50 (DN40) FKM FIP | D154: 16 | E154: Арматура | F154: RUB | G154: =IFERROR(I154*Оглавление!$E$23,"по запросу") -> по запросу | H154: =IFERROR(G154*(1-Оглавление!$D$30),"по запросу") -> по запросу | I154: по запросу | J154: шт | L154: 0 ₽ | M154: 0 ₽
B155: FKOVRM063F | C155: Затвор дисковый ПВХ с редуктором промышленный 63 (DN50) FKM FIP | D155: 16 | E155: Арматура | F155: RUB | G155: =IFERROR(I155*Оглавление!$E$23,"по запросу") -> по запросу | H155: =IFERROR(G155*(1-Оглавление!$D$30),"по запросу") -> по запросу | I155: по запросу | J155: шт | L155: 0 ₽ | M155: 0 ₽
B156: FKOVRM075F | C156: Затвор дисковый ПВХ с редуктором промышленный 75 (DN65) FKM FIP | D156: 10 | E156: Арматура | F156: RUB | G156: =IFERROR(I156*Оглавление!$E$23,"по запросу") -> по запросу | H156: =IFERROR(G156*(1-Оглавление!$D$30),"по запросу") -> по запросу | I156: по запросу | J156: шт | L156: 0 ₽ | M156: 0 ₽
B157: FKOVRM090F | C157: Затвор дисковый ПВХ с редуктором промышленный 90 (DN80) FKM FIP | D157: 10 | E157: Арматура | F157: RUB | G157: =IFERROR(I157*Оглавление!$E$23,"по запросу") -> 87787.03509 | H157: =IFERROR(G157*(1-Оглавление!$D$30),"по запросу") -> 87787.03509 | I157: 875.7685065 | J157: шт | L157: 0 | M157: 0
B158: FKOVRM110F | C158: Затвор дисковый ПВХ с редуктором промышленный 110 (DN100) FKM FIP | D158: 10 | E158: Арматура | F158: RUB | G158: =IFERROR(I158*Оглавление!$E$23,"по запросу") -> 91448.952 | H158: =IFERROR(G158*(1-Оглавление!$D$30),"по запросу") -> 91448.952 | I158: 912.3 | J158: шт | L158: 0 | M158: 0
B159: FKOVRM140F | C159: Затвор дисковый ПВХ с редуктором промышленный 140 (DN125) FKM FIP | D159: 10 | E159: Арматура | F159: RUB | G159: =IFERROR(I159*Оглавление!$E$23,"по запросу") -> 108172.9936 | H159: =IFERROR(G159*(1-Оглавление!$D$30),"по запросу") -> 108172.9936 | I159: 1079.14 | J159: шт | L159: 0 | M159: 0
B160: FKOVRM160F | C160: Затвор дисковый ПВХ с редуктором промышленный 160 (DN150) FKM FIP | D160: 10 | E160: Арматура | F160: RUB | G160: =IFERROR(I160*Оглавление!$E$23,"по запросу") -> 111206.256 | H160: =IFERROR(G160*(1-Оглавление!$D$30),"по запросу") -> 111206.256 | I160: 1109.4 | J160: шт | L160: 0 | M160: 0
B161: FKOVRM225F | C161: Затвор дисковый ПВХ с редуктором промышленный 225 (DN200) FKM FIP | D161: 10 | E161: Арматура | F161: RUB | G161: =IFERROR(I161*Оглавление!$E$23,"по запросу") -> 141308.328 | H161: =IFERROR(G161*(1-Оглавление!$D$30),"по запросу") -> 141308.328 | I161: 1409.7 | J161: шт | L161: 0 | M161: 0
B162: FKOVRM280F | C162: Затвор дисковый ПВХ с редуктором промышленный 280 (DN250) FKM FIP | D162: 10 | E162: Арматура | F162: RUB | G162: =IFERROR(I162*Оглавление!$E$23,"по запросу") -> 362995.1024 | H162: =IFERROR(G162*(1-Оглавление!$D$30),"по запросу") -> 362995.1024 | I162: 3621.26 | J162: шт | L162: 0 | M162: 0
B163: FKOVRM315F | C163: Затвор дисковый ПВХ с редуктором промышленный 315 (DN300) FKM FIP | D163: 8 | E163: Арматура | F163: RUB | G163: =IFERROR(I163*Оглавление!$E$23,"по запросу") -> 393927.1616 | H163: =IFERROR(G163*(1-Оглавление!$D$30),"по запросу") -> 393927.1616 | I163: 3929.84 | J163: шт | L163: 0 | M163: 0
B164: FKOVRM355F | C164: Затвор дисковый ПВХ с редуктором промышленный 355 (DN350) FKM FIP | D164: 7 | E164: Арматура | F164: RUB | G164: =IFERROR(I164*Оглавление!$E$23,"по запросу") -> по запросу | H164: =IFERROR(G164*(1-Оглавление!$D$30),"по запросу") -> по запросу | I164: по запросу | J164: шт | L164: 0 ₽ | M164: 0 ₽
B165: FKOVRM400F | C165: Затвор дисковый ПВХ с редуктором промышленный 400 (DN400) FKM FIP | D165: 6 | E165: Арматура | F165: RUB | G165: =IFERROR(I165*Оглавление!$E$23,"по запросу") -> по запросу | H165: =IFERROR(G165*(1-Оглавление!$D$30),"по запросу") -> по запросу | I165: по запросу | J165: шт | L165: 0 ₽ | M165: 0 ₽
B166: FKOVFM050E | C166: Затвор дисковый ПВХ под привод промышленный 50 (DN40) EPDM FIP | D166: 16 | E166: Арматура | F166: RUB | G166: =IFERROR(I166*Оглавление!$E$23,"по запросу") -> 21327.0624 | H166: =IFERROR(G166*(1-Оглавление!$D$30),"по запросу") -> 21327.0624 | I166: 212.76 | J166: шт | L166: 0 | M166: 0
B167: FKOVFM063E | C167: Затвор дисковый ПВХ под привод промышленный 63 (DN50) EPDM FIP | D167: 16 | E167: Арматура | F167: RUB | G167: =IFERROR(I167*Оглавление!$E$23,"по запросу") -> 22576.0528 | H167: =IFERROR(G167*(1-Оглавление!$D$30),"по запросу") -> 22576.0528 | I167: 225.22 | J167: шт | L167: 0 | M167: 0
B168: FKOVFM075E | C168: Затвор дисковый ПВХ под привод промышленный 75 (DN65) EPDM FIP | D168: 10 | E168: Арматура | F168: RUB | G168: =IFERROR(I168*Оглавление!$E$23,"по запросу") -> 25086.0624 | H168: =IFERROR(G168*(1-Оглавление!$D$30),"по запросу") -> 25086.0624 | I168: 250.26 | J168: шт | L168: 0 | M168: 0
B169: FKOVFM090E | C169: Затвор дисковый ПВХ под привод промышленный 90 (DN80) EPDM FIP | D169: 10 | E169: Арматура | F169: RUB | G169: =IFERROR(I169*Оглавление!$E$23,"по запросу") -> 27281.3184 | H169: =IFERROR(G169*(1-Оглавление!$D$30),"по запросу") -> 27281.3184 | I169: 272.16 | J169: шт | L169: 0 | M169: 0
B170: FKOVFM110E | C170: Затвор дисковый ПВХ под привод промышленный 110 (DN100) EPDM FIP | D170: 10 | E170: Арматура | F170: RUB | G170: =IFERROR(I170*Оглавление!$E$23,"по запросу") -> 29576.8144 | H170: =IFERROR(G170*(1-Оглавление!$D$30),"по запросу") -> 29576.8144 | I170: 295.06 | J170: шт | L170: 0 | M170: 0
B171: FKOVFM140E | C171: Затвор дисковый ПВХ под привод промышленный 140 (DN125) EPDM FIP | D171: 10 | E171: Арматура | F171: RUB | G171: =IFERROR(I171*Оглавление!$E$23,"по запросу") -> 39302.0992 | H171: =IFERROR(G171*(1-Оглавление!$D$30),"по запросу") -> 39302.0992 | I171: 392.08 | J171: шт | L171: 0 | M171: 0
B172: FKOVFM160E | C172: Затвор дисковый ПВХ под привод промышленный 160 (DN150) EPDM FIP | D172: 10 | E172: Арматура | F172: RUB | G172: =IFERROR(I172*Оглавление!$E$23,"по запросу") -> 43480.1024 | H172: =IFERROR(G172*(1-Оглавление!$D$30),"по запросу") -> 43480.1024 | I172: 433.76 | J172: шт | L172: 0 | M172: 0
B173: FKOVFM225E | C173: Затвор дисковый ПВХ под привод промышленный 225 (DN200) EPDM FIP | D173: 10 | E173: Арматура | F173: RUB | G173: =IFERROR(I173*Оглавление!$E$23,"по запросу") -> 56232.6352 | H173: =IFERROR(G173*(1-Оглавление!$D$30),"по запросу") -> 56232.6352 | I173: 560.98 | J173: шт | L173: 0 | M173: 0
B174: FKOVFM280E | C174: Затвор дисковый ПВХ под привод промышленный 280 (DN250) EPDM FIP | D174: 10 | E174: Арматура | F174: RUB | G174: =IFERROR(I174*Оглавление!$E$23,"по запросу") -> 197196.1376 | H174: =IFERROR(G174*(1-Оглавление!$D$30),"по запросу") -> 197196.1376 | I174: 1967.24 | J174: шт | L174: 0 | M174: 0
B175: FKOVFM315E | C175: Затвор дисковый ПВХ под привод промышленный 315 (DN300) EPDM FIP | D175: 8 | E175: Арматура | F175: RUB | G175: =IFERROR(I175*Оглавление!$E$23,"по запросу") -> 215014.8 | H175: =IFERROR(G175*(1-Оглавление!$D$30),"по запросу") -> 215014.8 | I175: 2145 | J175: шт | L175: 0 | M175: 0
B176: FKOVFM355E | C176: Затвор дисковый ПВХ под привод промышленный 355 (DN350) EPDM FIP | D176: 7 | E176: Арматура | F176: RUB | G176: =IFERROR(I176*Оглавление!$E$23,"по запросу") -> 582975.792 | H176: =IFERROR(G176*(1-Оглавление!$D$30),"по запросу") -> 582975.792 | I176: 5815.8 | J176: шт | L176: 0 | M176: 0
B177: FKOVFM400E | C177: Затвор дисковый ПВХ под привод промышленный 400 (DN400) EPDM FIP | D177: 6 | E177: Арматура | F177: RUB | G177: =IFERROR(I177*Оглавление!$E$23,"по запросу") -> 663593.0236 | H177: =IFERROR(G177*(1-Оглавление!$D$30),"по запросу") -> 663593.0236 | I177: 6620.042135 | J177: шт | L177: 0 | M177: 0
B178: FKOVFM050F | C178: Затвор дисковый ПВХ под привод промышленный 50 (DN40) FKM FIP | D178: 16 | E178: Арматура | F178: RUB | G178: =IFERROR(I178*Оглавление!$E$23,"по запросу") -> 33317.7712 | H178: =IFERROR(G178*(1-Оглавление!$D$30),"по запросу") -> 33317.7712 | I178: 332.38 | J178: шт | L178: 0 | M178: 0
B179: FKOVFM063F | C179: Затвор дисковый ПВХ под привод промышленный 63 (DN50) FKM FIP | D179: 16 | E179: Арматура | F179: RUB | G179: =IFERROR(I179*Оглавление!$E$23,"по запросу") -> 35280.4704 | H179: =IFERROR(G179*(1-Оглавление!$D$30),"по запросу") -> 35280.4704 | I179: 351.96 | J179: шт | L179: 0 | M179: 0
B180: FKOVFM075F | C180: Затвор дисковый ПВХ под привод промышленный 75 (DN65) FKM FIP | D180: 10 | E180: Арматура | F180: RUB | G180: =IFERROR(I180*Оглавление!$E$23,"по запросу") -> 39195.8448 | H180: =IFERROR(G180*(1-Оглавление!$D$30),"по запросу") -> 39195.8448 | I180: 391.02 | J180: шт | L180: 0 | M180: 0
B181: FKOVFM090F | C181: Затвор дисковый ПВХ под привод промышленный 90 (DN80) FKM FIP | D181: 10 | E181: Арматура | F181: RUB | G181: =IFERROR(I181*Оглавление!$E$23,"по запросу") -> 42014.5936 | H181: =IFERROR(G181*(1-Оглавление!$D$30),"по запросу") -> 42014.5936 | I181: 419.14 | J181: шт | L181: 0 | M181: 0
B182: FKOVFM110F | C182: Затвор дисковый ПВХ под привод промышленный 110 (DN100) FKM FIP | D182: 10 | E182: Арматура | F182: RUB | G182: =IFERROR(I182*Оглавление!$E$23,"по запросу") -> 45468.864 | H182: =IFERROR(G182*(1-Оглавление!$D$30),"по запросу") -> 45468.864 | I182: 453.6 | J182: шт | L182: 0 | M182: 0
B183: FKOVFM140F | C183: Затвор дисковый ПВХ под привод промышленный 140 (DN125) FKM FIP | D183: 10 | E183: Арматура | F183: RUB | G183: =IFERROR(I183*Оглавление!$E$23,"по запросу") -> 60827.6368 | H183: =IFERROR(G183*(1-Оглавление!$D$30),"по запросу") -> 60827.6368 | I183: 606.82 | J183: шт | L183: 0 | M183: 0
B184: FKOVFM160F | C184: Затвор дисковый ПВХ под привод промышленный 160 (DN150) FKM FIP | D184: 10 | E184: Арматура | F184: RUB | G184: =IFERROR(I184*Оглавление!$E$23,"по запросу") -> 65743.4064 | H184: =IFERROR(G184*(1-Оглавление!$D$30),"по запросу") -> 65743.4064 | I184: 655.86 | J184: шт | L184: 0 | M184: 0
B185: FKOVFM225F | C185: Затвор дисковый ПВХ под привод промышленный 225 (DN200) FKM FIP | D185: 10 | E185: Арматура | F185: RUB | G185: =IFERROR(I185*Оглавление!$E$23,"по запросу") -> 85288.2016 | H185: =IFERROR(G185*(1-Оглавление!$D$30),"по запросу") -> 85288.2016 | I185: 850.84 | J185: шт | L185: 0 | M185: 0
B186: FKOVFM280F | C186: Затвор дисковый ПВХ под привод промышленный 280 (DN250) FKM FIP | D186: 10 | E186: Арматура | F186: RUB | G186: =IFERROR(I186*Оглавление!$E$23,"по запросу") -> 331255.1088 | H186: =IFERROR(G186*(1-Оглавление!$D$30),"по запросу") -> 331255.1088 | I186: 3304.62 | J186: шт | L186: 0 | M186: 0
B187: FKOVFM315F | C187: Затвор дисковый ПВХ под привод промышленный 315 (DN300) FKM FIP | D187: 8 | E187: Арматура | F187: RUB | G187: =IFERROR(I187*Оглавление!$E$23,"по запросу") -> 361156.7008 | H187: =IFERROR(G187*(1-Оглавление!$D$30),"по запросу") -> 361156.7008 | I187: 3602.92 | J187: шт | L187: 0 | M187: 0
B188: FKOVFM355F | C188: Затвор дисковый ПВХ под привод промышленный 355 (DN350) FKM FIP | D188: 7 | E188: Арматура | F188: RUB | G188: =IFERROR(I188*Оглавление!$E$23,"по запросу") -> 1069139.056 | H188: =IFERROR(G188*(1-Оглавление!$D$30),"по запросу") -> 1069139.056 | I188: 10665.79266 | J188: шт | L188: 0 | M188: 0
B189: FKOVFM400F | C189: Затвор дисковый ПВХ под привод промышленный 400 (DN400) FKM FIP | D189: 6 | E189: Арматура | F189: RUB | G189: =IFERROR(I189*Оглавление!$E$23,"по запросу") -> по запросу | H189: =IFERROR(G189*(1-Оглавление!$D$30),"по запросу") -> по запросу | I189: по запросу | J189: шт | L189: 0 ₽ | M189: 0 ₽
B190: CROV050E | C190: Обратный клапан ПВХ межфланцевый EPDM 50 FIP | D190: 5 | E190: Арматура | F190: RUB | G190: =IFERROR(I190*Оглавление!$E$23,"по запросу") -> 14683.1552 | H190: =IFERROR(G190*(1-Оглавление!$D$30),"по запросу") -> 14683.1552 | I190: 146.48 | J190: шт | L190: 0 | M190: 0
B191: CROV063E | C191: Обратный клапан ПВХ межфланцевый EPDM 63 FIP | D191: 5 | E191: Арматура | F191: RUB | G191: =IFERROR(I191*Оглавление!$E$23,"по запросу") -> 17802.624 | H191: =IFERROR(G191*(1-Оглавление!$D$30),"по запросу") -> 17802.624 | I191: 177.6 | J191: шт | L191: 0 | M191: 0
B192: CROV075E | C192: Обратный клапан ПВХ межфланцевый EPDM 75 FIP | D192: 5 | E192: Арматура | F192: RUB | G192: =IFERROR(I192*Оглавление!$E$23,"по запросу") -> 19582.8864 | H192: =IFERROR(G192*(1-Оглавление!$D$30),"по запросу") -> 19582.8864 | I192: 195.36 | J192: шт | L192: 0 | M192: 0
B193: CROV090E | C193: Обратный клапан ПВХ межфланцевый EPDM 90 FIP | D193: 5 | E193: Арматура | F193: RUB | G193: =IFERROR(I193*Оглавление!$E$23,"по запросу") -> 23139.4016 | H193: =IFERROR(G193*(1-Оглавление!$D$30),"по запросу") -> 23139.4016 | I193: 230.84 | J193: шт | L193: 0 | M193: 0
B194: CROV110E | C194: Обратный клапан ПВХ межфланцевый EPDM 110 FIP | D194: 5 | E194: Арматура | F194: RUB | G194: =IFERROR(I194*Оглавление!$E$23,"по запросу") -> 28317.8 | H194: =IFERROR(G194*(1-Оглавление!$D$30),"по запросу") -> 28317.8 | I194: 282.5 | J194: шт | L194: 0 | M194: 0
B195: CROV140E | C195: Обратный клапан ПВХ межфланцевый EPDM 140 FIP | D195: 5 | E195: Арматура | F195: RUB | G195: =IFERROR(I195*Оглавление!$E$23,"по запросу") -> 32429.6448 | H195: =IFERROR(G195*(1-Оглавление!$D$30),"по запросу") -> 32429.6448 | I195: 323.52 | J195: шт | L195: 0 | M195: 0
B196: CROV160E | C196: Обратный клапан ПВХ межфланцевый EPDM 160 FIP | D196: 5 | E196: Арматура | F196: RUB | G196: =IFERROR(I196*Оглавление!$E$23,"по запросу") -> 39731.1264 | H196: =IFERROR(G196*(1-Оглавление!$D$30),"по запросу") -> 39731.1264 | I196: 396.36 | J196: шт | L196: 0 | M196: 0
B197: CROV225E | C197: Обратный клапан ПВХ межфланцевый EPDM 225 FIP | D197: 5 | E197: Арматура | F197: RUB | G197: =IFERROR(I197*Оглавление!$E$23,"по запросу") -> 46852.176 | H197: =IFERROR(G197*(1-Оглавление!$D$30),"по запросу") -> 46852.176 | I197: 467.4 | J197: шт | L197: 0 | M197: 0
B198: CROV280E | C198: Обратный клапан ПВХ межфланцевый EPDM 280 FIP | D198: 5 | E198: Арматура | F198: RUB | G198: =IFERROR(I198*Оглавление!$E$23,"по запросу") -> 79506.3584 | H198: =IFERROR(G198*(1-Оглавление!$D$30),"по запросу") -> 79506.3584 | I198: 793.16 | J198: шт | L198: 0 | M198: 0
B199: CROV315E | C199: Обратный клапан ПВХ межфланцевый EPDM 315 FIP | D199: 5 | E199: Арматура | F199: RUB | G199: =IFERROR(I199*Оглавление!$E$23,"по запросу") -> 119738.6848 | H199: =IFERROR(G199*(1-Оглавление!$D$30),"по запросу") -> 119738.6848 | I199: 1194.52 | J199: шт | L199: 0 | M199: 0
B200: SSEIV016E | C200: Обратный клапан ПВХ пружинный с муфтовыми окончаниями EPDM 16 FIP | D200: 16 | E200: Арматура | F200: RUB | G200: =IFERROR(I200*Оглавление!$E$23,"по запросу") -> 7718.48 | H200: =IFERROR(G200*(1-Оглавление!$D$30),"по запросу") -> 7718.48 | I200: 77 | J200: шт | L200: 0 | M200: 0
B201: SSEIV020E | C201: Обратный клапан ПВХ пружинный с муфтовыми окончаниями EPDM 20 FIP | D201: 16 | E201: Арматура | F201: RUB | G201: =IFERROR(I201*Оглавление!$E$23,"по запросу") -> 7754.5664 | H201: =IFERROR(G201*(1-Оглавление!$D$30),"по запросу") -> 7754.5664 | I201: 77.36 | J201: шт | L201: 0 | M201: 0
B202: SSEIV025E | C202: Обратный клапан ПВХ пружинный с муфтовыми окончаниями EPDM 25 FIP | D202: 16 | E202: Арматура | F202: RUB | G202: =IFERROR(I202*Оглавление!$E$23,"по запросу") -> 8961.456 | H202: =IFERROR(G202*(1-Оглавление!$D$30),"по запросу") -> 8961.456 | I202: 89.4 | J202: шт | L202: 0 | M202: 0
B203: SSEIV032E | C203: Обратный клапан ПВХ пружинный с муфтовыми окончаниями EPDM 32 FIP | D203: 16 | E203: Арматура | F203: RUB | G203: =IFERROR(I203*Оглавление!$E$23,"по запросу") -> 9512.776 | H203: =IFERROR(G203*(1-Оглавление!$D$30),"по запросу") -> 9512.776 | I203: 94.9 | J203: шт | L203: =IFERROR(K203*G203,"0 ₽") -> 0 | M203: =IFERROR(K203*H203,"0 ₽") -> 0
B204: SSEIV040E | C204: Обратный клапан ПВХ пружинный с муфтовыми окончаниями EPDM 40 FIP | D204: 16 | E204: Арматура | F204: RUB | G204: =IFERROR(I204*Оглавление!$E$23,"по запросу") -> 11844.3584 | H204: =IFERROR(G204*(1-Оглавление!$D$30),"по запросу") -> 11844.3584 | I204: 118.16 | J204: шт | L204: 0 | M204: 0
B205: SSEIV050E | C205: Обратный клапан ПВХ пружинный с муфтовыми окончаниями EPDM 50 FIP | D205: 16 | E205: Арматура | F205: RUB | G205: =IFERROR(I205*Оглавление!$E$23,"по запросу") -> 14570.8864 | H205: =IFERROR(G205*(1-Оглавление!$D$30),"по запросу") -> 14570.8864 | I205: 145.36 | J205: шт | L205: 0 | M205: 0
B206: SSEIV063E | C206: Обратный клапан ПВХ пружинный с муфтовыми окончаниями EPDM 63 FIP | D206: 16 | E206: Арматура | F206: RUB | G206: =IFERROR(I206*Оглавление!$E$23,"по запросу") -> 21170.688 | H206: =IFERROR(G206*(1-Оглавление!$D$30),"по запросу") -> 21170.688 | I206: 211.2 | J206: шт | L206: 0 | M206: 0
... 133 more rows

Sheet ХПВХ IPS
J1: =COUNT(K10:K552) -> 0 | K1: Товаров в заказе
J2: =SUM(M10:M45) -> 0 | K2: Сумма заказа со скидкой с НДС (трубы)
J3: =SUM(M46:M369) -> 0 | K3: Сумма заказа со скидкой с НДС (фитинги)
J4: =SUM(M370:M552) -> 0 | K4: Сумма заказа со скидкой с НДС (арматура)
J5: =SUM(M10:M552) -> 0 | K5: Сумма заказа со скидкой с НДС
A9: Фото | B9: Код | C9: Наименование | D9: PN | E9: Категория | F9: Валюта продажи | G9: Цена ПРОДАЖИ с НДС | H9: Цена с НДС со скидкой | I9: Цена EUR | J9: Ед. измерения | K9: Заказ (метры/штуки) | L9: Сумма рубли | M9: Сумма со скидкой
B10: PIPEC13016 | C10: Труба ХПВХ напорная клеевая PN16 16x1.4x5 м (поставляется под брендом FIP) | D10: 16 | E10: Трубы | F10: RUB | G10: =IFERROR(I10*Оглавление!$E$23,"по запросу") -> 673.6128 | H10: =IFERROR(G10*(1-Оглавление!$D$31),"по запросу") -> 673.6128 | I10: 6.72 | J10: м | L10: =IFERROR(K10*G10,"0 ₽") -> 0 | M10: =IFERROR(K10*H10,"0 ₽") -> 0
B11: IPIPEC16020 | C11: Труба ХПВХ напорная клеевая PN16 20x2.3x4 м IPS | D11: 16 | E11: Трубы | F11: RUB | G11: =IFERROR(I11*Оглавление!$E$23,"по запросу") -> 607.4544 | H11: =IFERROR(G11*(1-Оглавление!$D$31),"по запросу") -> 607.4544 | I11: 6.06 | J11: м | L11: 0 | M11: 0
B12: IPIPEC16025 | C12: Труба ХПВХ напорная клеевая PN16 25x2.8x4 м IPS | D12: 16 | E12: Трубы | F12: RUB | G12: =IFERROR(I12*Оглавление!$E$23,"по запросу") -> 933.2344 | H12: =IFERROR(G12*(1-Оглавление!$D$31),"по запросу") -> 933.2344 | I12: 9.31 | J12: м | L12: 0 | M12: 0
B13: IPIPEC16032 | C13: Труба ХПВХ напорная клеевая PN16 32x3.6x4 м IPS | D13: 16 | E13: Трубы | F13: RUB | G13: =IFERROR(I13*Оглавление!$E$23,"по запросу") -> 1369.2784 | H13: =IFERROR(G13*(1-Оглавление!$D$31),"по запросу") -> 1369.2784 | I13: 13.66 | J13: м | L13: 0 | M13: 0
B14: IPIPEC16040 | C14: Труба ХПВХ напорная клеевая PN16 40x3.0x4 м IPS | D14: 16 | E14: Трубы | F14: RUB | G14: =IFERROR(I14*Оглавление!$E$23,"по запросу") -> 1898.5456 | H14: =IFERROR(G14*(1-Оглавление!$D$31),"по запросу") -> 1898.5456 | I14: 18.94 | J14: м | L14: 0 | M14: 0
B15: IPIPEC16050 | C15: Труба ХПВХ напорная клеевая PN16 50x3.7x4 м IPS | D15: 16 | E15: Трубы | F15: RUB | G15: =IFERROR(I15*Оглавление!$E$23,"по запросу") -> 2884.9072 | H15: =IFERROR(G15*(1-Оглавление!$D$31),"по запросу") -> 2884.9072 | I15: 28.78 | J15: м | L15: 0 | M15: 0
B16: IPIPEC16063 | C16: Труба ХПВХ напорная клеевая PN16 63x4.7x4 м IPS | D16: 16 | E16: Трубы | F16: RUB | G16: =IFERROR(I16*Оглавление!$E$23,"по запросу") -> 4602.0184 | H16: =IFERROR(G16*(1-Оглавление!$D$31),"по запросу") -> 4602.0184 | I16: 45.91 | J16: м | L16: 0 | M16: 0
B17: IPIPEC16075 | C17: Труба ХПВХ напорная клеевая PN16 75x5.5x4 м IPS | D17: 16 | E17: Трубы | F17: RUB | G17: =IFERROR(I17*Оглавление!$E$23,"по запросу") -> 6499.5616 | H17: =IFERROR(G17*(1-Оглавление!$D$31),"по запросу") -> 6499.5616 | I17: 64.84 | J17: м | L17: 0 | M17: 0
B18: IPIPEC16090 | C18: Труба ХПВХ напорная клеевая PN16 90x6.6x4 м IPS | D18: 16 | E18: Трубы | F18: RUB | G18: =IFERROR(I18*Оглавление!$E$23,"по запросу") -> 9997.9376 | H18: =IFERROR(G18*(1-Оглавление!$D$31),"по запросу") -> 9997.9376 | I18: 99.74 | J18: м | L18: 0 | M18: 0
B19: IPIPEC16110 | C19: Труба ХПВХ напорная клеевая PN16 110x8.1x4 м IPS | D19: 16 | E19: Трубы | F19: RUB | G19: =IFERROR(I19*Оглавление!$E$23,"по запросу") -> 14918.7192 | H19: =IFERROR(G19*(1-Оглавление!$D$31),"по запросу") -> 14918.7192 | I19: 148.83 | J19: м | L19: 0 | M19: 0
B20: IPIPEC16140 | C20: Труба ХПВХ напорная клеевая PN16 140x10.3x4 м IPS | D20: 16 | E20: Трубы | F20: RUB | G20: =IFERROR(I20*Оглавление!$E$23,"по запросу") -> 21452.3624 | H20: =IFERROR(G20*(1-Оглавление!$D$31),"по запросу") -> 21452.3624 | I20: 214.01 | J20: м | L20: 0 | M20: 0
B21: IPIPEC16160 | C21: Труба ХПВХ напорная клеевая PN16 160x11.8x4 м IPS | D21: 16 | E21: Трубы | F21: RUB | G21: =IFERROR(I21*Оглавление!$E$23,"по запросу") -> 29571.8024 | H21: =IFERROR(G21*(1-Оглавление!$D$31),"по запросу") -> 29571.8024 | I21: 295.01 | J21: м | L21: 0 | M21: 0
B22: IPIPEC16225 | C22: Труба ХПВХ напорная клеевая PN16 225x16.6x4 м IPS | D22: 16 | E22: Трубы | F22: RUB | G22: =IFERROR(I22*Оглавление!$E$23,"по запросу") -> 55185.1272 | H22: =IFERROR(G22*(1-Оглавление!$D$31),"по запросу") -> 55185.1272 | I22: 550.53 | J22: м | L22: 0 | M22: 0
B23: IPIPEC16280 | C23: Труба ХПВХ напорная клеевая PN16 280x20.6x4 м IPS | D23: 16 | E23: Трубы | F23: RUB | G23: =IFERROR(I23*Оглавление!$E$23,"по запросу") -> 78293.4544 | H23: =IFERROR(G23*(1-Оглавление!$D$31),"по запросу") -> 78293.4544 | I23: 781.06 | J23: м | L23: 0 | M23: 0
B24: IPIPEC16315 | C24: Труба ХПВХ напорная клеевая PN16 315x23.2x4 м IPS | D24: 16 | E24: Трубы | F24: RUB | G24: =IFERROR(I24*Оглавление!$E$23,"по запросу") -> 99207.528 | H24: =IFERROR(G24*(1-Оглавление!$D$31),"по запросу") -> 99207.528 | I24: 989.7 | J24: м | L24: 0 | M24: 0
B25: IPIPEC16355 | C25: Труба ХПВХ напорная клеевая PN16 355x26.1x4 м IPS | D25: 16 | E25: Трубы | F25: RUB | G25: =IFERROR(I25*Оглавление!$E$23,"по запросу") -> 125720.0056 | H25: =IFERROR(G25*(1-Оглавление!$D$31),"по запросу") -> 125720.0056 | I25: 1254.19 | J25: м | L25: 0 | M25: 0
B26: IPIPEC16400 | C26: Труба ХПВХ напорная клеевая PN16 400x29.4x4 м IPS | D26: 16 | E26: Трубы | F26: RUB | G26: =IFERROR(I26*Оглавление!$E$23,"по запросу") -> 159618.1664 | H26: =IFERROR(G26*(1-Оглавление!$D$31),"по запросу") -> 159618.1664 | I26: 1592.36 | J26: м | L26: 0 | M26: 0
B27: IPIPEC10020 | C27: Труба ХПВХ напорная клеевая PN10 20x2.0x4 м IPS | D27: 10 | E27: Трубы | F27: RUB | G27: =IFERROR(I27*Оглавление!$E$23,"по запросу") -> 484.1592 | H27: =IFERROR(G27*(1-Оглавление!$D$31),"по запросу") -> 484.1592 | I27: 4.83 | J27: м | L27: =IFERROR(K27*G27,"0 ₽") -> 0 | M27: =IFERROR(K27*H27,"0 ₽") -> 0
B28: IPIPEC10025 | C28: Труба ХПВХ напорная клеевая PN10 25x2.0x4 м IPS | D28: 10 | E28: Трубы | F28: RUB | G28: =IFERROR(I28*Оглавление!$E$23,"по запросу") -> 626.5 | H28: =IFERROR(G28*(1-Оглавление!$D$31),"по запросу") -> 626.5 | I28: 6.25 | J28: м | L28: 0 | M28: 0
B29: IPIPEC10032 | C29: Труба ХПВХ напорная клеевая PN10 32x2.0x4 м IPS | D29: 10 | E29: Трубы | F29: RUB | G29: =IFERROR(I29*Оглавление!$E$23,"по запросу") -> 797.9104 | H29: =IFERROR(G29*(1-Оглавление!$D$31),"по запросу") -> 797.9104 | I29: 7.96 | J29: м | L29: 0 | M29: 0
B30: IPIPEC10040 | C30: Труба ХПВХ напорная клеевая PN10 40x2.0x4 м IPS | D30: 10 | E30: Трубы | F30: RUB | G30: =IFERROR(I30*Оглавление!$E$23,"по запросу") -> 1025.4552 | H30: =IFERROR(G30*(1-Оглавление!$D$31),"по запросу") -> 1025.4552 | I30: 10.23 | J30: м | L30: 0 | M30: 0
B31: IPIPEC10050 | C31: Труба ХПВХ напорная клеевая PN10 50x2.4x4 м IPS | D31: 10 | E31: Трубы | F31: RUB | G31: =IFERROR(I31*Оглавление!$E$23,"по запросу") -> 1538.684 | H31: =IFERROR(G31*(1-Оглавление!$D$31),"по запросу") -> 1538.684 | I31: 15.35 | J31: м | L31: 0 | M31: 0
B32: IPIPEC10063 | C32: Труба ХПВХ напорная клеевая PN10 63x3.0x4 м IPS | D32: 10 | E32: Трубы | F32: RUB | G32: =IFERROR(I32*Оглавление!$E$23,"по запросу") -> 2421.7984 | H32: =IFERROR(G32*(1-Оглавление!$D$31),"по запросу") -> 2421.7984 | I32: 24.16 | J32: м | L32: 0 | M32: 0
B33: IPIPEC10075 | C33: Труба ХПВХ напорная клеевая PN10 75x3.6x4 м IPS | D33: 10 | E33: Трубы | F33: RUB | G33: =IFERROR(I33*Оглавление!$E$23,"по запросу") -> 3447.2536 | H33: =IFERROR(G33*(1-Оглавление!$D$31),"по запросу") -> 3447.2536 | I33: 34.39 | J33: м | L33: 0 | M33: 0
B34: IPIPEC10090 | C34: Труба ХПВХ напорная клеевая PN10 90x4.3x4 м IPS | D34: 10 | E34: Трубы | F34: RUB | G34: =IFERROR(I34*Оглавление!$E$23,"по запросу") -> 4956.868 | H34: =IFERROR(G34*(1-Оглавление!$D$31),"по запросу") -> 4956.868 | I34: 49.45 | J34: м | L34: 0 | M34: 0
B35: IPIPEC10110 | C35: Труба ХПВХ напорная клеевая PN10 110x5.3x4 м IPS | D35: 10 | E35: Трубы | F35: RUB | G35: =IFERROR(I35*Оглавление!$E$23,"по запросу") -> 7435.8032 | H35: =IFERROR(G35*(1-Оглавление!$D$31),"по запросу") -> 7435.8032 | I35: 74.18 | J35: м | L35: 0 | M35: 0
B36: IPIPEC10140 | C36: Труба ХПВХ напорная клеевая PN10 140x6.7x4 м IPS | D36: 10 | E36: Трубы | F36: RUB | G36: =IFERROR(I36*Оглавление!$E$23,"по запросу") -> 11994.7184 | H36: =IFERROR(G36*(1-Оглавление!$D$31),"по запросу") -> 11994.7184 | I36: 119.66 | J36: м | L36: 0 | M36: 0
B37: IPIPEC10160 | C37: Труба ХПВХ напорная клеевая PN10 160x7.7x4 м IPS | D37: 10 | E37: Трубы | F37: RUB | G37: =IFERROR(I37*Оглавление!$E$23,"по запросу") -> 15726.6536 | H37: =IFERROR(G37*(1-Оглавление!$D$31),"по запросу") -> 15726.6536 | I37: 156.89 | J37: м | L37: 0 | M37: 0
B38: IPIPEC10225 | C38: Труба ХПВХ напорная клеевая PN10 225x10.8x4 м IPS | D38: 10 | E38: Трубы | F38: RUB | G38: =IFERROR(I38*Оглавление!$E$23,"по запросу") -> 34590.8192 | H38: =IFERROR(G38*(1-Оглавление!$D$31),"по запросу") -> 34590.8192 | I38: 345.08 | J38: м | L38: 0 | M38: 0
B39: IPIPEC10280 | C39: Труба ХПВХ напорная клеевая PN10 280x13.4x4 м IPS | D39: 10 | E39: Трубы | F39: RUB | G39: =IFERROR(I39*Оглавление!$E$23,"по запросу") -> 52340.316 | H39: =IFERROR(G39*(1-Оглавление!$D$31),"по запросу") -> 52340.316 | I39: 522.15 | J39: м | L39: 0 | M39: 0
B40: IPIPEC10315 | C40: Труба ХПВХ напорная клеевая PN10 315x15.0x4 м IPS | D40: 10 | E40: Трубы | F40: RUB | G40: =IFERROR(I40*Оглавление!$E$23,"по запросу") -> 65930.8552 | H40: =IFERROR(G40*(1-Оглавление!$D$31),"по запросу") -> 65930.8552 | I40: 657.73 | J40: м | L40: 0 | M40: 0
B41: IPIPEC10355 | C41: Труба ХПВХ напорная клеевая PN10 355x16.9x4 м IPS | D41: 10 | E41: Трубы | F41: RUB | G41: =IFERROR(I41*Оглавление!$E$23,"по запросу") -> 83689.3736 | H41: =IFERROR(G41*(1-Оглавление!$D$31),"по запросу") -> 83689.3736 | I41: 834.89 | J41: м | L41: 0 | M41: 0
B42: IPIPEC10400 | C42: Труба ХПВХ напорная клеевая PN10 400x19.1x4 м IPS | D42: 10 | E42: Трубы | F42: RUB | G42: =IFERROR(I42*Оглавление!$E$23,"по запросу") -> 106578.1752 | H42: =IFERROR(G42*(1-Оглавление!$D$31),"по запросу") -> 106578.1752 | I42: 1063.23 | J42: м | L42: 0 | M42: 0
B43: IPIPEC10450 | C43: Труба ХПВХ напорная клеевая PN10 450x21.5x4 м IPS | D43: 10 | E43: Трубы | F43: RUB | G43: =IFERROR(I43*Оглавление!$E$23,"по запросу") -> 134941.0832 | H43: =IFERROR(G43*(1-Оглавление!$D$31),"по запросу") -> 134941.0832 | I43: 1346.18 | J43: м | L43: 0 | M43: 0
B44: IPIPEC10500 | C44: Труба ХПВХ напорная клеевая PN10 500x23.9x4 м IPS | D44: 10 | E44: Трубы | F44: RUB | G44: =IFERROR(I44*Оглавление!$E$23,"по запросу") -> 166663.0336 | H44: =IFERROR(G44*(1-Оглавление!$D$31),"по запросу") -> 166663.0336 | I44: 1662.64 | J44: м | L44: 0 | M44: 0
B45: IPIPEC10630 | C45: Труба ХПВХ напорная клеевая PN10 630x30.0x4 м IPS | D45: 10 | E45: Трубы | F45: RUB | G45: =IFERROR(I45*Оглавление!$E$23,"по запросу") -> 263662.2744 | H45: =IFERROR(G45*(1-Оглавление!$D$31),"по запросу") -> 263662.2744 | I45: 2630.31 | J45: м | L45: 0 | M45: 0
B46: IGIC020 | C46: Отвод ХПВХ 90° клеевой 20 IPS | D46: 16 | E46: Фитинги | F46: RUB | G46: =IFERROR(I46*Оглавление!$E$23,"по запросу") -> 416.9984 | H46: =IFERROR(G46*(1-Оглавление!$D$32),"по запросу") -> 416.9984 | I46: 4.16 | J46: шт | L46: 0 | M46: =IFERROR(K46*H46,"0 ₽") -> 0
B47: IGIC025 | C47: Отвод ХПВХ 90° клеевой 25 IPS | D47: 16 | E47: Фитинги | F47: RUB | G47: =IFERROR(I47*Оглавление!$E$23,"по запросу") -> 523.2528 | H47: =IFERROR(G47*(1-Оглавление!$D$32),"по запросу") -> 523.2528 | I47: 5.22 | J47: шт | L47: =IFERROR(K47*G47,"0 ₽") -> 0 | M47: 0
B48: IGIC032 | C48: Отвод ХПВХ 90° клеевой 32 IPS | D48: 16 | E48: Фитинги | F48: RUB | G48: =IFERROR(I48*Оглавление!$E$23,"по запросу") -> 620.4856 | H48: =IFERROR(G48*(1-Оглавление!$D$32),"по запросу") -> 620.4856 | I48: 6.19 | J48: шт | L48: 0 | M48: 0
B49: IGIC040 | C49: Отвод ХПВХ 90° клеевой 40 IPS | D49: 16 | E49: Фитинги | F49: RUB | G49: =IFERROR(I49*Оглавление!$E$23,"по запросу") -> 811.944 | H49: =IFERROR(G49*(1-Оглавление!$D$32),"по запросу") -> 811.944 | I49: 8.1 | J49: шт | L49: 0 | M49: 0
B50: IGIC050 | C50: Отвод ХПВХ 90° клеевой 50 IPS | D50: 16 | E50: Фитинги | F50: RUB | G50: =IFERROR(I50*Оглавление!$E$23,"по запросу") -> 1413.384 | H50: =IFERROR(G50*(1-Оглавление!$D$32),"по запросу") -> 1413.384 | I50: 14.1 | J50: шт | L50: 0 | M50: 0
B51: IGIC063 | C51: Отвод ХПВХ 90° клеевой 63 IPS | D51: 16 | E51: Фитинги | F51: RUB | G51: =IFERROR(I51*Оглавление!$E$23,"по запросу") -> 1766.2288 | H51: =IFERROR(G51*(1-Оглавление!$D$32),"по запросу") -> 1766.2288 | I51: 17.62 | J51: шт | L51: 0 | M51: 0
B52: IGIC075 | C52: Отвод ХПВХ 90° клеевой 75 IPS | D52: 16 | E52: Фитинги | F52: RUB | G52: =IFERROR(I52*Оглавление!$E$23,"по запросу") -> 3371.0712 | H52: =IFERROR(G52*(1-Оглавление!$D$32),"по запросу") -> 3371.0712 | I52: 33.63 | J52: шт | L52: 0 | M52: 0
B53: IGIC090 | C53: Отвод ХПВХ 90° клеевой 90 IPS | D53: 16 | E53: Фитинги | F53: RUB | G53: =IFERROR(I53*Оглавление!$E$23,"по запросу") -> 4514.8096 | H53: =IFERROR(G53*(1-Оглавление!$D$32),"по запросу") -> 4514.8096 | I53: 45.04 | J53: шт | L53: 0 | M53: 0
B54: IGIC110 | C54: Отвод ХПВХ 90° клеевой 110 IPS | D54: 16 | E54: Фитинги | F54: RUB | G54: =IFERROR(I54*Оглавление!$E$23,"по запросу") -> 8279.824 | H54: =IFERROR(G54*(1-Оглавление!$D$32),"по запросу") -> 8279.824 | I54: 82.6 | J54: шт | L54: 0 | M54: 0
B55: IGIC140 | C55: Отвод ХПВХ 90° клеевой 140 IPS | D55: 16 | E55: Фитинги | F55: RUB | G55: =IFERROR(I55*Оглавление!$E$23,"по запросу") -> 16889.4376 | H55: =IFERROR(G55*(1-Оглавление!$D$32),"по запросу") -> 16889.4376 | I55: 168.49 | J55: шт | L55: 0 | M55: 0
B56: IGIC160 | C56: Отвод ХПВХ 90° клеевой 160 IPS | D56: 16 | E56: Фитинги | F56: RUB | G56: =IFERROR(I56*Оглавление!$E$23,"по запросу") -> 20692.5432 | H56: =IFERROR(G56*(1-Оглавление!$D$32),"по запросу") -> 20692.5432 | I56: 206.43 | J56: шт | L56: 0 | M56: 0
B57: IGIC225 | C57: Отвод ХПВХ 90° клеевой 225 IPS | D57: 16 | E57: Фитинги | F57: RUB | G57: =IFERROR(I57*Оглавление!$E$23,"по запросу") -> 69098.4392 | H57: =IFERROR(G57*(1-Оглавление!$D$32),"по запросу") -> 69098.4392 | I57: 689.33 | J57: шт | L57: 0 | M57: 0
B58: IGIC280 | C58: Отвод ХПВХ 90° клеевой 280 IPS | D58: 10 | E58: Фитинги | F58: RUB | G58: =IFERROR(I58*Оглавление!$E$23,"по запросу") -> 92689.9232 | H58: =IFERROR(G58*(1-Оглавление!$D$32),"по запросу") -> 92689.9232 | I58: 924.68 | J58: шт | L58: =IFERROR(K58*G58,"0 ₽") -> 0 | M58: =IFERROR(K58*H58,"0 ₽") -> 0
B59: IGIC315 | C59: Отвод ХПВХ 90° клеевой 315 IPS | D59: 10 | E59: Фитинги | F59: RUB | G59: =IFERROR(I59*Оглавление!$E$23,"по запросу") -> 146238.1312 | H59: =IFERROR(G59*(1-Оглавление!$D$32),"по запросу") -> 146238.1312 | I59: 1458.88 | J59: шт | L59: 0 | M59: 0
B60: IGIC355 | C60: Отвод ХПВХ 90° клеевой 355 IPS | D60: 10 | E60: Фитинги | F60: RUB | G60: =IFERROR(I60*Оглавление!$E$23,"по запросу") -> 280950.6672 | H60: =IFERROR(G60*(1-Оглавление!$D$32),"по запросу") -> 280950.6672 | I60: 2802.78 | J60: шт | L60: 0 | M60: 0
B61: IGIC400 | C61: Отвод ХПВХ 90° клеевой 400 IPS | D61: 10 | E61: Фитинги | F61: RUB | G61: =IFERROR(I61*Оглавление!$E$23,"по запросу") -> 333971.6128 | H61: =IFERROR(G61*(1-Оглавление!$D$32),"по запросу") -> 333971.6128 | I61: 3331.72 | J61: шт | L61: 0 | M61: 0
B62: IGIC450 | C62: Отвод ХПВХ 90° клеевой 450 IPS | D62: 10 | E62: Фитинги | F62: RUB | G62: =IFERROR(I62*Оглавление!$E$23,"по запросу") -> 576308.8296 | H62: =IFERROR(G62*(1-Оглавление!$D$32),"по запросу") -> 576308.8296 | I62: 5749.29 | J62: шт | L62: 0 | M62: 0
B63: IGIC500 | C63: Отвод ХПВХ 90° клеевой 500 IPS | D63: 10 | E63: Фитинги | F63: RUB | G63: =IFERROR(I63*Оглавление!$E$23,"по запросу") -> 753043.9784 | H63: =IFERROR(G63*(1-Оглавление!$D$32),"по запросу") -> 753043.9784 | I63: 7512.41 | J63: шт | L63: 0 | M63: 0
B64: IGIC630 | C64: Отвод ХПВХ 90° клеевой 630 IPS | D64: 10 | E64: Фитинги | F64: RUB | G64: =IFERROR(I64*Оглавление!$E$23,"по запросу") -> 1029672.297 | H64: =IFERROR(G64*(1-Оглавление!$D$32),"по запросу") -> 1029672.297 | I64: 10272.07 | J64: шт | L64: 0 | M64: 0
B65: IHIC020 | C65: Отвод ХПВХ 45° клеевой 20 IPS | D65: 16 | E65: Фитинги | F65: RUB | G65: =IFERROR(I65*Оглавление!$E$23,"по запросу") -> 498.1928 | H65: =IFERROR(G65*(1-Оглавление!$D$32),"по запросу") -> 498.1928 | I65: 4.97 | J65: шт | L65: 0 | M65: 0
B66: IHIC025 | C66: Отвод ХПВХ 45° клеевой 25 IPS | D66: 16 | E66: Фитинги | F66: RUB | G66: =IFERROR(I66*Оглавление!$E$23,"по запросу") -> 696.668 | H66: =IFERROR(G66*(1-Оглавление!$D$32),"по запросу") -> 696.668 | I66: 6.95 | J66: шт | L66: 0 | M66: 0
B67: IHIC032 | C67: Отвод ХПВХ 45° клеевой 32 IPS | D67: 16 | E67: Фитинги | F67: RUB | G67: =IFERROR(I67*Оглавление!$E$23,"по запросу") -> 846.0256 | H67: =IFERROR(G67*(1-Оглавление!$D$32),"по запросу") -> 846.0256 | I67: 8.44 | J67: шт | L67: 0 | M67: 0
B68: IHIC040 | C68: Отвод ХПВХ 45° клеевой 40 IPS | D68: 16 | E68: Фитинги | F68: RUB | G68: =IFERROR(I68*Оглавление!$E$23,"по запросу") -> 1224.9328 | H68: =IFERROR(G68*(1-Оглавление!$D$32),"по запросу") -> 1224.9328 | I68: 12.22 | J68: шт | L68: 0 | M68: 0
B69: IHIC050 | C69: Отвод ХПВХ 45° клеевой 50 IPS | D69: 16 | E69: Фитинги | F69: RUB | G69: =IFERROR(I69*Оглавление!$E$23,"по запросу") -> 1956.6848 | H69: =IFERROR(G69*(1-Оглавление!$D$32),"по запросу") -> 1956.6848 | I69: 19.52 | J69: шт | L69: 0 | M69: 0
B70: IHIC063 | C70: Отвод ХПВХ 45° клеевой 63 IPS | D70: 16 | E70: Фитинги | F70: RUB | G70: =IFERROR(I70*Оглавление!$E$23,"по запросу") -> 2991.1616 | H70: =IFERROR(G70*(1-Оглавление!$D$32),"по запросу") -> 2991.1616 | I70: 29.84 | J70: шт | L70: 0 | M70: 0
B71: IHIC075 | C71: Отвод ХПВХ 45° клеевой 75 IPS | D71: 16 | E71: Фитинги | F71: RUB | G71: =IFERROR(I71*Оглавление!$E$23,"по запросу") -> 4607.0304 | H71: =IFERROR(G71*(1-Оглавление!$D$32),"по запросу") -> 4607.0304 | I71: 45.96 | J71: шт | L71: 0 | M71: 0
B72: IHIC090 | C72: Отвод ХПВХ 45° клеевой 90 IPS | D72: 16 | E72: Фитинги | F72: RUB | G72: =IFERROR(I72*Оглавление!$E$23,"по запросу") -> 6824.3392 | H72: =IFERROR(G72*(1-Оглавление!$D$32),"по запросу") -> 6824.3392 | I72: 68.08 | J72: шт | L72: 0 | M72: 0
B73: IHIC110 | C73: Отвод ХПВХ 45° клеевой 110 IPS | D73: 16 | E73: Фитинги | F73: RUB | G73: =IFERROR(I73*Оглавление!$E$23,"по запросу") -> 11119.6232 | H73: =IFERROR(G73*(1-Оглавление!$D$32),"по запросу") -> 11119.6232 | I73: 110.93 | J73: шт | L73: 0 | M73: 0
B74: IHIC140 | C74: Отвод ХПВХ 45° клеевой 140 IPS | D74: 16 | E74: Фитинги | F74: RUB | G74: =IFERROR(I74*Оглавление!$E$23,"по запросу") -> 27772.4944 | H74: =IFERROR(G74*(1-Оглавление!$D$32),"по запросу") -> 27772.4944 | I74: 277.06 | J74: шт | L74: 0 | M74: 0
B75: IHIC160 | C75: Отвод ХПВХ 45° клеевой 160 IPS | D75: 16 | E75: Фитинги | F75: RUB | G75: =IFERROR(I75*Оглавление!$E$23,"по запросу") -> 34645.9512 | H75: =IFERROR(G75*(1-Оглавление!$D$32),"по запросу") -> 34645.9512 | I75: 345.63 | J75: шт | L75: 0 | M75: 0
B76: IHIC225 | C76: Отвод ХПВХ 45° клеевой 225 IPS | D76: 16 | E76: Фитинги | F76: RUB | G76: =IFERROR(I76*Оглавление!$E$23,"по запросу") -> 91781.7488 | H76: =IFERROR(G76*(1-Оглавление!$D$32),"по запросу") -> 91781.7488 | I76: 915.62 | J76: шт | L76: 0 | M76: 0
B77: IHIC280 | C77: Отвод ХПВХ 45° клеевой 280 IPS | D77: 10 | E77: Фитинги | F77: RUB | G77: =IFERROR(I77*Оглавление!$E$23,"по запросу") -> 182618.2344 | H77: =IFERROR(G77*(1-Оглавление!$D$32),"по запросу") -> 182618.2344 | I77: 1821.81 | J77: шт | L77: 0 | M77: 0
B78: IHIC315 | C78: Отвод ХПВХ 45° клеевой 315 IPS | D78: 10 | E78: Фитинги | F78: RUB | G78: =IFERROR(I78*Оглавление!$E$23,"по запросу") -> 259361.9784 | H78: =IFERROR(G78*(1-Оглавление!$D$32),"по запросу") -> 259361.9784 | I78: 2587.41 | J78: шт | L78: 0 | M78: 0
B79: IHIC355 | C79: Отвод ХПВХ 45° клеевой 355 IPS | D79: 10 | E79: Фитинги | F79: RUB | G79: =IFERROR(I79*Оглавление!$E$23,"по запросу") -> 498282.0136 | H79: =IFERROR(G79*(1-Оглавление!$D$32),"по запросу") -> 498282.0136 | I79: 4970.89 | J79: шт | L79: 0 | M79: 0
B80: IHIC400 | C80: Отвод ХПВХ 45° клеевой 400 IPS | D80: 10 | E80: Фитинги | F80: RUB | G80: =IFERROR(I80*Оглавление!$E$23,"по запросу") -> 592317.1576 | H80: =IFERROR(G80*(1-Оглавление!$D$32),"по запросу") -> 592317.1576 | I80: 5908.99 | J80: шт | L80: 0 | M80: 0
B81: ITIC020 | C81: Тройник ХПВХ 90° клеевой 20 IPS | D81: 16 | E81: Фитинги | F81: RUB | G81: =IFERROR(I81*Оглавление!$E$23,"по запросу") -> 462.1064 | H81: =IFERROR(G81*(1-Оглавление!$D$32),"по запросу") -> 462.1064 | I81: 4.61 | J81: шт | L81: 0 | M81: 0
B82: ITIC025 | C82: Тройник ХПВХ 90° клеевой 25 IPS | D82: 16 | E82: Фитинги | F82: RUB | G82: =IFERROR(I82*Оглавление!$E$23,"по запросу") -> 573.3728 | H82: =IFERROR(G82*(1-Оглавление!$D$32),"по запросу") -> 573.3728 | I82: 5.72 | J82: шт | L82: 0 | M82: 0
B83: ITIC032 | C83: Тройник ХПВХ 90° клеевой 32 IPS | D83: 16 | E83: Фитинги | F83: RUB | G83: =IFERROR(I83*Оглавление!$E$23,"по запросу") -> 696.668 | H83: =IFERROR(G83*(1-Оглавление!$D$32),"по запросу") -> 696.668 | I83: 6.95 | J83: шт | L83: 0 | M83: 0
B84: ITIC040 | C84: Тройник ХПВХ 90° клеевой 40 IPS | D84: 16 | E84: Фитинги | F84: RUB | G84: =IFERROR(I84*Оглавление!$E$23,"по запросу") -> 959.2968 | H84: =IFERROR(G84*(1-Оглавление!$D$32),"по запросу") -> 959.2968 | I84: 9.57 | J84: шт | L84: 0 | M84: 0
B85: ITIC050 | C85: Тройник ХПВХ 90° клеевой 50 IPS | D85: 16 | E85: Фитинги | F85: RUB | G85: =IFERROR(I85*Оглавление!$E$23,"по запросу") -> 1613.864 | H85: =IFERROR(G85*(1-Оглавление!$D$32),"по запросу") -> 1613.864 | I85: 16.1 | J85: шт | L85: 0 | M85: 0
B86: ITIC063 | C86: Тройник ХПВХ 90° клеевой 63 IPS | D86: 16 | E86: Фитинги | F86: RUB | G86: =IFERROR(I86*Оглавление!$E$23,"по запросу") -> 2186.2344 | H86: =IFERROR(G86*(1-Оглавление!$D$32),"по запросу") -> 2186.2344 | I86: 21.81 | J86: шт | L86: 0 | M86: 0
B87: ITIC075 | C87: Тройник ХПВХ 90° клеевой 75 IPS | D87: 16 | E87: Фитинги | F87: RUB | G87: =IFERROR(I87*Оглавление!$E$23,"по запросу") -> 4514.8096 | H87: =IFERROR(G87*(1-Оглавление!$D$32),"по запросу") -> 4514.8096 | I87: 45.04 | J87: шт | L87: 0 | M87: 0
B88: ITIC090 | C88: Тройник ХПВХ 90° клеевой 90 IPS | D88: 16 | E88: Фитинги | F88: RUB | G88: =IFERROR(I88*Оглавление!$E$23,"по запросу") -> 6510.588 | H88: =IFERROR(G88*(1-Оглавление!$D$32),"по запросу") -> 6510.588 | I88: 64.95 | J88: шт | L88: 0 | M88: 0
B89: ITIC110 | C89: Тройник ХПВХ 90° клеевой 110 IPS | D89: 16 | E89: Фитинги | F89: RUB | G89: =IFERROR(I89*Оглавление!$E$23,"по запросу") -> 10043.0456 | H89: =IFERROR(G89*(1-Оглавление!$D$32),"по запросу") -> 10043.0456 | I89: 100.19 | J89: шт | L89: 0 | M89: 0
B90: ITIC140 | C90: Тройник ХПВХ 90° клеевой 140 IPS | D90: 16 | E90: Фитинги | F90: RUB | G90: =IFERROR(I90*Оглавление!$E$23,"по запросу") -> 25203.3432 | H90: =IFERROR(G90*(1-Оглавление!$D$32),"по запросу") -> 25203.3432 | I90: 251.43 | J90: шт | L90: 0 | M90: 0
B91: ITIC160 | C91: Тройник ХПВХ 90° клеевой 160 IPS | D91: 16 | E91: Фитинги | F91: RUB | G91: =IFERROR(I91*Оглавление!$E$23,"по запросу") -> 31114.496 | H91: =IFERROR(G91*(1-Оглавление!$D$32),"по запросу") -> 31114.496 | I91: 310.4 | J91: шт | L91: 0 | M91: 0
B92: ITIC225 | C92: Тройник ХПВХ 90° клеевой 225 IPS | D92: 16 | E92: Фитинги | F92: RUB | G92: =IFERROR(I92*Оглавление!$E$23,"по запросу") -> 95298.168 | H92: =IFERROR(G92*(1-Оглавление!$D$32),"по запросу") -> 95298.168 | I92: 950.7 | J92: шт | L92: 0 | M92: 0
B93: ITIC280 | C93: Тройник ХПВХ 90° клеевой 280 IPS | D93: 10 | E93: Фитинги | F93: RUB | G93: =IFERROR(I93*Оглавление!$E$23,"по запросу") -> 104536.2864 | H93: =IFERROR(G93*(1-Оглавление!$D$32),"по запросу") -> 104536.2864 | I93: 1042.86 | J93: шт | L93: 0 | M93: =IFERROR(K93*H93,"0 ₽") -> 0
B94: ITIC315 | C94: Тройник ХПВХ 90° клеевой 315 IPS | D94: 10 | E94: Фитинги | F94: RUB | G94: =IFERROR(I94*Оглавление!$E$23,"по запросу") -> 236384.9656 | H94: =IFERROR(G94*(1-Оглавление!$D$32),"по запросу") -> 236384.9656 | I94: 2358.19 | J94: шт | L94: =IFERROR(K94*G94,"0 ₽") -> 0 | M94: 0
B95: ITIC355 | C95: Тройник ХПВХ 90° клеевой 355 IPS | D95: 10 | E95: Фитинги | F95: RUB | G95: =IFERROR(I95*Оглавление!$E$23,"по запросу") -> 453844.6192 | H95: =IFERROR(G95*(1-Оглавление!$D$32),"по запросу") -> 453844.6192 | I95: 4527.58 | J95: шт | L95: 0 | M95: 0
B96: ITIC400 | C96: Тройник ХПВХ 90° клеевой 400 IPS | D96: 10 | E96: Фитинги | F96: RUB | G96: =IFERROR(I96*Оглавление!$E$23,"по запросу") -> 645787.1784 | H96: =IFERROR(G96*(1-Оглавление!$D$32),"по запросу") -> 645787.1784 | I96: 6442.41 | J96: шт | L96: 0 | M96: 0
B97: ITIC450 | C97: Тройник ХПВХ 90° клеевой 450 IPS | D97: 10 | E97: Фитинги | F97: RUB | G97: =IFERROR(I97*Оглавление!$E$23,"по запросу") -> 887956.9944 | H97: =IFERROR(G97*(1-Оглавление!$D$32),"по запросу") -> 887956.9944 | I97: 8858.31 | J97: шт | L97: 0 | M97: 0
B98: ITIC500 | C98: Тройник ХПВХ 90° клеевой 500 IPS | D98: 10 | E98: Фитинги | F98: RUB | G98: =IFERROR(I98*Оглавление!$E$23,"по запросу") -> 1089765.174 | H98: =IFERROR(G98*(1-Оглавление!$D$32),"по запросу") -> 1089765.174 | I98: 10871.56 | J98: шт | L98: 0 | M98: 0
B99: ITRIC025020 | C99: Тройник переходной ХПВХ 90° клеевой 25x20 IPS | D99: 16 | E99: Фитинги | F99: RUB | G99: =IFERROR(I99*Оглавление!$E$23,"по запросу") -> 491.176 | H99: =IFERROR(G99*(1-Оглавление!$D$32),"по запросу") -> 491.176 | I99: 4.9 | J99: шт | L99: 0 | M99: 0
B100: ITRIC032020 | C100: Тройник переходной ХПВХ 90° клеевой 32x20 IPS | D100: 16 | E100: Фитинги | F100: RUB | G100: =IFERROR(I100*Оглавление!$E$23,"по запросу") -> 788.8888 | H100: =IFERROR(G100*(1-Оглавление!$D$32),"по запросу") -> 788.8888 | I100: 7.87 | J100: шт | L100: 0 | M100: 0
B101: ITRIC032025 | C101: Тройник переходной ХПВХ 90° клеевой 32x25 IPS | D101: 16 | E101: Фитинги | F101: RUB | G101: =IFERROR(I101*Оглавление!$E$23,"по запросу") -> 798.9128 | H101: =IFERROR(G101*(1-Оглавление!$D$32),"по запросу") -> 798.9128 | I101: 7.97 | J101: шт | L101: 0 | M101: 0
B102: ITRIC040020 | C102: Тройник переходной ХПВХ 90° клеевой 40x20 IPS | D102: 16 | E102: Фитинги | F102: RUB | G102: =IFERROR(I102*Оглавление!$E$23,"по запросу") -> 1169.8008 | H102: =IFERROR(G102*(1-Оглавление!$D$32),"по запросу") -> 1169.8008 | I102: 11.67 | J102: шт | L102: 0 | M102: 0
B103: ITRIC040025 | C103: Тройник переходной ХПВХ 90° клеевой 40x25 IPS | D103: 16 | E103: Фитинги | F103: RUB | G103: =IFERROR(I103*Оглавление!$E$23,"по запросу") -> 1215.9112 | H103: =IFERROR(G103*(1-Оглавление!$D$32),"по запросу") -> 1215.9112 | I103: 12.13 | J103: шт | L103: 0 | M103: 0
B104: ITRIC040032 | C104: Тройник переходной ХПВХ 90° клеевой 40x32 IPS | D104: 16 | E104: Фитинги | F104: RUB | G104: =IFERROR(I104*Оглавление!$E$23,"по запросу") -> 885.1192 | H104: =IFERROR(G104*(1-Оглавление!$D$32),"по запросу") -> 885.1192 | I104: 8.83 | J104: шт | L104: 0 | M104: 0
B105: ITRIC050020 | C105: Тройник переходной ХПВХ 90° клеевой 50x20 IPS | D105: 16 | E105: Фитинги | F105: RUB | G105: =IFERROR(I105*Оглавление!$E$23,"по запросу") -> 1839.404 | H105: =IFERROR(G105*(1-Оглавление!$D$32),"по запросу") -> 1839.404 | I105: 18.35 | J105: шт | L105: 0 | M105: 0
B106: ITRIC050025 | C106: Тройник переходной ХПВХ 90° клеевой 50x25 IPS | D106: 16 | E106: Фитинги | F106: RUB | G106: =IFERROR(I106*Оглавление!$E$23,"по запросу") -> 2069.956 | H106: =IFERROR(G106*(1-Оглавление!$D$32),"по запросу") -> 2069.956 | I106: 20.65 | J106: шт | L106: 0 | M106: 0
B107: ITRIC050032 | C107: Тройник переходной ХПВХ 90° клеевой 50x32 IPS | D107: 16 | E107: Фитинги | F107: RUB | G107: =IFERROR(I107*Оглавление!$E$23,"по запросу") -> 2100.028 | H107: =IFERROR(G107*(1-Оглавление!$D$32),"по запросу") -> 2100.028 | I107: 20.95 | J107: шт | L107: 0 | M107: 0
B108: ITRIC050040 | C108: Тройник переходной ХПВХ 90° клеевой 50x40 IPS | D108: 16 | E108: Фитинги | F108: RUB | G108: =IFERROR(I108*Оглавление!$E$23,"по запросу") -> 2184.2296 | H108: =IFERROR(G108*(1-Оглавление!$D$32),"по запросу") -> 2184.2296 | I108: 21.79 | J108: шт | L108: 0 | M108: 0
B109: ITRIC063020 | C109: Тройник переходной ХПВХ 90° клеевой 63x20 IPS | D109: 16 | E109: Фитинги | F109: RUB | G109: =IFERROR(I109*Оглавление!$E$23,"по запросу") -> 2709.4872 | H109: =IFERROR(G109*(1-Оглавление!$D$32),"по запросу") -> 2709.4872 | I109: 27.03 | J109: шт | L109: 0 | M109: 0
B110: ITRIC063025 | C110: Тройник переходной ХПВХ 90° клеевой 63x25 IPS | D110: 16 | E110: Фитинги | F110: RUB | G110: =IFERROR(I110*Оглавление!$E$23,"по запросу") -> 3025.2432 | H110: =IFERROR(G110*(1-Оглавление!$D$32),"по запросу") -> 3025.2432 | I110: 30.18 | J110: шт | L110: 0 | M110: 0
B111: ITRIC063032 | C111: Тройник переходной ХПВХ 90° клеевой 63x32 IPS | D111: 16 | E111: Фитинги | F111: RUB | G111: =IFERROR(I111*Оглавление!$E$23,"по запросу") -> 3033.2624 | H111: =IFERROR(G111*(1-Оглавление!$D$32),"по запросу") -> 3033.2624 | I111: 30.26 | J111: шт | L111: 0 | M111: 0
B112: ITRIC063040 | C112: Тройник переходной ХПВХ 90° клеевой 63x40 IPS | D112: 16 | E112: Фитинги | F112: RUB | G112: =IFERROR(I112*Оглавление!$E$23,"по запросу") -> 3606.6352 | H112: =IFERROR(G112*(1-Оглавление!$D$32),"по запросу") -> 3606.6352 | I112: 35.98 | J112: шт | L112: 0 | M112: 0
B113: ITRIC063050 | C113: Тройник переходной ХПВХ 90° клеевой 63x50 IPS | D113: 16 | E113: Фитинги | F113: RUB | G113: =IFERROR(I113*Оглавление!$E$23,"по запросу") -> 3764.012 | H113: =IFERROR(G113*(1-Оглавление!$D$32),"по запросу") -> 3764.012 | I113: 37.55 | J113: шт | L113: 0 | M113: 0
B114: ITRIC075032 | C114: Тройник переходной ХПВХ 90° клеевой 75x32 IPS | D114: 16 | E114: Фитинги | F114: RUB | G114: =IFERROR(I114*Оглавление!$E$23,"по запросу") -> 4319.3416 | H114: =IFERROR(G114*(1-Оглавление!$D$32),"по запросу") -> 4319.3416 | I114: 43.09 | J114: шт | L114: 0 | M114: 0
B115: ITRIC075040 | C115: Тройник переходной ХПВХ 90° клеевой 75x40 IPS | D115: 16 | E115: Фитинги | F115: RUB | G115: =IFERROR(I115*Оглавление!$E$23,"по запросу") -> 4384.4976 | H115: =IFERROR(G115*(1-Оглавление!$D$32),"по запросу") -> 4384.4976 | I115: 43.74 | J115: шт | L115: 0 | M115: 0
B116: ITRIC075050 | C116: Тройник переходной ХПВХ 90° клеевой 75x50 IPS | D116: 16 | E116: Фитинги | F116: RUB | G116: =IFERROR(I116*Оглавление!$E$23,"по запросу") -> 4548.8912 | H116: =IFERROR(G116*(1-Оглавление!$D$32),"по запросу") -> 4548.8912 | I116: 45.38 | J116: шт | L116: 0 | M116: 0
B117: ITRIC075063 | C117: Тройник переходной ХПВХ 90° клеевой 75x63 IPS | D117: 16 | E117: Фитинги | F117: RUB | G117: =IFERROR(I117*Оглавление!$E$23,"по запросу") -> 4839.5872 | H117: =IFERROR(G117*(1-Оглавление!$D$32),"по запросу") -> 4839.5872 | I117: 48.28 | J117: шт | L117: 0 | M117: 0
B118: ITRIC090032 | C118: Тройник переходной ХПВХ 90° клеевой 90x32 IPS | D118: 16 | E118: Фитинги | F118: RUB | G118: =IFERROR(I118*Оглавление!$E$23,"по запросу") -> 11439.3888 | H118: =IFERROR(G118*(1-Оглавление!$D$32),"по запросу") -> 11439.3888 | I118: 114.12 | J118: шт | L118: =IFERROR(K118*G118,"0 ₽") -> 0 | M118: =IFERROR(K118*H118,"0 ₽") -> 0
B119: ITRIC090040 | C119: Тройник переходной ХПВХ 90° клеевой 90x40 IPS | D119: 16 | E119: Фитинги | F119: RUB | G119: =IFERROR(I119*Оглавление!$E$23,"по запросу") -> 11843.356 | H119: =IFERROR(G119*(1-Оглавление!$D$32),"по запросу") -> 11843.356 | I119: 118.15 | J119: шт | L119: 0 | M119: 0
B120: ITRIC090050 | C120: Тройник переходной ХПВХ 90° клеевой 90x50 IPS | D120: 16 | E120: Фитинги | F120: RUB | G120: =IFERROR(I120*Оглавление!$E$23,"по запросу") -> 7303.4864 | H120: =IFERROR(G120*(1-Оглавление!$D$32),"по запросу") -> 7303.4864 | I120: 72.86 | J120: шт | L120: 0 | M120: 0
B121: ITRIC090063 | C121: Тройник переходной ХПВХ 90° клеевой 90x63 IPS | D121: 16 | E121: Фитинги | F121: RUB | G121: =IFERROR(I121*Оглавление!$E$23,"по запросу") -> 8157.5312 | H121: =IFERROR(G121*(1-Оглавление!$D$32),"по запросу") -> 8157.5312 | I121: 81.38 | J121: шт | L121: 0 | M121: 0
B122: ITRIC090075 | C122: Тройник переходной ХПВХ 90° клеевой 90x75 IPS | D122: 16 | E122: Фитинги | F122: RUB | G122: =IFERROR(I122*Оглавление!$E$23,"по запросу") -> 7670.3648 | H122: =IFERROR(G122*(1-Оглавление!$D$32),"по запросу") -> 7670.3648 | I122: 76.52 | J122: шт | L122: 0 | M122: 0
B123: ITRIC110050 | C123: Тройник переходной ХПВХ 90° клеевой 110x50 IPS | D123: 16 | E123: Фитинги | F123: RUB | G123: =IFERROR(I123*Оглавление!$E$23,"по запросу") -> 10250.5424 | H123: =IFERROR(G123*(1-Оглавление!$D$32),"по запросу") -> 10250.5424 | I123: 102.26 | J123: шт | L123: 0 | M123: 0
B124: ITRIC110063 | C124: Тройник переходной ХПВХ 90° клеевой 110x63 IPS | D124: 16 | E124: Фитинги | F124: RUB | G124: =IFERROR(I124*Оглавление!$E$23,"по запросу") -> 10709.6416 | H124: =IFERROR(G124*(1-Оглавление!$D$32),"по запросу") -> 10709.6416 | I124: 106.84 | J124: шт | L124: 0 | M124: 0
B125: ITRIC110075 | C125: Тройник переходной ХПВХ 90° клеевой 110x75 IPS | D125: 16 | E125: Фитинги | F125: RUB | G125: =IFERROR(I125*Оглавление!$E$23,"по запросу") -> 11578.7224 | H125: =IFERROR(G125*(1-Оглавление!$D$32),"по запросу") -> 11578.7224 | I125: 115.51 | J125: шт | L125: 0 | M125: 0
B126: ITRIC110090 | C126: Тройник переходной ХПВХ 90° клеевой 110x90 IPS | D126: 16 | E126: Фитинги | F126: RUB | G126: =IFERROR(I126*Оглавление!$E$23,"по запросу") -> 13064.2792 | H126: =IFERROR(G126*(1-Оглавление!$D$32),"по запросу") -> 13064.2792 | I126: 130.33 | J126: шт | L126: 0 | M126: 0
B127: ITRIC140090 | C127: Тройник переходной ХПВХ 90° клеевой 140x90 IPS | D127: 16 | E127: Фитинги | F127: RUB | G127: =IFERROR(I127*Оглавление!$E$23,"по запросу") -> 22851.7128 | H127: =IFERROR(G127*(1-Оглавление!$D$32),"по запросу") -> 22851.7128 | I127: 227.97 | J127: шт | L127: 0 | M127: 0
B128: ITRIC140110 | C128: Тройник переходной ХПВХ 90° клеевой 140x110 IPS | D128: 16 | E128: Фитинги | F128: RUB | G128: =IFERROR(I128*Оглавление!$E$23,"по запросу") -> 23994.4488 | H128: =IFERROR(G128*(1-Оглавление!$D$32),"по запросу") -> 23994.4488 | I128: 239.37 | J128: шт | L128: 0 | M128: 0
B129: ITRIC160063 | C129: Тройник переходной ХПВХ 90° клеевой 160x63 IPS | D129: 16 | E129: Фитинги | F129: RUB | G129: =IFERROR(I129*Оглавление!$E$23,"по запросу") -> 33544.3136 | H129: =IFERROR(G129*(1-Оглавление!$D$32),"по запросу") -> 33544.3136 | I129: 334.64 | J129: шт | L129: 0 | M129: 0
B130: ITRIC160075 | C130: Тройник переходной ХПВХ 90° клеевой 160x75 IPS | D130: 16 | E130: Фитинги | F130: RUB | G130: =IFERROR(I130*Оглавление!$E$23,"по запросу") -> 34382.32 | H130: =IFERROR(G130*(1-Оглавление!$D$32),"по запросу") -> 34382.32 | I130: 343 | J130: шт | L130: 0 | M130: 0
B131: ITRIC160090 | C131: Тройник переходной ХПВХ 90° клеевой 160x90 IPS | D131: 16 | E131: Фитинги | F131: RUB | G131: =IFERROR(I131*Оглавление!$E$23,"по запросу") -> 35221.3288 | H131: =IFERROR(G131*(1-Оглавление!$D$32),"по запросу") -> 35221.3288 | I131: 351.37 | J131: шт | L131: 0 | M131: 0
B132: ITRIC160110 | C132: Тройник переходной ХПВХ 90° клеевой 160x110 IPS | D132: 16 | E132: Фитинги | F132: RUB | G132: =IFERROR(I132*Оглавление!$E$23,"по запросу") -> 36059.3352 | H132: =IFERROR(G132*(1-Оглавление!$D$32),"по запросу") -> 36059.3352 | I132: 359.73 | J132: шт | L132: 0 | M132: 0
B133: ITRIC160140 | C133: Тройник переходной ХПВХ 90° клеевой 160x140 IPS | D133: 16 | E133: Фитинги | F133: RUB | G133: =IFERROR(I133*Оглавление!$E$23,"по запросу") -> 36898.344 | H133: =IFERROR(G133*(1-Оглавление!$D$32),"по запросу") -> 36898.344 | I133: 368.1 | J133: шт | L133: 0 | M133: 0
B134: ITRIC225063 | C134: Тройник переходной ХПВХ 90° клеевой 225x63 IPS | D134: 16 | E134: Фитинги | F134: RUB | G134: =IFERROR(I134*Оглавление!$E$23,"по запросу") -> 110558.7056 | H134: =IFERROR(G134*(1-Оглавление!$D$32),"по запросу") -> 110558.7056 | I134: 1102.94 | J134: шт | L134: 0 | M134: 0
B135: ITRIC225075 | C135: Тройник переходной ХПВХ 90° клеевой 225x75 IPS | D135: 16 | E135: Фитинги | F135: RUB | G135: =IFERROR(I135*Оглавление!$E$23,"по запросу") -> 115477.4824 | H135: =IFERROR(G135*(1-Оглавление!$D$32),"по запросу") -> 115477.4824 | I135: 1152.01 | J135: шт | L135: 0 | M135: 0
B136: ITRIC225090 | C136: Тройник переходной ХПВХ 90° клеевой 225x90 IPS | D136: 16 | E136: Фитинги | F136: RUB | G136: =IFERROR(I136*Оглавление!$E$23,"по запросу") -> 110818.3272 | H136: =IFERROR(G136*(1-Оглавление!$D$32),"по запросу") -> 110818.3272 | I136: 1105.53 | J136: шт | L136: 0 | M136: 0
B137: ITRIC225110 | C137: Тройник переходной ХПВХ 90° клеевой 225x110 IPS | D137: 16 | E137: Фитинги | F137: RUB | G137: =IFERROR(I137*Оглавление!$E$23,"по запросу") -> 117189.5816 | H137: =IFERROR(G137*(1-Оглавление!$D$32),"по запросу") -> 117189.5816 | I137: 1169.09 | J137: шт | L137: 0 | M137: 0
B138: ITRIC225160 | C138: Тройник переходной ХПВХ 90° клеевой 225x160 IPS | D138: 16 | E138: Фитинги | F138: RUB | G138: =IFERROR(I138*Оглавление!$E$23,"по запросу") -> 142412.9728 | H138: =IFERROR(G138*(1-Оглавление!$D$32),"по запросу") -> 142412.9728 | I138: 1420.72 | J138: шт | L138: 0 | M138: 0
B139: ITRIC280110 | C139: Тройник переходной ХПВХ 90° клеевой 280x110 IPS | D139: 10 | E139: Фитинги | F139: RUB | G139: =IFERROR(I139*Оглавление!$E$23,"по запросу") -> 227973.8272 | H139: =IFERROR(G139*(1-Оглавление!$D$32),"по запросу") -> 227973.8272 | I139: 2274.28 | J139: шт | L139: 0 | M139: 0
B140: ITRIC280140 | C140: Тройник переходной ХПВХ 90° клеевой 280x140 IPS | D140: 10 | E140: Фитинги | F140: RUB | G140: =IFERROR(I140*Оглавление!$E$23,"по запросу") -> 233672.4712 | H140: =IFERROR(G140*(1-Оглавление!$D$32),"по запросу") -> 233672.4712 | I140: 2331.13 | J140: шт | L140: 0 | M140: 0
B141: ITRIC280160 | C141: Тройник переходной ХПВХ 90° клеевой 280x160 IPS | D141: 10 | E141: Фитинги | F141: RUB | G141: =IFERROR(I141*Оглавление!$E$23,"по запросу") -> 235223.184 | H141: =IFERROR(G141*(1-Оглавление!$D$32),"по запросу") -> 235223.184 | I141: 2346.6 | J141: шт | L141: 0 | M141: 0
B142: ITRIC280225 | C142: Тройник переходной ХПВХ 90° клеевой 280x225 IPS | D142: 10 | E142: Фитинги | F142: RUB | G142: =IFERROR(I142*Оглавление!$E$23,"по запросу") -> 237160.8232 | H142: =IFERROR(G142*(1-Оглавление!$D$32),"по запросу") -> 237160.8232 | I142: 2365.93 | J142: шт | L142: 0 | M142: 0
B143: ITRIC315225 | C143: Тройник переходной ХПВХ 90° клеевой 315x225 IPS | D143: 10 | E143: Фитинги | F143: RUB | G143: =IFERROR(I143*Оглавление!$E$23,"по запросу") -> 280445.4576 | H143: =IFERROR(G143*(1-Оглавление!$D$32),"по запросу") -> 280445.4576 | I143: 2797.74 | J143: шт | L143: 0 | M143: 0
B144: ITRIC315280 | C144: Тройник переходной ХПВХ 90° клеевой 315x280 IPS | D144: 10 | E144: Фитинги | F144: RUB | G144: =IFERROR(I144*Оглавление!$E$23,"по запросу") -> 340392.9872 | H144: =IFERROR(G144*(1-Оглавление!$D$32),"по запросу") -> 340392.9872 | I144: 3395.78 | J144: шт | L144: 0 | M144: 0
B145: ITRIC355160 | C145: Тройник переходной ХПВХ 90° клеевой 355x160 IPS | D145: 10 | E145: Фитинги | F145: RUB | G145: =IFERROR(I145*Оглавление!$E$23,"по запросу") -> 560059.9256 | H145: =IFERROR(G145*(1-Оглавление!$D$32),"по запросу") -> 560059.9256 | I145: 5587.19 | J145: шт | L145: 0 | M145: 0
B146: ITRIC355225 | C146: Тройник переходной ХПВХ 90° клеевой 355x225 IPS | D146: 10 | E146: Фитинги | F146: RUB | G146: =IFERROR(I146*Оглавление!$E$23,"по запросу") -> 577911.6672 | H146: =IFERROR(G146*(1-Оглавление!$D$32),"по запросу") -> 577911.6672 | I146: 5765.28 | J146: шт | L146: 0 | M146: 0
B147: ITRIC355280 | C147: Тройник переходной ХПВХ 90° клеевой 355x280 IPS | D147: 10 | E147: Фитинги | F147: RUB | G147: =IFERROR(I147*Оглавление!$E$23,"по запросу") -> 665194.6448 | H147: =IFERROR(G147*(1-Оглавление!$D$32),"по запросу") -> 665194.6448 | I147: 6636.02 | J147: шт | L147: 0 | M147: 0
B148: ITRIC355315 | C148: Тройник переходной ХПВХ 90° клеевой 355x315 IPS | D148: 10 | E148: Фитинги | F148: RUB | G148: =IFERROR(I148*Оглавление!$E$23,"по запросу") -> 700428.0024 | H148: =IFERROR(G148*(1-Оглавление!$D$32),"по запросу") -> 700428.0024 | I148: 6987.51 | J148: шт | L148: 0 | M148: 0
B149: ITRIC400315 | C149: Тройник переходной ХПВХ 90° клеевой 400x315 IPS | D149: 10 | E149: Фитинги | F149: RUB | G149: =IFERROR(I149*Оглавление!$E$23,"по запросу") -> 730009.8288 | H149: =IFERROR(G149*(1-Оглавление!$D$32),"по запросу") -> 730009.8288 | I149: 7282.62 | J149: шт | L149: 0 | M149: 0
B150: ITRIC400355 | C150: Тройник переходной ХПВХ 90° клеевой 400x355 IPS | D150: 10 | E150: Фитинги | F150: RUB | G150: =IFERROR(I150*Оглавление!$E$23,"по запросу") -> 764490.384 | H150: =IFERROR(G150*(1-Оглавление!$D$32),"по запросу") -> 764490.384 | I150: 7626.6 | J150: шт | L150: 0 | M150: 0
B151: ITRIC450315 | C151: Тройник переходной ХПВХ 90° клеевой 450x315 IPS | D151: 10 | E151: Фитинги | F151: RUB | G151: =IFERROR(I151*Оглавление!$E$23,"по запросу") -> 997791.9672 | H151: =IFERROR(G151*(1-Оглавление!$D$32),"по запросу") -> 997791.9672 | I151: 9954.03 | J151: шт | L151: 0 | M151: 0
B152: ITRIC450355 | C152: Тройник переходной ХПВХ 90° клеевой 450x355 IPS | D152: 10 | E152: Фитинги | F152: RUB | G152: =IFERROR(I152*Оглавление!$E$23,"по запросу") -> 1011064.746 | H152: =IFERROR(G152*(1-Оглавление!$D$32),"по запросу") -> 1011064.746 | I152: 10086.44 | J152: шт | L152: 0 | M152: 0
B153: ITRIC450400 | C153: Тройник переходной ХПВХ 90° клеевой 450x400 IPS | D153: 10 | E153: Фитинги | F153: RUB | G153: =IFERROR(I153*Оглавление!$E$23,"по запросу") -> 1051213.873 | H153: =IFERROR(G153*(1-Оглавление!$D$32),"по запросу") -> 1051213.873 | I153: 10486.97 | J153: шт | L153: 0 | M153: 0
B154: ITRIC500315 | C154: Тройник переходной ХПВХ 90° клеевой 500x315 IPS | D154: 10 | E154: Фитинги | F154: RUB | G154: =IFERROR(I154*Оглавление!$E$23,"по запросу") -> 1194515.974 | H154: =IFERROR(G154*(1-Оглавление!$D$32),"по запросу") -> 1194515.974 | I154: 11916.56 | J154: шт | L154: 0 | M154: 0
B155: ITRIC500355 | C155: Тройник переходной ХПВХ 90° клеевой 500x355 IPS | D155: 10 | E155: Фитинги | F155: RUB | G155: =IFERROR(I155*Оглавление!$E$23,"по запросу") -> 1223957.465 | H155: =IFERROR(G155*(1-Оглавление!$D$32),"по запросу") -> 1223957.465 | I155: 12210.27 | J155: шт | L155: 0 | M155: 0
B156: ITRIC500400 | C156: Тройник переходной ХПВХ 90° клеевой 500x400 IPS | D156: 10 | E156: Фитинги | F156: RUB | G156: =IFERROR(I156*Оглавление!$E$23,"по запросу") -> 1263830.932 | H156: =IFERROR(G156*(1-Оглавление!$D$32),"по запросу") -> 1263830.932 | I156: 12608.05 | J156: шт | L156: 0 | M156: 0
B157: ITRIC500450 | C157: Тройник переходной ХПВХ 90° клеевой 500x450 IPS | D157: 10 | E157: Фитинги | F157: RUB | G157: =IFERROR(I157*Оглавление!$E$23,"по запросу") -> 1290125.889 | H157: =IFERROR(G157*(1-Оглавление!$D$32),"по запросу") -> 1290125.889 | I157: 12870.37 | J157: шт | L157: 0 | M157: 0
B158: IMIC020 | C158: Муфта ХПВХ клеевая 20 IPS | D158: 16 | E158: Фитинги | F158: RUB | G158: =IFERROR(I158*Оглавление!$E$23,"по запросу") -> 310.744 | H158: =IFERROR(G158*(1-Оглавление!$D$32),"по запросу") -> 310.744 | I158: 3.1 | J158: шт | L158: =IFERROR(K158*G158,"0 ₽") -> 0 | M158: =IFERROR(K158*H158,"0 ₽") -> 0
B159: IMIC025 | C159: Муфта ХПВХ клеевая 25 IPS | D159: 16 | E159: Фитинги | F159: RUB | G159: =IFERROR(I159*Оглавление!$E$23,"по запросу") -> 346.8304 | H159: =IFERROR(G159*(1-Оглавление!$D$32),"по запросу") -> 346.8304 | I159: 3.46 | J159: шт | L159: 0 | M159: 0
B160: IMIC032 | C160: Муфта ХПВХ клеевая 32 IPS | D160: 16 | E160: Фитинги | F160: RUB | G160: =IFERROR(I160*Оглавление!$E$23,"по запросу") -> 423.0128 | H160: =IFERROR(G160*(1-Оглавление!$D$32),"по запросу") -> 423.0128 | I160: 4.22 | J160: шт | L160: 0 | M160: 0
B161: IMIC040 | C161: Муфта ХПВХ клеевая 40 IPS | D161: 16 | E161: Фитинги | F161: RUB | G161: =IFERROR(I161*Оглавление!$E$23,"по запросу") -> 462.1064 | H161: =IFERROR(G161*(1-Оглавление!$D$32),"по запросу") -> 462.1064 | I161: 4.61 | J161: шт | L161: 0 | M161: 0
B162: IMIC050 | C162: Муфта ХПВХ клеевая 50 IPS | D162: 16 | E162: Фитинги | F162: RUB | G162: =IFERROR(I162*Оглавление!$E$23,"по запросу") -> 769.8432 | H162: =IFERROR(G162*(1-Оглавление!$D$32),"по запросу") -> 769.8432 | I162: 7.68 | J162: шт | L162: 0 | M162: 0
B163: IMIC063 | C163: Муфта ХПВХ клеевая 63 IPS | D163: 16 | E163: Фитинги | F163: RUB | G163: =IFERROR(I163*Оглавление!$E$23,"по запросу") -> 1186.8416 | H163: =IFERROR(G163*(1-Оглавление!$D$32),"по запросу") -> 1186.8416 | I163: 11.84 | J163: шт | L163: 0 | M163: 0
B164: IMIC075 | C164: Муфта ХПВХ клеевая 75 IPS | D164: 16 | E164: Фитинги | F164: RUB | G164: =IFERROR(I164*Оглавление!$E$23,"по запросу") -> 1766.2288 | H164: =IFERROR(G164*(1-Оглавление!$D$32),"по запросу") -> 1766.2288 | I164: 17.62 | J164: шт | L164: 0 | M164: 0
B165: IMIC090 | C165: Муфта ХПВХ клеевая 90 IPS | D165: 16 | E165: Фитинги | F165: RUB | G165: =IFERROR(I165*Оглавление!$E$23,"по запросу") -> 2991.1616 | H165: =IFERROR(G165*(1-Оглавление!$D$32),"по запросу") -> 2991.1616 | I165: 29.84 | J165: шт | L165: 0 | M165: 0
B166: IMIC110 | C166: Муфта ХПВХ клеевая 110 IPS | D166: 16 | E166: Фитинги | F166: RUB | G166: =IFERROR(I166*Оглавление!$E$23,"по запросу") -> 5439.0224 | H166: =IFERROR(G166*(1-Оглавление!$D$32),"по запросу") -> 5439.0224 | I166: 54.26 | J166: шт | L166: 0 | M166: 0
B167: IMIC140 | C167: Муфта ХПВХ клеевая 140 IPS | D167: 16 | E167: Фитинги | F167: RUB | G167: =IFERROR(I167*Оглавление!$E$23,"по запросу") -> 12228.2776 | H167: =IFERROR(G167*(1-Оглавление!$D$32),"по запросу") -> 12228.2776 | I167: 121.99 | J167: шт | L167: 0 | M167: 0
B168: IMIC160 | C168: Муфта ХПВХ клеевая 160 IPS | D168: 16 | E168: Фитинги | F168: RUB | G168: =IFERROR(I168*Оглавление!$E$23,"по запросу") -> 12717.4488 | H168: =IFERROR(G168*(1-Оглавление!$D$32),"по запросу") -> 12717.4488 | I168: 126.87 | J168: шт | L168: 0 | M168: 0
B169: IMIC225 | C169: Муфта ХПВХ клеевая 225 IPS | D169: 16 | E169: Фитинги | F169: RUB | G169: =IFERROR(I169*Оглавление!$E$23,"по запросу") -> 40388.7008 | H169: =IFERROR(G169*(1-Оглавление!$D$32),"по запросу") -> 40388.7008 | I169: 402.92 | J169: шт | L169: 0 | M169: 0
B170: IMIC280 | C170: Муфта ХПВХ клеевая 280 IPS | D170: 10 | E170: Фитинги | F170: RUB | G170: =IFERROR(I170*Оглавление!$E$23,"по запросу") -> 58735.628 | H170: =IFERROR(G170*(1-Оглавление!$D$32),"по запросу") -> 58735.628 | I170: 585.95 | J170: шт | L170: 0 | M170: 0
B171: IMIC315 | C171: Муфта ХПВХ клеевая 315 IPS | D171: 10 | E171: Фитинги | F171: RUB | G171: =IFERROR(I171*Оглавление!$E$23,"по запросу") -> 100865.4976 | H171: =IFERROR(G171*(1-Оглавление!$D$32),"по запросу") -> 100865.4976 | I171: 1006.24 | J171: шт | L171: 0 | M171: =IFERROR(K171*H171,"0 ₽") -> 0
B172: IMIC355 | C172: Муфта ХПВХ клеевая 355 IPS | D172: 10 | E172: Фитинги | F172: RUB | G172: =IFERROR(I172*Оглавление!$E$23,"по запросу") -> 293019.5632 | H172: =IFERROR(G172*(1-Оглавление!$D$32),"по запросу") -> 293019.5632 | I172: 2923.18 | J172: шт | L172: =IFERROR(K172*G172,"0 ₽") -> 0 | M172: 0
B173: IMIC400 | C173: Муфта ХПВХ клеевая 400 IPS | D173: 10 | E173: Фитинги | F173: RUB | G173: =IFERROR(I173*Оглавление!$E$23,"по запросу") -> 357884.8672 | H173: =IFERROR(G173*(1-Оглавление!$D$32),"по запросу") -> 357884.8672 | I173: 3570.28 | J173: шт | L173: 0 | M173: 0
B174: IMIC450 | C174: Муфта ХПВХ клеевая 450 IPS | D174: 10 | E174: Фитинги | F174: RUB | G174: =IFERROR(I174*Оглавление!$E$23,"по запросу") -> 677722.64 | H174: =IFERROR(G174*(1-Оглавление!$D$32),"по запросу") -> 677722.64 | I174: 6761 | J174: шт | L174: 0 | M174: 0
B175: IMIC500 | C175: Муфта ХПВХ клеевая 500 IPS | D175: 10 | E175: Фитинги | F175: RUB | G175: =IFERROR(I175*Оглавление!$E$23,"по запросу") -> 772841.3784 | H175: =IFERROR(G175*(1-Оглавление!$D$32),"по запросу") -> 772841.3784 | I175: 7709.91 | J175: шт | L175: 0 | M175: 0
B176: IMIC630 | C176: Муфта ХПВХ клеевая 630 IPS | D176: 10 | E176: Фитинги | F176: RUB | G176: =IFERROR(I176*Оглавление!$E$23,"по запросу") -> 879849.5832 | H176: =IFERROR(G176*(1-Оглавление!$D$32),"по запросу") -> 879849.5832 | I176: 8777.43 | J176: шт | L176: 0 | M176: 0
B177: IMRIC025020 | C177: Муфта ХПВХ переходная клеевая 25x20 IPS | D177: 16 | E177: Фитинги | F177: RUB | G177: =IFERROR(I177*Оглавление!$E$23,"по запросу") -> 241.5784 | H177: =IFERROR(G177*(1-Оглавление!$D$32),"по запросу") -> 241.5784 | I177: 2.41 | J177: шт | L177: =IFERROR(K177*G177,"0 ₽") -> 0 | M177: =IFERROR(K177*H177,"0 ₽") -> 0
B178: IMRIC032020 | C178: Муфта ХПВХ переходная клеевая 32x20 IPS | D178: 16 | E178: Фитинги | F178: RUB | G178: =IFERROR(I178*Оглавление!$E$23,"по запросу") -> 334.8016 | H178: =IFERROR(G178*(1-Оглавление!$D$32),"по запросу") -> 334.8016 | I178: 3.34 | J178: шт | L178: 0 | M178: 0
B179: IMRIC032025 | C179: Муфта ХПВХ переходная клеевая 32x25 IPS | D179: 16 | E179: Фитинги | F179: RUB | G179: =IFERROR(I179*Оглавление!$E$23,"по запросу") -> 362.8688 | H179: =IFERROR(G179*(1-Оглавление!$D$32),"по запросу") -> 362.8688 | I179: 3.62 | J179: шт | L179: 0 | M179: 0
B180: IMRIC040020 | C180: Муфта ХПВХ переходная клеевая 40x20 IPS | D180: 16 | E180: Фитинги | F180: RUB | G180: =IFERROR(I180*Оглавление!$E$23,"по запросу") -> 502.2024 | H180: =IFERROR(G180*(1-Оглавление!$D$32),"по запросу") -> 502.2024 | I180: 5.01 | J180: шт | L180: 0 | M180: 0
B181: IMRIC040025 | C181: Муфта ХПВХ переходная клеевая 40x25 IPS | D181: 16 | E181: Фитинги | F181: RUB | G181: =IFERROR(I181*Оглавление!$E$23,"по запросу") -> 548.3128 | H181: =IFERROR(G181*(1-Оглавление!$D$32),"по запросу") -> 548.3128 | I181: 5.47 | J181: шт | L181: 0 | M181: 0
B182: IMRIC040032 | C182: Муфта ХПВХ переходная клеевая 40x32 IPS | D182: 16 | E182: Фитинги | F182: RUB | G182: =IFERROR(I182*Оглавление!$E$23,"по запросу") -> 576.38 | H182: =IFERROR(G182*(1-Оглавление!$D$32),"по запросу") -> 576.38 | I182: 5.75 | J182: шт | L182: 0 | M182: 0
B183: IMRIC050020 | C183: Муфта ХПВХ переходная клеевая 50x20 IPS | D183: 16 | E183: Фитинги | F183: RUB | G183: =IFERROR(I183*Оглавление!$E$23,"по запросу") -> 883.1144 | H183: =IFERROR(G183*(1-Оглавление!$D$32),"по запросу") -> 883.1144 | I183: 8.81 | J183: шт | L183: 0 | M183: 0
B184: IMRIC050025 | C184: Муфта ХПВХ переходная клеевая 50x25 IPS | D184: 16 | E184: Фитинги | F184: RUB | G184: =IFERROR(I184*Оглавление!$E$23,"по запросу") -> 892.136 | H184: =IFERROR(G184*(1-Оглавление!$D$32),"по запросу") -> 892.136 | I184: 8.9 | J184: шт | L184: 0 | M184: 0
B185: IMRIC050032 | C185: Муфта ХПВХ переходная клеевая 50x32 IPS | D185: 16 | E185: Фитинги | F185: RUB | G185: =IFERROR(I185*Оглавление!$E$23,"по запросу") -> 911.1816 | H185: =IFERROR(G185*(1-Оглавление!$D$32),"по запросу") -> 911.1816 | I185: 9.09 | J185: шт | L185: 0 | M185: 0
B186: IMRIC050040 | C186: Муфта ХПВХ переходная клеевая 50x40 IPS | D186: 16 | E186: Фитинги | F186: RUB | G186: =IFERROR(I186*Оглавление!$E$23,"по запросу") -> 939.2488 | H186: =IFERROR(G186*(1-Оглавление!$D$32),"по запросу") -> 939.2488 | I186: 9.37 | J186: шт | L186: 0 | M186: 0
B187: IMRIC063020 | C187: Муфта ХПВХ переходная клеевая 63x20 IPS | D187: 16 | E187: Фитинги | F187: RUB | G187: =IFERROR(I187*Оглавление!$E$23,"по запросу") -> 1357.2496 | H187: =IFERROR(G187*(1-Оглавление!$D$32),"по запросу") -> 1357.2496 | I187: 13.54 | J187: шт | L187: 0 | M187: 0
B188: IMRIC063025 | C188: Муфта ХПВХ переходная клеевая 63x25 IPS | D188: 16 | E188: Фитинги | F188: RUB | G188: =IFERROR(I188*Оглавление!$E$23,"по запросу") -> 1338.204 | H188: =IFERROR(G188*(1-Оглавление!$D$32),"по запросу") -> 1338.204 | I188: 13.35 | J188: шт | L188: 0 | M188: 0
B189: IMRIC063032 | C189: Муфта ХПВХ переходная клеевая 63x32 IPS | D189: 16 | E189: Фитинги | F189: RUB | G189: =IFERROR(I189*Оглавление!$E$23,"по запросу") -> 1338.204 | H189: =IFERROR(G189*(1-Оглавление!$D$32),"по запросу") -> 1338.204 | I189: 13.35 | J189: шт | L189: 0 | M189: 0
B190: IMRIC063040 | C190: Муфта ХПВХ переходная клеевая 63x40 IPS | D190: 16 | E190: Фитинги | F190: RUB | G190: =IFERROR(I190*Оглавление!$E$23,"по запросу") -> 1496.5832 | H190: =IFERROR(G190*(1-Оглавление!$D$32),"по запросу") -> 1496.5832 | I190: 14.93 | J190: шт | L190: 0 | M190: 0
B191: IMRIC063050 | C191: Муфта ХПВХ переходная клеевая 63x50 IPS | D191: 16 | E191: Фитинги | F191: RUB | G191: =IFERROR(I191*Оглавление!$E$23,"по запросу") -> 1589.8064 | H191: =IFERROR(G191*(1-Оглавление!$D$32),"по запросу") -> 1589.8064 | I191: 15.86 | J191: шт | L191: 0 | M191: 0
B192: IMRIC075032 | C192: Муфта ХПВХ переходная клеевая 75x32 IPS | D192: 16 | E192: Фитинги | F192: RUB | G192: =IFERROR(I192*Оглавление!$E$23,"по запросу") -> 4912.7624 | H192: =IFERROR(G192*(1-Оглавление!$D$32),"по запросу") -> 4912.7624 | I192: 49.01 | J192: шт | L192: 0 | M192: 0
B193: IMRIC075040 | C193: Муфта ХПВХ переходная клеевая 75x40 IPS | D193: 16 | E193: Фитинги | F193: RUB | G193: =IFERROR(I193*Оглавление!$E$23,"по запросу") -> 4366.4544 | H193: =IFERROR(G193*(1-Оглавление!$D$32),"по запросу") -> 4366.4544 | I193: 43.56 | J193: шт | L193: 0 | M193: 0
B194: IMRIC075050 | C194: Муфта ХПВХ переходная клеевая 75x50 IPS | D194: 16 | E194: Фитинги | F194: RUB | G194: =IFERROR(I194*Оглавление!$E$23,"по запросу") -> 2007.8072 | H194: =IFERROR(G194*(1-Оглавление!$D$32),"по запросу") -> 2007.8072 | I194: 20.03 | J194: шт | L194: 0 | M194: 0
B195: IMRIC075063 | C195: Муфта ХПВХ переходная клеевая 75x63 IPS | D195: 16 | E195: Фитинги | F195: RUB | G195: =IFERROR(I195*Оглавление!$E$23,"по запросу") -> 2333.5872 | H195: =IFERROR(G195*(1-Оглавление!$D$32),"по запросу") -> 2333.5872 | I195: 23.28 | J195: шт | L195: 0 | M195: 0
B196: IMRIC090032 | C196: Муфта ХПВХ переходная клеевая 90x32 IPS | D196: 16 | E196: Фитинги | F196: RUB | G196: =IFERROR(I196*Оглавление!$E$23,"по запросу") -> 7581.1512 | H196: =IFERROR(G196*(1-Оглавление!$D$32),"по запросу") -> 7581.1512 | I196: 75.63 | J196: шт | L196: 0 | M196: 0
B197: IMRIC090040 | C197: Муфта ХПВХ переходная клеевая 90x40 IPS | D197: 16 | E197: Фитинги | F197: RUB | G197: =IFERROR(I197*Оглавление!$E$23,"по запросу") -> 7581.1512 | H197: =IFERROR(G197*(1-Оглавление!$D$32),"по запросу") -> 7581.1512 | I197: 75.63 | J197: шт | L197: 0 | M197: 0
B198: IMRIC090050 | C198: Муфта ХПВХ переходная клеевая 90x50 IPS | D198: 16 | E198: Фитинги | F198: RUB | G198: =IFERROR(I198*Оглавление!$E$23,"по запросу") -> 3262.812 | H198: =IFERROR(G198*(1-Оглавление!$D$32),"по запросу") -> 3262.812 | I198: 32.55 | J198: шт | L198: 0 | M198: 0
B199: IMRIC090063 | C199: Муфта ХПВХ переходная клеевая 90x63 IPS | D199: 16 | E199: Фитинги | F199: RUB | G199: =IFERROR(I199*Оглавление!$E$23,"по запросу") -> 3346.0112 | H199: =IFERROR(G199*(1-Оглавление!$D$32),"по запросу") -> 3346.0112 | I199: 33.38 | J199: шт | L199: 0 | M199: 0
B200: IMRIC090075 | C200: Муфта ХПВХ переходная клеевая 90x75 IPS | D200: 16 | E200: Фитинги | F200: RUB | G200: =IFERROR(I200*Оглавление!$E$23,"по запросу") -> 3504.3904 | H200: =IFERROR(G200*(1-Оглавление!$D$32),"по запросу") -> 3504.3904 | I200: 34.96 | J200: шт | L200: 0 | M200: 0
B201: IMRIC110050 | C201: Муфта ХПВХ переходная клеевая 110x50 IPS | D201: 16 | E201: Фитинги | F201: RUB | G201: =IFERROR(I201*Оглавление!$E$23,"по запросу") -> 5066.1296 | H201: =IFERROR(G201*(1-Оглавление!$D$32),"по запросу") -> 5066.1296 | I201: 50.54 | J201: шт | L201: 0 | M201: 0
B202: IMRIC110063 | C202: Муфта ХПВХ переходная клеевая 110x63 IPS | D202: 16 | E202: Фитинги | F202: RUB | G202: =IFERROR(I202*Оглавление!$E$23,"по запросу") -> 5019.0168 | H202: =IFERROR(G202*(1-Оглавление!$D$32),"по запросу") -> 5019.0168 | I202: 50.07 | J202: шт | L202: 0 | M202: 0
B203: IMRIC110075 | C203: Муфта ХПВХ переходная клеевая 110x75 IPS | D203: 16 | E203: Фитинги | F203: RUB | G203: =IFERROR(I203*Оглавление!$E$23,"по запросу") -> 5605.4208 | H203: =IFERROR(G203*(1-Оглавление!$D$32),"по запросу") -> 5605.4208 | I203: 55.92 | J203: шт | L203: 0 | M203: 0
... 349 more rows

Sheet ХПВХ FIP
J1: =COUNT(K10:K237) -> 0 | K1: Товаров в заказе
J2: =SUM(M10:M237) -> 0 | K2: Сумма заказа со скидкой с НДС
A9: Фото | B9: Код | C9: Наименование | D9: PN | E9: Категория | F9: Валюта продажи | G9: Цена ПРОДАЖИ с НДС | H9: Цена с НДС со скидкой | I9: Цена EUR | J9: Ед. измерения | K9: Заказ (метры/штуки) | L9: Сумма рубли | M9: Сумма со скидкой
B10: VKDIC016E | C10: Кран шаровой ХПВХ муфтовый промышленный EPDM 16 FIP | D10: 16 | E10: Арматура | F10: RUB | G10: =IFERROR(I10*Оглавление!$E$23,"по запросу") -> 9512.776 | H10: =IFERROR(G10*(1-Оглавление!$D$34),"по запросу") -> 9512.776 | I10: 94.9 | J10: шт | L10: =IFERROR(K10*G10,"0 ₽") -> 0 | M10: =IFERROR(K10*H10,"0 ₽") -> 0
B11: VKDIC020E | C11: Кран шаровой ХПВХ муфтовый промышленный EPDM 20 FIP | D11: 16 | E11: Арматура | F11: RUB | G11: =IFERROR(I11*Оглавление!$E$23,"по запросу") -> 9512.776 | H11: =IFERROR(G11*(1-Оглавление!$D$34),"по запросу") -> 9512.776 | I11: 94.9 | J11: шт | L11: 0 | M11: 0
B12: VKDIC025E | C12: Кран шаровой ХПВХ муфтовый промышленный EPDM 25 FIP | D12: 16 | E12: Арматура | F12: RUB | G12: =IFERROR(I12*Оглавление!$E$23,"по запросу") -> 10318.7056 | H12: =IFERROR(G12*(1-Оглавление!$D$34),"по запросу") -> 10318.7056 | I12: 102.94 | J12: шт | L12: 0 | M12: 0
B13: VKDIC032E | C13: Кран шаровой ХПВХ муфтовый промышленный EPDM 32 FIP | D13: 16 | E13: Арматура | F13: RUB | G13: =IFERROR(I13*Оглавление!$E$23,"по запросу") -> 12357.5872 | H13: =IFERROR(G13*(1-Оглавление!$D$34),"по запросу") -> 12357.5872 | I13: 123.28 | J13: шт | L13: 0 | M13: 0
B14: VKDIC040E | C14: Кран шаровой ХПВХ муфтовый промышленный EPDM 40 FIP | D14: 16 | E14: Арматура | F14: RUB | G14: =IFERROR(I14*Оглавление!$E$23,"по запросу") -> 14398.4736 | H14: =IFERROR(G14*(1-Оглавление!$D$34),"по запросу") -> 14398.4736 | I14: 143.64 | J14: шт | L14: 0 | M14: 0
B15: VKDIC050E | C15: Кран шаровой ХПВХ муфтовый промышленный EPDM 50 FIP | D15: 16 | E15: Арматура | F15: RUB | G15: =IFERROR(I15*Оглавление!$E$23,"по запросу") -> 17455.7936 | H15: =IFERROR(G15*(1-Оглавление!$D$34),"по запросу") -> 17455.7936 | I15: 174.14 | J15: шт | L15: 0 | M15: 0
B16: VKDIC063E | C16: Кран шаровой ХПВХ муфтовый промышленный EPDM 63 FIP | D16: 16 | E16: Арматура | F16: RUB | G16: =IFERROR(I16*Оглавление!$E$23,"по запросу") -> 22070.8432 | H16: =IFERROR(G16*(1-Оглавление!$D$34),"по запросу") -> 22070.8432 | I16: 220.18 | J16: шт | L16: 0 | M16: 0
B17: VKDIC075E | C17: Кран шаровой ХПВХ муфтовый промышленный EPDM 75 FIP | D17: 16 | E17: Арматура | F17: RUB | G17: =IFERROR(I17*Оглавление!$E$23,"по запросу") -> 103930.8368 | H17: =IFERROR(G17*(1-Оглавление!$D$34),"по запросу") -> 103930.8368 | I17: 1036.82 | J17: шт | L17: 0 | M17: 0
B18: VKDIC090E | C18: Кран шаровой ХПВХ муфтовый промышленный EPDM 90 FIP | D18: 16 | E18: Арматура | F18: RUB | G18: =IFERROR(I18*Оглавление!$E$23,"по запросу") -> 136354.4672 | H18: =IFERROR(G18*(1-Оглавление!$D$34),"по запросу") -> 136354.4672 | I18: 1360.28 | J18: шт | L18: 0 | M18: 0
B19: VKDIC110E | C19: Кран шаровой ХПВХ муфтовый промышленный EPDM 110 FIP | D19: 16 | E19: Арматура | F19: RUB | G19: =IFERROR(I19*Оглавление!$E$23,"по запросу") -> 164517.8976 | H19: =IFERROR(G19*(1-Оглавление!$D$34),"по запросу") -> 164517.8976 | I19: 1641.24 | J19: шт | L19: 0 | M19: 0
B20: VKDIC016F | C20: Кран шаровой ХПВХ муфтовый промышленный FKM 16 FIP | D20: 16 | E20: Арматура | F20: RUB | G20: =IFERROR(I20*Оглавление!$E$23,"по запросу") -> 12357.5872 | H20: =IFERROR(G20*(1-Оглавление!$D$34),"по запросу") -> 12357.5872 | I20: 123.28 | J20: шт | L20: 0 | M20: 0
B21: VKDIC020F | C21: Кран шаровой ХПВХ муфтовый промышленный FKM 20 FIP | D21: 16 | E21: Арматура | F21: RUB | G21: =IFERROR(I21*Оглавление!$E$23,"по запросу") -> 12357.5872 | H21: =IFERROR(G21*(1-Оглавление!$D$34),"по запросу") -> 12357.5872 | I21: 123.28 | J21: шт | L21: 0 | M21: 0
B22: VKDIC025F | C22: Кран шаровой ХПВХ муфтовый промышленный FKM 25 FIP | D22: 16 | E22: Арматура | F22: RUB | G22: =IFERROR(I22*Оглавление!$E$23,"по запросу") -> 13345.9536 | H22: =IFERROR(G22*(1-Оглавление!$D$34),"по запросу") -> 13345.9536 | I22: 133.14 | J22: шт | L22: 0 | M22: 0
B23: VKDIC032F | C23: Кран шаровой ХПВХ муфтовый промышленный FKM 32 FIP | D23: 16 | E23: Арматура | F23: RUB | G23: =IFERROR(I23*Оглавление!$E$23,"по запросу") -> 15027.9808 | H23: =IFERROR(G23*(1-Оглавление!$D$34),"по запросу") -> 15027.9808 | I23: 149.92 | J23: шт | L23: 0 | M23: 0
B24: VKDIC040F | C24: Кран шаровой ХПВХ муфтовый промышленный FKM 40 FIP | D24: 16 | E24: Арматура | F24: RUB | G24: =IFERROR(I24*Оглавление!$E$23,"по запросу") -> 16972.6368 | H24: =IFERROR(G24*(1-Оглавление!$D$34),"по запросу") -> 16972.6368 | I24: 169.32 | J24: шт | L24: 0 | M24: 0
B25: VKDIC050F | C25: Кран шаровой ХПВХ муфтовый промышленный FKM 50 FIP | D25: 16 | E25: Арматура | F25: RUB | G25: =IFERROR(I25*Оглавление!$E$23,"по запросу") -> 21427.3024 | H25: =IFERROR(G25*(1-Оглавление!$D$34),"по запросу") -> 21427.3024 | I25: 213.76 | J25: шт | L25: 0 | M25: 0
B26: VKDIC063F | C26: Кран шаровой ХПВХ муфтовый промышленный FKM 63 FIP | D26: 16 | E26: Арматура | F26: RUB | G26: =IFERROR(I26*Оглавление!$E$23,"по запросу") -> 27730.3936 | H26: =IFERROR(G26*(1-Оглавление!$D$34),"по запросу") -> 27730.3936 | I26: 276.64 | J26: шт | L26: 0 | M26: 0
B27: VKDIC075F | C27: Кран шаровой ХПВХ муфтовый промышленный FKM 75 FIP | D27: 16 | E27: Арматура | F27: RUB | G27: =IFERROR(I27*Оглавление!$E$23,"по запросу") -> 134421.84 | H27: =IFERROR(G27*(1-Оглавление!$D$34),"по запросу") -> 134421.84 | I27: 1341 | J27: шт | L27: 0 | M27: 0
B28: VKDIC090F | C28: Кран шаровой ХПВХ муфтовый промышленный FKM 90 FIP | D28: 16 | E28: Арматура | F28: RUB | G28: =IFERROR(I28*Оглавление!$E$23,"по запросу") -> 172410.7952 | H28: =IFERROR(G28*(1-Оглавление!$D$34),"по запросу") -> 172410.7952 | I28: 1719.98 | J28: шт | L28: 0 | M28: 0
B29: VKDIC110F | C29: Кран шаровой ХПВХ муфтовый промышленный FKM 110 FIP | D29: 16 | E29: Арматура | F29: RUB | G29: =IFERROR(I29*Оглавление!$E$23,"по запросу") -> 200584.2496 | H29: =IFERROR(G29*(1-Оглавление!$D$34),"по запросу") -> 200584.2496 | I29: 2001.04 | J29: шт | L29: 0 | M29: 0
B30: VKDDC020E | C30: Кран шаровой ХПВХ втулочный промышленный EPDM D20 (DN15) FIP | D30: 16 | E30: Арматура | F30: RUB | G30: =IFERROR(I30*Оглавление!$E$23,"по запросу") -> 10932.1744 | H30: =IFERROR(G30*(1-Оглавление!$D$34),"по запросу") -> 10932.1744 | I30: 109.06 | J30: шт | L30: =IFERROR(K30*G30,"0 ₽") -> 0 | M30: =IFERROR(K30*H30,"0 ₽") -> 0
B31: VKDDC025E | C31: Кран шаровой ХПВХ втулочный промышленный EPDM D25 (DN20) FIP | D31: 16 | E31: Арматура | F31: RUB | G31: =IFERROR(I31*Оглавление!$E$23,"по запросу") -> 11826.3152 | H31: =IFERROR(G31*(1-Оглавление!$D$34),"по запросу") -> 11826.3152 | I31: 117.98 | J31: шт | L31: 0 | M31: 0
B32: VKDDC032E | C32: Кран шаровой ХПВХ втулочный промышленный EPDM D32 (DN25) FIP | D32: 16 | E32: Арматура | F32: RUB | G32: =IFERROR(I32*Оглавление!$E$23,"по запросу") -> 14228.0656 | H32: =IFERROR(G32*(1-Оглавление!$D$34),"по запросу") -> 14228.0656 | I32: 141.94 | J32: шт | L32: 0 | M32: 0
B33: VKDDC040E | C33: Кран шаровой ХПВХ втулочный промышленный EPDM D40 (DN32) FIP | D33: 16 | E33: Арматура | F33: RUB | G33: =IFERROR(I33*Оглавление!$E$23,"по запросу") -> 16535.5904 | H33: =IFERROR(G33*(1-Оглавление!$D$34),"по запросу") -> 16535.5904 | I33: 164.96 | J33: шт | L33: 0 | M33: 0
B34: VKDDC050E | C34: Кран шаровой ХПВХ втулочный промышленный EPDM D50 (DN40) FIP | D34: 16 | E34: Арматура | F34: RUB | G34: =IFERROR(I34*Оглавление!$E$23,"по запросу") -> 19113.7632 | H34: =IFERROR(G34*(1-Оглавление!$D$34),"по запросу") -> 19113.7632 | I34: 190.68 | J34: шт | L34: 0 | M34: 0
B35: VKDDC063E | C35: Кран шаровой ХПВХ втулочный промышленный EPDM D63 (DN50) FIP | D35: 16 | E35: Арматура | F35: RUB | G35: =IFERROR(I35*Оглавление!$E$23,"по запросу") -> 24829.448 | H35: =IFERROR(G35*(1-Оглавление!$D$34),"по запросу") -> 24829.448 | I35: 247.7 | J35: шт | L35: 0 | M35: 0
B36: VKDDC020F | C36: Кран шаровой ХПВХ втулочный промышленный FKM D20 (DN15) FIP | D36: 16 | E36: Арматура | F36: RUB | G36: =IFERROR(I36*Оглавление!$E$23,"по запросу") -> 13783 | H36: =IFERROR(G36*(1-Оглавление!$D$34),"по запросу") -> 13783 | I36: 137.5 | J36: шт | L36: 0 | M36: 0
B37: VKDDC025F | C37: Кран шаровой ХПВХ втулочный промышленный FKM D25 (DN20) FIP | D37: 16 | E37: Арматура | F37: RUB | G37: =IFERROR(I37*Оглавление!$E$23,"по запросу") -> 14053.648 | H37: =IFERROR(G37*(1-Оглавление!$D$34),"по запросу") -> 14053.648 | I37: 140.2 | J37: шт | L37: 0 | M37: 0
B38: VKDDC032F | C38: Кран шаровой ХПВХ втулочный промышленный FKM D32 (DN25) FIP | D38: 16 | E38: Арматура | F38: RUB | G38: =IFERROR(I38*Оглавление!$E$23,"по запросу") -> 17056.8384 | H38: =IFERROR(G38*(1-Оглавление!$D$34),"по запросу") -> 17056.8384 | I38: 170.16 | J38: шт | L38: 0 | M38: 0
B39: VKDDC040F | C39: Кран шаровой ХПВХ втулочный промышленный FKM D40 (DN32) FIP | D39: 16 | E39: Арматура | F39: RUB | G39: =IFERROR(I39*Оглавление!$E$23,"по запросу") -> 19113.7632 | H39: =IFERROR(G39*(1-Оглавление!$D$34),"по запросу") -> 19113.7632 | I39: 190.68 | J39: шт | L39: 0 | M39: 0
B40: VKDDC050F | C40: Кран шаровой ХПВХ втулочный промышленный FKM D50 (DN40) FIP | D40: 16 | E40: Арматура | F40: RUB | G40: =IFERROR(I40*Оглавление!$E$23,"по запросу") -> 23915.2592 | H40: =IFERROR(G40*(1-Оглавление!$D$34),"по запросу") -> 23915.2592 | I40: 238.58 | J40: шт | L40: 0 | M40: 0
B41: VKDDC063F | C41: Кран шаровой ХПВХ втулочный промышленный FKM D63 (DN50) FIP | D41: 16 | E41: Арматура | F41: RUB | G41: =IFERROR(I41*Оглавление!$E$23,"по запросу") -> 30851.8672 | H41: =IFERROR(G41*(1-Оглавление!$D$34),"по запросу") -> 30851.8672 | I41: 307.78 | J41: шт | L41: 0 | M41: 0
B42: VKDOC020E | C42: Кран шаровой ХПВХ фланцевый промышленный EPDM 20 FIP | D42: 16 | E42: Арматура | F42: RUB | G42: =IFERROR(I42*Оглавление!$E$23,"по запросу") -> 20176.3072 | H42: =IFERROR(G42*(1-Оглавление!$D$34),"по запросу") -> 20176.3072 | I42: 201.28 | J42: шт | L42: 0 | M42: 0
B43: VKDOC025E | C43: Кран шаровой ХПВХ фланцевый промышленный EPDM 25 FIP | D43: 16 | E43: Арматура | F43: RUB | G43: =IFERROR(I43*Оглавление!$E$23,"по запросу") -> 21327.0624 | H43: =IFERROR(G43*(1-Оглавление!$D$34),"по запросу") -> 21327.0624 | I43: 212.76 | J43: шт | L43: 0 | M43: 0
B44: VKDOC032E | C44: Кран шаровой ХПВХ фланцевый промышленный EPDM 32 FIP | D44: 16 | E44: Арматура | F44: RUB | G44: =IFERROR(I44*Оглавление!$E$23,"по запросу") -> 24159.8448 | H44: =IFERROR(G44*(1-Оглавление!$D$34),"по запросу") -> 24159.8448 | I44: 241.02 | J44: шт | L44: 0 | M44: 0
B45: VKDOC040E | C45: Кран шаровой ХПВХ фланцевый промышленный EPDM 40 FIP | D45: 16 | E45: Арматура | F45: RUB | G45: =IFERROR(I45*Оглавление!$E$23,"по запросу") -> 33127.3152 | H45: =IFERROR(G45*(1-Оглавление!$D$34),"по запросу") -> 33127.3152 | I45: 330.48 | J45: шт | L45: 0 | M45: 0
B46: VKDOC050E | C46: Кран шаровой ХПВХ фланцевый промышленный EPDM 50 FIP | D46: 16 | E46: Арматура | F46: RUB | G46: =IFERROR(I46*Оглавление!$E$23,"по запросу") -> 38432.016 | H46: =IFERROR(G46*(1-Оглавление!$D$34),"по запросу") -> 38432.016 | I46: 383.4 | J46: шт | L46: 0 | M46: 0
B47: VKDOC063E | C47: Кран шаровой ХПВХ фланцевый промышленный EPDM 63 FIP | D47: 16 | E47: Арматура | F47: RUB | G47: =IFERROR(I47*Оглавление!$E$23,"по запросу") -> 45256.3552 | H47: =IFERROR(G47*(1-Оглавление!$D$34),"по запросу") -> 45256.3552 | I47: 451.48 | J47: шт | L47: 0 | M47: 0
B48: VKDOC075E | C48: Кран шаровой ХПВХ фланцевый промышленный EPDM 75 FIP | D48: 16 | E48: Арматура | F48: RUB | G48: =IFERROR(I48*Оглавление!$E$23,"по запросу") -> 155885.2288 | H48: =IFERROR(G48*(1-Оглавление!$D$34),"по запросу") -> 155885.2288 | I48: 1555.12 | J48: шт | L48: 0 | M48: 0
B49: VKDOC090E | C49: Кран шаровой ХПВХ фланцевый промышленный EPDM 90 FIP | D49: 16 | E49: Арматура | F49: RUB | G49: =IFERROR(I49*Оглавление!$E$23,"по запросу") -> 204537.7152 | H49: =IFERROR(G49*(1-Оглавление!$D$34),"по запросу") -> 204537.7152 | I49: 2040.48 | J49: шт | L49: 0 | M49: 0
B50: VKDOC110E | C50: Кран шаровой ХПВХ фланцевый промышленный EPDM 110 FIP | D50: 16 | E50: Арматура | F50: RUB | G50: =IFERROR(I50*Оглавление!$E$23,"по запросу") -> 246780.856 | H50: =IFERROR(G50*(1-Оглавление!$D$34),"по запросу") -> 246780.856 | I50: 2461.9 | J50: шт | L50: 0 | M50: 0
B51: VKDOC020F | C51: Кран шаровой ХПВХ фланцевый промышленный FKM 20 FIP | D51: 16 | E51: Арматура | F51: RUB | G51: =IFERROR(I51*Оглавление!$E$23,"по запросу") -> 24811.4048 | H51: =IFERROR(G51*(1-Оглавление!$D$34),"по запросу") -> 24811.4048 | I51: 247.52 | J51: шт | L51: 0 | M51: 0
B52: VKDOC025F | C52: Кран шаровой ХПВХ фланцевый промышленный FKM 25 FIP | D52: 16 | E52: Арматура | F52: RUB | G52: =IFERROR(I52*Оглавление!$E$23,"по запросу") -> 25723.5888 | H52: =IFERROR(G52*(1-Оглавление!$D$34),"по запросу") -> 25723.5888 | I52: 256.62 | J52: шт | L52: 0 | M52: 0
B53: VKDOC032F | C53: Кран шаровой ХПВХ фланцевый промышленный FKM 32 FIP | D53: 16 | E53: Арматура | F53: RUB | G53: =IFERROR(I53*Оглавление!$E$23,"по запросу") -> 28075.2192 | H53: =IFERROR(G53*(1-Оглавление!$D$34),"по запросу") -> 28075.2192 | I53: 280.08 | J53: шт | L53: =IFERROR(K53*G53,"0 ₽") -> 0 | M53: =IFERROR(K53*H53,"0 ₽") -> 0
B54: VKDOC040F | C54: Кран шаровой ХПВХ фланцевый промышленный FKM 40 FIP | D54: 16 | E54: Арматура | F54: RUB | G54: =IFERROR(I54*Оглавление!$E$23,"по запросу") -> 36880.3008 | H54: =IFERROR(G54*(1-Оглавление!$D$34),"по запросу") -> 36880.3008 | I54: 367.92 | J54: шт | L54: 0 | M54: 0
B55: VKDOC050F | C55: Кран шаровой ХПВХ фланцевый промышленный FKM 50 FIP | D55: 16 | E55: Арматура | F55: RUB | G55: =IFERROR(I55*Оглавление!$E$23,"по запросу") -> 43724.688 | H55: =IFERROR(G55*(1-Оглавление!$D$34),"по запросу") -> 43724.688 | I55: 436.2 | J55: шт | L55: 0 | M55: 0
B56: VKDOC063F | C56: Кран шаровой ХПВХ фланцевый промышленный FKM 63 FIP | D56: 16 | E56: Арматура | F56: RUB | G56: =IFERROR(I56*Оглавление!$E$23,"по запросу") -> 53393.8384 | H56: =IFERROR(G56*(1-Оглавление!$D$34),"по запросу") -> 53393.8384 | I56: 532.66 | J56: шт | L56: 0 | M56: 0
B57: VKDOC075F | C57: Кран шаровой ХПВХ фланцевый промышленный FKM 75 FIP | D57: 16 | E57: Арматура | F57: RUB | G57: =IFERROR(I57*Оглавление!$E$23,"по запросу") -> 186382.2464 | H57: =IFERROR(G57*(1-Оглавление!$D$34),"по запросу") -> 186382.2464 | I57: 1859.36 | J57: шт | L57: 0 | M57: 0
B58: VKDOC090F | C58: Кран шаровой ХПВХ фланцевый промышленный FKM 90 FIP | D58: 16 | E58: Арматура | F58: RUB | G58: =IFERROR(I58*Оглавление!$E$23,"по запросу") -> 240594.0432 | H58: =IFERROR(G58*(1-Оглавление!$D$34),"по запросу") -> 240594.0432 | I58: 2400.18 | J58: шт | L58: 0 | M58: 0
B59: VKDOC110F | C59: Кран шаровой ХПВХ фланцевый промышленный FKM 110 FIP | D59: 16 | E59: Арматура | F59: RUB | G59: =IFERROR(I59*Оглавление!$E$23,"по запросу") -> 282827.16 | H59: =IFERROR(G59*(1-Оглавление!$D$34),"по запросу") -> 282827.16 | I59: 2821.5 | J59: шт | L59: 0 | M59: 0
B60: TKDIC016E | C60: Кран трехходовой ХПВХ T-шар муфтовый EPDM D16 (DN10) FIP | D60: 16 | E60: Арматура | F60: RUB | G60: =IFERROR(I60*Оглавление!$E$23,"по запросу") -> 22590.0864 | H60: =IFERROR(G60*(1-Оглавление!$D$34),"по запросу") -> 22590.0864 | I60: 225.36 | J60: шт | L60: 0 | M60: 0
B61: TKDIC020E | C61: Кран трехходовой ХПВХ T-шар муфтовый EPDM D20 (DN15) FIP | D61: 16 | E61: Арматура | F61: RUB | G61: =IFERROR(I61*Оглавление!$E$23,"по запросу") -> 22590.0864 | H61: =IFERROR(G61*(1-Оглавление!$D$34),"по запросу") -> 22590.0864 | I61: 225.36 | J61: шт | L61: 0 | M61: 0
B62: TKDIC025E | C62: Кран трехходовой ХПВХ T-шар муфтовый EPDM D25 (DN20) FIP | D62: 16 | E62: Арматура | F62: RUB | G62: =IFERROR(I62*Оглавление!$E$23,"по запросу") -> 24504.6704 | H62: =IFERROR(G62*(1-Оглавление!$D$34),"по запросу") -> 24504.6704 | I62: 244.46 | J62: шт | L62: 0 | M62: 0
B63: TKDIC032E | C63: Кран трехходовой ХПВХ T-шар муфтовый EPDM D32 (DN25) FIP | D63: 16 | E63: Арматура | F63: RUB | G63: =IFERROR(I63*Оглавление!$E$23,"по запросу") -> 29332.2288 | H63: =IFERROR(G63*(1-Оглавление!$D$34),"по запросу") -> 29332.2288 | I63: 292.62 | J63: шт | L63: 0 | M63: 0
B64: TKDIC040E | C64: Кран трехходовой ХПВХ T-шар муфтовый EPDM D40 (DN32) FIP | D64: 16 | E64: Арматура | F64: RUB | G64: =IFERROR(I64*Оглавление!$E$23,"по запросу") -> 36316.952 | H64: =IFERROR(G64*(1-Оглавление!$D$34),"по запросу") -> 36316.952 | I64: 362.3 | J64: шт | L64: 0 | M64: 0
B65: TKDIC050E | C65: Кран трехходовой ХПВХ T-шар муфтовый EPDM D50 (DN40) FIP | D65: 16 | E65: Арматура | F65: RUB | G65: =IFERROR(I65*Оглавление!$E$23,"по запросу") -> 40376.672 | H65: =IFERROR(G65*(1-Оглавление!$D$34),"по запросу") -> 40376.672 | I65: 402.8 | J65: шт | L65: 0 | M65: 0
B66: TKDIC063E | C66: Кран трехходовой ХПВХ T-шар муфтовый EPDM D63 (DN50) FIP | D66: 16 | E66: Арматура | F66: RUB | G66: =IFERROR(I66*Оглавление!$E$23,"по запросу") -> 51352.952 | H66: =IFERROR(G66*(1-Оглавление!$D$34),"по запросу") -> 51352.952 | I66: 512.3 | J66: шт | L66: 0 | M66: 0
B67: TKDIC016F | C67: Кран трехходовой ХПВХ T-шар муфтовый FKM D16 (DN10) FIP | D67: 16 | E67: Арматура | F67: RUB | G67: =IFERROR(I67*Оглавление!$E$23,"по запросу") -> 24440.5168 | H67: =IFERROR(G67*(1-Оглавление!$D$34),"по запросу") -> 24440.5168 | I67: 243.82 | J67: шт | L67: 0 | M67: 0
B68: TKDIC020F | C68: Кран трехходовой ХПВХ T-шар муфтовый FKM D20 (DN15) FIP | D68: 16 | E68: Арматура | F68: RUB | G68: =IFERROR(I68*Оглавление!$E$23,"по запросу") -> 24440.5168 | H68: =IFERROR(G68*(1-Оглавление!$D$34),"по запросу") -> 24440.5168 | I68: 243.82 | J68: шт | L68: 0 | M68: 0
B69: TKDIC025F | C69: Кран трехходовой ХПВХ T-шар муфтовый FKM D25 (DN20) FIP | D69: 16 | E69: Арматура | F69: RUB | G69: =IFERROR(I69*Оглавление!$E$23,"по запросу") -> 26980.5984 | H69: =IFERROR(G69*(1-Оглавление!$D$34),"по запросу") -> 26980.5984 | I69: 269.16 | J69: шт | L69: 0 | M69: 0
B70: TKDIC032F | C70: Кран трехходовой ХПВХ T-шар муфтовый FKM D32 (DN25) FIP | D70: 16 | E70: Арматура | F70: RUB | G70: =IFERROR(I70*Оглавление!$E$23,"по запросу") -> 32409.5968 | H70: =IFERROR(G70*(1-Оглавление!$D$34),"по запросу") -> 32409.5968 | I70: 323.32 | J70: шт | L70: 0 | M70: 0
B71: TKDIC040F | C71: Кран трехходовой ХПВХ T-шар муфтовый FKM D40 (DN32) FIP | D71: 16 | E71: Арматура | F71: RUB | G71: =IFERROR(I71*Оглавление!$E$23,"по запросу") -> 40753.5744 | H71: =IFERROR(G71*(1-Оглавление!$D$34),"по запросу") -> 40753.5744 | I71: 406.56 | J71: шт | L71: 0 | M71: 0
B72: TKDIC050F | C72: Кран трехходовой ХПВХ T-шар муфтовый FKM D50 (DN40) FIP | D72: 16 | E72: Арматура | F72: RUB | G72: =IFERROR(I72*Оглавление!$E$23,"по запросу") -> 47838.5376 | H72: =IFERROR(G72*(1-Оглавление!$D$34),"по запросу") -> 47838.5376 | I72: 477.24 | J72: шт | L72: 0 | M72: 0
B73: TKDIC063F | C73: Кран трехходовой ХПВХ T-шар муфтовый FKM D63 (DN50) FIP | D73: 16 | E73: Арматура | F73: RUB | G73: =IFERROR(I73*Оглавление!$E$23,"по запросу") -> 60777.5168 | H73: =IFERROR(G73*(1-Оглавление!$D$34),"по запросу") -> 60777.5168 | I73: 606.32 | J73: шт | L73: 0 | M73: 0
B74: FKOCLM050E | C74: Затвор дисковый ХПВХ с рукояткой EPDM D50 (DN40) FIP | D74: 16 | E74: Арматура | F74: RUB | G74: =IFERROR(I74*Оглавление!$E$23,"по запросу") -> 43179.3824 | H74: =IFERROR(G74*(1-Оглавление!$D$34),"по запросу") -> 43179.3824 | I74: 430.76 | J74: шт | L74: 0 | M74: 0
B75: FKOCLM063E | C75: Затвор дисковый ХПВХ с рукояткой EPDM D63 (DN50) FIP | D75: 16 | E75: Арматура | F75: RUB | G75: =IFERROR(I75*Оглавление!$E$23,"по запросу") -> 45719.464 | H75: =IFERROR(G75*(1-Оглавление!$D$34),"по запросу") -> 45719.464 | I75: 456.1 | J75: шт | L75: 0 | M75: 0
B76: FKOCLM075E | C76: Затвор дисковый ХПВХ с рукояткой EPDM D75 (DN65) FIP | D76: 10 | E76: Арматура | F76: RUB | G76: =IFERROR(I76*Оглавление!$E$23,"по запросу") -> 50795.6176 | H76: =IFERROR(G76*(1-Оглавление!$D$34),"по запросу") -> 50795.6176 | I76: 506.74 | J76: шт | L76: 0 | M76: 0
B77: FKOCLM090E | C77: Затвор дисковый ХПВХ с рукояткой EPDM D90 (DN80) FIP | D77: 10 | E77: Арматура | F77: RUB | G77: =IFERROR(I77*Оглавление!$E$23,"по запросу") -> 53459.9968 | H77: =IFERROR(G77*(1-Оглавление!$D$34),"по запросу") -> 53459.9968 | I77: 533.32 | J77: шт | L77: 0 | M77: 0
B78: FKOCLM110E | C78: Затвор дисковый ХПВХ с рукояткой EPDM D110 (DN90) FIP | D78: 10 | E78: Арматура | F78: RUB | G78: =IFERROR(I78*Оглавление!$E$23,"по запросу") -> 58014.9024 | H78: =IFERROR(G78*(1-Оглавление!$D$34),"по запросу") -> 58014.9024 | I78: 578.76 | J78: шт | L78: 0 | M78: 0
B79: FKOCLM140E | C79: Затвор дисковый ХПВХ с рукояткой EPDM D140 (DN125) FIP | D79: 10 | E79: Арматура | F79: RUB | G79: =IFERROR(I79*Оглавление!$E$23,"по запросу") -> 77134.68 | H79: =IFERROR(G79*(1-Оглавление!$D$34),"по запросу") -> 77134.68 | I79: 769.5 | J79: шт | L79: 0 | M79: 0
B80: FKOCLM160E | C80: Затвор дисковый ХПВХ с рукояткой EPDM D160 (DN150) FIP | D80: 10 | E80: Арматура | F80: RUB | G80: =IFERROR(I80*Оглавление!$E$23,"по запросу") -> 83251.3248 | H80: =IFERROR(G80*(1-Оглавление!$D$34),"по запросу") -> 83251.3248 | I80: 830.52 | J80: шт | L80: 0 | M80: 0
B81: FKOCLM225E | C81: Затвор дисковый ХПВХ с рукояткой EPDM D225 (DN200) FIP | D81: 10 | E81: Арматура | F81: RUB | G81: =IFERROR(I81*Оглавление!$E$23,"по запросу") -> 107703.8704 | H81: =IFERROR(G81*(1-Оглавление!$D$34),"по запросу") -> 107703.8704 | I81: 1074.46 | J81: шт | L81: 0 | M81: 0
B82: FKOCLM050F | C82: Затвор дисковый ХПВХ с рукояткой FKM D50 (DN40) FIP | D82: 16 | E82: Арматура | F82: RUB | G82: =IFERROR(I82*Оглавление!$E$23,"по запросу") -> 60502.8592 | H82: =IFERROR(G82*(1-Оглавление!$D$34),"по запросу") -> 60502.8592 | I82: 603.58 | J82: шт | L82: 0 | M82: 0
B83: FKOCLM063F | C83: Затвор дисковый ХПВХ с рукояткой FKM D63 (DN50) FIP | D83: 16 | E83: Арматура | F83: RUB | G83: =IFERROR(I83*Оглавление!$E$23,"по запросу") -> 64063.384 | H83: =IFERROR(G83*(1-Оглавление!$D$34),"по запросу") -> 64063.384 | I83: 639.1 | J83: шт | L83: 0 | M83: 0
B84: FKOCLM075F | C84: Затвор дисковый ХПВХ с рукояткой FKM D75 (DN65) FIP | D84: 10 | E84: Арматура | F84: RUB | G84: =IFERROR(I84*Оглавление!$E$23,"по запросу") -> 71180.424 | H84: =IFERROR(G84*(1-Оглавление!$D$34),"по запросу") -> 71180.424 | I84: 710.1 | J84: шт | L84: 0 | M84: 0
B85: FKOCLM090F | C85: Затвор дисковый ХПВХ с рукояткой FKM D90 (DN80) FIP | D85: 10 | E85: Арматура | F85: RUB | G85: =IFERROR(I85*Оглавление!$E$23,"по запросу") -> 74781.0448 | H85: =IFERROR(G85*(1-Оглавление!$D$34),"по запросу") -> 74781.0448 | I85: 746.02 | J85: шт | L85: 0 | M85: 0
B86: FKOCLM110F | C86: Затвор дисковый ХПВХ с рукояткой FKM D110 (DN90) FIP | D86: 10 | E86: Арматура | F86: RUB | G86: =IFERROR(I86*Оглавление!$E$23,"по запросу") -> 79953.4288 | H86: =IFERROR(G86*(1-Оглавление!$D$34),"по запросу") -> 79953.4288 | I86: 797.62 | J86: шт | L86: 0 | M86: 0
B87: FKOCLM140F | C87: Затвор дисковый ХПВХ с рукояткой FKM D140 (DN125) FIP | D87: 10 | E87: Арматура | F87: RUB | G87: =IFERROR(I87*Оглавление!$E$23,"по запросу") -> 107240.7616 | H87: =IFERROR(G87*(1-Оглавление!$D$34),"по запросу") -> 107240.7616 | I87: 1069.84 | J87: шт | L87: =IFERROR(K87*G87,"0 ₽") -> 0 | M87: =IFERROR(K87*H87,"0 ₽") -> 0
B88: FKOCLM160F | C88: Затвор дисковый ХПВХ с рукояткой FKM D160 (DN150) FIP | D88: 10 | E88: Арматура | F88: RUB | G88: =IFERROR(I88*Оглавление!$E$23,"по запросу") -> 111156.136 | H88: =IFERROR(G88*(1-Оглавление!$D$34),"по запросу") -> 111156.136 | I88: 1108.9 | J88: шт | L88: 0 | M88: 0
B89: FKOCLM225F | C89: Затвор дисковый ХПВХ с рукояткой FKM D225 (DN200) FIP | D89: 10 | E89: Арматура | F89: RUB | G89: =IFERROR(I89*Оглавление!$E$23,"по запросу") -> 144078.9616 | H89: =IFERROR(G89*(1-Оглавление!$D$34),"по запросу") -> 144078.9616 | I89: 1437.34 | J89: шт | L89: 0 | M89: 0
B90: FKOCRM075E | C90: Затвор дисковый ХПВХ с редуктором EPDM D75 (DN65) FIP | D90: 10 | E90: Арматура | F90: RUB | G90: =IFERROR(I90*Оглавление!$E$23,"по запросу") -> 113976.8896 | H90: =IFERROR(G90*(1-Оглавление!$D$34),"по запросу") -> 113976.8896 | I90: 1137.04 | J90: шт | L90: 0 | M90: 0
B91: FKOCRM090E | C91: Затвор дисковый ХПВХ с редуктором EPDM D90 (DN80) FIP | D91: 10 | E91: Арматура | F91: RUB | G91: =IFERROR(I91*Оглавление!$E$23,"по запросу") -> 116328.52 | H91: =IFERROR(G91*(1-Оглавление!$D$34),"по запросу") -> 116328.52 | I91: 1160.5 | J91: шт | L91: 0 | M91: 0
B92: FKOCRM110E | C92: Затвор дисковый ХПВХ с редуктором EPDM D110 (DN90) FIP | D92: 10 | E92: Арматура | F92: RUB | G92: =IFERROR(I92*Оглавление!$E$23,"по запросу") -> 121188.1552 | H92: =IFERROR(G92*(1-Оглавление!$D$34),"по запросу") -> 121188.1552 | I92: 1208.98 | J92: шт | L92: 0 | M92: 0
B93: FKOCRM140E | C93: Затвор дисковый ХПВХ с редуктором EPDM D140 (DN125) FIP | D93: 10 | E93: Арматура | F93: RUB | G93: =IFERROR(I93*Оглавление!$E$23,"по запросу") -> 140157.5728 | H93: =IFERROR(G93*(1-Оглавление!$D$34),"по запросу") -> 140157.5728 | I93: 1398.22 | J93: шт | L93: 0 | M93: 0
B94: FKOCRM160E | C94: Затвор дисковый ХПВХ с редуктором EPDM D160 (DN150) FIP | D94: 10 | E94: Арматура | F94: RUB | G94: =IFERROR(I94*Оглавление!$E$23,"по запросу") -> 146274.2176 | H94: =IFERROR(G94*(1-Оглавление!$D$34),"по запросу") -> 146274.2176 | I94: 1459.24 | J94: шт | L94: 0 | M94: 0
B95: FKOCRM225E | C95: Затвор дисковый ХПВХ с редуктором EPDM D225 (DN200) FIP | D95: 10 | E95: Арматура | F95: RUB | G95: =IFERROR(I95*Оглавление!$E$23,"по запросу") -> 185157.3136 | H95: =IFERROR(G95*(1-Оглавление!$D$34),"по запросу") -> 185157.3136 | I95: 1847.14 | J95: шт | L95: 0 | M95: 0
B96: FKOCRM280E | C96: Затвор дисковый ХПВХ с редуктором EPDM D280 (DN250) FIP | D96: 10 | E96: Арматура | F96: RUB | G96: =IFERROR(I96*Оглавление!$E$23,"по запросу") -> 354045.6752 | H96: =IFERROR(G96*(1-Оглавление!$D$34),"по запросу") -> 354045.6752 | I96: 3531.98 | J96: шт | L96: 0 | M96: 0
B97: FKOCRM315E | C97: Затвор дисковый ХПВХ с редуктором EPDM D315 (DN300) FIP | D97: 8 | E97: Арматура | F97: RUB | G97: =IFERROR(I97*Оглавление!$E$23,"по запросу") -> 381946.4768 | H97: =IFERROR(G97*(1-Оглавление!$D$34),"по запросу") -> 381946.4768 | I97: 3810.32 | J97: шт | L97: 0 | M97: 0
B98: FKOCRM075F | C98: Затвор дисковый ХПВХ с редуктором FKM D75 (DN65) FIP | D98: 10 | E98: Арматура | F98: RUB | G98: =IFERROR(I98*Оглавление!$E$23,"по запросу") -> 134351.672 | H98: =IFERROR(G98*(1-Оглавление!$D$34),"по запросу") -> 134351.672 | I98: 1340.3 | J98: шт | L98: 0 | M98: 0
B99: FKOCRM090F | C99: Затвор дисковый ХПВХ с редуктором FKM D90 (DN80) FIP | D99: 10 | E99: Арматура | F99: RUB | G99: =IFERROR(I99*Оглавление!$E$23,"по запросу") -> 137647.5632 | H99: =IFERROR(G99*(1-Оглавление!$D$34),"по запросу") -> 137647.5632 | I99: 1373.18 | J99: шт | L99: 0 | M99: 0
B100: FKOCRM110F | C100: Затвор дисковый ХПВХ с редуктором FKM D110 (DN90) FIP | D100: 10 | E100: Арматура | F100: RUB | G100: =IFERROR(I100*Оглавление!$E$23,"по запросу") -> 142978.3264 | H100: =IFERROR(G100*(1-Оглавление!$D$34),"по запросу") -> 142978.3264 | I100: 1426.36 | J100: шт | L100: 0 | M100: 0
B101: FKOCRM140F | C101: Затвор дисковый ХПВХ с редуктором FKM D140 (DN125) FIP | D101: 10 | E101: Арматура | F101: RUB | G101: =IFERROR(I101*Оглавление!$E$23,"по запросу") -> по запросу | H101: =IFERROR(G101*(1-Оглавление!$D$34),"по запросу") -> по запросу | I101: по запросу | J101: шт | L101: 0 ₽ | M101: 0 ₽
B102: FKOCRM160F | C102: Затвор дисковый ХПВХ с редуктором FKM D160 (DN150) FIP | D102: 10 | E102: Арматура | F102: RUB | G102: =IFERROR(I102*Оглавление!$E$23,"по запросу") -> 174175.0192 | H102: =IFERROR(G102*(1-Оглавление!$D$34),"по запросу") -> 174175.0192 | I102: 1737.58 | J102: шт | L102: 0 | M102: 0
B103: FKOCRM225F | C103: Затвор дисковый ХПВХ с редуктором FKM D225 (DN200) FIP | D103: 10 | E103: Арматура | F103: RUB | G103: =IFERROR(I103*Оглавление!$E$23,"по запросу") -> 221368.0112 | H103: =IFERROR(G103*(1-Оглавление!$D$34),"по запросу") -> 221368.0112 | I103: 2208.38 | J103: шт | L103: 0 | M103: 0
B104: FKOCRM280F | C104: Затвор дисковый ХПВХ с редуктором FKM D280 (DN250) FIP | D104: 10 | E104: Арматура | F104: RUB | G104: =IFERROR(I104*Оглавление!$E$23,"по запросу") -> 536863.3872 | H104: =IFERROR(G104*(1-Оглавление!$D$34),"по запросу") -> 536863.3872 | I104: 5355.78 | J104: шт | L104: 0 | M104: 0
B105: FKOCRM315F | C105: Затвор дисковый ХПВХ с редуктором FKM D315 (DN300) FIP | D105: 8 | E105: Арматура | F105: RUB | G105: =IFERROR(I105*Оглавление!$E$23,"по запросу") -> 581385.9856 | H105: =IFERROR(G105*(1-Оглавление!$D$34),"по запросу") -> 581385.9856 | I105: 5799.94 | J105: шт | L105: 0 | M105: 0
B106: FKOCFM050E | C106: Затвор дисковый ХПВХ под привод промышленный 50 (DN40) EPDM FIP | D106: 16 | E106: Арматура | F106: RUB | G106: =IFERROR(I106*Оглавление!$E$23,"по запросу") -> 36780.0608 | H106: =IFERROR(G106*(1-Оглавление!$D$34),"по запросу") -> 36780.0608 | I106: 366.92 | J106: шт | L106: 0 | M106: 0
B107: FKOCFM063E | C107: Затвор дисковый ХПВХ под привод промышленный 63 (DN50) EPDM FIP | D107: 16 | E107: Арматура | F107: RUB | G107: =IFERROR(I107*Оглавление!$E$23,"по запросу") -> 38945.2448 | H107: =IFERROR(G107*(1-Оглавление!$D$34),"по запросу") -> 38945.2448 | I107: 388.52 | J107: шт | L107: 0 | M107: 0
B108: FKOCFM075E | C108: Затвор дисковый ХПВХ под привод промышленный 75 (DN65) EPDM FIP | D108: 10 | E108: Арматура | F108: RUB | G108: =IFERROR(I108*Оглавление!$E$23,"по запросу") -> 43273.608 | H108: =IFERROR(G108*(1-Оглавление!$D$34),"по запросу") -> 43273.608 | I108: 431.7 | J108: шт | L108: 0 | M108: 0
B109: FKOCFM090E | C109: Затвор дисковый ХПВХ под привод промышленный 90 (DN80) EPDM FIP | D109: 10 | E109: Арматура | F109: RUB | G109: =IFERROR(I109*Оглавление!$E$23,"по запросу") -> 47038.6224 | H109: =IFERROR(G109*(1-Оглавление!$D$34),"по запросу") -> 47038.6224 | I109: 469.26 | J109: шт | L109: 0 | M109: 0
B110: FKOCFM110E | C110: Затвор дисковый ХПВХ под привод промышленный 110 (DN100) EPDM FIP | D110: 10 | E110: Арматура | F110: RUB | G110: =IFERROR(I110*Оглавление!$E$23,"по запросу") -> 51104.3568 | H110: =IFERROR(G110*(1-Оглавление!$D$34),"по запросу") -> 51104.3568 | I110: 509.82 | J110: шт | L110: 0 | M110: 0
B111: FKOCFM140E | C111: Затвор дисковый ХПВХ под привод промышленный 140 (DN125) EPDM FIP | D111: 10 | E111: Арматура | F111: RUB | G111: =IFERROR(I111*Оглавление!$E$23,"по запросу") -> 67890.5472 | H111: =IFERROR(G111*(1-Оглавление!$D$34),"по запросу") -> 67890.5472 | I111: 677.28 | J111: шт | L111: 0 | M111: 0
B112: FKOCFM160E | C112: Затвор дисковый ХПВХ под привод промышленный 160 (DN150) EPDM FIP | D112: 10 | E112: Арматура | F112: RUB | G112: =IFERROR(I112*Оглавление!$E$23,"по запросу") -> 74939.424 | H112: =IFERROR(G112*(1-Оглавление!$D$34),"по запросу") -> 74939.424 | I112: 747.6 | J112: шт | L112: 0 | M112: 0
B113: FKOCFM225E | C113: Затвор дисковый ХПВХ под привод промышленный 225 (DN200) EPDM FIP | D113: 10 | E113: Арматура | F113: RUB | G113: =IFERROR(I113*Оглавление!$E$23,"по запросу") -> 97046.3536 | H113: =IFERROR(G113*(1-Оглавление!$D$34),"по запросу") -> 97046.3536 | I113: 968.14 | J113: шт | L113: 0 | M113: 0
B114: FKOCFM280E | C114: Затвор дисковый ХПВХ под привод промышленный 280 (DN250) EPDM FIP | D114: 10 | E114: Арматура | F114: RUB | G114: =IFERROR(I114*Оглавление!$E$23,"по запросу") -> 309196.2944 | H114: =IFERROR(G114*(1-Оглавление!$D$34),"по запросу") -> 309196.2944 | I114: 3084.56 | J114: шт | L114: 0 | M114: 0
B115: FKOCFM315E | C115: Затвор дисковый ХПВХ под привод промышленный 315 (DN300) EPDM FIP | D115: 8 | E115: Арматура | F115: RUB | G115: =IFERROR(I115*Оглавление!$E$23,"по запросу") -> 337109.1248 | H115: =IFERROR(G115*(1-Оглавление!$D$34),"по запросу") -> 337109.1248 | I115: 3363.02 | J115: шт | L115: 0 | M115: 0
B116: FKOCFM050F | C116: Затвор дисковый ХПВХ под привод промышленный 50 (DN40) FKM FIP | D116: 16 | E116: Арматура | F116: RUB | G116: =IFERROR(I116*Оглавление!$E$23,"по запросу") -> 54512.5168 | H116: =IFERROR(G116*(1-Оглавление!$D$34),"по запросу") -> 54512.5168 | I116: 543.82 | J116: шт | L116: 0 | M116: 0
B117: FKOCFM063F | C117: Затвор дисковый ХПВХ под привод промышленный 63 (DN50) FKM FIP | D117: 16 | E117: Арматура | F117: RUB | G117: =IFERROR(I117*Оглавление!$E$23,"по запросу") -> 57706.1632 | H117: =IFERROR(G117*(1-Оглавление!$D$34),"по запросу") -> 57706.1632 | I117: 575.68 | J117: шт | L117: 0 | M117: 0
B118: FKOCFM075F | C118: Затвор дисковый ХПВХ под привод промышленный 75 (DN65) FKM FIP | D118: 10 | E118: Арматура | F118: RUB | G118: =IFERROR(I118*Оглавление!$E$23,"по запросу") -> 64125.5328 | H118: =IFERROR(G118*(1-Оглавление!$D$34),"по запросу") -> 64125.5328 | I118: 639.72 | J118: шт | L118: 0 | M118: 0
B119: FKOCFM090F | C119: Затвор дисковый ХПВХ под привод промышленный 90 (DN80) FKM FIP | D119: 10 | E119: Арматура | F119: RUB | G119: =IFERROR(I119*Оглавление!$E$23,"по запросу") -> 68826.7888 | H119: =IFERROR(G119*(1-Оглавление!$D$34),"по запросу") -> 68826.7888 | I119: 686.62 | J119: шт | L119: 0 | M119: 0
B120: FKOCFM110F | C120: Затвор дисковый ХПВХ под привод промышленный 110 (DN100) FKM FIP | D120: 10 | E120: Арматура | F120: RUB | G120: =IFERROR(I120*Оглавление!$E$23,"по запросу") -> 73688.4288 | H120: =IFERROR(G120*(1-Оглавление!$D$34),"по запросу") -> 73688.4288 | I120: 735.12 | J120: шт | L120: 0 | M120: 0
B121: FKOCFM140F | C121: Затвор дисковый ХПВХ под привод промышленный 140 (DN125) FKM FIP | D121: 10 | E121: Арматура | F121: RUB | G121: =IFERROR(I121*Оглавление!$E$23,"по запросу") -> 98610.0976 | H121: =IFERROR(G121*(1-Оглавление!$D$34),"по запросу") -> 98610.0976 | I121: 983.74 | J121: шт | L121: 0 | M121: 0
B122: FKOCFM160F | C122: Затвор дисковый ХПВХ под привод промышленный 160 (DN150) FKM FIP | D122: 10 | E122: Арматура | F122: RUB | G122: =IFERROR(I122*Оглавление!$E$23,"по запросу") -> 105514.6288 | H122: =IFERROR(G122*(1-Оглавление!$D$34),"по запросу") -> 105514.6288 | I122: 1052.62 | J122: шт | L122: 0 | M122: 0
B123: FKOCFM225F | C123: Затвор дисковый ХПВХ под привод промышленный 225 (DN200) FKM FIP | D123: 10 | E123: Арматура | F123: RUB | G123: =IFERROR(I123*Оглавление!$E$23,"по запросу") -> 136867.696 | H123: =IFERROR(G123*(1-Оглавление!$D$34),"по запросу") -> 136867.696 | I123: 1365.4 | J123: шт | L123: 0 | M123: 0
B124: FKOCFM280F | C124: Затвор дисковый ХПВХ под привод промышленный 280 (DN250) FKM FIP | D124: 10 | E124: Арматура | F124: RUB | G124: =IFERROR(I124*Оглавление!$E$23,"по запросу") -> 492014.0064 | H124: =IFERROR(G124*(1-Оглавление!$D$34),"по запросу") -> 492014.0064 | I124: 4908.36 | J124: шт | L124: 0 | M124: 0
B125: FKOCFM315F | C125: Затвор дисковый ХПВХ под привод промышленный 315 (DN300) FKM FIP | D125: 8 | E125: Арматура | F125: RUB | G125: =IFERROR(I125*Оглавление!$E$23,"по запросу") -> 536550.6384 | H125: =IFERROR(G125*(1-Оглавление!$D$34),"по запросу") -> 536550.6384 | I125: 5352.66 | J125: шт | L125: 0 | M125: 0
B126: SSEIC016E | C126: Обратный клапан ХПВХ пружинный с муфтовыми окончаниями EPDM 16 FIP | D126: 16 | E126: Арматура | F126: RUB | G126: =IFERROR(I126*Оглавление!$E$23,"по запросу") -> 18221.88207 | H126: =IFERROR(G126*(1-Оглавление!$D$34),"по запросу") -> 18221.88207 | I126: 181.7825426 | J126: шт | L126: 0 | M126: 0
B127: SSEIC020E | C127: Обратный клапан ХПВХ пружинный с муфтовыми окончаниями EPDM 20 FIP | D127: 16 | E127: Арматура | F127: RUB | G127: =IFERROR(I127*Оглавление!$E$23,"по запросу") -> 18275.7568 | H127: =IFERROR(G127*(1-Оглавление!$D$34),"по запросу") -> 18275.7568 | I127: 182.32 | J127: шт | L127: 0 | M127: 0
B128: SSEIC025E | C128: Обратный клапан ХПВХ пружинный с муфтовыми окончаниями EPDM 25 FIP | D128: 16 | E128: Арматура | F128: RUB | G128: =IFERROR(I128*Оглавление!$E$23,"по запросу") -> 20088.096 | H128: =IFERROR(G128*(1-Оглавление!$D$34),"по запросу") -> 20088.096 | I128: 200.4 | J128: шт | L128: 0 | M128: 0
B129: SSEIC032E | C129: Обратный клапан ХПВХ пружинный с муфтовыми окончаниями EPDM 32 FIP | D129: 16 | E129: Арматура | F129: RUB | G129: =IFERROR(I129*Оглавление!$E$23,"по запросу") -> 20920.088 | H129: =IFERROR(G129*(1-Оглавление!$D$34),"по запросу") -> 20920.088 | I129: 208.7 | J129: шт | L129: =IFERROR(K129*G129,"0 ₽") -> 0 | M129: =IFERROR(K129*H129,"0 ₽") -> 0
B130: SSEIC040E | C130: Обратный клапан ХПВХ пружинный с муфтовыми окончаниями EPDM 40 FIP | D130: 16 | E130: Арматура | F130: RUB | G130: =IFERROR(I130*Оглавление!$E$23,"по запросу") -> 24410.4448 | H130: =IFERROR(G130*(1-Оглавление!$D$34),"по запросу") -> 24410.4448 | I130: 243.52 | J130: шт | L130: 0 | M130: 0
B131: SSEIC050E | C131: Обратный клапан ХПВХ пружинный с муфтовыми окончаниями EPDM 50 FIP | D131: 16 | E131: Арматура | F131: RUB | G131: =IFERROR(I131*Оглавление!$E$23,"по запросу") -> 31357.0768 | H131: =IFERROR(G131*(1-Оглавление!$D$34),"по запросу") -> 31357.0768 | I131: 312.82 | J131: шт | L131: 0 | M131: 0
B132: SSEIC063E | C132: Обратный клапан ХПВХ пружинный с муфтовыми окончаниями EPDM 63 FIP | D132: 16 | E132: Арматура | F132: RUB | G132: =IFERROR(I132*Оглавление!$E$23,"по запросу") -> 40414.7632 | H132: =IFERROR(G132*(1-Оглавление!$D$34),"по запросу") -> 40414.7632 | I132: 403.18 | J132: шт | L132: 0 | M132: 0
B133: SSEIC075E | C133: Обратный клапан ХПВХ пружинный с муфтовыми окончаниями EPDM 75 FIP | D133: 16 | E133: Арматура | F133: RUB | G133: =IFERROR(I133*Оглавление!$E$23,"по запросу") -> 92986.6336 | H133: =IFERROR(G133*(1-Оглавление!$D$34),"по запросу") -> 92986.6336 | I133: 927.64 | J133: шт | L133: 0 | M133: 0
B134: SSEIC090E | C134: Обратный клапан ХПВХ пружинный с муфтовыми окончаниями EPDM 90 FIP | D134: 16 | E134: Арматура | F134: RUB | G134: =IFERROR(I134*Оглавление!$E$23,"по запросу") -> 117537.4144 | H134: =IFERROR(G134*(1-Оглавление!$D$34),"по запросу") -> 117537.4144 | I134: 1172.56 | J134: шт | L134: 0 | M134: 0
B135: SSEIC110E | C135: Обратный клапан ХПВХ пружинный с муфтовыми окончаниями EPDM 110 FIP | D135: 16 | E135: Арматура | F135: RUB | G135: =IFERROR(I135*Оглавление!$E$23,"по запросу") -> 161177.9008 | H135: =IFERROR(G135*(1-Оглавление!$D$34),"по запросу") -> 161177.9008 | I135: 1607.92 | J135: шт | L135: 0 | M135: 0
B136: SSEIC016F | C136: Обратный клапан ХПВХ пружинный с муфтовыми окончаниями FKM 16 FIP | D136: 16 | E136: Арматура | F136: RUB | G136: =IFERROR(I136*Оглавление!$E$23,"по запросу") -> 19845.62841 | H136: =IFERROR(G136*(1-Оглавление!$D$34),"по запросу") -> 19845.62841 | I136: 197.9811294 | J136: шт | L136: 0 | M136: 0
B137: SSEIC020F | C137: Обратный клапан ХПВХ пружинный с муфтовыми окончаниями FKM 20 FIP | D137: 16 | E137: Арматура | F137: RUB | G137: =IFERROR(I137*Оглавление!$E$23,"по запросу") -> 19934.36209 | H137: =IFERROR(G137*(1-Оглавление!$D$34),"по запросу") -> 19934.36209 | I137: 198.8663417 | J137: шт | L137: 0 | M137: 0
B138: SSEIC025F | C138: Обратный клапан ХПВХ пружинный с муфтовыми окончаниями FKM 25 FIP | D138: 16 | E138: Арматура | F138: RUB | G138: =IFERROR(I138*Оглавление!$E$23,"по запросу") -> 21442.83462 | H138: =IFERROR(G138*(1-Оглавление!$D$34),"по запросу") -> 21442.83462 | I138: 213.9149503 | J138: шт | L138: 0 | M138: 0
B139: SSEIC032F | C139: Обратный клапан ХПВХ пружинный с муфтовыми окончаниями FKM 32 FIP | D139: 16 | E139: Арматура | F139: RUB | G139: =IFERROR(I139*Оглавление!$E$23,"по запросу") -> 22691.93179 | H139: =IFERROR(G139*(1-Оглавление!$D$34),"по запросу") -> 22691.93179 | I139: 226.3760154 | J139: шт | L139: 0 | M139: 0
B140: SSEIC040F | C140: Обратный клапан ХПВХ пружинный с муфтовыми окончаниями FKM 40 FIP | D140: 16 | E140: Арматура | F140: RUB | G140: =IFERROR(I140*Оглавление!$E$23,"по запросу") -> 28087.248 | H140: =IFERROR(G140*(1-Оглавление!$D$34),"по запросу") -> 28087.248 | I140: 280.2 | J140: шт | L140: 0 | M140: 0
B141: SSEIC050F | C141: Обратный клапан ХПВХ пружинный с муфтовыми окончаниями FKM 50 FIP | D141: 16 | E141: Арматура | F141: RUB | G141: =IFERROR(I141*Оглавление!$E$23,"по запросу") -> 34492.584 | H141: =IFERROR(G141*(1-Оглавление!$D$34),"по запросу") -> 34492.584 | I141: 344.1 | J141: шт | L141: 0 | M141: 0
B142: SSEIC063F | C142: Обратный клапан ХПВХ пружинный с муфтовыми окончаниями FKM 63 FIP | D142: 16 | E142: Арматура | F142: RUB | G142: =IFERROR(I142*Оглавление!$E$23,"по запросу") -> 41553.4896 | H142: =IFERROR(G142*(1-Оглавление!$D$34),"по запросу") -> 41553.4896 | I142: 414.54 | J142: шт | L142: 0 | M142: 0
B143: SSEIC075F | C143: Обратный клапан ХПВХ пружинный с муфтовыми окончаниями FKM 75 FIP | D143: 16 | E143: Арматура | F143: RUB | G143: =IFERROR(I143*Оглавление!$E$23,"по запросу") -> 102342.7465 | H143: =IFERROR(G143*(1-Оглавление!$D$34),"по запросу") -> 102342.7465 | I143: 1020.97712 | J143: шт | L143: 0 | M143: 0
B144: SSEIC090F | C144: Обратный клапан ХПВХ пружинный с муфтовыми окончаниями FKM 90 FIP | D144: 16 | E144: Арматура | F144: RUB | G144: =IFERROR(I144*Оглавление!$E$23,"по запросу") -> 128660.5255 | H144: =IFERROR(G144*(1-Оглавление!$D$34),"по запросу") -> 128660.5255 | I144: 1283.524795 | J144: шт | L144: 0 | M144: 0
B145: SSEIC110F | C145: Обратный клапан ХПВХ пружинный с муфтовыми окончаниями FKM 110 FIP | D145: 16 | E145: Арматура | F145: RUB | G145: =IFERROR(I145*Оглавление!$E$23,"по запросу") -> 178252.7824 | H145: =IFERROR(G145*(1-Оглавление!$D$34),"по запросу") -> 178252.7824 | I145: 1778.26 | J145: шт | L145: 0 | M145: 0
B146: SXEIC016E | C146: Обратный клапан ХПВХ шаровой с муфтовыми окончаниями EPDM 16 FIP | D146: 16 | E146: Арматура | F146: RUB | G146: =IFERROR(I146*Оглавление!$E$23,"по запросу") -> 10026.0048 | H146: =IFERROR(G146*(1-Оглавление!$D$34),"по запросу") -> 10026.0048 | I146: 100.02 | J146: шт | L146: 0 | M146: 0
B147: SXEIC020E | C147: Обратный клапан ХПВХ шаровой с муфтовыми окончаниями EPDM 20 FIP | D147: 16 | E147: Арматура | F147: RUB | G147: =IFERROR(I147*Оглавление!$E$23,"по запросу") -> 10026.0048 | H147: =IFERROR(G147*(1-Оглавление!$D$34),"по запросу") -> 10026.0048 | I147: 100.02 | J147: шт | L147: 0 | M147: 0
B148: SXEIC025E | C148: Обратный клапан ХПВХ шаровой с муфтовыми окончаниями EPDM 25 FIP | D148: 16 | E148: Арматура | F148: RUB | G148: =IFERROR(I148*Оглавление!$E$23,"по запросу") -> 10849.9776 | H148: =IFERROR(G148*(1-Оглавление!$D$34),"по запросу") -> 10849.9776 | I148: 108.24 | J148: шт | L148: 0 | M148: 0
B149: SXEIC032E | C149: Обратный клапан ХПВХ шаровой с муфтовыми окончаниями EPDM 32 FIP | D149: 16 | E149: Арматура | F149: RUB | G149: =IFERROR(I149*Оглавление!$E$23,"по запросу") -> 13065.2816 | H149: =IFERROR(G149*(1-Оглавление!$D$34),"по запросу") -> 13065.2816 | I149: 130.34 | J149: шт | L149: 0 | M149: 0
B150: SXEIC040E | C150: Обратный клапан ХПВХ шаровой с муфтовыми окончаниями EPDM 40 FIP | D150: 16 | E150: Арматура | F150: RUB | G150: =IFERROR(I150*Оглавление!$E$23,"по запросу") -> 14921.7264 | H150: =IFERROR(G150*(1-Оглавление!$D$34),"по запросу") -> 14921.7264 | I150: 148.86 | J150: шт | L150: 0 | M150: 0
B151: SXEIC050E | C151: Обратный клапан ХПВХ шаровой с муфтовыми окончаниями EPDM 50 FIP | D151: 16 | E151: Арматура | F151: RUB | G151: =IFERROR(I151*Оглавление!$E$23,"по запросу") -> 20320.6528 | H151: =IFERROR(G151*(1-Оглавление!$D$34),"по запросу") -> 20320.6528 | I151: 202.72 | J151: шт | L151: 0 | M151: 0
B152: SXEIC063E | C152: Обратный клапан ХПВХ шаровой с муфтовыми окончаниями EPDM 63 FIP | D152: 16 | E152: Арматура | F152: RUB | G152: =IFERROR(I152*Оглавление!$E$23,"по запросу") -> 24466.5792 | H152: =IFERROR(G152*(1-Оглавление!$D$34),"по запросу") -> 24466.5792 | I152: 244.08 | J152: шт | L152: 0 | M152: 0
B153: SXEIC075E | C153: Обратный клапан ХПВХ шаровой с муфтовыми окончаниями EPDM 75 FIP | D153: 16 | E153: Арматура | F153: RUB | G153: =IFERROR(I153*Оглавление!$E$23,"по запросу") -> 79191.6048 | H153: =IFERROR(G153*(1-Оглавление!$D$34),"по запросу") -> 79191.6048 | I153: 790.02 | J153: шт | L153: 0 | M153: 0
B154: SXEIC090E | C154: Обратный клапан ХПВХ шаровой с муфтовыми окончаниями EPDM 90 FIP | D154: 16 | E154: Арматура | F154: RUB | G154: =IFERROR(I154*Оглавление!$E$23,"по запросу") -> 102298.9296 | H154: =IFERROR(G154*(1-Оглавление!$D$34),"по запросу") -> 102298.9296 | I154: 1020.54 | J154: шт | L154: 0 | M154: 0
B155: SXEIC110E | C155: Обратный клапан ХПВХ шаровой с муфтовыми окончаниями EPDM 110 FIP | D155: 16 | E155: Арматура | F155: RUB | G155: =IFERROR(I155*Оглавление!$E$23,"по запросу") -> 192047.8112 | H155: =IFERROR(G155*(1-Оглавление!$D$34),"по запросу") -> 192047.8112 | I155: 1915.88 | J155: шт | L155: 0 | M155: 0
B156: SXEIC016F | C156: Обратный клапан ХПВХ шаровой с муфтовыми окончаниями FKM 16 FIP | D156: 16 | E156: Арматура | F156: RUB | G156: =IFERROR(I156*Оглавление!$E$23,"по запросу") -> 10286.6288 | H156: =IFERROR(G156*(1-Оглавление!$D$34),"по запросу") -> 10286.6288 | I156: 102.62 | J156: шт | L156: 0 | M156: 0
B157: SXEIC020F | C157: Обратный клапан ХПВХ шаровой с муфтовыми окончаниями FKM 20 FIP | D157: 16 | E157: Арматура | F157: RUB | G157: =IFERROR(I157*Оглавление!$E$23,"по запросу") -> 10286.6288 | H157: =IFERROR(G157*(1-Оглавление!$D$34),"по запросу") -> 10286.6288 | I157: 102.62 | J157: шт | L157: 0 | M157: 0
B158: SXEIC025F | C158: Обратный клапан ХПВХ шаровой с муфтовыми окончаниями FKM 25 FIP | D158: 16 | E158: Арматура | F158: RUB | G158: =IFERROR(I158*Оглавление!$E$23,"по запросу") -> 11100.5776 | H158: =IFERROR(G158*(1-Оглавление!$D$34),"по запросу") -> 11100.5776 | I158: 110.74 | J158: шт | L158: 0 | M158: 0
B159: SXEIC032F | C159: Обратный клапан ХПВХ шаровой с муфтовыми окончаниями FKM 32 FIP | D159: 16 | E159: Арматура | F159: RUB | G159: =IFERROR(I159*Оглавление!$E$23,"по запросу") -> 13289.8192 | H159: =IFERROR(G159*(1-Оглавление!$D$34),"по запросу") -> 13289.8192 | I159: 132.58 | J159: шт | L159: 0 | M159: 0
B160: SXEIC040F | C160: Обратный клапан ХПВХ шаровой с муфтовыми окончаниями FKM 40 FIP | D160: 16 | E160: Арматура | F160: RUB | G160: =IFERROR(I160*Оглавление!$E$23,"по запросу") -> 16128.616 | H160: =IFERROR(G160*(1-Оглавление!$D$34),"по запросу") -> 16128.616 | I160: 160.9 | J160: шт | L160: 0 | M160: 0
B161: SXEIC050F | C161: Обратный клапан ХПВХ шаровой с муфтовыми окончаниями FKM 50 FIP | D161: 16 | E161: Арматура | F161: RUB | G161: =IFERROR(I161*Оглавление!$E$23,"по запросу") -> 21589.6912 | H161: =IFERROR(G161*(1-Оглавление!$D$34),"по запросу") -> 21589.6912 | I161: 215.38 | J161: шт | L161: 0 | M161: 0
B162: SXEIC063F | C162: Обратный клапан ХПВХ шаровой с муфтовыми окончаниями FKM 63 FIP | D162: 16 | E162: Арматура | F162: RUB | G162: =IFERROR(I162*Оглавление!$E$23,"по запросу") -> 25198.3312 | H162: =IFERROR(G162*(1-Оглавление!$D$34),"по запросу") -> 25198.3312 | I162: 251.38 | J162: шт | L162: 0 | M162: 0
B163: SXEIC075F | C163: Обратный клапан ХПВХ шаровой с муфтовыми окончаниями FKM 75 FIP | D163: 16 | E163: Арматура | F163: RUB | G163: =IFERROR(I163*Оглавление!$E$23,"по запросу") -> 83086.9312 | H163: =IFERROR(G163*(1-Оглавление!$D$34),"по запросу") -> 83086.9312 | I163: 828.88 | J163: шт | L163: 0 | M163: 0
B164: SXEIC090F | C164: Обратный клапан ХПВХ шаровой с муфтовыми окончаниями FKM 90 FIP | D164: 16 | E164: Арматура | F164: RUB | G164: =IFERROR(I164*Оглавление!$E$23,"по запросу") -> 106773.6432 | H164: =IFERROR(G164*(1-Оглавление!$D$34),"по запросу") -> 106773.6432 | I164: 1065.18 | J164: шт | L164: 0 | M164: 0
B165: SXEIC110F | C165: Обратный клапан ХПВХ шаровой с муфтовыми окончаниями FKM 110 FIP | D165: 16 | E165: Арматура | F165: RUB | G165: =IFERROR(I165*Оглавление!$E$23,"по запросу") -> 201492.424 | H165: =IFERROR(G165*(1-Оглавление!$D$34),"по запросу") -> 201492.424 | I165: 2010.1 | J165: шт | L165: 0 | M165: 0
B166: RVUIC020E | C166: Фильтр сетчатый ХПВХ муфтовый EPDM D20 (DN15) FIP | D166: 16 | E166: Арматура | F166: RUB | G166: =IFERROR(I166*Оглавление!$E$23,"по запросу") -> 12469.856 | H166: =IFERROR(G166*(1-Оглавление!$D$34),"по запросу") -> 12469.856 | I166: 124.4 | J166: шт | L166: =IFERROR(K166*G166,"0 ₽") -> 0 | M166: =IFERROR(K166*H166,"0 ₽") -> 0
B167: RVUIC025E | C167: Фильтр сетчатый ХПВХ муфтовый EPDM D25 (DN20) FIP | D167: 16 | E167: Арматура | F167: RUB | G167: =IFERROR(I167*Оглавление!$E$23,"по запросу") -> 13464.2368 | H167: =IFERROR(G167*(1-Оглавление!$D$34),"по запросу") -> 13464.2368 | I167: 134.32 | J167: шт | L167: 0 | M167: 0
B168: RVUIC032E | C168: Фильтр сетчатый ХПВХ муфтовый EPDM D32 (DN25) FIP | D168: 16 | E168: Арматура | F168: RUB | G168: =IFERROR(I168*Оглавление!$E$23,"по запросу") -> 17712.408 | H168: =IFERROR(G168*(1-Оглавление!$D$34),"по запросу") -> 17712.408 | I168: 176.7 | J168: шт | L168: 0 | M168: 0
B169: RVUIC040E | C169: Фильтр сетчатый ХПВХ муфтовый EPDM D40 (DN32) FIP | D169: 16 | E169: Арматура | F169: RUB | G169: =IFERROR(I169*Оглавление!$E$23,"по запросу") -> 20262.5136 | H169: =IFERROR(G169*(1-Оглавление!$D$34),"по запросу") -> 20262.5136 | I169: 202.14 | J169: шт | L169: 0 | M169: 0
B170: RVUIC050E | C170: Фильтр сетчатый ХПВХ муфтовый EPDM D50 (DN40) FIP | D170: 16 | E170: Арматура | F170: RUB | G170: =IFERROR(I170*Оглавление!$E$23,"по запросу") -> 25661.44 | H170: =IFERROR(G170*(1-Оглавление!$D$34),"по запросу") -> 25661.44 | I170: 256 | J170: шт | L170: 0 | M170: 0
B171: RVUIC063E | C171: Фильтр сетчатый ХПВХ муфтовый EPDM D63 (DN50) FIP | D171: 16 | E171: Арматура | F171: RUB | G171: =IFERROR(I171*Оглавление!$E$23,"по запросу") -> 33472.1408 | H171: =IFERROR(G171*(1-Оглавление!$D$34),"по запросу") -> 33472.1408 | I171: 333.92 | J171: шт | L171: 0 | M171: 0
B172: RVUIC020F | C172: Фильтр сетчатый ХПВХ муфтовый FKM D20 (DN15) FIP | D172: 16 | E172: Арматура | F172: RUB | G172: =IFERROR(I172*Оглавление!$E$23,"по запросу") -> 14340.3344 | H172: =IFERROR(G172*(1-Оглавление!$D$34),"по запросу") -> 14340.3344 | I172: 143.06 | J172: шт | L172: =IFERROR(K172*G172,"0 ₽") -> 0 | M172: =IFERROR(K172*H172,"0 ₽") -> 0
B173: RVUIC025F | C173: Фильтр сетчатый ХПВХ муфтовый FKM D25 (DN20) FIP | D173: 16 | E173: Арматура | F173: RUB | G173: =IFERROR(I173*Оглавление!$E$23,"по запросу") -> 15785.7952 | H173: =IFERROR(G173*(1-Оглавление!$D$34),"по запросу") -> 15785.7952 | I173: 157.48 | J173: шт | L173: 0 | M173: 0
B174: RVUIC032F | C174: Фильтр сетчатый ХПВХ муфтовый FKM D32 (DN25) FIP | D174: 16 | E174: Арматура | F174: RUB | G174: =IFERROR(I174*Оглавление!$E$23,"по запросу") -> 20400.8448 | H174: =IFERROR(G174*(1-Оглавление!$D$34),"по запросу") -> 20400.8448 | I174: 203.52 | J174: шт | L174: 0 | M174: 0
B175: RVUIC040F | C175: Фильтр сетчатый ХПВХ муфтовый FKM D32 (DN25) FIP | D175: 16 | E175: Арматура | F175: RUB | G175: =IFERROR(I175*Оглавление!$E$23,"по запросу") -> 25274.5136 | H175: =IFERROR(G175*(1-Оглавление!$D$34),"по запросу") -> 25274.5136 | I175: 252.14 | J175: шт | L175: =IFERROR(K175*G175,"0 ₽") -> 0 | M175: =IFERROR(K175*H175,"0 ₽") -> 0
B176: RVUIC050F | C176: Фильтр сетчатый ХПВХ муфтовый FKM D32 (DN25) FIP | D176: 16 | E176: Арматура | F176: RUB | G176: =IFERROR(I176*Оглавление!$E$23,"по запросу") -> 29809.3712 | H176: =IFERROR(G176*(1-Оглавление!$D$34),"по запросу") -> 29809.3712 | I176: 297.38 | J176: шт | L176: 0 | M176: 0
B177: RVUIC063F | C177: Фильтр сетчатый ХПВХ муфтовый FKM D32 (DN25) FIP | D177: 16 | E177: Арматура | F177: RUB | G177: =IFERROR(I177*Оглавление!$E$23,"по запросу") -> 37555.9184 | H177: =IFERROR(G177*(1-Оглавление!$D$34),"по запросу") -> 37555.9184 | I177: 374.66 | J177: шт | L177: 0 | M177: 0
B178: DKUIC020E | C178: Мембранный клапан ХПВХ с разборными муфтовыми окончаниями EPDM D20 (DN15) FIP | D178: 10 | E178: Арматура | F178: RUB | G178: =IFERROR(I178*Оглавление!$E$23,"по запросу") -> 26993.84957 | H178: =IFERROR(G178*(1-Оглавление!$D$34),"по запросу") -> 26993.84957 | I178: 269.2921945 | J178: шт | L178: 0 | M178: 0
B179: DKUIC025E | C179: Мембранный клапан ХПВХ с разборными муфтовыми окончаниями EPDM D25 (DN20) FIP | D179: 10 | E179: Арматура | F179: RUB | G179: =IFERROR(I179*Оглавление!$E$23,"по запросу") -> 30164.2208 | H179: =IFERROR(G179*(1-Оглавление!$D$34),"по запросу") -> 30164.2208 | I179: 300.92 | J179: шт | L179: 0 | M179: 0
B180: DKUIC032E | C180: Мембранный клапан ХПВХ с разборными муфтовыми окончаниями EPDM D32 (DN25) FIP | D180: 10 | E180: Арматура | F180: RUB | G180: =IFERROR(I180*Оглавление!$E$23,"по запросу") -> 34943.664 | H180: =IFERROR(G180*(1-Оглавление!$D$34),"по запросу") -> 34943.664 | I180: 348.6 | J180: шт | L180: 0 | M180: 0
B181: DKUIC040E | C181: Мембранный клапан ХПВХ с разборными муфтовыми окончаниями EPDM D40 (DN32) FIP | D181: 10 | E181: Арматура | F181: RUB | G181: =IFERROR(I181*Оглавление!$E$23,"по запросу") -> 43179.3824 | H181: =IFERROR(G181*(1-Оглавление!$D$34),"по запросу") -> 43179.3824 | I181: 430.76 | J181: шт | L181: 0 | M181: 0
B182: DKUIC050E | C182: Мембранный клапан ХПВХ с разборными муфтовыми окончаниями EPDM D50 (DN40) FIP | D182: 10 | E182: Арматура | F182: RUB | G182: =IFERROR(I182*Оглавление!$E$23,"по запросу") -> 53997.26292 | H182: =IFERROR(G182*(1-Оглавление!$D$34),"по запросу") -> 53997.26292 | I182: 538.6797977 | J182: шт | L182: 0 | M182: 0
B183: DKUIC063E | C183: Мембранный клапан ХПВХ с разборными муфтовыми окончаниями EPDM D63 (DN50) FIP | D183: 10 | E183: Арматура | F183: RUB | G183: =IFERROR(I183*Оглавление!$E$23,"по запросу") -> 66683.6576 | H183: =IFERROR(G183*(1-Оглавление!$D$34),"по запросу") -> 66683.6576 | I183: 665.24 | J183: шт | L183: 0 | M183: 0
B184: DKUIC020F | C184: Мембранный клапан ХПВХ с разборными муфтовыми окончаниями FKM D20 (DN15) FIP | D184: 10 | E184: Арматура | F184: RUB | G184: =IFERROR(I184*Оглавление!$E$23,"по запросу") -> 48269.5696 | H184: =IFERROR(G184*(1-Оглавление!$D$34),"по запросу") -> 48269.5696 | I184: 481.54 | J184: шт | L184: 0 | M184: 0
B185: DKUIC025F | C185: Мембранный клапан ХПВХ с разборными муфтовыми окончаниями FKM D25 (DN20) FIP | D185: 10 | E185: Арматура | F185: RUB | G185: =IFERROR(I185*Оглавление!$E$23,"по запросу") -> 52710.2016 | H185: =IFERROR(G185*(1-Оглавление!$D$34),"по запросу") -> 52710.2016 | I185: 525.84 | J185: шт | L185: 0 | M185: 0
B186: DKUIC032F | C186: Мембранный клапан ХПВХ с разборными муфтовыми окончаниями FKM D32 (DN25) FIP | D186: 10 | E186: Арматура | F186: RUB | G186: =IFERROR(I186*Оглавление!$E$23,"по запросу") -> 56519.3216 | H186: =IFERROR(G186*(1-Оглавление!$D$34),"по запросу") -> 56519.3216 | I186: 563.84 | J186: шт | L186: 0 | M186: 0
B187: DKUIC040F | C187: Мембранный клапан ХПВХ с разборными муфтовыми окончаниями FKM D40 (DN32) FIP | D187: 10 | E187: Арматура | F187: RUB | G187: =IFERROR(I187*Оглавление!$E$23,"по запросу") -> 75881.68 | H187: =IFERROR(G187*(1-Оглавление!$D$34),"по запросу") -> 75881.68 | I187: 757 | J187: шт | L187: 0 | M187: 0
B188: DKUIC050F | C188: Мембранный клапан ХПВХ с разборными муфтовыми окончаниями FKM D50 (DN40) FIP | D188: 10 | E188: Арматура | F188: RUB | G188: =IFERROR(I188*Оглавление!$E$23,"по запросу") -> 86358.7648 | H188: =IFERROR(G188*(1-Оглавление!$D$34),"по запросу") -> 86358.7648 | I188: 861.52 | J188: шт | L188: 0 | M188: 0
B189: DKUIC063F | C189: Мембранный клапан ХПВХ с разборными муфтовыми окончаниями FKM D63 (DN50) FIP | D189: 10 | E189: Арматура | F189: RUB | G189: =IFERROR(I189*Оглавление!$E$23,"по запросу") -> 120330.1008 | H189: =IFERROR(G189*(1-Оглавление!$D$34),"по запросу") -> 120330.1008 | I189: 1200.42 | J189: шт | L189: =IFERROR(K189*G189,"0 ₽") -> 0 | M189: =IFERROR(K189*H189,"0 ₽") -> 0
B190: DKUIC020P | C190: Мембранный клапан ХПВХ с разборными муфтовыми окончаниями PTFE D20 (DN15) FIP | D190: 10 | E190: Арматура | F190: RUB | G190: =IFERROR(I190*Оглавление!$E$23,"по запросу") -> 48271.97889 | H190: =IFERROR(G190*(1-Оглавление!$D$34),"по запросу") -> 48271.97889 | I190: 481.5640352 | J190: шт | L190: 0 | M190: 0
B191: DKUIC025P | C191: Мембранный клапан ХПВХ с разборными муфтовыми окончаниями PTFE D25 (DN20) FIP | D191: 10 | E191: Арматура | F191: RUB | G191: =IFERROR(I191*Оглавление!$E$23,"по запросу") -> 52710.2016 | H191: =IFERROR(G191*(1-Оглавление!$D$34),"по запросу") -> 52710.2016 | I191: 525.84 | J191: шт | L191: 0 | M191: 0
B192: DKUIC032P | C192: Мембранный клапан ХПВХ с разборными муфтовыми окончаниями PTFE D32 (DN25) FIP | D192: 10 | E192: Арматура | F192: RUB | G192: =IFERROR(I192*Оглавление!$E$23,"по запросу") -> 56511.779 | H192: =IFERROR(G192*(1-Оглавление!$D$34),"по запросу") -> 56511.779 | I192: 563.7647546 | J192: шт | L192: 0 | M192: 0
B193: DKUIC040P | C193: Мембранный клапан ХПВХ с разборными муфтовыми окончаниями PTFE D40 (DN32) FIP | D193: 10 | E193: Арматура | F193: RUB | G193: =IFERROR(I193*Оглавление!$E$23,"по запросу") -> 75871.15837 | H193: =IFERROR(G193*(1-Оглавление!$D$34),"по запросу") -> 75871.15837 | I193: 756.8950356 | J193: шт | L193: 0 | M193: 0
B194: DKUIC050P | C194: Мембранный клапан ХПВХ с разборными муфтовыми окончаниями PTFE D50 (DN40) FIP | D194: 10 | E194: Арматура | F194: RUB | G194: =IFERROR(I194*Оглавление!$E$23,"по запросу") -> 86344.26524 | H194: =IFERROR(G194*(1-Оглавление!$D$34),"по запросу") -> 86344.26524 | I194: 861.3753515 | J194: шт | L194: 0 | M194: 0
B195: DKUIC063P | C195: Мембранный клапан ХПВХ с разборными муфтовыми окончаниями PTFE D63 (DN50) FIP | D195: 10 | E195: Арматура | F195: RUB | G195: =IFERROR(I195*Оглавление!$E$23,"по запросу") -> 111132.0784 | H195: =IFERROR(G195*(1-Оглавление!$D$34),"по запросу") -> 111132.0784 | I195: 1108.66 | J195: шт | L195: =IFERROR(K195*G195,"0 ₽") -> 0 | M195: =IFERROR(K195*H195,"0 ₽") -> 0
B196: DKDC020E | C196: Мембранный клапан ХПВХ с втулочными окончаниями EPDM D20 (DN15) FIP | D196: 10 | E196: Арматура | F196: RUB | G196: =IFERROR(I196*Оглавление!$E$23,"по запросу") -> 23805.97177 | H196: =IFERROR(G196*(1-Оглавление!$D$34),"по запросу") -> 23805.97177 | I196: 237.4897423 | J196: шт | L196: 0 | M196: 0
B197: DKDC025E | C197: Мембранный клапан ХПВХ с втулочными окончаниями EPDM D25 (DN20) FIP | D197: 10 | E197: Арматура | F197: RUB | G197: =IFERROR(I197*Оглавление!$E$23,"по запросу") -> 26689.99272 | H197: =IFERROR(G197*(1-Оглавление!$D$34),"по запросу") -> 26689.99272 | I197: 266.2609011 | J197: шт | L197: 0 | M197: 0
B198: DKDC032E | C198: Мембранный клапан ХПВХ с втулочными окончаниями EPDM D32 (DN25) FIP | D198: 10 | E198: Арматура | F198: RUB | G198: =IFERROR(I198*Оглавление!$E$23,"по запросу") -> 31130.36108 | H198: =IFERROR(G198*(1-Оглавление!$D$34),"по запросу") -> 31130.36108 | I198: 310.5582709 | J198: шт | L198: 0 | M198: 0
B199: DKDC040E | C199: Мембранный клапан ХПВХ с втулочными окончаниями EPDM D40 (DN32) FIP | D199: 10 | E199: Арматура | F199: RUB | G199: =IFERROR(I199*Оглавление!$E$23,"по запросу") -> 37168.03335 | H199: =IFERROR(G199*(1-Оглавление!$D$34),"по запросу") -> 37168.03335 | I199: 370.7904364 | J199: шт | L199: 0 | M199: 0
B200: DKDC050E | C200: Мембранный клапан ХПВХ с втулочными окончаниями EPDM D50 (DN40) FIP | D200: 10 | E200: Арматура | F200: RUB | G200: =IFERROR(I200*Оглавление!$E$23,"по запросу") -> 47649.48701 | H200: =IFERROR(G200*(1-Оглавление!$D$34),"по запросу") -> 47649.48701 | I200: 475.3540205 | J200: шт | L200: 0 | M200: 0
B201: DKDC063E | C201: Мембранный клапан ХПВХ с втулочными окончаниями EPDM D63 (DN50) FIP | D201: 10 | E201: Арматура | F201: RUB | G201: =IFERROR(I201*Оглавление!$E$23,"по запросу") -> 56840.81059 | H201: =IFERROR(G201*(1-Оглавление!$D$34),"по запросу") -> 56840.81059 | I201: 567.0471927 | J201: шт | L201: 0 | M201: 0
B202: DKDC075E | C202: Мембранный клапан ХПВХ с втулочными окончаниями EPDM D75 (DN65) FIP | D202: 10 | E202: Арматура | F202: RUB | G202: =IFERROR(I202*Оглавление!$E$23,"по запросу") -> 68206.24228 | H202: =IFERROR(G202*(1-Оглавление!$D$34),"по запросу") -> 68206.24228 | I202: 680.4293922 | J202: шт | L202: 0 | M202: 0
B203: DKDC020F | C203: Мембранный клапан ХПВХ с втулочными окончаниями FKM D20 (DN15) FIP | D203: 10 | E203: Арматура | F203: RUB | G203: =IFERROR(I203*Оглавление!$E$23,"по запросу") -> 45079.46597 | H203: =IFERROR(G203*(1-Оглавление!$D$34),"по запросу") -> 45079.46597 | I203: 449.7153429 | J203: шт | L203: 0 | M203: 0
B204: DKDC025F | C204: Мембранный клапан ХПВХ с втулочными окончаниями FKM D25 (DN20) FIP | D204: 10 | E204: Арматура | F204: RUB | G204: =IFERROR(I204*Оглавление!$E$23,"по запросу") -> 49216.07354 | H204: =IFERROR(G204*(1-Оглавление!$D$34),"по запросу") -> 49216.07354 | I204: 490.9823777 | J204: шт | L204: 0 | M204: 0
B205: DKDC032F | C205: Мембранный клапан ХПВХ с втулочными окончаниями FKM D32 (DN25) FIP | D205: 10 | E205: Арматура | F205: RUB | G205: =IFERROR(I205*Оглавление!$E$23,"по запросу") -> 52707.61607 | H205: =IFERROR(G205*(1-Оглавление!$D$34),"по запросу") -> 52707.61607 | I205: 525.8142066 | J205: шт | L205: 0 | M205: 0
B206: DKDC040F | C206: Мембранный клапан ХПВХ с втулочными окончаниями FKM D40 (DN32) FIP | D206: 10 | E206: Арматура | F206: RUB | G206: =IFERROR(I206*Оглавление!$E$23,"по запросу") -> 69854.74183 | H206: =IFERROR(G206*(1-Оглавление!$D$34),"по запросу") -> 69854.74183 | I206: 696.8749185 | J206: шт | L206: =IFERROR(K206*G206,"0 ₽") -> 0 | M206: =IFERROR(K206*H206,"0 ₽") -> 0
... 31 more rows

Sheet ПП (PP-H) IPS
J1: =COUNT(K10:K560) -> 0 | K1: Товаров в заказе
J2: =SUM(M10:M70) -> 0 | K2: Сумма заказа со скидкой с НДС (трубы)
J3: =SUM(M71:M361) -> 0 | K3: Сумма заказа со скидкой с НДС (фитинги)
J4: =SUM(M362:M560) -> 0 | K4: Сумма заказа со скидкой с НДС (арматура)
J5: =SUM(M10:M560) -> 0 | K5: Сумма заказа со скидкой с НДС
A9: Фото | B9: Код | C9: Наименование | D9: PN | E9: Категория | F9: Валюта продажи | G9: Цена ПРОДАЖИ с НДС | H9: Цена с НДС со скидкой | I9: Цена EUR | J9: Ед. измерения | K9: Заказ (метры/штуки) | L9: Сумма рубли | M9: Сумма со скидкой
B10: IPIPEM11020 | C10: Труба ПП (PP-H) напорная PN10 20x2.0x5 м IPS | D10: 10 | E10: Трубы | F10: RUB | G10: =IFERROR(I10*Оглавление!$E$23,"по запросу") -> 123.2952 | H10: =IFERROR(G10*(1-Оглавление!$D$35),"по запросу") -> 123.2952 | I10: 1.23 | J10: м | L10: =IFERROR(K10*G10,"0 ₽") -> 0 | M10: =IFERROR(K10*H10,"0 ₽") -> 0
B11: IPIPEM11025 | C11: Труба ПП (PP-H) напорная PN10 25x2.3x5 м IPS | D11: 10 | E11: Трубы | F11: RUB | G11: =IFERROR(I11*Оглавление!$E$23,"по запросу") -> 197.4728 | H11: =IFERROR(G11*(1-Оглавление!$D$35),"по запросу") -> 197.4728 | I11: 1.97 | J11: м | L11: 0 | M11: 0
B12: IPIPEM11032 | C12: Труба ПП (PP-H) напорная PN10 32x2.9x5 м IPS | D12: 10 | E12: Трубы | F12: RUB | G12: =IFERROR(I12*Оглавление!$E$23,"по запросу") -> 320.768 | H12: =IFERROR(G12*(1-Оглавление!$D$35),"по запросу") -> 320.768 | I12: 3.2 | J12: м | L12: 0 | M12: 0
B13: IPIPEM11040 | C13: Труба ПП (PP-H) напорная PN10 40x3.7x5 м IPS | D13: 10 | E13: Трубы | F13: RUB | G13: =IFERROR(I13*Оглавление!$E$23,"по запросу") -> 493.1808 | H13: =IFERROR(G13*(1-Оглавление!$D$35),"по запросу") -> 493.1808 | I13: 4.92 | J13: м | L13: 0 | M13: 0
B14: IPIPEM11050 | C14: Труба ПП (PP-H) напорная PN10 50x4.6x5 м IPS | D14: 10 | E14: Трубы | F14: RUB | G14: =IFERROR(I14*Оглавление!$E$23,"по запросу") -> 776.86 | H14: =IFERROR(G14*(1-Оглавление!$D$35),"по запросу") -> 776.86 | I14: 7.75 | J14: м | L14: 0 | M14: 0
B15: IPIPEM11063 | C15: Труба ПП (PP-H) напорная PN10 63x5.8x5 м IPS | D15: 10 | E15: Трубы | F15: RUB | G15: =IFERROR(I15*Оглавление!$E$23,"по запросу") -> 1232.952 | H15: =IFERROR(G15*(1-Оглавление!$D$35),"по запросу") -> 1232.952 | I15: 12.3 | J15: м | L15: 0 | M15: 0
B16: IPIPEM11075 | C16: Труба ПП (PP-H) напорная PN10 75x6.8x5 м IPS | D16: 10 | E16: Трубы | F16: RUB | G16: =IFERROR(I16*Оглавление!$E$23,"по запросу") -> 1726.1328 | H16: =IFERROR(G16*(1-Оглавление!$D$35),"по запросу") -> 1726.1328 | I16: 17.22 | J16: м | L16: 0 | M16: 0
B17: IPIPEM11090 | C17: Труба ПП (PP-H) напорная PN10 90x8.2x5 м IPS | D17: 10 | E17: Трубы | F17: RUB | G17: =IFERROR(I17*Оглавление!$E$23,"по запросу") -> 2490.964 | H17: =IFERROR(G17*(1-Оглавление!$D$35),"по запросу") -> 2490.964 | I17: 24.85 | J17: м | L17: 0 | M17: 0
B18: IPIPEM11110 | C18: Труба ПП (PP-H) напорная PN10 110x10.0x5 м IPS | D18: 10 | E18: Трубы | F18: RUB | G18: =IFERROR(I18*Оглавление!$E$23,"по запросу") -> 3723.916 | H18: =IFERROR(G18*(1-Оглавление!$D$35),"по запросу") -> 3723.916 | I18: 37.15 | J18: м | L18: 0 | M18: 0
B19: IPIPEM11140 | C19: Труба ПП (PP-H) напорная PN10 140x12.7x5 м IPS | D19: 10 | E19: Трубы | F19: RUB | G19: =IFERROR(I19*Оглавление!$E$23,"по запросу") -> 6104.616 | H19: =IFERROR(G19*(1-Оглавление!$D$35),"по запросу") -> 6104.616 | I19: 60.9 | J19: м | L19: 0 | M19: 0
B20: IPIPEM11160 | C20: Труба ПП (PP-H) напорная PN10 160x14.6x5 м IPS | D20: 10 | E20: Трубы | F20: RUB | G20: =IFERROR(I20*Оглавление!$E$23,"по запросу") -> 7892.8976 | H20: =IFERROR(G20*(1-Оглавление!$D$35),"по запросу") -> 7892.8976 | I20: 78.74 | J20: м | L20: 0 | M20: 0
B21: IPIPEM11225 | C21: Труба ПП (PP-H) напорная PN10 225x20.5x5 м IPS | D21: 10 | E21: Трубы | F21: RUB | G21: =IFERROR(I21*Оглавление!$E$23,"по запросу") -> 15587.32 | H21: =IFERROR(G21*(1-Оглавление!$D$35),"по запросу") -> 15587.32 | I21: 155.5 | J21: м | L21: 0 | M21: 0
B22: IPIPEM11280 | C22: Труба ПП (PP-H) напорная PN10 280x25.4x5 м IPS | D22: 10 | E22: Трубы | F22: RUB | G22: =IFERROR(I22*Оглавление!$E$23,"по запросу") -> 24429.4904 | H22: =IFERROR(G22*(1-Оглавление!$D$35),"по запросу") -> 24429.4904 | I22: 243.71 | J22: м | L22: 0 | M22: 0
B23: IPIPEM11315 | C23: Труба ПП (PP-H) напорная PN10 315x28.6x5 м IPS | D23: 10 | E23: Трубы | F23: RUB | G23: =IFERROR(I23*Оглавление!$E$23,"по запросу") -> 30947.0952 | H23: =IFERROR(G23*(1-Оглавление!$D$35),"по запросу") -> 30947.0952 | I23: 308.73 | J23: м | L23: 0 | M23: 0
B24: IPIPEM11355 | C24: Труба ПП (PP-H) напорная PN10 355x32.2x5 м IPS | D24: 10 | E24: Трубы | F24: RUB | G24: =IFERROR(I24*Оглавление!$E$23,"по запросу") -> 44923.5584 | H24: =IFERROR(G24*(1-Оглавление!$D$35),"по запросу") -> 44923.5584 | I24: 448.16 | J24: м | L24: 0 | M24: 0
B25: IPIPEM11400 | C25: Труба ПП (PP-H) напорная PN10 400x36.3x5 м IPS | D25: 10 | E25: Трубы | F25: RUB | G25: =IFERROR(I25*Оглавление!$E$23,"по запросу") -> 56154.448 | H25: =IFERROR(G25*(1-Оглавление!$D$35),"по запросу") -> 56154.448 | I25: 560.2 | J25: м | L25: 0 | M25: 0
B26: IPIPEM11450 | C26: Труба ПП (PP-H) напорная PN10 450x40.9x5 м IPS | D26: 10 | E26: Трубы | F26: RUB | G26: =IFERROR(I26*Оглавление!$E$23,"по запросу") -> по запросу | H26: =IFERROR(G26*(1-Оглавление!$D$35),"по запросу") -> по запросу | I26: по запросу | J26: м | L26: 0 ₽ | M26: 0 ₽
B27: IPIPEM17040 | C27: Труба ПП (PP-H) напорная PN6 40x2.3x5 м IPS | D27: 6 | E27: Трубы | F27: RUB | G27: =IFERROR(I27*Оглавление!$E$23,"по запросу") -> 325.78 | H27: =IFERROR(G27*(1-Оглавление!$D$35),"по запросу") -> 325.78 | I27: 3.25 | J27: м | L27: 0 | M27: 0
B28: IPIPEM17050 | C28: Труба ПП (PP-H) напорная PN6 50x2.9x5 м IPS | D28: 6 | E28: Трубы | F28: RUB | G28: =IFERROR(I28*Оглавление!$E$23,"по запросу") -> 514.2312 | H28: =IFERROR(G28*(1-Оглавление!$D$35),"по запросу") -> 514.2312 | I28: 5.13 | J28: м | L28: 0 | M28: 0
B29: IPIPEM17063 | C29: Труба ПП (PP-H) напорная PN6 63x3.6x5 м IPS | D29: 6 | E29: Трубы | F29: RUB | G29: =IFERROR(I29*Оглавление!$E$23,"по запросу") -> 801.92 | H29: =IFERROR(G29*(1-Оглавление!$D$35),"по запросу") -> 801.92 | I29: 8 | J29: м | L29: 0 | M29: 0
B30: IPIPEM17075 | C30: Труба ПП (PP-H) напорная PN6 75x4.3x5 м IPS | D30: 6 | E30: Трубы | F30: RUB | G30: =IFERROR(I30*Оглавление!$E$23,"по запросу") -> 1152.76 | H30: =IFERROR(G30*(1-Оглавление!$D$35),"по запросу") -> 1152.76 | I30: 11.5 | J30: м | L30: 0 | M30: 0
B31: IPIPEM17090 | C31: Труба ПП (PP-H) напорная PN6 90x5.1x5 м IPS | D31: 6 | E31: Трубы | F31: RUB | G31: =IFERROR(I31*Оглавление!$E$23,"по запросу") -> 1641.9312 | H31: =IFERROR(G31*(1-Оглавление!$D$35),"по запросу") -> 1641.9312 | I31: 16.38 | J31: м | L31: 0 | M31: 0
B32: IPIPEM17110 | C32: Труба ПП (PP-H) напорная PN6 110x6.3x5 м IPS | D32: 6 | E32: Трубы | F32: RUB | G32: =IFERROR(I32*Оглавление!$E$23,"по запросу") -> 2468.9112 | H32: =IFERROR(G32*(1-Оглавление!$D$35),"по запросу") -> 2468.9112 | I32: 24.63 | J32: м | L32: 0 | M32: 0
B33: IPIPEM17140 | C33: Труба ПП (PP-H) напорная PN6 140x8.3x5 м IPS | D33: 6 | E33: Трубы | F33: RUB | G33: =IFERROR(I33*Оглавление!$E$23,"по запросу") -> 3985.5424 | H33: =IFERROR(G33*(1-Оглавление!$D$35),"по запросу") -> 3985.5424 | I33: 39.76 | J33: м | L33: 0 | M33: 0
B34: IPIPEM17160 | C34: Труба ПП (PP-H) напорная PN6 160x9.1x5 м IPS | D34: 6 | E34: Трубы | F34: RUB | G34: =IFERROR(I34*Оглавление!$E$23,"по запросу") -> 5189.4248 | H34: =IFERROR(G34*(1-Оглавление!$D$35),"по запросу") -> 5189.4248 | I34: 51.77 | J34: м | L34: 0 | M34: 0
B35: IPIPEM17225 | C35: Труба ПП (PP-H) напорная PN6 225x12.8x5 м IPS | D35: 6 | E35: Трубы | F35: RUB | G35: =IFERROR(I35*Оглавление!$E$23,"по запросу") -> 10265.5784 | H35: =IFERROR(G35*(1-Оглавление!$D$35),"по запросу") -> 10265.5784 | I35: 102.41 | J35: м | L35: 0 | M35: 0
B36: IPIPEM17280 | C36: Труба ПП (PP-H) напорная PN6 280x15.9x5 м IPS | D36: 6 | E36: Трубы | F36: RUB | G36: =IFERROR(I36*Оглавление!$E$23,"по запросу") -> 15868.9944 | H36: =IFERROR(G36*(1-Оглавление!$D$35),"по запросу") -> 15868.9944 | I36: 158.31 | J36: м | L36: 0 | M36: 0
B37: IPIPEM17315 | C37: Труба ПП (PP-H) напорная PN6 315x17.9x5 м IPS | D37: 6 | E37: Трубы | F37: RUB | G37: =IFERROR(I37*Оглавление!$E$23,"по запросу") -> 20093.108 | H37: =IFERROR(G37*(1-Оглавление!$D$35),"по запросу") -> 20093.108 | I37: 200.45 | J37: м | L37: 0 | M37: 0
B38: IPIPEM17355 | C38: Труба ПП (PP-H) напорная PN6 355x20.1x5 м IPS | D38: 6 | E38: Трубы | F38: RUB | G38: =IFERROR(I38*Оглавление!$E$23,"по запросу") -> 28778.904 | H38: =IFERROR(G38*(1-Оглавление!$D$35),"по запросу") -> 28778.904 | I38: 287.1 | J38: м | L38: 0 | M38: 0
B39: IPIPEM17400 | C39: Труба ПП (PP-H) напорная PN6 400x22.7x5 м IPS | D39: 6 | E39: Трубы | F39: RUB | G39: =IFERROR(I39*Оглавление!$E$23,"по запросу") -> 36500.3912 | H39: =IFERROR(G39*(1-Оглавление!$D$35),"по запросу") -> 36500.3912 | I39: 364.13 | J39: м | L39: 0 | M39: 0
B40: IPIPEM17450 | C40: Труба ПП (PP-H) напорная PN6 450x25.5x5 м IPS | D40: 6 | E40: Трубы | F40: RUB | G40: =IFERROR(I40*Оглавление!$E$23,"по запросу") -> 45775.5984 | H40: =IFERROR(G40*(1-Оглавление!$D$35),"по запросу") -> 45775.5984 | I40: 456.66 | J40: м | L40: 0 | M40: 0
B41: IPIPEM17500 | C41: Труба ПП (PP-H) напорная PN6 500x28.4x5 м IPS | D41: 6 | E41: Трубы | F41: RUB | G41: =IFERROR(I41*Оглавление!$E$23,"по запросу") -> 56455.168 | H41: =IFERROR(G41*(1-Оглавление!$D$35),"по запросу") -> 56455.168 | I41: 563.2 | J41: м | L41: 0 | M41: 0
B42: IPIPEM17630 | C42: Труба ПП (PP-H) напорная PN6 630x35.7x5 м IPS | D42: 6 | E42: Трубы | F42: RUB | G42: =IFERROR(I42*Оглавление!$E$23,"по запросу") -> по запросу | H42: =IFERROR(G42*(1-Оглавление!$D$35),"по запросу") -> по запросу | I42: по запросу | J42: м | L42: 0 ₽ | M42: 0 ₽
B43: IPIPEM26090 | C43: Труба ПП (PP-H) напорная PN4 90x3.5x5 м IPS | D43: 4 | E43: Трубы | F43: RUB | G43: =IFERROR(I43*Оглавление!$E$23,"по запросу") -> по запросу | H43: =IFERROR(G43*(1-Оглавление!$D$35),"по запросу") -> по запросу | I43: по запросу | J43: м | L43: =IFERROR(K43*G43,"0 ₽") -> 0 ₽ | M43: =IFERROR(K43*H43,"0 ₽") -> 0 ₽
B44: IPIPEM26110 | C44: Труба ПП (PP-H) напорная PN4 110x4.2x5 м IPS | D44: 4 | E44: Трубы | F44: RUB | G44: =IFERROR(I44*Оглавление!$E$23,"по запросу") -> по запросу | H44: =IFERROR(G44*(1-Оглавление!$D$35),"по запросу") -> по запросу | I44: по запросу | J44: м | L44: 0 ₽ | M44: 0 ₽
